Workbook

Sheet Resultaten
D2: Dit model biedt een eerste inzicht in de effecten van NOM en B-label renovaties op de financiële continuïteit van woningcorporaties. Uitgangspunt is dat een bepaald percentage van het bezit per jaar wordt gerenoveerd. Het is niet mogelijk om in het model andere (des)investeringen op te nemen.
D5: Gebruik | F5: Dit model is gebaseerd op data uit het Corporatie Benchmark Centrum. In het tabblad 'Input' kan elke corporatie geselecteerd worden. Het model zoekt dan automatisch de bijpassende uitgangspunten. Alleen in de grijze tabbladen kunnen de cellen met blauwe invoer gewijzigd worden. Het is ook mogelijk het gemiddelde van de corporatiesector als uitgangspunt te nemen. Het is tot slot mogelijk om in het tabblad CBC 2014 eigen uitgangspunten in te voeren bij de rij 'Eigen invoer'.
D10: Contact | F10: Jan Martijn Buruma (janmartijn.buruma@finance-ideas.nl)
F11: Daan van Vulpen (daan.vanvulpen@finance-ideas.nl)
A13: Corporatie: | B13: =Input!C2 -> Gemiddelde
A15: Waardesprong renovatie jaar 1 (bedrijfswaarde) | J15: Waardesprong renovatie jaar 1 (marktwaarde)
A33: Verloop gemiddeld gewogen levensduur van de portefeuille | J33: Operationele kasstroom na 2% normatieve aflossing
A50: ICR | J50: DSCR
A67: Loan-to-value (bedrijfswaarde) | J67: Loan-to-value (marktwaarde)
A84: Solvabiliteit (bedrijfswaarde) | J84: Solvabiliteit (marktwaarde)
A101: Dekkingsratio | J101: Schuld per vhe
A118: Hulpberekeningen grafieken | B118: ='KAS - RES - BAL NOM'!B1 -> 2014 | C118: ='KAS - RES - BAL NOM'!C1 -> 2015 | D118: ='KAS - RES - BAL NOM'!D1 -> 2016 | E118: ='KAS - RES - BAL NOM'!E1 -> 2017 | F118: ='KAS - RES - BAL NOM'!F1 -> 2018 | G118: ='KAS - RES - BAL NOM'!G1 -> 2019 | H118: ='KAS - RES - BAL NOM'!H1 -> 2020 | I118: ='KAS - RES - BAL NOM'!I1 -> 2021 | J118: ='KAS - RES - BAL NOM'!J1 -> 2022 | K118: ='KAS - RES - BAL NOM'!K1 -> 2023 | L118: ='KAS - RES - BAL NOM'!L1 -> 2024 | M118: ='KAS - RES - BAL NOM'!M1 -> 2025 | N118: ='KAS - RES - BAL NOM'!N1 -> 2026 | O118: ='KAS - RES - BAL NOM'!O1 -> 2027 | P118: ='KAS - RES - BAL NOM'!P1 -> 2028 | Q118: ='KAS - RES - BAL NOM'!Q1 -> 2029
A120: Waardesprong renovatie
B121: Reeks 1 | C121: Reeks 2
A122: NOM - Waarde voor renovatie | B122: 0 | C122: =C124-C123 -> 34045.99057
A123: NOM - Toename bedrijfswaarde | B123: =C122 -> 34045.99057 | C123: ='Waarde NOM'!D410 -> 69719.15957
A124: NOM - Waarde na renovatie | B124: 0 | C124: ='Waarde NOM'!D387/'KAS - RES - BAL NOM'!C115 -> 103765.1501
A126: B - Waarde voor renovatie | B126: 0 | C126: =C122 -> 34045.99057
A127: B - Toename bedrijfswaarde | B127: =C126 -> 34045.99057 | C127: ='Waarde B label'!D410 -> 18834.95764
A128: B - Waarde na renovatie | B128: 0 | C128: =C127+B127 -> 52880.94821
B130: Reeks 1 | C130: Reeks 2
A131: NOM - Waarde voor renovatie | B131: 0 | C131: ='Waarde NOM'!D430 -> 95500.75904
A132: NOM - Toename marktwaarde | B132: =C131 -> 95500.75904 | C132: ='Waarde NOM'!D438 -> 33425.26566
A133: NOM - Waarde na renovatie | B133: 0 | C133: ='Waarde NOM'!D431 -> 128926.0247
A135: B - Waarde voor renovatie | B135: 0 | C135: ='Waarde B label'!D430 -> 95500.75904
A136: B - Toename marktwaarde | B136: =C135 -> 95500.75904 | C136: ='Waarde B label'!D438 -> 9550.075904
A137: B - Waarde na renovatie | B137: 0 | C137: ='Waarde B label'!D431 -> 105050.8349
A139: Verloop levensduur
A140: NOM | B140: =Reeksen!C160 -> 24.25231481 | C140: =Reeksen!D160 -> 24.35185185 | D140: =Reeksen!E160 -> 24.44032407 | E140: =Reeksen!F160 -> 24.52318783 | F140: =Reeksen!G160 -> 24.60606481 | G140: =Reeksen!H160 -> 24.69424603 | H140: =Reeksen!I160 -> 24.7926918 | I140: =Reeksen!J160 -> 24.90553571 | J140: =Reeksen!K160 -> 25.03608466 | K140: =Reeksen!L160 -> 25.18632275 | L140: =Reeksen!M160 -> 25.35691138 | M140: =Reeksen!N160 -> 25.54718915 | N140: =Reeksen!O160 -> 25.75517196 | O140: =Reeksen!P160 -> 25.97755291 | P140: =Reeksen!Q160 -> 26.21019841 | Q140: =Reeksen!R160 -> 26.44814815
A141: Label B | B141: =Reeksen!C161 -> 24.25231481 | C141: =Reeksen!D161 -> 23.75185185 | D141: =Reeksen!E161 -> 23.24032407 | E141: =Reeksen!F161 -> 22.72318783 | F141: =Reeksen!G161 -> 22.20606481 | G141: =Reeksen!H161 -> 21.69424603 | H141: =Reeksen!I161 -> 21.1926918 | I141: =Reeksen!J161 -> 20.70553571 | J141: =Reeksen!K161 -> 20.23608466 | K141: =Reeksen!L161 -> 19.78632275 | L141: =Reeksen!M161 -> 19.35691138 | M141: =Reeksen!N161 -> 18.94718915 | N141: =Reeksen!O161 -> 18.55517196 | O141: =Reeksen!P161 -> 18.17755291 | P141: =Reeksen!Q161 -> 17.81019841 | Q141: =Reeksen!R161 -> 17.44814815
A143: OK na 2% normatieve aflossing
A144: NOM | B144: ='KAS - RES - BAL NOM'!B41 -> 0 | C144: ='KAS - RES - BAL NOM'!C41 -> 1939541.576 | D144: ='KAS - RES - BAL NOM'!D41 -> 1859117.406 | E144: ='KAS - RES - BAL NOM'!E41 -> 1622800.338 | F144: ='KAS - RES - BAL NOM'!F41 -> 1728411.418 | G144: ='KAS - RES - BAL NOM'!G41 -> 1698524.329 | H144: ='KAS - RES - BAL NOM'!H41 -> 1944833.855 | I144: ='KAS - RES - BAL NOM'!I41 -> 1928111.735 | J144: ='KAS - RES - BAL NOM'!J41 -> 1910821.433 | K144: ='KAS - RES - BAL NOM'!K41 -> 1893113.45 | L144: ='KAS - RES - BAL NOM'!L41 -> 1875144.926 | M144: ='KAS - RES - BAL NOM'!M41 -> 1857079.955 | N144: ='KAS - RES - BAL NOM'!N41 -> 1839089.916 | O144: ='KAS - RES - BAL NOM'!O41 -> 1821353.805 | P144: ='KAS - RES - BAL NOM'!P41 -> 1804058.588 | Q144: ='KAS - RES - BAL NOM'!Q41 -> 1787399.551
A145: Label B | B145: ='KAS - RES - BAL B label'!B41 -> 0 | C145: ='KAS - RES - BAL B label'!C41 -> 2086578.537 | D145: ='KAS - RES - BAL B label'!D41 -> 2023507.821 | E145: ='KAS - RES - BAL B label'!E41 -> 1954754.049 | F145: ='KAS - RES - BAL B label'!F41 -> 2218670.732 | G145: ='KAS - RES - BAL B label'!G41 -> 2341040.566 | H145: ='KAS - RES - BAL B label'!H41 -> 2733618.41 | I145: ='KAS - RES - BAL B label'!I41 -> 2856645.722 | J145: ='KAS - RES - BAL B label'!J41 -> 2972020.452 | K145: ='KAS - RES - BAL B label'!K41 -> 3079290.849 | L145: ='KAS - RES - BAL B label'!L41 -> 3177973.493 | M145: ='KAS - RES - BAL B label'!M41 -> 3267551.971 | N145: ='KAS - RES - BAL B label'!N41 -> 3347475.49 | O145: ='KAS - RES - BAL B label'!O41 -> 3417157.423 | P145: ='KAS - RES - BAL B label'!P41 -> 3475973.785 | Q145: ='KAS - RES - BAL B label'!Q41 -> 3523261.64
A147: ICR
A148: NOM | B148: ='KAS - RES - BAL NOM'!B39 -> 0 | C148: ='KAS - RES - BAL NOM'!C39 -> 1.773231121 | D148: ='KAS - RES - BAL NOM'!D39 -> 1.791323419 | E148: ='KAS - RES - BAL NOM'!E39 -> 1.723183431 | F148: ='KAS - RES - BAL NOM'!F39 -> 1.703495446 | G148: ='KAS - RES - BAL NOM'!G39 -> 1.672804714 | H148: ='KAS - RES - BAL NOM'!H39 -> 1.672249104 | I148: ='KAS - RES - BAL NOM'!I39 -> 1.648563253 | J148: ='KAS - RES - BAL NOM'!J39 -> 1.627532818 | K148: ='KAS - RES - BAL NOM'!K39 -> 1.608755177 | L148: ='KAS - RES - BAL NOM'!L39 -> 1.591907937 | M148: ='KAS - RES - BAL NOM'!M39 -> 1.576729896 | N148: ='KAS - RES - BAL NOM'!N39 -> 1.56300718 | O148: ='KAS - RES - BAL NOM'!O39 -> 1.550562985 | P148: ='KAS - RES - BAL NOM'!P39 -> 1.539249879 | Q148: ='KAS - RES - BAL NOM'!Q39 -> 1.528943943
A149: Label B | B149: ='KAS - RES - BAL B label'!B39 -> 0 | C149: ='KAS - RES - BAL B label'!C39 -> 1.773231121 | D149: ='KAS - RES - BAL B label'!D39 -> 1.791183486 | E149: ='KAS - RES - BAL B label'!E39 -> 1.759395046 | F149: ='KAS - RES - BAL B label'!F39 -> 1.771049786 | G149: ='KAS - RES - BAL B label'!G39 -> 1.765329179 | H149: ='KAS - RES - BAL B label'!H39 -> 1.79056372 | I149: ='KAS - RES - BAL B label'!I39 -> 1.784991438 | J149: ='KAS - RES - BAL B label'!J39 -> 1.77887356 | K149: ='KAS - RES - BAL B label'!K39 -> 1.772200722 | L149: ='KAS - RES - BAL B label'!L39 -> 1.764963992 | M149: ='KAS - RES - BAL B label'!M39 -> 1.757155078 | N149: ='KAS - RES - BAL B label'!N39 -> 1.74876652 | O149: ='KAS - RES - BAL B label'!O39 -> 1.73979186 | P149: ='KAS - RES - BAL B label'!P39 -> 1.730225803 | Q149: ='KAS - RES - BAL B label'!Q39 -> 1.720064363
A150: Norm WSW | B150: 1.4 | C150: 1.4 | D150: 1.4 | E150: 1.4 | F150: 1.4 | G150: 1.4 | H150: 1.4 | I150: 1.4 | J150: 1.4 | K150: 1.4 | L150: 1.4 | M150: 1.4 | N150: 1.4 | O150: 1.4 | P150: 1.4 | Q150: 1.4
A152: DSCR
A153: NOM | B153: ='KAS - RES - BAL NOM'!B40 -> 0 | C153: ='KAS - RES - BAL NOM'!C40 -> 1.208899594 | D153: ='KAS - RES - BAL NOM'!D40 -> 1.189715671 | E153: ='KAS - RES - BAL NOM'!E40 -> 1.159796902 | F153: ='KAS - RES - BAL NOM'!F40 -> 1.154461219 | G153: ='KAS - RES - BAL NOM'!G40 -> 1.142524314 | H153: ='KAS - RES - BAL NOM'!H40 -> 1.147023861 | I153: ='KAS - RES - BAL NOM'!I40 -> 1.13860361 | J153: ='KAS - RES - BAL NOM'!J40 -> 1.131544029 | K153: ='KAS - RES - BAL NOM'!K40 -> 1.12573113 | L153: ='KAS - RES - BAL NOM'!L40 -> 1.121048224 | M153: ='KAS - RES - BAL NOM'!M40 -> 1.117372978 | N153: ='KAS - RES - BAL NOM'!N40 -> 1.114575602 | O153: ='KAS - RES - BAL NOM'!O40 -> 1.112517865 | P153: ='KAS - RES - BAL NOM'!P40 -> 1.111061715 | Q153: ='KAS - RES - BAL NOM'!Q40 -> 1.110068368
A154: Label B | B154: ='KAS - RES - BAL B label'!B40 -> 0 | C154: ='KAS - RES - BAL B label'!C40 -> 1.221164976 | D154: ='KAS - RES - BAL B label'!D40 -> 1.205081281 | E154: ='KAS - RES - BAL B label'!E40 -> 1.187555058 | F154: ='KAS - RES - BAL B label'!F40 -> 1.192255926 | G154: ='KAS - RES - BAL B label'!G40 -> 1.186989138 | H154: ='KAS - RES - BAL B label'!H40 -> 1.197886919 | I154: ='KAS - RES - BAL B label'!I40 -> 1.192074022 | J154: ='KAS - RES - BAL B label'!J40 -> 1.185696277 | K154: ='KAS - RES - BAL B label'!K40 -> 1.178847767 | L154: ='KAS - RES - BAL B label'!L40 -> 1.171586306 | M154: ='KAS - RES - BAL B label'!M40 -> 1.16392957 | N154: ='KAS - RES - BAL B label'!N40 -> 1.155851319 | O154: ='KAS - RES - BAL B label'!O40 -> 1.147277818 | P154: ='KAS - RES - BAL B label'!P40 -> 1.138100643 | Q154: ='KAS - RES - BAL B label'!Q40 -> 1.128174824
A155: Norm WSW | B155: 1 | C155: 1 | D155: 1 | E155: 1 | F155: 1 | G155: 1 | H155: 1 | I155: 1 | J155: 1 | K155: 1 | L155: 1 | M155: 1 | N155: 1 | O155: 1 | P155: 1 | Q155: 1
A157: Solvabiliteit (BW)
A158: NOM | B158: ='KAS - RES - BAL NOM'!B71 -> 0.366194078 | C158: ='KAS - RES - BAL NOM'!C71 -> 0.362364828 | D158: ='KAS - RES - BAL NOM'!D71 -> 0.3614511605 | E158: ='KAS - RES - BAL NOM'!E71 -> 0.3613456359 | F158: ='KAS - RES - BAL NOM'!F71 -> 0.3609372477 | G158: ='KAS - RES - BAL NOM'!G71 -> 0.3602895721 | H158: ='KAS - RES - BAL NOM'!H71 -> 0.3596253895 | I158: ='KAS - RES - BAL NOM'!I71 -> 0.3589344331 | J158: ='KAS - RES - BAL NOM'!J71 -> 0.358309657 | K158: ='KAS - RES - BAL NOM'!K71 -> 0.3578229263 | L158: ='KAS - RES - BAL NOM'!L71 -> 0.3573315645 | M158: ='KAS - RES - BAL NOM'!M71 -> 0.3568996599 | N158: ='KAS - RES - BAL NOM'!N71 -> 0.3566895931 | O158: ='KAS - RES - BAL NOM'!O71 -> 0.356513958 | P158: ='KAS - RES - BAL NOM'!P71 -> 0.3563895078 | Q158: ='KAS - RES - BAL NOM'!Q71 -> 0.3564740918
A159: Label B | B159: ='KAS - RES - BAL B label'!B71 -> 0.366194078 | C159: ='KAS - RES - BAL B label'!C71 -> 0.3606426216 | D159: ='KAS - RES - BAL B label'!D71 -> 0.3566465095 | E159: ='KAS - RES - BAL B label'!E71 -> 0.3527509145 | F159: ='KAS - RES - BAL B label'!F71 -> 0.3479816664 | G159: ='KAS - RES - BAL B label'!G71 -> 0.3423447334 | H159: ='KAS - RES - BAL B label'!H71 -> 0.3360265809 | I159: ='KAS - RES - BAL B label'!I71 -> 0.3289875762 | J159: ='KAS - RES - BAL B label'!J71 -> 0.3213123663 | K159: ='KAS - RES - BAL B label'!K71 -> 0.3130750951 | L159: ='KAS - RES - BAL B label'!L71 -> 0.304027373 | M159: ='KAS - RES - BAL B label'!M71 -> 0.2942194268 | N159: ='KAS - RES - BAL B label'!N71 -> 0.2838912973 | O159: ='KAS - RES - BAL B label'!O71 -> 0.2726916362 | P159: ='KAS - RES - BAL B label'!P71 -> 0.2605956469 | Q159: ='KAS - RES - BAL B label'!Q71 -> 0.2478715885
A160: Norm WSW | B160: 0.2 | C160: 0.2 | D160: 0.2 | E160: 0.2 | F160: 0.2 | G160: 0.2 | H160: 0.2 | I160: 0.2 | J160: 0.2 | K160: 0.2 | L160: 0.2 | M160: 0.2 | N160: 0.2 | O160: 0.2 | P160: 0.2 | Q160: 0.2
A162: LTV (BW)
A163: NOM | B163: ='KAS - RES - BAL NOM'!B70 -> 0.633805922 | C163: ='KAS - RES - BAL NOM'!C70 -> 0.637635172 | D163: ='KAS - RES - BAL NOM'!D70 -> 0.6385488395 | E163: ='KAS - RES - BAL NOM'!E70 -> 0.6386543641 | F163: ='KAS - RES - BAL NOM'!F70 -> 0.6390627523 | G163: ='KAS - RES - BAL NOM'!G70 -> 0.6397104279 | H163: ='KAS - RES - BAL NOM'!H70 -> 0.6403746105 | I163: ='KAS - RES - BAL NOM'!I70 -> 0.6410655669 | J163: ='KAS - RES - BAL NOM'!J70 -> 0.641690343 | K163: ='KAS - RES - BAL NOM'!K70 -> 0.6421770737 | L163: ='KAS - RES - BAL NOM'!L70 -> 0.6426684355 | M163: ='KAS - RES - BAL NOM'!M70 -> 0.6431003401 | N163: ='KAS - RES - BAL NOM'!N70 -> 0.6433104069 | O163: ='KAS - RES - BAL NOM'!O70 -> 0.643486042 | P163: ='KAS - RES - BAL NOM'!P70 -> 0.6436104922 | Q163: ='KAS - RES - BAL NOM'!Q70 -> 0.6435259082
A164: Label B | B164: ='KAS - RES - BAL B label'!B70 -> 0.633805922 | C164: ='KAS - RES - BAL B label'!C70 -> 0.6393573784 | D164: ='KAS - RES - BAL B label'!D70 -> 0.6433534905 | E164: ='KAS - RES - BAL B label'!E70 -> 0.6472490855 | F164: ='KAS - RES - BAL B label'!F70 -> 0.6520183336 | G164: ='KAS - RES - BAL B label'!G70 -> 0.6576552666 | H164: ='KAS - RES - BAL B label'!H70 -> 0.6639734191 | I164: ='KAS - RES - BAL B label'!I70 -> 0.6710124238 | J164: ='KAS - RES - BAL B label'!J70 -> 0.6786876337 | K164: ='KAS - RES - BAL B label'!K70 -> 0.6869249049 | L164: ='KAS - RES - BAL B label'!L70 -> 0.695972627 | M164: ='KAS - RES - BAL B label'!M70 -> 0.7057805732 | N164: ='KAS - RES - BAL B label'!N70 -> 0.7161087027 | O164: ='KAS - RES - BAL B label'!O70 -> 0.7273083638 | P164: ='KAS - RES - BAL B label'!P70 -> 0.7394043531 | Q164: ='KAS - RES - BAL B label'!Q70 -> 0.7521284115
A165: Norm WSW | B165: 0.75 | C165: 0.75 | D165: 0.75 | E165: 0.75 | F165: 0.75 | G165: 0.75 | H165: 0.75 | I165: 0.75 | J165: 0.75 | K165: 0.75 | L165: 0.75 | M165: 0.75 | N165: 0.75 | O165: 0.75 | P165: 0.75 | Q165: 0.75
A167: Solvabiliteit (MW)
A168: NOM | B168: ='KAS - RES - BAL NOM'!B104 -> 0.6810880082 | C168: ='KAS - RES - BAL NOM'!C104 -> 0.6722347348 | D168: ='KAS - RES - BAL NOM'!D104 -> 0.6641317533 | E168: ='KAS - RES - BAL NOM'!E104 -> 0.6564629562 | F168: ='KAS - RES - BAL NOM'!F104 -> 0.6494416053 | G168: ='KAS - RES - BAL NOM'!G104 -> 0.6428208017 | H168: ='KAS - RES - BAL NOM'!H104 -> 0.6369704709 | I168: ='KAS - RES - BAL NOM'!I104 -> 0.6314638629 | J168: ='KAS - RES - BAL NOM'!J104 -> 0.6262810737 | K168: ='KAS - RES - BAL NOM'!K104 -> 0.6214036432 | L168: ='KAS - RES - BAL NOM'!L104 -> 0.6168144417 | M168: ='KAS - RES - BAL NOM'!M104 -> 0.6124975663 | N168: ='KAS - RES - BAL NOM'!N104 -> 0.6084382452 | O168: ='KAS - RES - BAL NOM'!O104 -> 0.6046227507 | P168: ='KAS - RES - BAL NOM'!P104 -> 0.6010383189 | Q168: ='KAS - RES - BAL NOM'!Q104 -> 0.5976730763
A169: Label B | B169: ='KAS - RES - BAL B label'!B104 -> 0.6810880082 | C169: ='KAS - RES - BAL B label'!C104 -> 0.6816481232 | D169: ='KAS - RES - BAL B label'!D104 -> 0.6821715324 | E169: ='KAS - RES - BAL B label'!E104 -> 0.6826393866 | F169: ='KAS - RES - BAL B label'!F104 -> 0.683408733 | G169: ='KAS - RES - BAL B label'!G104 -> 0.6842311922 | H169: ='KAS - RES - BAL B label'!H104 -> 0.685503131 | I169: ='KAS - RES - BAL B label'!I104 -> 0.6867844147 | J169: ='KAS - RES - BAL B label'!J104 -> 0.6880573637 | K169: ='KAS - RES - BAL B label'!K104 -> 0.6893054358 | L169: ='KAS - RES - BAL B label'!L104 -> 0.6905131463 | M169: ='KAS - RES - BAL B label'!M104 -> 0.6916659949 | N169: ='KAS - RES - BAL B label'!N104 -> 0.6927503955 | O169: ='KAS - RES - BAL B label'!O104 -> 0.6937536121 | P169: ='KAS - RES - BAL B label'!P104 -> 0.6946636971 | Q169: ='KAS - RES - BAL B label'!Q104 -> 0.6954694351
A170: Norm markt | B170: 0.4 | C170: 0.4 | D170: 0.4 | E170: 0.4 | F170: 0.4 | G170: 0.4 | H170: 0.4 | I170: 0.4 | J170: 0.4 | K170: 0.4 | L170: 0.4 | M170: 0.4 | N170: 0.4 | O170: 0.4 | P170: 0.4 | Q170: 0.4
A172: LTV (MW)
A173: NOM | B173: ='KAS - RES - BAL NOM'!B103 -> 0.3189119918 | C173: ='KAS - RES - BAL NOM'!C103 -> 0.3277652652 | D173: ='KAS - RES - BAL NOM'!D103 -> 0.3358682467 | E173: ='KAS - RES - BAL NOM'!E103 -> 0.3435370438 | F173: ='KAS - RES - BAL NOM'!F103 -> 0.3505583947 | G173: ='KAS - RES - BAL NOM'!G103 -> 0.3571791983 | H173: ='KAS - RES - BAL NOM'!H103 -> 0.3630295291 | I173: ='KAS - RES - BAL NOM'!I103 -> 0.3685361371 | J173: ='KAS - RES - BAL NOM'!J103 -> 0.3737189263 | K173: ='KAS - RES - BAL NOM'!K103 -> 0.3785963568 | L173: ='KAS - RES - BAL NOM'!L103 -> 0.3831855583 | M173: ='KAS - RES - BAL NOM'!M103 -> 0.3875024337 | N173: ='KAS - RES - BAL NOM'!N103 -> 0.3915617548 | O173: ='KAS - RES - BAL NOM'!O103 -> 0.3953772493 | P173: ='KAS - RES - BAL NOM'!P103 -> 0.3989616811 | Q173: ='KAS - RES - BAL NOM'!Q103 -> 0.4023269237
A174: Label B | B174: ='KAS - RES - BAL B label'!B103 -> 0.3189119918 | C174: ='KAS - RES - BAL B label'!C103 -> 0.3183518768 | D174: ='KAS - RES - BAL B label'!D103 -> 0.3178284676 | E174: ='KAS - RES - BAL B label'!E103 -> 0.3173606134 | F174: ='KAS - RES - BAL B label'!F103 -> 0.316591267 | G174: ='KAS - RES - BAL B label'!G103 -> 0.3157688078 | H174: ='KAS - RES - BAL B label'!H103 -> 0.314496869 | I174: ='KAS - RES - BAL B label'!I103 -> 0.3132155853 | J174: ='KAS - RES - BAL B label'!J103 -> 0.3119426363 | K174: ='KAS - RES - BAL B label'!K103 -> 0.3106945642 | L174: ='KAS - RES - BAL B label'!L103 -> 0.3094868537 | M174: ='KAS - RES - BAL B label'!M103 -> 0.3083340051 | N174: ='KAS - RES - BAL B label'!N103 -> 0.3072496045 | O174: ='KAS - RES - BAL B label'!O103 -> 0.3062463879 | P174: ='KAS - RES - BAL B label'!P103 -> 0.3053363029 | Q174: ='KAS - RES - BAL B label'!Q103 -> 0.3045305649
A175: Norm markt | B175: 0.5 | C175: 0.5 | D175: 0.5 | E175: 0.5 | F175: 0.5 | G175: 0.5 | H175: 0.5 | I175: 0.5 | J175: 0.5 | K175: 0.5 | L175: 0.5 | M175: 0.5 | N175: 0.5 | O175: 0.5 | P175: 0.5 | Q175: 0.5
A177: Dekkingsratio
A178: NOM | B178: ='KAS - RES - BAL NOM'!B72 -> 0.2072927946 | C178: ='KAS - RES - BAL NOM'!C72 -> 0.2124410817 | D178: ='KAS - RES - BAL NOM'!D72 -> 0.2176803958 | E178: ='KAS - RES - BAL NOM'!E72 -> 0.2232630427 | F178: ='KAS - RES - BAL NOM'!F72 -> 0.2290973655 | G178: ='KAS - RES - BAL NOM'!G72 -> 0.2346994648 | H178: ='KAS - RES - BAL NOM'!H72 -> 0.2398200309 | I178: ='KAS - RES - BAL NOM'!I72 -> 0.2447338284 | J178: ='KAS - RES - BAL NOM'!J72 -> 0.2494501414 | K178: ='KAS - RES - BAL NOM'!K72 -> 0.2539776722 | L178: ='KAS - RES - BAL NOM'!L72 -> 0.2583245796 | M178: ='KAS - RES - BAL NOM'!M72 -> 0.2624985148 | N178: ='KAS - RES - BAL NOM'!N72 -> 0.2665066544 | O178: ='KAS - RES - BAL NOM'!O72 -> 0.2703557318 | P178: ='KAS - RES - BAL NOM'!P72 -> 0.2740520659 | Q178: ='KAS - RES - BAL NOM'!Q72 -> 0.2776015885
A179: Label B | B179: ='KAS - RES - BAL B label'!B72 -> 0.2072927946 | C179: ='KAS - RES - BAL B label'!C72 -> 0.2055282666 | D179: ='KAS - RES - BAL B label'!D72 -> 0.204395146 | E179: ='KAS - RES - BAL B label'!E72 -> 0.2038971058 | F179: ='KAS - RES - BAL B label'!F72 -> 0.2038016095 | G179: ='KAS - RES - BAL B label'!G72 -> 0.2036683421 | H179: ='KAS - RES - BAL B label'!H72 -> 0.2032409765 | I179: ='KAS - RES - BAL B label'!I72 -> 0.2028028371 | J179: ='KAS - RES - BAL B label'!J72 -> 0.2023653862 | K179: ='KAS - RES - BAL B label'!K72 -> 0.2019394343 | L179: ='KAS - RES - BAL B label'!L72 -> 0.201535184 | M179: ='KAS - RES - BAL B label'!M72 -> 0.201162271 | N179: ='KAS - RES - BAL B label'!N72 -> 0.2008298025 | O179: ='KAS - RES - BAL B label'!O72 -> 0.2005463937 | P179: ='KAS - RES - BAL B label'!P72 -> 0.2003202018 | Q179: ='KAS - RES - BAL B label'!Q72 -> 0.2001589579
A180: Norm WSW | B180: 0.5 | C180: 0.5 | D180: 0.5 | E180: 0.5 | F180: 0.5 | G180: 0.5 | H180: 0.5 | I180: 0.5 | J180: 0.5 | K180: 0.5 | L180: 0.5 | M180: 0.5 | N180: 0.5 | O180: 0.5 | P180: 0.5 | Q180: 0.5
A182: Schuld per VHE
A183: NOM | B183: ='KAS - RES - BAL NOM'!B73 -> 29859.1542 | C183: ='KAS - RES - BAL NOM'!C73 -> 31740.05726 | D183: ='KAS - RES - BAL NOM'!D73 -> 33633.26715 | E183: ='KAS - RES - BAL NOM'!E73 -> 35567.10033 | F183: ='KAS - RES - BAL NOM'!F73 -> 37517.30451 | G183: ='KAS - RES - BAL NOM'!G73 -> 39507.30874 | H183: ='KAS - RES - BAL NOM'!H73 -> 41493.38988 | I183: ='KAS - RES - BAL NOM'!I73 -> 43520.13896 | J183: ='KAS - RES - BAL NOM'!J73 -> 45588.7732 | K183: ='KAS - RES - BAL NOM'!K73 -> 47700.50957 | L183: ='KAS - RES - BAL NOM'!L73 -> 49856.565 | M183: ='KAS - RES - BAL NOM'!M73 -> 52058.15645 | N183: ='KAS - RES - BAL NOM'!N73 -> 54306.50098 | O183: ='KAS - RES - BAL NOM'!O73 -> 56602.81583 | P183: ='KAS - RES - BAL NOM'!P73 -> 58948.31846 | Q183: ='KAS - RES - BAL NOM'!Q73 -> 61344.22652
A184: Label B | B184: ='KAS - RES - BAL B label'!B73 -> 29859.1542 | C184: ='KAS - RES - BAL B label'!C73 -> 30524.45726 | D184: ='KAS - RES - BAL B label'!D73 -> 31207.59644 | E184: ='KAS - RES - BAL B label'!E73 -> 31911.02148 | F184: ='KAS - RES - BAL B label'!F73 -> 32598.6772 | G184: ='KAS - RES - BAL B label'!G73 -> 33294.83827 | H184: ='KAS - RES - BAL B label'!H73 -> 33956.58171 | I184: ='KAS - RES - BAL B label'!I73 -> 34629.34942 | J184: ='KAS - RES - BAL B label'!J73 -> 35315.26432 | K184: ='KAS - RES - BAL B label'!K73 -> 36016.50839 | L184: ='KAS - RES - BAL B label'!L73 -> 36735.32737 | M184: ='KAS - RES - BAL B label'!M73 -> 37474.03551 | N184: ='KAS - RES - BAL B label'!N73 -> 38235.02055 | O184: ='KAS - RES - BAL B label'!O73 -> 39020.74882 | P184: ='KAS - RES - BAL B label'!P73 -> 39833.77053 | Q184: ='KAS - RES - BAL B label'!Q73 -> 40676.72519
A187: NOM
A188: OK | B188: ='KAS - RES - BAL NOM'!B22 -> 0 | C188: ='KAS - RES - BAL NOM'!C22 -> 5778766.285 | D188: ='KAS - RES - BAL NOM'!D22 -> 5927341.645 | E188: ='KAS - RES - BAL NOM'!E22 -> 5924937.832 | F188: ='KAS - RES - BAL NOM'!F22 -> 6266442.377 | G188: ='KAS - RES - BAL NOM'!G22 -> 6477262.9 | H188: ='KAS - RES - BAL NOM'!H22 -> 6963805.509 | I188: ='KAS - RES - BAL NOM'!I22 -> 7192235.598 | J188: ='KAS - RES - BAL NOM'!J22 -> 7425163.864 | K188: ='KAS - RES - BAL NOM'!K22 -> 7662888.012 | L188: ='KAS - RES - BAL NOM'!L22 -> 7905712.378 | M188: ='KAS - RES - BAL NOM'!M22 -> 8153948.259 | N188: ='KAS - RES - BAL NOM'!N22 -> 8407914.247 | O188: ='KAS - RES - BAL NOM'!O22 -> 8667936.575 | P188: ='KAS - RES - BAL NOM'!P22 -> 8934349.467 | Q188: ='KAS - RES - BAL NOM'!Q22 -> 9207495.497
A189: OK (2% afl.) | B189: ='KAS - RES - BAL NOM'!B41 -> 0 | C189: ='KAS - RES - BAL NOM'!C41 -> 1939541.576 | D189: ='KAS - RES - BAL NOM'!D41 -> 1859117.406 | E189: ='KAS - RES - BAL NOM'!E41 -> 1622800.338 | F189: ='KAS - RES - BAL NOM'!F41 -> 1728411.418 | G189: ='KAS - RES - BAL NOM'!G41 -> 1698524.329 | H189: ='KAS - RES - BAL NOM'!H41 -> 1944833.855 | I189: ='KAS - RES - BAL NOM'!I41 -> 1928111.735 | J189: ='KAS - RES - BAL NOM'!J41 -> 1910821.433 | K189: ='KAS - RES - BAL NOM'!K41 -> 1893113.45 | L189: ='KAS - RES - BAL NOM'!L41 -> 1875144.926 | M189: ='KAS - RES - BAL NOM'!M41 -> 1857079.955 | N189: ='KAS - RES - BAL NOM'!N41 -> 1839089.916 | O189: ='KAS - RES - BAL NOM'!O41 -> 1821353.805 | P189: ='KAS - RES - BAL NOM'!P41 -> 1804058.588 | Q189: ='KAS - RES - BAL NOM'!Q41 -> 1787399.551
A190: ICR - NOM | B190: ='KAS - RES - BAL NOM'!B39 -> 0 | C190: ='KAS - RES - BAL NOM'!C39 -> 1.773231121 | D190: ='KAS - RES - BAL NOM'!D39 -> 1.791323419 | E190: ='KAS - RES - BAL NOM'!E39 -> 1.723183431 | F190: ='KAS - RES - BAL NOM'!F39 -> 1.703495446 | G190: ='KAS - RES - BAL NOM'!G39 -> 1.672804714 | H190: ='KAS - RES - BAL NOM'!H39 -> 1.672249104 | I190: ='KAS - RES - BAL NOM'!I39 -> 1.648563253 | J190: ='KAS - RES - BAL NOM'!J39 -> 1.627532818 | K190: ='KAS - RES - BAL NOM'!K39 -> 1.608755177 | L190: ='KAS - RES - BAL NOM'!L39 -> 1.591907937 | M190: ='KAS - RES - BAL NOM'!M39 -> 1.576729896 | N190: ='KAS - RES - BAL NOM'!N39 -> 1.56300718 | O190: ='KAS - RES - BAL NOM'!O39 -> 1.550562985 | P190: ='KAS - RES - BAL NOM'!P39 -> 1.539249879 | Q190: ='KAS - RES - BAL NOM'!Q39 -> 1.528943943
A191: DSCR | B191: ='KAS - RES - BAL NOM'!B40 -> 0 | C191: ='KAS - RES - BAL NOM'!C40 -> 1.208899594 | D191: ='KAS - RES - BAL NOM'!D40 -> 1.189715671 | E191: ='KAS - RES - BAL NOM'!E40 -> 1.159796902 | F191: ='KAS - RES - BAL NOM'!F40 -> 1.154461219 | G191: ='KAS - RES - BAL NOM'!G40 -> 1.142524314 | H191: ='KAS - RES - BAL NOM'!H40 -> 1.147023861 | I191: ='KAS - RES - BAL NOM'!I40 -> 1.13860361 | J191: ='KAS - RES - BAL NOM'!J40 -> 1.131544029 | K191: ='KAS - RES - BAL NOM'!K40 -> 1.12573113 | L191: ='KAS - RES - BAL NOM'!L40 -> 1.121048224 | M191: ='KAS - RES - BAL NOM'!M40 -> 1.117372978 | N191: ='KAS - RES - BAL NOM'!N40 -> 1.114575602 | O191: ='KAS - RES - BAL NOM'!O40 -> 1.112517865 | P191: ='KAS - RES - BAL NOM'!P40 -> 1.111061715 | Q191: ='KAS - RES - BAL NOM'!Q40 -> 1.110068368
A193: Solvabiliteit -NOM | B193: ='KAS - RES - BAL NOM'!B71 -> 0.366194078 | C193: ='KAS - RES - BAL NOM'!C71 -> 0.362364828 | D193: ='KAS - RES - BAL NOM'!D71 -> 0.3614511605 | E193: ='KAS - RES - BAL NOM'!E71 -> 0.3613456359 | F193: ='KAS - RES - BAL NOM'!F71 -> 0.3609372477 | G193: ='KAS - RES - BAL NOM'!G71 -> 0.3602895721 | H193: ='KAS - RES - BAL NOM'!H71 -> 0.3596253895 | I193: ='KAS - RES - BAL NOM'!I71 -> 0.3589344331 | J193: ='KAS - RES - BAL NOM'!J71 -> 0.358309657 | K193: ='KAS - RES - BAL NOM'!K71 -> 0.3578229263 | L193: ='KAS - RES - BAL NOM'!L71 -> 0.3573315645 | M193: ='KAS - RES - BAL NOM'!M71 -> 0.3568996599 | N193: ='KAS - RES - BAL NOM'!N71 -> 0.3566895931 | O193: ='KAS - RES - BAL NOM'!O71 -> 0.356513958 | P193: ='KAS - RES - BAL NOM'!P71 -> 0.3563895078 | Q193: ='KAS - RES - BAL NOM'!Q71 -> 0.3564740918
A194: LTV | B194: ='KAS - RES - BAL NOM'!B70 -> 0.633805922 | C194: ='KAS - RES - BAL NOM'!C70 -> 0.637635172 | D194: ='KAS - RES - BAL NOM'!D70 -> 0.6385488395 | E194: ='KAS - RES - BAL NOM'!E70 -> 0.6386543641 | F194: ='KAS - RES - BAL NOM'!F70 -> 0.6390627523 | G194: ='KAS - RES - BAL NOM'!G70 -> 0.6397104279 | H194: ='KAS - RES - BAL NOM'!H70 -> 0.6403746105 | I194: ='KAS - RES - BAL NOM'!I70 -> 0.6410655669 | J194: ='KAS - RES - BAL NOM'!J70 -> 0.641690343 | K194: ='KAS - RES - BAL NOM'!K70 -> 0.6421770737 | L194: ='KAS - RES - BAL NOM'!L70 -> 0.6426684355 | M194: ='KAS - RES - BAL NOM'!M70 -> 0.6431003401 | N194: ='KAS - RES - BAL NOM'!N70 -> 0.6433104069 | O194: ='KAS - RES - BAL NOM'!O70 -> 0.643486042 | P194: ='KAS - RES - BAL NOM'!P70 -> 0.6436104922 | Q194: ='KAS - RES - BAL NOM'!Q70 -> 0.6435259082
A195: Schuld per VHE - NOM | B195: ='KAS - RES - BAL NOM'!B73 -> 29859.1542 | C195: ='KAS - RES - BAL NOM'!C73 -> 31740.05726 | D195: ='KAS - RES - BAL NOM'!D73 -> 33633.26715 | E195: ='KAS - RES - BAL NOM'!E73 -> 35567.10033 | F195: ='KAS - RES - BAL NOM'!F73 -> 37517.30451 | G195: ='KAS - RES - BAL NOM'!G73 -> 39507.30874 | H195: ='KAS - RES - BAL NOM'!H73 -> 41493.38988 | I195: ='KAS - RES - BAL NOM'!I73 -> 43520.13896 | J195: ='KAS - RES - BAL NOM'!J73 -> 45588.7732 | K195: ='KAS - RES - BAL NOM'!K73 -> 47700.50957 | L195: ='KAS - RES - BAL NOM'!L73 -> 49856.565 | M195: ='KAS - RES - BAL NOM'!M73 -> 52058.15645 | N195: ='KAS - RES - BAL NOM'!N73 -> 54306.50098 | O195: ='KAS - RES - BAL NOM'!O73 -> 56602.81583 | P195: ='KAS - RES - BAL NOM'!P73 -> 58948.31846 | Q195: ='KAS - RES - BAL NOM'!Q73 -> 61344.22652
A197: B - label
A198: OK | B198: ='KAS - RES - BAL B label'!B22 -> 0 | C198: ='KAS - RES - BAL B label'!C22 -> 5778766.285 | D198: ='KAS - RES - BAL B label'!D22 -> 5798326.952 | E198: ='KAS - RES - BAL B label'!E22 -> 5814658.306 | F198: ='KAS - RES - BAL B label'!F22 -> 6161752.685 | G198: ='KAS - RES - BAL B label'!G22 -> 6368329.008 | H198: ='KAS - RES - BAL B label'!H22 -> 6840950.243 | I198: ='KAS - RES - BAL B label'!I22 -> 7045354.421 | J198: ='KAS - RES - BAL B label'!J22 -> 7243696.28 | K198: ='KAS - RES - BAL B label'!K22 -> 7435787.998 | L198: ='KAS - RES - BAL B label'!L22 -> 7621417.793 | M198: ='KAS - RES - BAL B label'!M22 -> 7800349.183 | N198: ='KAS - RES - BAL B label'!N22 -> 7972320.191 | O198: ='KAS - RES - BAL B label'!O22 -> 8137042.513 | P198: ='KAS - RES - BAL B label'!P22 -> 8294200.634 | Q198: ='KAS - RES - BAL B label'!Q22 -> 8443450.886
A199: OK (2% afl.) | B199: ='KAS - RES - BAL B label'!B41 -> 0 | C199: ='KAS - RES - BAL B label'!C41 -> 2086578.537 | D199: ='KAS - RES - BAL B label'!D41 -> 2023507.821 | E199: ='KAS - RES - BAL B label'!E41 -> 1954754.049 | F199: ='KAS - RES - BAL B label'!F41 -> 2218670.732 | G199: ='KAS - RES - BAL B label'!G41 -> 2341040.566 | H199: ='KAS - RES - BAL B label'!H41 -> 2733618.41 | I199: ='KAS - RES - BAL B label'!I41 -> 2856645.722 | J199: ='KAS - RES - BAL B label'!J41 -> 2972020.452 | K199: ='KAS - RES - BAL B label'!K41 -> 3079290.849 | L199: ='KAS - RES - BAL B label'!L41 -> 3177973.493 | M199: ='KAS - RES - BAL B label'!M41 -> 3267551.971 | N199: ='KAS - RES - BAL B label'!N41 -> 3347475.49 | O199: ='KAS - RES - BAL B label'!O41 -> 3417157.423 | P199: ='KAS - RES - BAL B label'!P41 -> 3475973.785 | Q199: ='KAS - RES - BAL B label'!Q41 -> 3523261.64
A200: ICR - NOM | B200: ='KAS - RES - BAL B label'!B39 -> 0 | C200: ='KAS - RES - BAL B label'!C39 -> 1.773231121 | D200: ='KAS - RES - BAL B label'!D39 -> 1.791183486 | E200: ='KAS - RES - BAL B label'!E39 -> 1.759395046 | F200: ='KAS - RES - BAL B label'!F39 -> 1.771049786 | G200: ='KAS - RES - BAL B label'!G39 -> 1.765329179 | H200: ='KAS - RES - BAL B label'!H39 -> 1.79056372 | I200: ='KAS - RES - BAL B label'!I39 -> 1.784991438 | J200: ='KAS - RES - BAL B label'!J39 -> 1.77887356 | K200: ='KAS - RES - BAL B label'!K39 -> 1.772200722 | L200: ='KAS - RES - BAL B label'!L39 -> 1.764963992 | M200: ='KAS - RES - BAL B label'!M39 -> 1.757155078 | N200: ='KAS - RES - BAL B label'!N39 -> 1.74876652 | O200: ='KAS - RES - BAL B label'!O39 -> 1.73979186 | P200: ='KAS - RES - BAL B label'!P39 -> 1.730225803 | Q200: ='KAS - RES - BAL B label'!Q39 -> 1.720064363
A201: DSCR | B201: ='KAS - RES - BAL B label'!B40 -> 0 | C201: ='KAS - RES - BAL B label'!C40 -> 1.221164976 | D201: ='KAS - RES - BAL B label'!D40 -> 1.205081281 | E201: ='KAS - RES - BAL B label'!E40 -> 1.187555058 | F201: ='KAS - RES - BAL B label'!F40 -> 1.192255926 | G201: ='KAS - RES - BAL B label'!G40 -> 1.186989138 | H201: ='KAS - RES - BAL B label'!H40 -> 1.197886919 | I201: ='KAS - RES - BAL B label'!I40 -> 1.192074022 | J201: ='KAS - RES - BAL B label'!J40 -> 1.185696277 | K201: ='KAS - RES - BAL B label'!K40 -> 1.178847767 | L201: ='KAS - RES - BAL B label'!L40 -> 1.171586306 | M201: ='KAS - RES - BAL B label'!M40 -> 1.16392957 | N201: ='KAS - RES - BAL B label'!N40 -> 1.155851319 | O201: ='KAS - RES - BAL B label'!O40 -> 1.147277818 | P201: ='KAS - RES - BAL B label'!P40 -> 1.138100643 | Q201: ='KAS - RES - BAL B label'!Q40 -> 1.128174824
A203: Solvabiliteit -NOM | B203: ='KAS - RES - BAL B label'!B71 -> 0.366194078 | C203: ='KAS - RES - BAL B label'!C71 -> 0.3606426216 | D203: ='KAS - RES - BAL B label'!D71 -> 0.3566465095 | E203: ='KAS - RES - BAL B label'!E71 -> 0.3527509145 | F203: ='KAS - RES - BAL B label'!F71 -> 0.3479816664 | G203: ='KAS - RES - BAL B label'!G71 -> 0.3423447334 | H203: ='KAS - RES - BAL B label'!H71 -> 0.3360265809 | I203: ='KAS - RES - BAL B label'!I71 -> 0.3289875762 | J203: ='KAS - RES - BAL B label'!J71 -> 0.3213123663 | K203: ='KAS - RES - BAL B label'!K71 -> 0.3130750951 | L203: ='KAS - RES - BAL B label'!L71 -> 0.304027373 | M203: ='KAS - RES - BAL B label'!M71 -> 0.2942194268 | N203: ='KAS - RES - BAL B label'!N71 -> 0.2838912973 | O203: ='KAS - RES - BAL B label'!O71 -> 0.2726916362 | P203: ='KAS - RES - BAL B label'!P71 -> 0.2605956469 | Q203: ='KAS - RES - BAL B label'!Q71 -> 0.2478715885
A204: LTV | B204: ='KAS - RES - BAL B label'!B70 -> 0.633805922 | C204: ='KAS - RES - BAL B label'!C70 -> 0.6393573784 | D204: ='KAS - RES - BAL B label'!D70 -> 0.6433534905 | E204: ='KAS - RES - BAL B label'!E70 -> 0.6472490855 | F204: ='KAS - RES - BAL B label'!F70 -> 0.6520183336 | G204: ='KAS - RES - BAL B label'!G70 -> 0.6576552666 | H204: ='KAS - RES - BAL B label'!H70 -> 0.6639734191 | I204: ='KAS - RES - BAL B label'!I70 -> 0.6710124238 | J204: ='KAS - RES - BAL B label'!J70 -> 0.6786876337 | K204: ='KAS - RES - BAL B label'!K70 -> 0.6869249049 | L204: ='KAS - RES - BAL B label'!L70 -> 0.695972627 | M204: ='KAS - RES - BAL B label'!M70 -> 0.7057805732 | N204: ='KAS - RES - BAL B label'!N70 -> 0.7161087027 | O204: ='KAS - RES - BAL B label'!O70 -> 0.7273083638 | P204: ='KAS - RES - BAL B label'!P70 -> 0.7394043531 | Q204: ='KAS - RES - BAL B label'!Q70 -> 0.7521284115
A205: Schuld per VHE - NOM | B205: ='KAS - RES - BAL B label'!B73 -> 29859.1542 | C205: ='KAS - RES - BAL B label'!C73 -> 30524.45726 | D205: ='KAS - RES - BAL B label'!D73 -> 31207.59644 | E205: ='KAS - RES - BAL B label'!E73 -> 31911.02148 | F205: ='KAS - RES - BAL B label'!F73 -> 32598.6772 | G205: ='KAS - RES - BAL B label'!G73 -> 33294.83827 | H205: ='KAS - RES - BAL B label'!H73 -> 33956.58171 | I205: ='KAS - RES - BAL B label'!I73 -> 34629.34942 | J205: ='KAS - RES - BAL B label'!J73 -> 35315.26432 | K205: ='KAS - RES - BAL B label'!K73 -> 36016.50839 | L205: ='KAS - RES - BAL B label'!L73 -> 36735.32737 | M205: ='KAS - RES - BAL B label'!M73 -> 37474.03551 | N205: ='KAS - RES - BAL B label'!N73 -> 38235.02055 | O205: ='KAS - RES - BAL B label'!O73 -> 39020.74882 | P205: ='KAS - RES - BAL B label'!P73 -> 39833.77053 | Q205: ='KAS - RES - BAL B label'!Q73 -> 40676.72519
A207: Normen WSW
A208: LTV - Norm WSW | B208: 0.75 | C208: 0.75 | D208: 0.75 | E208: 0.75 | F208: 0.75 | G208: 0.75 | H208: 0.75 | I208: 0.75 | J208: 0.75 | K208: 0.75 | L208: 0.75 | M208: 0.75 | N208: 0.75 | O208: 0.75 | P208: 0.75 | Q208: 0.75
A209: ICR - Norm WSW | B209: 1.4 | C209: 1.4 | D209: 1.4 | E209: 1.4 | F209: 1.4 | G209: 1.4 | H209: 1.4 | I209: 1.4 | J209: 1.4 | K209: 1.4 | L209: 1.4 | M209: 1.4 | N209: 1.4 | O209: 1.4 | P209: 1.4 | Q209: 1.4
A210: DSCR - Norm WSW | B210: 1 | C210: 1 | D210: 1 | E210: 1 | F210: 1 | G210: 1 | H210: 1 | I210: 1 | J210: 1 | K210: 1 | L210: 1 | M210: 1 | N210: 1 | O210: 1 | P210: 1 | Q210: 1
A211: Solvabiliteit - Norm WSW | B211: 0.2 | C211: 0.2 | D211: 0.2 | E211: 0.2 | F211: 0.2 | G211: 0.2 | H211: 0.2 | I211: 0.2 | J211: 0.2 | K211: 0.2 | L211: 0.2 | M211: 0.2 | N211: 0.2 | O211: 0.2 | P211: 0.2 | Q211: 0.2

Sheet Input
A1: Algemeen | C1: NOM & B label | D1: NOM | E1: B label
A2: Corporatie | C2: Gemiddelde
A3: Startjaar (primo) | B3: jaartal | C3: 2015
A4: WOZ-waarde bij startjaar (primo) | B4: €/woning | C4: =VLOOKUP(C2,'CBC 2014'!C1:K378,7,FALSE) -> 144043.3771
A5: Levensduur huidige portefeuille | B5: # jaar | C5: =VLOOKUP(C2,'CBC 2014'!C1:K378,8,FALSE) -> 23.7728438
A6: Mutatiegraad | C6: 0.05
A8: Portefeuille | C8: NOM & B label | D8: NOM | E8: B label
A9: Portefeuilleomvang | B9: # woningen | C9: =VLOOKUP(C2,'CBC 2014'!C1:K378,2,FALSE) -> 6047.917112
A10: Aandeel woningen met levensduur 0 - 5 jaar | B10: % | C10: =HLOOKUP(Reeksen!$F$46,Reeksen!$I$33:$BF$45,2,FALSE) -> 0.01
A11: Aandeel woningen met levensduur 5 - 10 jaar | B11: % | C11: =HLOOKUP(Reeksen!$F$46,Reeksen!$I$33:$BF$45,3,FALSE) -> 0.01
A12: Aandeel woningen met levensduur 10 - 15 jaar | B12: % | C12: =HLOOKUP(Reeksen!$F$46,Reeksen!$I$33:$BF$45,4,FALSE) -> 0.11
A13: Aandeel woningen met levensduur 15 - 20 jaar | B13: % | C13: =HLOOKUP(Reeksen!$F$46,Reeksen!$I$33:$BF$45,5,FALSE) -> 0.2
A14: Aandeel woningen met levensduur 20 - 25 jaar | B14: % | C14: =HLOOKUP(Reeksen!$F$46,Reeksen!$I$33:$BF$45,6,FALSE) -> 0.24
A15: Aandeel woningen met levensduur 25 - 30 jaar | B15: % | C15: =HLOOKUP(Reeksen!$F$46,Reeksen!$I$33:$BF$45,7,FALSE) -> 0.2
A16: Aandeel woningen met levensduur 30 - 35 jaar | B16: % | C16: =HLOOKUP(Reeksen!$F$46,Reeksen!$I$33:$BF$45,8,FALSE) -> 0.14
A17: Aandeel woningen met levensduur 35 - 40 jaar | B17: % | C17: =HLOOKUP(Reeksen!$F$46,Reeksen!$I$33:$BF$45,9,FALSE) -> 0.06
A18: Aandeel woningen met levensduur 40 - 45 jaar | B18: % | C18: =HLOOKUP(Reeksen!$F$46,Reeksen!$I$33:$BF$45,10,FALSE) -> 0.02
A19: Aandeel woningen met levensduur 45 - 50 jaar | B19: % | C19: =HLOOKUP(Reeksen!$F$46,Reeksen!$I$33:$BF$45,11,FALSE) -> 0.01
A21: Opbrengsten | C21: Voor renovatie | D21: NOM | E21: B label
A22: Huidige huurprijs | B22: €/woning/maand | C22: =VLOOKUP(C2,'CBC 2014'!C1:K378,3,FALSE) -> 481.804794
A23: Huuurprijs na mutatie | B23: €/woning/maand | C23: 576.87 | D23: 576.87 | E23: 576.87
A24: Huurverhoging na renovatie | B24: €/woning/maand | D24: 0 | E24: 30
A25: Huurderving | B25: % | C25: 0.01
A26: EPV | B26: €/maand/woning | D26: 150 | E26: 0
A27: Derving EPV | B27: % | D27: 0.005 | E27: 0
A28: Restwaarde | B28: €/woning | C28: 5000
A30: Exploitatielasten | C30: NOM & B label | D30: NOM | E30: B label
A31: Beheerlasten | B31: €/woning/jaar | C31: =VLOOKUP(C2,'CBC 2014'!C1:AB378,10,FALSE) -> 1329.933568
A32: Onderhoud | B32: €/woning/jaar | C32: =VLOOKUP(C2,'CBC 2014'!C1:AB378,6,FALSE) -> 1296.181957
A34: Renovatie | C34: NOM & B label | D34: NOM | E34: B label
A35: Kostprijs renovatie | B35: €/woning | D35: Zie reeksen | E35: 40000
A36: Nieuwe resterende levensduur | B36: # jaren | D36: 40 | E36: 25
A37: Toename WOZ-waarde | B37: % | D37: 0.2 | E37: 0.05
A38: Percentage bezit jaarlijks gerenoveerd | B38: % | C38: 0.04
A39: Toe te wijzen aan onderhoud (t.b.v. VPB) | B39: €/woning | D39: 0 | E39: 0
A41: Financieel | C41: NOM & B label | D41: NOM | E41: B label
A42: Huidige Loan-To-Value | B42: % | C42: =VLOOKUP(C2,'CBC 2014'!C1:K378,9,FALSE) -> 0.633805922
A43: Rente huidige leningen | B43: % | C43: =VLOOKUP(C2,'CBC 2014'!C1:AB378,11,FALSE) -> 0.04138495367
A44: Looptijd bestaande leningen | B44: # jaren | C44: 15
A45: Looptijd nieuwe leningen | B45: # jaren | C45: 25
A46: Disconteringsvoet waardering | B46: % | C46: 0.05
A47: VPB | B47: % | C47: 0.25
A49: Markwaarde in verhuurde staat | C49: Voor renovatie | D49: NOM | E49: B label
A50: Raming marktwaarde | B50: %/WOZ-waarde | C50: 0.65
A51: Toename marktwaarde bij renovatie | B51: % | D51: 0.35 | E51: 0.1
A52: Marktwaarde | B52: €/woning | C52: =C50*C4 -> 93628.19514 | D52: =$C$52*(1+D51) -> 126398.0634 | E52: =$C$52*(1+E51) -> 102991.0147

Sheet Reeksen
C1: =Input!C3 -> 2015 | D1: =C1+1 -> 2016 | E1: =D1+1 -> 2017 | F1: =E1+1 -> 2018 | G1: 2019 | H1: 2020 | I1: 2021 | J1: 2022 | K1: 2023 | L1: 2024 | M1: 2025 | N1: 2026 | O1: 2027 | P1: 2028 | Q1: 2029 | R1: 2030 | S1: 2031 | T1: 2032 | U1: 2033 | V1: 2034 | W1: 2035 | X1: 2036 | Y1: 2037 | Z1: 2038 | AA1: 2039 | AB1: 2040 | AC1: 2041 | AD1: 2042 | AE1: 2043 | AF1: 2044 | AG1: 2045 | AH1: 2046 | AI1: 2047 | AJ1: 2048 | AK1: 2049 | AL1: 2050 | AM1: 2051 | AN1: 2052 | AO1: 2053 | AP1: 2054 | AQ1: 2055 | AR1: 2056 | AS1: 2057 | AT1: 2058 | AU1: 2059 | AV1: 2060 | AW1: 2061 | AX1: 2062 | AY1: 2063 | AZ1: 2064 | BA1: 2065 | BB1: 2066 | BC1: 2067 | BD1: 2068 | BE1: 2069 | BF1: 2070 | BG1: 2071 | BH1: 2072 | BI1: 2073 | BJ1: 2074 | BK1: 2075 | BL1: 2076 | BM1: 2077 | BN1: 2078 | BO1: 2079 | BP1: 2080 | BQ1: 2081 | BR1: =BQ1+1 -> 2082 | BS1: 2083 | BT1: 2084 | BU1: 2085 | BV1: 2086 | BW1: 2087 | BX1: 2088 | BY1: 2089 | BZ1: 2090 | CA1: 2091 | CB1: 2092 | CC1: 2093 | CD1: 2094
A2: Heffingen
A3: Saneringssteunheffing | B3: €/woning/jaar | C3: 0 | D3: 60 | E3: 60 | F3: 60 | G3: 60 | H3: 0 | I3: =H3 -> 0 | J3: =I3 -> 0 | K3: 0 | L3: 0 | M3: 0 | N3: 0 | O3: 0 | P3: 0 | Q3: 0 | R3: 0 | S3: 0 | T3: 0 | U3: 0 | V3: 0 | W3: 0 | X3: 0 | Y3: 0 | Z3: 0 | AA3: 0 | AB3: 0 | AC3: 0 | AD3: 0 | AE3: 0 | AF3: 0 | AG3: 0 | AH3: 0 | AI3: 0 | AJ3: 0 | AK3: 0 | AL3: 0 | AM3: 0 | AN3: 0 | AO3: 0 | AP3: 0 | AQ3: 0 | AR3: 0 | AS3: 0 | AT3: 0 | AU3: 0 | AV3: 0 | AW3: 0 | AX3: 0 | AY3: 0 | AZ3: 0 | BA3: =AZ3 -> 0 | BB3: 0 | BC3: 0 | BD3: 0 | BE3: 0 | BF3: 0 | BG3: 0 | BH3: 0 | BI3: 0 | BJ3: 0 | BK3: 0 | BL3: 0 | BM3: 0 | BN3: 0 | BO3: 0 | BP3: 0 | BQ3: 0 | BR3: 0 | BS3: 0 | BT3: 0 | BU3: 0 | BV3: 0 | BW3: 0 | BX3: 0 | BY3: 0 | BZ3: 0 | CA3: 0 | CB3: 0 | CC3: 0 | CD3: 0
A4: Verhuurdersheffing | B4: % van WOZ-waarde | C4: 0.00449 | D4: 0.00491 | E4: 0.00536 | F4: 0.00536 | G4: 0.00536 | H4: 0.00536 | I4: =H4 -> 0.00536 | J4: =I4 -> 0.00536 | K4: 0.00536 | L4: 0.00536 | M4: 0.00536 | N4: 0.00536 | O4: 0.00536 | P4: 0.00536 | Q4: 0.00536 | R4: 0.00536 | S4: 0.00536 | T4: 0.00536 | U4: 0.00536 | V4: 0.00536 | W4: 0.00536 | X4: 0.00536 | Y4: 0.00536 | Z4: 0.00536 | AA4: 0.00536 | AB4: 0.00536 | AC4: 0.00536 | AD4: 0.00536 | AE4: 0.00536 | AF4: 0.00536 | AG4: 0.00536 | AH4: 0.00536 | AI4: 0.00536 | AJ4: 0.00536 | AK4: 0.00536 | AL4: 0.00536 | AM4: 0.00536 | AN4: 0.00536 | AO4: 0.00536 | AP4: 0.00536 | AQ4: 0.00536 | AR4: 0.00536 | AS4: 0.00536 | AT4: 0.00536 | AU4: 0.00536 | AV4: 0.00536 | AW4: 0.00536 | AX4: 0.00536 | AY4: 0.00536 | AZ4: 0.00536 | BA4: =AZ4 -> 0.00536 | BB4: 0.00536 | BC4: 0.00536 | BD4: 0.00536 | BE4: 0.00536 | BF4: 0.00536 | BG4: 0.00536 | BH4: 0.00536 | BI4: 0.00536 | BJ4: 0.00536 | BK4: 0.00536 | BL4: 0.00536 | BM4: 0.00536 | BN4: 0.00536 | BO4: 0.00536 | BP4: 0.00536 | BQ4: 0.00536 | BR4: 0.00536 | BS4: 0.00536 | BT4: 0.00536 | BU4: 0.00536 | BV4: 0.00536 | BW4: 0.00536 | BX4: 0.00536 | BY4: 0.00536 | BZ4: 0.00536 | CA4: 0.00536 | CB4: 0.00536 | CC4: 0.00536 | CD4: 0.00536
A5: Bijdrage Autoriteit Woningcorporaties | B5: % van WOZ-waarde | C5: 2.5e-05 | D5: 2.5e-05 | E5: 2.5e-05 | F5: 2.5e-05 | G5: 2.5e-05 | H5: 2.5e-05 | I5: =H5 -> 2.5e-05 | J5: 2.5e-05 | K5: 2.5e-05 | L5: 2.5e-05 | M5: 2.5e-05 | N5: 2.5e-05 | O5: 2.5e-05 | P5: 2.5e-05 | Q5: 2.5e-05 | R5: 2.5e-05 | S5: 2.5e-05 | T5: 2.5e-05 | U5: 2.5e-05 | V5: 2.5e-05 | W5: 2.5e-05 | X5: 2.5e-05 | Y5: 2.5e-05 | Z5: 2.5e-05 | AA5: 2.5e-05 | AB5: 2.5e-05 | AC5: 2.5e-05 | AD5: 2.5e-05 | AE5: 2.5e-05 | AF5: 2.5e-05 | AG5: 2.5e-05 | AH5: 2.5e-05 | AI5: 2.5e-05 | AJ5: 2.5e-05 | AK5: 2.5e-05 | AL5: 2.5e-05 | AM5: 2.5e-05 | AN5: 2.5e-05 | AO5: 2.5e-05 | AP5: 2.5e-05 | AQ5: 2.5e-05 | AR5: 2.5e-05 | AS5: 2.5e-05 | AT5: 2.5e-05 | AU5: 2.5e-05 | AV5: 2.5e-05 | AW5: 2.5e-05 | AX5: 2.5e-05 | AY5: 2.5e-05 | AZ5: 2.5e-05 | BA5: 2.5e-05 | BB5: 2.5e-05 | BC5: 2.5e-05 | BD5: 2.5e-05 | BE5: 2.5e-05 | BF5: 2.5e-05 | BG5: 2.5e-05 | BH5: 2.5e-05 | BI5: 2.5e-05 | BJ5: 2.5e-05 | BK5: 2.5e-05 | BL5: 2.5e-05 | BM5: 2.5e-05 | BN5: 2.5e-05 | BO5: 2.5e-05 | BP5: 2.5e-05 | BQ5: 2.5e-05 | BR5: 2.5e-05 | BS5: 2.5e-05 | BT5: 2.5e-05 | BU5: 2.5e-05 | BV5: 2.5e-05 | BW5: 2.5e-05 | BX5: 2.5e-05 | BY5: 2.5e-05 | BZ5: 2.5e-05 | CA5: 2.5e-05 | CB5: 2.5e-05 | CC5: 2.5e-05 | CD5: 2.5e-05
A6: Bijdrage Autoriteit Woningcorporaties | B6: €/woning/jaar | C6: 3.3 | D6: 3.3 | E6: 3.3 | F6: 3.3 | G6: 3.3 | H6: 3.3 | I6: =H6 -> 3.3 | J6: 3.3 | K6: 3.3 | L6: 3.3 | M6: 3.3 | N6: 3.3 | O6: 3.3 | P6: 3.3 | Q6: 3.3 | R6: 3.3 | S6: 3.3 | T6: 3.3 | U6: 3.3 | V6: 3.3 | W6: 3.3 | X6: 3.3 | Y6: 3.3 | Z6: 3.3 | AA6: 3.3 | AB6: 3.3 | AC6: 3.3 | AD6: 3.3 | AE6: 3.3 | AF6: 3.3 | AG6: 3.3 | AH6: 3.3 | AI6: 3.3 | AJ6: 3.3 | AK6: 3.3 | AL6: 3.3 | AM6: 3.3 | AN6: 3.3 | AO6: 3.3 | AP6: 3.3 | AQ6: 3.3 | AR6: 3.3 | AS6: 3.3 | AT6: 3.3 | AU6: 3.3 | AV6: 3.3 | AW6: 3.3 | AX6: 3.3 | AY6: 3.3 | AZ6: 3.3 | BA6: 3.3 | BB6: 3.3 | BC6: 3.3 | BD6: 3.3 | BE6: 3.3 | BF6: 3.3 | BG6: 3.3 | BH6: 3.3 | BI6: 3.3 | BJ6: 3.3 | BK6: 3.3 | BL6: 3.3 | BM6: 3.3 | BN6: 3.3 | BO6: 3.3 | BP6: 3.3 | BQ6: 3.3 | BR6: 3.3 | BS6: 3.3 | BT6: 3.3 | BU6: 3.3 | BV6: 3.3 | BW6: 3.3 | BX6: 3.3 | BY6: 3.3 | BZ6: 3.3 | CA6: 3.3 | CB6: 3.3 | CC6: 3.3 | CD6: 3.3
A8: Indexeringen
A9: Huur | B9: %/jaar | C9: 0.01 | D9: 0.016 | E9: 0.025 | F9: 0.025 | G9: 0.02 | H9: 0.02 | I9: =H9 -> 0.02 | J9: =I9 -> 0.02 | K9: 0.02 | L9: 0.02 | M9: 0.02 | N9: 0.02 | O9: 0.02 | P9: 0.02 | Q9: 0.02 | R9: 0.02 | S9: 0.02 | T9: 0.02 | U9: 0.02 | V9: 0.02 | W9: 0.02 | X9: 0.02 | Y9: 0.02 | Z9: 0.02 | AA9: 0.02 | AB9: 0.02 | AC9: 0.02 | AD9: 0.02 | AE9: 0.02 | AF9: 0.02 | AG9: 0.02 | AH9: 0.02 | AI9: 0.02 | AJ9: 0.02 | AK9: 0.02 | AL9: 0.02 | AM9: 0.02 | AN9: 0.02 | AO9: 0.02 | AP9: 0.02 | AQ9: 0.02 | AR9: 0.02 | AS9: 0.02 | AT9: 0.02 | AU9: 0.02 | AV9: 0.02 | AW9: 0.02 | AX9: 0.02 | AY9: 0.02 | AZ9: 0.02 | BA9: 0.02 | BB9: 0.02 | BC9: 0.02 | BD9: 0.02 | BE9: 0.02 | BF9: 0.02 | BG9: 0.02 | BH9: 0.02 | BI9: 0.02 | BJ9: 0.02 | BK9: 0.02 | BL9: 0.02 | BM9: 0.02 | BN9: 0.02 | BO9: 0.02 | BP9: 0.02 | BQ9: 0.02 | BR9: 0.02 | BS9: 0.02 | BT9: 0.02 | BU9: 0.02 | BV9: =BU9 -> 0.02 | BW9: 0.02 | BX9: 0.02 | BY9: 0.02 | BZ9: 0.02 | CA9: 0.02 | CB9: 0.02 | CC9: 0.02 | CD9: 0.02
A10: Beheerlasten | B10: %/jaar | C10: 0.013 | D10: 0.014 | E10: 0.025 | F10: 0.025 | G10: 0.025 | H10: 0.025 | I10: 0.025 | J10: =I10 -> 0.025 | K10: 0.025 | L10: 0.025 | M10: 0.025 | N10: 0.025 | O10: 0.025 | P10: 0.025 | Q10: 0.025 | R10: 0.025 | S10: 0.025 | T10: 0.025 | U10: 0.025 | V10: 0.025 | W10: 0.025 | X10: 0.025 | Y10: 0.025 | Z10: 0.025 | AA10: 0.025 | AB10: 0.025 | AC10: 0.025 | AD10: 0.025 | AE10: 0.025 | AF10: 0.025 | AG10: 0.025 | AH10: 0.025 | AI10: 0.025 | AJ10: 0.025 | AK10: 0.025 | AL10: 0.025 | AM10: 0.025 | AN10: 0.025 | AO10: 0.025 | AP10: 0.025 | AQ10: 0.025 | AR10: 0.025 | AS10: 0.025 | AT10: 0.025 | AU10: 0.025 | AV10: 0.025 | AW10: 0.025 | AX10: 0.025 | AY10: 0.025 | AZ10: 0.025 | BA10: 0.025 | BB10: 0.025 | BC10: 0.025 | BD10: 0.025 | BE10: 0.025 | BF10: 0.025 | BG10: 0.025 | BH10: 0.025 | BI10: 0.025 | BJ10: 0.025 | BK10: 0.025 | BL10: 0.025 | BM10: 0.025 | BN10: 0.025 | BO10: 0.025 | BP10: 0.025 | BQ10: 0.025 | BR10: 0.025 | BS10: 0.025 | BT10: 0.025 | BU10: 0.025 | BV10: =BU10 -> 0.025 | BW10: 0.025 | BX10: 0.025 | BY10: 0.025 | BZ10: 0.025 | CA10: 0.025 | CB10: 0.025 | CC10: 0.025 | CD10: 0.025
A11: Onderhoudslasten | B11: %/jaar | C11: 0.013 | D11: 0.014 | E11: 0.025 | F11: 0.025 | G11: 0.025 | H11: 0.025 | I11: 0.025 | J11: =I11 -> 0.025 | K11: 0.025 | L11: 0.025 | M11: 0.025 | N11: 0.025 | O11: 0.025 | P11: 0.025 | Q11: 0.025 | R11: 0.025 | S11: 0.025 | T11: 0.025 | U11: 0.025 | V11: 0.025 | W11: 0.025 | X11: 0.025 | Y11: 0.025 | Z11: 0.025 | AA11: 0.025 | AB11: 0.025 | AC11: 0.025 | AD11: 0.025 | AE11: 0.025 | AF11: 0.025 | AG11: 0.025 | AH11: 0.025 | AI11: 0.025 | AJ11: 0.025 | AK11: 0.025 | AL11: 0.025 | AM11: 0.025 | AN11: 0.025 | AO11: 0.025 | AP11: 0.025 | AQ11: 0.025 | AR11: 0.025 | AS11: 0.025 | AT11: 0.025 | AU11: 0.025 | AV11: 0.025 | AW11: 0.025 | AX11: 0.025 | AY11: 0.025 | AZ11: 0.025 | BA11: 0.025 | BB11: 0.025 | BC11: 0.025 | BD11: 0.025 | BE11: 0.025 | BF11: 0.025 | BG11: 0.025 | BH11: 0.025 | BI11: 0.025 | BJ11: 0.025 | BK11: 0.025 | BL11: 0.025 | BM11: 0.025 | BN11: 0.025 | BO11: 0.025 | BP11: 0.025 | BQ11: 0.025 | BR11: 0.025 | BS11: 0.025 | BT11: 0.025 | BU11: 0.025 | BV11: =BU11 -> 0.025 | BW11: 0.025 | BX11: 0.025 | BY11: 0.025 | BZ11: 0.025 | CA11: 0.025 | CB11: 0.025 | CC11: 0.025 | CD11: 0.025
A12: VON / WOZ ontwikkeling | B12: %/jaar | C12: 0.029 | D12: 0.026 | E12: 0.023 | F12: 0.02 | G12: 0.02 | H12: 0.02 | I12: 0.02 | J12: =I12 -> 0.02 | K12: 0.02 | L12: 0.02 | M12: 0.02 | N12: 0.02 | O12: 0.02 | P12: 0.02 | Q12: 0.02 | R12: 0.02 | S12: 0.02 | T12: 0.02 | U12: 0.02 | V12: 0.02 | W12: 0.02 | X12: 0.02 | Y12: 0.02 | Z12: 0.02 | AA12: 0.02 | AB12: 0.02 | AC12: 0.02 | AD12: 0.02 | AE12: 0.02 | AF12: 0.02 | AG12: 0.02 | AH12: 0.02 | AI12: 0.02 | AJ12: 0.02 | AK12: 0.02 | AL12: 0.02 | AM12: 0.02 | AN12: 0.02 | AO12: 0.02 | AP12: 0.02 | AQ12: 0.02 | AR12: 0.02 | AS12: 0.02 | AT12: 0.02 | AU12: 0.02 | AV12: 0.02 | AW12: 0.02 | AX12: 0.02 | AY12: 0.02 | AZ12: 0.02 | BA12: 0.02 | BB12: 0.02 | BC12: 0.02 | BD12: 0.02 | BE12: 0.02 | BF12: 0.02 | BG12: 0.02 | BH12: 0.02 | BI12: 0.02 | BJ12: 0.02 | BK12: 0.02 | BL12: 0.02 | BM12: 0.02 | BN12: 0.02 | BO12: 0.02 | BP12: 0.02 | BQ12: 0.02 | BR12: 0.02 | BS12: 0.02 | BT12: 0.02 | BU12: 0.02 | BV12: =BU12 -> 0.02 | BW12: 0.02 | BX12: 0.02 | BY12: 0.02 | BZ12: 0.02 | CA12: 0.02 | CB12: 0.02 | CC12: 0.02 | CD12: 0.02
A13: Inflatie | B13: %/jaar | C13: 0.005 | D13: 0.011 | E13: 0.02 | F13: 0.02 | G13: 0.02 | H13: 0.02 | I13: 0.02 | J13: =I13 -> 0.02 | K13: 0.02 | L13: 0.02 | M13: 0.02 | N13: 0.02 | O13: 0.02 | P13: 0.02 | Q13: 0.02 | R13: 0.02 | S13: 0.02 | T13: 0.02 | U13: 0.02 | V13: 0.02 | W13: 0.02 | X13: 0.02 | Y13: 0.02 | Z13: 0.02 | AA13: 0.02 | AB13: 0.02 | AC13: 0.02 | AD13: 0.02 | AE13: 0.02 | AF13: 0.02 | AG13: 0.02 | AH13: 0.02 | AI13: 0.02 | AJ13: 0.02 | AK13: 0.02 | AL13: 0.02 | AM13: 0.02 | AN13: 0.02 | AO13: 0.02 | AP13: 0.02 | AQ13: 0.02 | AR13: 0.02 | AS13: 0.02 | AT13: 0.02 | AU13: 0.02 | AV13: 0.02 | AW13: 0.02 | AX13: 0.02 | AY13: 0.02 | AZ13: 0.02 | BA13: 0.02 | BB13: 0.02 | BC13: 0.02 | BD13: 0.02 | BE13: 0.02 | BF13: 0.02 | BG13: 0.02 | BH13: 0.02 | BI13: 0.02 | BJ13: 0.02 | BK13: 0.02 | BL13: 0.02 | BM13: 0.02 | BN13: 0.02 | BO13: 0.02 | BP13: 0.02 | BQ13: 0.02 | BR13: 0.02 | BS13: 0.02 | BT13: 0.02 | BU13: 0.02 | BV13: =BU13 -> 0.02 | BW13: 0.02 | BX13: 0.02 | BY13: 0.02 | BZ13: 0.02 | CA13: 0.02 | CB13: 0.02 | CC13: 0.02 | CD13: 0.02
A14: EPV | B14: %/jaar | C14: 0.005 | D14: 0.011 | E14: 0.02 | F14: 0.02 | G14: 0.02 | H14: 0.02 | I14: 0.02 | J14: =I14 -> 0.02 | K14: 0.02 | L14: 0.02 | M14: 0.02 | N14: 0.02 | O14: 0.02 | P14: 0.02 | Q14: 0.02 | R14: 0.02 | S14: 0.02 | T14: 0.02 | U14: 0.02 | V14: 0.02 | W14: 0.02 | X14: 0.02 | Y14: 0.02 | Z14: 0.02 | AA14: 0.02 | AB14: 0.02 | AC14: 0.02 | AD14: 0.02 | AE14: 0.02 | AF14: 0.02 | AG14: 0.02 | AH14: 0.02 | AI14: 0.02 | AJ14: 0.02 | AK14: 0.02 | AL14: 0.02 | AM14: 0.02 | AN14: 0.02 | AO14: 0.02 | AP14: 0.02 | AQ14: 0.02 | AR14: 0.02 | AS14: 0.02 | AT14: 0.02 | AU14: 0.02 | AV14: 0.02 | AW14: 0.02 | AX14: 0.02 | AY14: 0.02 | AZ14: 0.02 | BA14: 0.02 | BB14: 0.02 | BC14: 0.02 | BD14: 0.02 | BE14: 0.02 | BF14: 0.02 | BG14: 0.02 | BH14: 0.02 | BI14: 0.02 | BJ14: 0.02 | BK14: 0.02 | BL14: 0.02 | BM14: 0.02 | BN14: 0.02 | BO14: 0.02 | BP14: 0.02 | BQ14: 0.02 | BR14: 0.02 | BS14: 0.02 | BT14: 0.02 | BU14: 0.02 | BV14: =BU14 -> 0.02 | BW14: 0.02 | BX14: 0.02 | BY14: 0.02 | BZ14: 0.02 | CA14: 0.02 | CB14: 0.02 | CC14: 0.02 | CD14: 0.02
A15: Marktwaarde ontwikkeling | B15: %/jaar | C15: 0.02 | D15: 0.02 | E15: 0.02 | F15: 0.02 | G15: 0.02 | H15: 0.02 | I15: =H15 -> 0.02 | J15: =I15 -> 0.02 | K15: =J15 -> 0.02 | L15: =K15 -> 0.02 | M15: =L15 -> 0.02 | N15: =M15 -> 0.02 | O15: =N15 -> 0.02 | P15: =O15 -> 0.02 | Q15: =P15 -> 0.02 | R15: =Q15 -> 0.02 | S15: =R15 -> 0.02 | T15: =S15 -> 0.02 | U15: =T15 -> 0.02 | V15: =U15 -> 0.02 | W15: =V15 -> 0.02 | X15: =W15 -> 0.02 | Y15: =X15 -> 0.02 | Z15: =Y15 -> 0.02 | AA15: =Z15 -> 0.02 | AB15: =AA15 -> 0.02 | AC15: =AB15 -> 0.02 | AD15: =AC15 -> 0.02 | AE15: =AD15 -> 0.02 | AF15: =AE15 -> 0.02 | AG15: =AF15 -> 0.02 | AH15: =AG15 -> 0.02 | AI15: =AH15 -> 0.02 | AJ15: =AI15 -> 0.02 | AK15: =AJ15 -> 0.02 | AL15: =AK15 -> 0.02 | AM15: =AL15 -> 0.02 | AN15: =AM15 -> 0.02 | AO15: =AN15 -> 0.02 | AP15: =AO15 -> 0.02 | AQ15: =AP15 -> 0.02 | AR15: =AQ15 -> 0.02 | AS15: =AR15 -> 0.02 | AT15: =AS15 -> 0.02 | AU15: =AT15 -> 0.02 | AV15: =AU15 -> 0.02 | AW15: =AV15 -> 0.02 | AX15: =AW15 -> 0.02 | AY15: =AX15 -> 0.02 | AZ15: =AY15 -> 0.02 | BA15: =AZ15 -> 0.02 | BB15: =BA15 -> 0.02 | BC15: =BB15 -> 0.02 | BD15: =BC15 -> 0.02 | BE15: =BD15 -> 0.02 | BF15: =BE15 -> 0.02 | BG15: =BF15 -> 0.02 | BH15: =BG15 -> 0.02 | BI15: =BH15 -> 0.02 | BJ15: =BI15 -> 0.02 | BK15: =BJ15 -> 0.02 | BL15: =BK15 -> 0.02 | BM15: =BL15 -> 0.02 | BN15: =BM15 -> 0.02 | BO15: =BN15 -> 0.02 | BP15: =BO15 -> 0.02 | BQ15: =BP15 -> 0.02 | BR15: =BQ15 -> 0.02 | BS15: =BR15 -> 0.02 | BT15: =BS15 -> 0.02 | BU15: =BT15 -> 0.02 | BV15: =BU15 -> 0.02 | BW15: =BV15 -> 0.02 | BX15: =BW15 -> 0.02 | BY15: =BX15 -> 0.02 | BZ15: =BY15 -> 0.02 | CA15: =BZ15 -> 0.02 | CB15: =CA15 -> 0.02 | CC15: =CB15 -> 0.02 | CD15: =CC15 -> 0.02
A17: Huur | C17: =1+C9 -> 1.01 | D17: =C17*(1+C9) -> 1.0201 | E17: 1.0364216 | F17: 1.06233214 | G17: 1.088890443 | H17: 1.110668252 | I17: 1.132881617 | J17: 1.15553925 | K17: 1.178650035 | L17: 1.202223035 | M17: 1.226267496 | N17: 1.250792846 | O17: 1.275808703 | P17: 1.301324877 | Q17: 1.327351375 | R17: 1.353898402 | S17: 1.38097637 | T17: 1.408595898 | U17: 1.436767816 | V17: 1.465503172 | W17: 1.494813235 | X17: 1.5247095 | Y17: 1.55520369 | Z17: 1.586307764 | AA17: 1.618033919 | AB17: 1.650394597 | AC17: 1.683402489 | AD17: 1.717070539 | AE17: 1.75141195 | AF17: 1.786440189 | AG17: 1.822168993 | AH17: 1.858612373 | AI17: 1.89578462 | AJ17: =AI17*(1+AI9) -> 1.933700312 | AK17: 1.972374319 | AL17: 2.011821805 | AM17: 2.052058241 | AN17: 2.093099406 | AO17: 2.134961394 | AP17: 2.177660622 | AQ17: 2.221213834 | AR17: 2.265638111 | AS17: 2.310950873 | AT17: 2.357169891 | AU17: 2.404313289 | AV17: 2.452399554 | AW17: 2.501447545 | AX17: 2.551476496 | AY17: 2.602506026 | AZ17: 2.654556147 | BA17: 2.70764727 | BB17: 2.761800215 | BC17: 2.817036219 | BD17: 2.873376944 | BE17: 2.930844483 | BF17: 2.989461372 | BG17: 3.0492506 | BH17: 3.110235612 | BI17: 3.172440324 | BJ17: 3.235889131 | BK17: 3.300606913 | BL17: 3.366619051 | BM17: 3.433951432 | BN17: 3.502630461 | BO17: 3.57268307 | BP17: =BO17*(1+BO9) -> 3.644136732 | BQ17: 3.717019466 | BR17: 3.791359856 | BS17: 3.867187053 | BT17: 3.944530794 | BU17: 4.02342141 | BV17: 4.103889838 | BW17: 4.185967635 | BX17: 4.269686987 | BY17: 4.355080727 | BZ17: 4.442182342 | CA17: 4.531025988 | CB17: 4.621646508 | CC17: 4.714079438 | CD17: 4.808361027
A18: Beheerlasten | C18: 1.013 | D18: =C18*(1+C10) -> 1.026169 | E18: 1.040535366 | F18: 1.06654875 | G18: 1.093212469 | H18: 1.120542781 | I18: 1.14855635 | J18: 1.177270259 | K18: 1.206702015 | L18: 1.236869566 | M18: 1.267791305 | N18: 1.299486088 | O18: 1.33197324 | P18: 1.365272571 | Q18: 1.399404385 | R18: 1.434389495 | S18: 1.470249232 | T18: 1.507005463 | U18: 1.544680599 | V18: 1.583297614 | W18: 1.622880055 | X18: 1.663452056 | Y18: 1.705038357 | Z18: 1.747664316 | AA18: 1.791355924 | AB18: 1.836139822 | AC18: 1.882043318 | AD18: 1.929094401 | AE18: 1.977321761 | AF18: 2.026754805 | AG18: 2.077423675 | AH18: 2.129359267 | AI18: 2.182593249 | AJ18: =AI18*(1+AI10) -> 2.23715808 | AK18: 2.293087032 | AL18: 2.350414208 | AM18: 2.409174563 | AN18: 2.469403927 | AO18: 2.531139025 | AP18: 2.594417501 | AQ18: 2.659277938 | AR18: 2.725759887 | AS18: 2.793903884 | AT18: 2.863751481 | AU18: 2.935345268 | AV18: 3.0087289 | AW18: 3.083947122 | AX18: 3.1610458 | AY18: 3.240071945 | AZ18: 3.321073744 | BA18: 3.404100587 | BB18: 3.489203102 | BC18: 3.57643318 | BD18: 3.665844009 | BE18: 3.757490109 | BF18: 3.851427362 | BG18: 3.947713046 | BH18: 4.046405872 | BI18: 4.147566019 | BJ18: 4.25125517 | BK18: 4.357536549 | BL18: 4.466474963 | BM18: 4.578136837 | BN18: 4.692590258 | BO18: 4.809905014 | BP18: =BO18*(1+BO10) -> 4.930152639 | BQ18: 5.053406455 | BR18: 5.179741617 | BS18: 5.309235157 | BT18: 5.441966036 | BU18: 5.578015187 | BV18: 5.717465567 | BW18: 5.860402206 | BX18: 6.006912261 | BY18: 6.157085067 | BZ18: 6.311012194 | CA18: 6.468787499 | CB18: 6.630507186 | CC18: 6.796269866 | CD18: 6.966176613
A19: Onderhoudslasten | C19: 1.013 | D19: =C19*(1+C11) -> 1.026169 | E19: 1.040535366 | F19: 1.06654875 | G19: 1.093212469 | H19: 1.120542781 | I19: 1.14855635 | J19: 1.177270259 | K19: 1.206702015 | L19: 1.236869566 | M19: 1.267791305 | N19: 1.299486088 | O19: 1.33197324 | P19: 1.365272571 | Q19: 1.399404385 | R19: 1.434389495 | S19: 1.470249232 | T19: 1.507005463 | U19: 1.544680599 | V19: 1.583297614 | W19: 1.622880055 | X19: 1.663452056 | Y19: 1.705038357 | Z19: 1.747664316 | AA19: 1.791355924 | AB19: 1.836139822 | AC19: 1.882043318 | AD19: 1.929094401 | AE19: 1.977321761 | AF19: 2.026754805 | AG19: 2.077423675 | AH19: 2.129359267 | AI19: 2.182593249 | AJ19: =AI19*(1+AI11) -> 2.23715808 | AK19: 2.293087032 | AL19: 2.350414208 | AM19: 2.409174563 | AN19: 2.469403927 | AO19: 2.531139025 | AP19: 2.594417501 | AQ19: 2.659277938 | AR19: 2.725759887 | AS19: 2.793903884 | AT19: 2.863751481 | AU19: 2.935345268 | AV19: 3.0087289 | AW19: 3.083947122 | AX19: 3.1610458 | AY19: 3.240071945 | AZ19: 3.321073744 | BA19: 3.404100587 | BB19: 3.489203102 | BC19: 3.57643318 | BD19: 3.665844009 | BE19: 3.757490109 | BF19: 3.851427362 | BG19: 3.947713046 | BH19: 4.046405872 | BI19: 4.147566019 | BJ19: 4.25125517 | BK19: 4.357536549 | BL19: 4.466474963 | BM19: 4.578136837 | BN19: 4.692590258 | BO19: 4.809905014 | BP19: =BO19*(1+BO11) -> 4.930152639 | BQ19: 5.053406455 | BR19: 5.179741617 | BS19: 5.309235157 | BT19: 5.441966036 | BU19: 5.578015187 | BV19: 5.717465567 | BW19: 5.860402206 | BX19: 6.006912261 | BY19: 6.157085067 | BZ19: 6.311012194 | CA19: 6.468787499 | CB19: 6.630507186 | CC19: 6.796269866 | CD19: 6.966176613
A20: VON / WOZ ontwikkeling | C20: 1.029 | D20: =C20*(1+C12) -> 1.058841 | E20: 1.086370866 | F20: 1.111357396 | G20: 1.133584544 | H20: 1.156256235 | I20: 1.179381359 | J20: 1.202968987 | K20: 1.227028366 | L20: 1.251568934 | M20: 1.276600312 | N20: 1.302132319 | O20: 1.328174965 | P20: 1.354738464 | Q20: 1.381833234 | R20: 1.409469898 | S20: 1.437659296 | T20: 1.466412482 | U20: 1.495740732 | V20: 1.525655546 | W20: 1.556168657 | X20: 1.58729203 | Y20: 1.619037871 | Z20: 1.651418628 | AA20: 1.684447001 | AB20: 1.718135941 | AC20: 1.75249866 | AD20: 1.787548633 | AE20: 1.823299606 | AF20: 1.859765598 | AG20: 1.89696091 | AH20: 1.934900128 | AI20: 1.973598131 | AJ20: =AI20*(1+AI12) -> 2.013070093 | AK20: 2.053331495 | AL20: 2.094398125 | AM20: 2.136286087 | AN20: 2.179011809 | AO20: 2.222592045 | AP20: 2.267043886 | AQ20: 2.312384764 | AR20: 2.358632459 | AS20: 2.405805108 | AT20: 2.453921211 | AU20: 2.502999635 | AV20: 2.553059628 | AW20: 2.60412082 | AX20: 2.656203237 | AY20: 2.709327301 | AZ20: 2.763513847 | BA20: 2.818784124 | BB20: 2.875159807 | BC20: 2.932663003 | BD20: 2.991316263 | BE20: 3.051142588 | BF20: 3.11216544 | BG20: 3.174408749 | BH20: 3.237896924 | BI20: 3.302654862 | BJ20: 3.368707959 | BK20: 3.436082119 | BL20: 3.504803761 | BM20: 3.574899836 | BN20: 3.646397833 | BO20: 3.71932579 | BP20: =BO20*(1+BO12) -> 3.793712305 | BQ20: 3.869586551 | BR20: 3.946978282 | BS20: 4.025917848 | BT20: 4.106436205 | BU20: 4.188564929 | BV20: 4.272336228 | BW20: 4.357782952 | BX20: 4.444938611 | BY20: 4.533837384 | BZ20: 4.624514131 | CA20: 4.717004414 | CB20: 4.811344502 | CC20: 4.907571392 | CD20: 5.00572282
A21: Inflatie | C21: 1.005 | D21: =C21*(1+C13) -> 1.010025 | E21: 1.021135275 | F21: 1.04155798 | G21: 1.06238914 | H21: 1.083636923 | I21: 1.105309661 | J21: 1.127415855 | K21: 1.149964172 | L21: 1.172963455 | M21: 1.196422724 | N21: 1.220351179 | O21: 1.244758202 | P21: 1.269653366 | Q21: 1.295046434 | R21: 1.320947362 | S21: 1.34736631 | T21: 1.374313636 | U21: 1.401799908 | V21: 1.429835907 | W21: 1.458432625 | X21: 1.487601277 | Y21: 1.517353303 | Z21: 1.547700369 | AA21: 1.578654376 | AB21: 1.610227464 | AC21: 1.642432013 | AD21: 1.675280653 | AE21: 1.708786266 | AF21: 1.742961992 | AG21: 1.777821232 | AH21: 1.813377656 | AI21: 1.849645209 | AJ21: =AI21*(1+AI13) -> 1.886638113 | AK21: 1.924370876 | AL21: 1.962858293 | AM21: 2.002115459 | AN21: 2.042157768 | AO21: 2.083000924 | AP21: 2.124660942 | AQ21: 2.167154161 | AR21: 2.210497244 | AS21: 2.254707189 | AT21: 2.299801333 | AU21: 2.34579736 | AV21: 2.392713307 | AW21: 2.440567573 | AX21: 2.489378924 | AY21: 2.539166503 | AZ21: 2.589949833 | BA21: 2.64174883 | BB21: 2.694583806 | BC21: 2.748475482 | BD21: 2.803444992 | BE21: 2.859513892 | BF21: 2.91670417 | BG21: 2.975038253 | BH21: 3.034539018 | BI21: 3.095229798 | BJ21: 3.157134394 | BK21: 3.220277082 | BL21: 3.284682624 | BM21: 3.350376276 | BN21: 3.417383802 | BO21: 3.485731478 | BP21: =BO21*(1+BO13) -> 3.555446107 | BQ21: 3.62655503 | BR21: 3.69908613 | BS21: 3.773067853 | BT21: 3.84852921 | BU21: 3.925499794 | BV21: 4.00400979 | BW21: 4.084089986 | BX21: 4.165771785 | BY21: 4.249087221 | BZ21: 4.334068966 | CA21: 4.420750345 | CB21: 4.509165352 | CC21: 4.599348659 | CD21: 4.691335632
A22: EPV | C22: 1.005 | D22: =C22*(1+C14) -> 1.010025 | E22: 1.021135275 | F22: 1.04155798 | G22: 1.06238914 | H22: 1.083636923 | I22: 1.105309661 | J22: 1.127415855 | K22: 1.149964172 | L22: 1.172963455 | M22: 1.196422724 | N22: 1.220351179 | O22: 1.244758202 | P22: 1.269653366 | Q22: 1.295046434 | R22: 1.320947362 | S22: 1.34736631 | T22: 1.374313636 | U22: 1.401799908 | V22: 1.429835907 | W22: 1.458432625 | X22: 1.487601277 | Y22: 1.517353303 | Z22: 1.547700369 | AA22: 1.578654376 | AB22: 1.610227464 | AC22: 1.642432013 | AD22: 1.675280653 | AE22: 1.708786266 | AF22: 1.742961992 | AG22: 1.777821232 | AH22: 1.813377656 | AI22: 1.849645209 | AJ22: =AI22*(1+AI14) -> 1.886638113 | AK22: 1.924370876 | AL22: 1.962858293 | AM22: 2.002115459 | AN22: 2.042157768 | AO22: 2.083000924 | AP22: 2.124660942 | AQ22: 2.167154161 | AR22: 2.210497244 | AS22: 2.254707189 | AT22: 2.299801333 | AU22: 2.34579736 | AV22: 2.392713307 | AW22: 2.440567573 | AX22: 2.489378924 | AY22: 2.539166503 | AZ22: 2.589949833 | BA22: 2.64174883 | BB22: 2.694583806 | BC22: 2.748475482 | BD22: 2.803444992 | BE22: 2.859513892 | BF22: 2.91670417 | BG22: 2.975038253 | BH22: 3.034539018 | BI22: 3.095229798 | BJ22: 3.157134394 | BK22: 3.220277082 | BL22: 3.284682624 | BM22: 3.350376276 | BN22: 3.417383802 | BO22: 3.485731478 | BP22: =BO22*(1+BO14) -> 3.555446107 | BQ22: 3.62655503 | BR22: 3.69908613 | BS22: 3.773067853 | BT22: 3.84852921 | BU22: 3.925499794 | BV22: 4.00400979 | BW22: 4.084089986 | BX22: 4.165771785 | BY22: 4.249087221 | BZ22: 4.334068966 | CA22: 4.420750345 | CB22: 4.509165352 | CC22: 4.599348659 | CD22: 4.691335632
A23: Marktwaarde ontwikkeling | C23: 1.02 | D23: 1.0404 | E23: =D23*(1+D15) -> 1.061208 | F23: =E23*(1+E15) -> 1.08243216 | G23: =F23*(1+F15) -> 1.104080803 | H23: =G23*(1+G15) -> 1.126162419 | I23: =H23*(1+H15) -> 1.148685668 | J23: =I23*(1+I15) -> 1.171659381 | K23: =J23*(1+J15) -> 1.195092569 | L23: =K23*(1+K15) -> 1.21899442 | M23: =L23*(1+L15) -> 1.243374308 | N23: =M23*(1+M15) -> 1.268241795 | O23: =N23*(1+N15) -> 1.29360663 | P23: =O23*(1+O15) -> 1.319478763 | Q23: =P23*(1+P15) -> 1.345868338 | R23: =Q23*(1+Q15) -> 1.372785705 | S23: =R23*(1+R15) -> 1.400241419 | T23: =S23*(1+S15) -> 1.428246248 | U23: =T23*(1+T15) -> 1.456811173 | V23: =U23*(1+U15) -> 1.485947396 | W23: =V23*(1+V15) -> 1.515666344 | X23: =W23*(1+W15) -> 1.545979671 | Y23: =X23*(1+X15) -> 1.576899264 | Z23: =Y23*(1+Y15) -> 1.608437249 | AA23: =Z23*(1+Z15) -> 1.640605994 | AB23: =AA23*(1+AA15) -> 1.673418114 | AC23: =AB23*(1+AB15) -> 1.706886477 | AD23: =AC23*(1+AC15) -> 1.741024206 | AE23: =AD23*(1+AD15) -> 1.77584469 | AF23: =AE23*(1+AE15) -> 1.811361584 | AG23: =AF23*(1+AF15) -> 1.847588816 | AH23: =AG23*(1+AG15) -> 1.884540592 | AI23: =AH23*(1+AH15) -> 1.922231404 | AJ23: 1.960676032 | AK23: 1.999889553 | AL23: 2.039887344 | AM23: 2.080685091 | AN23: 2.122298792 | AO23: 2.164744768 | AP23: 2.208039664 | AQ23: 2.252200457 | AR23: 2.297244466 | AS23: 2.343189355 | AT23: 2.390053142 | AU23: 2.437854205 | AV23: 2.486611289 | AW23: 2.536343515 | AX23: 2.587070385 | AY23: 2.638811793 | AZ23: 2.691588029 | BA23: 2.74541979 | BB23: 2.800328185 | BC23: 2.856334749 | BD23: 2.913461444 | BE23: 2.971730673 | BF23: 3.031165286 | BG23: 3.091788592 | BH23: 3.153624364 | BI23: 3.216696851 | BJ23: 3.281030788 | BK23: 3.346651404 | BL23: 3.413584432 | BM23: 3.481856121 | BN23: 3.551493243 | BO23: 3.622523108 | BP23: 3.69497357 | BQ23: 3.768873042 | BR23: 3.844250503 | BS23: 3.921135513 | BT23: 3.999558223 | BU23: 4.079549387 | BV23: 4.161140375 | BW23: 4.244363183 | BX23: 4.329250446 | BY23: 4.415835455 | BZ23: 4.504152164 | CA23: 4.594235208 | CB23: 4.686119912 | CC23: 4.77984231 | CD23: 4.875439156
A25: Rente
A26: Rente nieuwe leningen | C26: 0.022 | D26: 0.05 | E26: 0.05 | F26: 0.05 | G26: 0.05 | H26: 0.05 | I26: 0.05 | J26: 0.05 | K26: 0.05 | L26: 0.05 | M26: 0.05 | N26: 0.05 | O26: 0.05 | P26: 0.05 | Q26: 0.05 | R26: 0.05
A28: Kostprijs renovatie
A30: Kostprijs renovatie nominaal NOM | C30: 70000 | D30: 70000 | E30: 70000 | F30: 70000 | G30: 70000 | H30: 70000 | I30: 70000 | J30: 70000 | K30: 70000 | L30: 70000 | M30: 70000 | N30: 70000 | O30: 70000 | P30: 70000 | Q30: 70000 | R30: 70000
A31: Kostprijs renovatie geindexeerd | C31: =C30*C19 -> 70910 | D31: 71831.83 | E31: 72837.47562 | F31: 74658.41251 | G31: 76524.87282 | H31: 78437.99464 | I31: 80398.94451 | J31: 82408.91812 | K31: 84469.14108 | L31: 86580.8696 | M31: 88745.39134 | N31: 90964.02613 | O31: 93238.12678 | P31: 95569.07995 | Q31: 97958.30695 | R31: 100407.2646
A33: Portefeuille opbouw | B33: aantal per 5 jaarschijf | C33: aantal x gem. leeftijd per 5 jaar | D33: aantal x afwijking van het gemiddelde | F33: Gem. res. Levenduur | I33: 1 | J33: 2 | K33: 3 | L33: 4 | M33: 5 | N33: 6 | O33: 7 | P33: 8 | Q33: 9 | R33: 10 | S33: 11 | T33: 12 | U33: 13 | V33: 14 | W33: 15 | X33: 16 | Y33: 17 | Z33: 18 | AA33: 19 | AB33: 20 | AC33: 21 | AD33: 22 | AE33: 23 | AF33: 24 | AG33: 25 | AH33: 26 | AI33: 27 | AJ33: 28 | AK33: 29 | AL33: 30 | AM33: 31 | AN33: 32 | AO33: 33 | AP33: 34 | AQ33: 35 | AR33: 36 | AS33: 37 | AT33: 38 | AU33: 39 | AV33: 40 | AW33: 41 | AX33: 42 | AY33: 43 | AZ33: 44 | BA33: 45 | BB33: 46 | BC33: 47 | BD33: 48 | BE33: 49 | BF33: 50
A34: 0 - 5 jaar | B34: =Input!$C$9*Input!C10 -> 60.47917112 | C34: =B34*2.5 -> 151.1979278 | D34: =SQRT(($B$46-2.5)^2)*B34 -> 1300.302179 | F34: 0 - 5 jaar | W34: 0.05 | X34: 0.04 | Y34: 0.04 | Z34: 0.03 | AA34: 0.02 | AB34: 0.01 | AC34: 0.01 | AD34: 0.01 | AE34: 0.01 | AF34: 0.01 | AG34: 0.01 | AH34: 0.01 | AI34: 0.01 | AJ34: 0.01 | AK34: 0.01 | AL34: 0.01
A35: 5 - 10 jaar | B35: =Input!$C$9*Input!C11 -> 60.47917112 | C35: =B35*7.5 -> 453.5937834 | D35: =SQRT(($B$46-7.5)^2)*B35 -> 997.9063235 | F35: 5 - 10 jaar | W35: 0.23 | X35: 0.2 | Y35: 0.15 | Z35: 0.11 | AA35: 0.09 | AB35: 0.07 | AC35: 0.05 | AD35: 0.04 | AE35: 0.02 | AF35: 0.01 | AG35: 0.01 | AH35: 0.01 | AI35: 0.01 | AJ35: 0.01 | AK35: 0.01 | AL35: 0.01
A36: 10 - 15 jaar | B36: =Input!$C$9*Input!C12 -> 665.2708824 | C36: =B36*12.5 -> 8315.886029 | D36: =SQRT(($B$46-12.5)^2)*B36 -> 7650.615147 | F36: 10 - 15 jaar | W36: 0.29 | X36: 0.28 | Y36: 0.28 | Z36: 0.27 | AA36: 0.25 | AB36: 0.22 | AC36: 0.18 | AD36: 0.15 | AE36: 0.13 | AF36: 0.11 | AG36: 0.09 | AH36: 0.07 | AI36: 0.06 | AJ36: 0.05 | AK36: 0.04 | AL36: 0.03
A37: 15 - 20 jaar | B37: =Input!$C$9*Input!C13 -> 1209.583422 | C37: =B37*17.5 -> 21167.70989 | D37: =SQRT(($B$46-17.5)^2)*B37 -> 7862.292246 | F37: 15 - 20 jaar | W37: 0.22 | X37: 0.22 | Y37: 0.23 | Z37: 0.24 | AA37: 0.25 | AB37: 0.25 | AC37: 0.24 | AD37: 0.23 | AE37: 0.23 | AF37: 0.2 | AG37: 0.18 | AH37: 0.15 | AI37: 0.12 | AJ37: 0.09 | AK37: 0.08 | AL37: 0.06
A38: 20 - 25 jaar | B38: =Input!$C$9*Input!C14 -> 1451.500107 | C38: =B38*22.5 -> 32658.75241 | D38: =SQRT(($B$46-22.5)^2)*B38 -> 2177.25016 | F38: 20 - 25 jaar | W38: 0.13 | X38: 0.14 | Y38: 0.15 | Z38: 0.18 | AA38: 0.18 | AB38: 0.21 | AC38: 0.25 | AD38: 0.25 | AE38: 0.25 | AF38: 0.24 | AG38: 0.23 | AH38: 0.21 | AI38: 0.19 | AJ38: 0.18 | AK38: 0.16 | AL38: 0.15
A39: 25 - 30 jaar | B39: =Input!$C$9*Input!C15 -> 1209.583422 | C39: =B39*27.5 -> 33263.54412 | D39: =SQRT(($B$46-27.5)^2)*B39 -> 4233.541979 | F39: 25 - 30 jaar | W39: 0.03 | X39: 0.06 | Y39: 0.07 | Z39: 0.08 | AA39: 0.1 | AB39: 0.12 | AC39: 0.14 | AD39: 0.15 | AE39: 0.16 | AF39: 0.2 | AG39: 0.2 | AH39: 0.24 | AI39: 0.24 | AJ39: 0.25 | AK39: 0.21 | AL39: 0.2
A40: 30 - 35 jaar | B40: =Input!$C$9*Input!C16 -> 846.7083957 | C40: =B40*32.5 -> 27518.02286 | D40: =SQRT(($B$46-32.5)^2)*B40 -> 7197.021364 | F40: 30 - 35 jaar | W40: 0.02 | X40: 0.03 | Y40: 0.04 | Z40: 0.05 | AA40: 0.06 | AB40: 0.07 | AC40: 0.07 | AD40: 0.1 | AE40: 0.11 | AF40: 0.14 | AG40: 0.16 | AH40: 0.17 | AI40: 0.21 | AJ40: 0.22 | AK40: 0.26 | AL40: 0.25
A41: 35 - 40 jaar | B41: =Input!$C$9*Input!C17 -> 362.8750267 | C41: =B41*37.5 -> 13607.8135 | D41: =SQRT(($B$46-37.5)^2)*B41 -> 4898.812861 | F41: 35 - 40 jaar | W41: 0.01 | X41: 0.01 | Y41: 0.02 | Z41: 0.02 | AA41: 0.03 | AB41: 0.03 | AC41: 0.04 | AD41: 0.05 | AE41: 0.06 | AF41: 0.06 | AG41: 0.08 | AH41: 0.09 | AI41: 0.1 | AJ41: 0.11 | AK41: 0.14 | AL41: 0.19
A42: 40 - 45 jaar | B42: =Input!$C$9*Input!C18 -> 120.9583422 | C42: =B42*42.5 -> 5140.729545 | D42: =SQRT(($B$46-42.5)^2)*B42 -> 2237.729332 | F42: 40 - 45 jaar | W42: 0.01 | X42: 0.01 | Y42: 0.01 | Z42: 0.01 | AA42: 0.01 | AB42: 0.01 | AC42: 0.01 | AD42: 0.01 | AE42: 0.02 | AF42: 0.02 | AG42: 0.03 | AH42: 0.04 | AI42: 0.05 | AJ42: 0.06 | AK42: 0.07 | AL42: 0.08
A43: 45 - 50 jaar | B43: =Input!$C$9*Input!C19 -> 60.47917112 | C43: =B43*47.5 -> 2872.760628 | D43: =SQRT(($B$46-47.5)^2)*B43 -> 1421.260521 | F43: 45 - 50 jaar | W43: 0.01 | X43: 0.01 | Y43: 0.01 | Z43: 0.01 | AA43: 0.01 | AB43: 0.01 | AC43: 0.01 | AD43: 0.01 | AE43: 0.01 | AF43: 0.01 | AG43: 0.01 | AH43: 0.01 | AI43: 0.01 | AJ43: 0.02 | AK43: 0.02 | AL43: 0.02
A45: Totaal portefeuille | B45: =Input!C9 -> 6047.917112 | W45: =W34*2.5+W35*7.5+W36*12.5+W37*17.5+W38*22.5+W39*27.5+W40*32.5+W41*37.5+W42*42.5+W43*47.5 -> 15 | X45: 16 | Y45: 17 | Z45: 18 | AA45: 19 | AB45: 20 | AC45: 21 | AD45: 22 | AE45: 23 | AF45: 24 | AG45: 25 | AH45: 26 | AI45: 27 | AJ45: 28 | AK45: 29 | AL45: 30
A46: Gemiddelde | B46: =SUM(C34:C43)/B45 -> 24 | F46: =ROUND(Input!C5,0) -> 24
A47: Standaard deviatie | B47: =SUM(D34:D43)/B45 -> 6.61
A49: Aantal woningen naar resterende levensduur in jaren (ultimo jaar) | G49: 2014 | H49: =G49+1 -> 2015 | I49: =H49+1 -> 2016 | J49: 2017 | K49: 2018 | L49: 2019 | M49: 2020 | N49: 2021 | O49: 2022 | P49: 2023 | Q49: 2024 | R49: 2025 | S49: 2026 | T49: 2027 | U49: 2028 | V49: 2029 | W49: 2030 | X49: 2031 | Y49: 2032 | Z49: 2033 | AA49: 2034 | AB49: 2035 | AC49: 2036 | AD49: 2037 | AE49: 2038 | AF49: 2039 | AG49: 2040 | AH49: 2041 | AI49: 2042 | AJ49: 2043 | AK49: 2044 | AL49: 2045 | AM49: 2046 | AN49: 2047 | AO49: 2048 | AP49: 2049 | AQ49: 2050 | AR49: 2051 | AS49: 2052 | AT49: 2053 | AU49: 2054 | AV49: 2055 | AW49: 2056 | AX49: 2057 | AY49: 2058 | AZ49: 2059 | BA49: 2060 | BB49: 2061 | BC49: 2062 | BD49: 2063
A51: 1 | C51: =ROUND(NORMDIST($A51,Reeksen!$B$46,Reeksen!$B$47,FALSE)*Reeksen!$B$45,0) -> 1 | D51: 0 | E51: =D51/SUM($D$51:$D$100) -> 0 | F51: =($B$45-$D$102)*E51 -> 0 | G51: =F51+D51 -> 0 | H51: =IF((G51-(Input!$C$9*Input!$C$38-SUM(G50:G$51)))<0,0,G51-IF(Input!$C$9*Input!$C$38>SUM(G50:G$51),(Input!$C$9*Input!$C$38-SUM(G50:G$51)),0)) -> 0 | I51: =IF((H51-(Input!$C$9*Input!$C$38-SUM(H50:H$51)))<0,0,H51-IF(Input!$C$9*Input!$C$38>SUM(H50:H$51),(Input!$C$9*Input!$C$38-SUM(H50:H$51)),0)) -> 0 | J51: =IF((I51-(Input!$C$9*Input!$C$38-SUM(I50:I$51)))<0,0,I51-IF(Input!$C$9*Input!$C$38>SUM(I50:I$51),(Input!$C$9*Input!$C$38-SUM(I50:I$51)),0)) -> 0 | K51: =IF((J51-(Input!$C$9*Input!$C$38-SUM(J50:J$51)))<0,0,J51-IF(Input!$C$9*Input!$C$38>SUM(J50:J$51),(Input!$C$9*Input!$C$38-SUM(J50:J$51)),0)) -> 0 | L51: =IF((K51-(Input!$C$9*Input!$C$38-SUM(K50:K$51)))<0,0,K51-IF(Input!$C$9*Input!$C$38>SUM(K50:K$51),(Input!$C$9*Input!$C$38-SUM(K50:K$51)),0)) -> 0 | M51: =IF((L51-(Input!$C$9*Input!$C$38-SUM(L50:L$51)))<0,0,L51-IF(Input!$C$9*Input!$C$38>SUM(L50:L$51),(Input!$C$9*Input!$C$38-SUM(L50:L$51)),0)) -> 0 | N51: =IF((M51-(Input!$C$9*Input!$C$38-SUM(M50:M$51)))<0,0,M51-IF(Input!$C$9*Input!$C$38>SUM(M50:M$51),(Input!$C$9*Input!$C$38-SUM(M50:M$51)),0)) -> 0 | O51: =IF((N51-(Input!$C$9*Input!$C$38-SUM(N50:N$51)))<0,0,N51-IF(Input!$C$9*Input!$C$38>SUM(N50:N$51),(Input!$C$9*Input!$C$38-SUM(N50:N$51)),0)) -> 0 | P51: =IF((O51-(Input!$C$9*Input!$C$38-SUM(O50:O$51)))<0,0,O51-IF(Input!$C$9*Input!$C$38>SUM(O50:O$51),(Input!$C$9*Input!$C$38-SUM(O50:O$51)),0)) -> 0 | Q51: =IF((P51-(Input!$C$9*Input!$C$38-SUM(P50:P$51)))<0,0,P51-IF(Input!$C$9*Input!$C$38>SUM(P50:P$51),(Input!$C$9*Input!$C$38-SUM(P50:P$51)),0)) -> 0 | R51: =IF((Q51-(Input!$C$9*Input!$C$38-SUM(Q50:Q$51)))<0,0,Q51-IF(Input!$C$9*Input!$C$38>SUM(Q50:Q$51),(Input!$C$9*Input!$C$38-SUM(Q50:Q$51)),0)) -> 0 | S51: =IF((R51-(Input!$C$9*Input!$C$38-SUM(R50:R$51)))<0,0,R51-IF(Input!$C$9*Input!$C$38>SUM(R50:R$51),(Input!$C$9*Input!$C$38-SUM(R50:R$51)),0)) -> 0 | T51: =IF((S51-(Input!$C$9*Input!$C$38-SUM(S50:S$51)))<0,0,S51-IF(Input!$C$9*Input!$C$38>SUM(S50:S$51),(Input!$C$9*Input!$C$38-SUM(S50:S$51)),0)) -> 0 | U51: =IF((T51-(Input!$C$9*Input!$C$38-SUM(T50:T$51)))<0,0,T51-IF(Input!$C$9*Input!$C$38>SUM(T50:T$51),(Input!$C$9*Input!$C$38-SUM(T50:T$51)),0)) -> 0 | V51: =IF((U51-(Input!$C$9*Input!$C$38-SUM(U50:U$51)))<0,0,U51-IF(Input!$C$9*Input!$C$38>SUM(U50:U$51),(Input!$C$9*Input!$C$38-SUM(U50:U$51)),0)) -> 0 | W51: =IF((V51-(Input!$C$9*Input!$C$38-SUM(V50:V$51)))<0,0,V51-IF(Input!$C$9*Input!$C$38>SUM(V50:V$51),(Input!$C$9*Input!$C$38-SUM(V50:V$51)),0)) -> 0 | X51: =IF((W51-(Input!$C$9*Input!$C$38-SUM(W50:W$51)))<0,0,W51-IF(Input!$C$9*Input!$C$38>SUM(W50:W$51),(Input!$C$9*Input!$C$38-SUM(W50:W$51)),0)) -> 0 | Y51: =IF((X51-(Input!$C$9*Input!$C$38-SUM(X50:X$51)))<0,0,X51-IF(Input!$C$9*Input!$C$38>SUM(X50:X$51),(Input!$C$9*Input!$C$38-SUM(X50:X$51)),0)) -> 0 | Z51: =IF((Y51-(Input!$C$9*Input!$C$38-SUM(Y50:Y$51)))<0,0,Y51-IF(Input!$C$9*Input!$C$38>SUM(Y50:Y$51),(Input!$C$9*Input!$C$38-SUM(Y50:Y$51)),0)) -> 0 | AA51: =IF((Z51-(Input!$C$9*Input!$C$38-SUM(Z50:Z$51)))<0,0,Z51-IF(Input!$C$9*Input!$C$38>SUM(Z50:Z$51),(Input!$C$9*Input!$C$38-SUM(Z50:Z$51)),0)) -> 0 | AB51: =IF((AA51-(Input!$C$9*Input!$C$38-SUM(AA50:AA$51)))<0,0,AA51-IF(Input!$C$9*Input!$C$38>SUM(AA50:AA$51),(Input!$C$9*Input!$C$38-SUM(AA50:AA$51)),0)) -> 0 | AC51: =IF((AB51-(Input!$C$9*Input!$C$38-SUM(AB50:AB$51)))<0,0,AB51-IF(Input!$C$9*Input!$C$38>SUM(AB50:AB$51),(Input!$C$9*Input!$C$38-SUM(AB50:AB$51)),0)) -> 0 | AD51: =IF((AC51-(Input!$C$9*Input!$C$38-SUM(AC50:AC$51)))<0,0,AC51-IF(Input!$C$9*Input!$C$38>SUM(AC50:AC$51),(Input!$C$9*Input!$C$38-SUM(AC50:AC$51)),0)) -> 0 | AE51: =IF((AD51-(Input!$C$9*Input!$C$38-SUM(AD50:AD$51)))<0,0,AD51-IF(Input!$C$9*Input!$C$38>SUM(AD50:AD$51),(Input!$C$9*Input!$C$38-SUM(AD50:AD$51)),0)) -> 0 | AF51: =IF((AE51-(Input!$C$9*Input!$C$38-SUM(AE50:AE$51)))<0,0,AE51-IF(Input!$C$9*Input!$C$38>SUM(AE50:AE$51),(Input!$C$9*Input!$C$38-SUM(AE50:AE$51)),0)) -> 0 | AG51: =IF((AF51-(Input!$C$9*Input!$C$38-SUM(AF50:AF$51)))<0,0,AF51-IF(Input!$C$9*Input!$C$38>SUM(AF50:AF$51),(Input!$C$9*Input!$C$38-SUM(AF50:AF$51)),0)) -> 0 | AH51: =IF((AG51-(Input!$C$9*Input!$C$38-SUM(AG50:AG$51)))<0,0,AG51-IF(Input!$C$9*Input!$C$38>SUM(AG50:AG$51),(Input!$C$9*Input!$C$38-SUM(AG50:AG$51)),0)) -> 0 | AI51: =IF((AH51-(Input!$C$9*Input!$C$38-SUM(AH50:AH$51)))<0,0,AH51-IF(Input!$C$9*Input!$C$38>SUM(AH50:AH$51),(Input!$C$9*Input!$C$38-SUM(AH50:AH$51)),0)) -> 0 | AJ51: =IF((AI51-(Input!$C$9*Input!$C$38-SUM(AI50:AI$51)))<0,0,AI51-IF(Input!$C$9*Input!$C$38>SUM(AI50:AI$51),(Input!$C$9*Input!$C$38-SUM(AI50:AI$51)),0)) -> 0 | AK51: =IF((AJ51-(Input!$C$9*Input!$C$38-SUM(AJ50:AJ$51)))<0,0,AJ51-IF(Input!$C$9*Input!$C$38>SUM(AJ50:AJ$51),(Input!$C$9*Input!$C$38-SUM(AJ50:AJ$51)),0)) -> 0 | AL51: =IF((AK51-(Input!$C$9*Input!$C$38-SUM(AK50:AK$51)))<0,0,AK51-IF(Input!$C$9*Input!$C$38>SUM(AK50:AK$51),(Input!$C$9*Input!$C$38-SUM(AK50:AK$51)),0)) -> 0 | AM51: =IF((AL51-(Input!$C$9*Input!$C$38-SUM(AL50:AL$51)))<0,0,AL51-IF(Input!$C$9*Input!$C$38>SUM(AL50:AL$51),(Input!$C$9*Input!$C$38-SUM(AL50:AL$51)),0)) -> 0 | AN51: =IF((AM51-(Input!$C$9*Input!$C$38-SUM(AM50:AM$51)))<0,0,AM51-IF(Input!$C$9*Input!$C$38>SUM(AM50:AM$51),(Input!$C$9*Input!$C$38-SUM(AM50:AM$51)),0)) -> 0 | AO51: =IF((AN51-(Input!$C$9*Input!$C$38-SUM(AN50:AN$51)))<0,0,AN51-IF(Input!$C$9*Input!$C$38>SUM(AN50:AN$51),(Input!$C$9*Input!$C$38-SUM(AN50:AN$51)),0)) -> 0 | AP51: =IF((AO51-(Input!$C$9*Input!$C$38-SUM(AO50:AO$51)))<0,0,AO51-IF(Input!$C$9*Input!$C$38>SUM(AO50:AO$51),(Input!$C$9*Input!$C$38-SUM(AO50:AO$51)),0)) -> 0 | AQ51: =IF((AP51-(Input!$C$9*Input!$C$38-SUM(AP50:AP$51)))<0,0,AP51-IF(Input!$C$9*Input!$C$38>SUM(AP50:AP$51),(Input!$C$9*Input!$C$38-SUM(AP50:AP$51)),0)) -> 0 | AR51: =IF((AQ51-(Input!$C$9*Input!$C$38-SUM(AQ50:AQ$51)))<0,0,AQ51-IF(Input!$C$9*Input!$C$38>SUM(AQ50:AQ$51),(Input!$C$9*Input!$C$38-SUM(AQ50:AQ$51)),0)) -> 0 | AS51: =IF((AR51-(Input!$C$9*Input!$C$38-SUM(AR50:AR$51)))<0,0,AR51-IF(Input!$C$9*Input!$C$38>SUM(AR50:AR$51),(Input!$C$9*Input!$C$38-SUM(AR50:AR$51)),0)) -> 0 | AT51: =IF((AS51-(Input!$C$9*Input!$C$38-SUM(AS50:AS$51)))<0,0,AS51-IF(Input!$C$9*Input!$C$38>SUM(AS50:AS$51),(Input!$C$9*Input!$C$38-SUM(AS50:AS$51)),0)) -> 0 | AU51: =IF((AT51-(Input!$C$9*Input!$C$38-SUM(AT50:AT$51)))<0,0,AT51-IF(Input!$C$9*Input!$C$38>SUM(AT50:AT$51),(Input!$C$9*Input!$C$38-SUM(AT50:AT$51)),0)) -> 0 | AV51: =IF((AU51-(Input!$C$9*Input!$C$38-SUM(AU50:AU$51)))<0,0,AU51-IF(Input!$C$9*Input!$C$38>SUM(AU50:AU$51),(Input!$C$9*Input!$C$38-SUM(AU50:AU$51)),0)) -> 0 | AW51: =IF((AV51-(Input!$C$9*Input!$C$38-SUM(AV50:AV$51)))<0,0,AV51-IF(Input!$C$9*Input!$C$38>SUM(AV50:AV$51),(Input!$C$9*Input!$C$38-SUM(AV50:AV$51)),0)) -> 0 | AX51: =IF((AW51-(Input!$C$9*Input!$C$38-SUM(AW50:AW$51)))<0,0,AW51-IF(Input!$C$9*Input!$C$38>SUM(AW50:AW$51),(Input!$C$9*Input!$C$38-SUM(AW50:AW$51)),0)) -> 0 | AY51: =IF((AX51-(Input!$C$9*Input!$C$38-SUM(AX50:AX$51)))<0,0,AX51-IF(Input!$C$9*Input!$C$38>SUM(AX50:AX$51),(Input!$C$9*Input!$C$38-SUM(AX50:AX$51)),0)) -> 0 | AZ51: =IF((AY51-(Input!$C$9*Input!$C$38-SUM(AY50:AY$51)))<0,0,AY51-IF(Input!$C$9*Input!$C$38>SUM(AY50:AY$51),(Input!$C$9*Input!$C$38-SUM(AY50:AY$51)),0)) -> 0 | BA51: =IF((AZ51-(Input!$C$9*Input!$C$38-SUM(AZ50:AZ$51)))<0,0,AZ51-IF(Input!$C$9*Input!$C$38>SUM(AZ50:AZ$51),(Input!$C$9*Input!$C$38-SUM(AZ50:AZ$51)),0)) -> 0 | BB51: =IF((BA51-(Input!$C$9*Input!$C$38-SUM(BA50:BA$51)))<0,0,BA51-IF(Input!$C$9*Input!$C$38>SUM(BA50:BA$51),(Input!$C$9*Input!$C$38-SUM(BA50:BA$51)),0)) -> 0 | BC51: =IF((BB51-(Input!$C$9*Input!$C$38-SUM(BB50:BB$51)))<0,0,BB51-IF(Input!$C$9*Input!$C$38>SUM(BB50:BB$51),(Input!$C$9*Input!$C$38-SUM(BB50:BB$51)),0)) -> 0 | BD51: =IF((BC51-(Input!$C$9*Input!$C$38-SUM(BC50:BC$51)))<0,0,BC51-IF(Input!$C$9*Input!$C$38>SUM(BC50:BC$51),(Input!$C$9*Input!$C$38-SUM(BC50:BC$51)),0)) -> 0
A52: 2 | C52: =ROUND(NORMDIST(A52,Reeksen!$B$46,Reeksen!$B$47,FALSE)*Reeksen!$B$45,0) -> 1 | D52: 0 | E52: =D52/SUM($D$51:$D$100) -> 0 | F52: =($B$45-$D$102)*E52 -> 0 | G52: =F52+D52 -> 0 | H52: =IF((G52-(Input!$C$9*Input!$C$38-SUM(G$51:G51)))<0,0,G52-IF(Input!$C$9*Input!$C$38>SUM(G$51:G51),(Input!$C$9*Input!$C$38-SUM(G$51:G51)),0)) -> 0 | I52: =IF((H52-(Input!$C$9*Input!$C$38-SUM(H$51:H51)))<0,0,H52-IF(Input!$C$9*Input!$C$38>SUM(H$51:H51),(Input!$C$9*Input!$C$38-SUM(H$51:H51)),0)) -> 0 | J52: =IF((I52-(Input!$C$9*Input!$C$38-SUM(I$51:I51)))<0,0,I52-IF(Input!$C$9*Input!$C$38>SUM(I$51:I51),(Input!$C$9*Input!$C$38-SUM(I$51:I51)),0)) -> 0 | K52: =IF((J52-(Input!$C$9*Input!$C$38-SUM(J$51:J51)))<0,0,J52-IF(Input!$C$9*Input!$C$38>SUM(J$51:J51),(Input!$C$9*Input!$C$38-SUM(J$51:J51)),0)) -> 0 | L52: =IF((K52-(Input!$C$9*Input!$C$38-SUM(K$51:K51)))<0,0,K52-IF(Input!$C$9*Input!$C$38>SUM(K$51:K51),(Input!$C$9*Input!$C$38-SUM(K$51:K51)),0)) -> 0 | M52: =IF((L52-(Input!$C$9*Input!$C$38-SUM(L$51:L51)))<0,0,L52-IF(Input!$C$9*Input!$C$38>SUM(L$51:L51),(Input!$C$9*Input!$C$38-SUM(L$51:L51)),0)) -> 0 | N52: =IF((M52-(Input!$C$9*Input!$C$38-SUM(M$51:M51)))<0,0,M52-IF(Input!$C$9*Input!$C$38>SUM(M$51:M51),(Input!$C$9*Input!$C$38-SUM(M$51:M51)),0)) -> 0 | O52: =IF((N52-(Input!$C$9*Input!$C$38-SUM(N$51:N51)))<0,0,N52-IF(Input!$C$9*Input!$C$38>SUM(N$51:N51),(Input!$C$9*Input!$C$38-SUM(N$51:N51)),0)) -> 0 | P52: =IF((O52-(Input!$C$9*Input!$C$38-SUM(O$51:O51)))<0,0,O52-IF(Input!$C$9*Input!$C$38>SUM(O$51:O51),(Input!$C$9*Input!$C$38-SUM(O$51:O51)),0)) -> 0 | Q52: =IF((P52-(Input!$C$9*Input!$C$38-SUM(P$51:P51)))<0,0,P52-IF(Input!$C$9*Input!$C$38>SUM(P$51:P51),(Input!$C$9*Input!$C$38-SUM(P$51:P51)),0)) -> 0 | R52: =IF((Q52-(Input!$C$9*Input!$C$38-SUM(Q$51:Q51)))<0,0,Q52-IF(Input!$C$9*Input!$C$38>SUM(Q$51:Q51),(Input!$C$9*Input!$C$38-SUM(Q$51:Q51)),0)) -> 0 | S52: =IF((R52-(Input!$C$9*Input!$C$38-SUM(R$51:R51)))<0,0,R52-IF(Input!$C$9*Input!$C$38>SUM(R$51:R51),(Input!$C$9*Input!$C$38-SUM(R$51:R51)),0)) -> 0 | T52: =IF((S52-(Input!$C$9*Input!$C$38-SUM(S$51:S51)))<0,0,S52-IF(Input!$C$9*Input!$C$38>SUM(S$51:S51),(Input!$C$9*Input!$C$38-SUM(S$51:S51)),0)) -> 0 | U52: =IF((T52-(Input!$C$9*Input!$C$38-SUM(T$51:T51)))<0,0,T52-IF(Input!$C$9*Input!$C$38>SUM(T$51:T51),(Input!$C$9*Input!$C$38-SUM(T$51:T51)),0)) -> 0 | V52: =IF((U52-(Input!$C$9*Input!$C$38-SUM(U$51:U51)))<0,0,U52-IF(Input!$C$9*Input!$C$38>SUM(U$51:U51),(Input!$C$9*Input!$C$38-SUM(U$51:U51)),0)) -> 0 | W52: =IF((V52-(Input!$C$9*Input!$C$38-SUM(V$51:V51)))<0,0,V52-IF(Input!$C$9*Input!$C$38>SUM(V$51:V51),(Input!$C$9*Input!$C$38-SUM(V$51:V51)),0)) -> 0 | X52: =IF((W52-(Input!$C$9*Input!$C$38-SUM(W$51:W51)))<0,0,W52-IF(Input!$C$9*Input!$C$38>SUM(W$51:W51),(Input!$C$9*Input!$C$38-SUM(W$51:W51)),0)) -> 0 | Y52: =IF((X52-(Input!$C$9*Input!$C$38-SUM(X$51:X51)))<0,0,X52-IF(Input!$C$9*Input!$C$38>SUM(X$51:X51),(Input!$C$9*Input!$C$38-SUM(X$51:X51)),0)) -> 0 | Z52: =IF((Y52-(Input!$C$9*Input!$C$38-SUM(Y$51:Y51)))<0,0,Y52-IF(Input!$C$9*Input!$C$38>SUM(Y$51:Y51),(Input!$C$9*Input!$C$38-SUM(Y$51:Y51)),0)) -> 0 | AA52: =IF((Z52-(Input!$C$9*Input!$C$38-SUM(Z$51:Z51)))<0,0,Z52-IF(Input!$C$9*Input!$C$38>SUM(Z$51:Z51),(Input!$C$9*Input!$C$38-SUM(Z$51:Z51)),0)) -> 0 | AB52: =IF((AA52-(Input!$C$9*Input!$C$38-SUM(AA$51:AA51)))<0,0,AA52-IF(Input!$C$9*Input!$C$38>SUM(AA$51:AA51),(Input!$C$9*Input!$C$38-SUM(AA$51:AA51)),0)) -> 0 | AC52: =IF((AB52-(Input!$C$9*Input!$C$38-SUM(AB$51:AB51)))<0,0,AB52-IF(Input!$C$9*Input!$C$38>SUM(AB$51:AB51),(Input!$C$9*Input!$C$38-SUM(AB$51:AB51)),0)) -> 0 | AD52: =IF((AC52-(Input!$C$9*Input!$C$38-SUM(AC$51:AC51)))<0,0,AC52-IF(Input!$C$9*Input!$C$38>SUM(AC$51:AC51),(Input!$C$9*Input!$C$38-SUM(AC$51:AC51)),0)) -> 0 | AE52: =IF((AD52-(Input!$C$9*Input!$C$38-SUM(AD$51:AD51)))<0,0,AD52-IF(Input!$C$9*Input!$C$38>SUM(AD$51:AD51),(Input!$C$9*Input!$C$38-SUM(AD$51:AD51)),0)) -> 0 | AF52: =IF((AE52-(Input!$C$9*Input!$C$38-SUM(AE$51:AE51)))<0,0,AE52-IF(Input!$C$9*Input!$C$38>SUM(AE$51:AE51),(Input!$C$9*Input!$C$38-SUM(AE$51:AE51)),0)) -> 0 | AG52: =IF((AF52-(Input!$C$9*Input!$C$38-SUM(AF$51:AF51)))<0,0,AF52-IF(Input!$C$9*Input!$C$38>SUM(AF$51:AF51),(Input!$C$9*Input!$C$38-SUM(AF$51:AF51)),0)) -> 0 | AH52: =IF((AG52-(Input!$C$9*Input!$C$38-SUM(AG$51:AG51)))<0,0,AG52-IF(Input!$C$9*Input!$C$38>SUM(AG$51:AG51),(Input!$C$9*Input!$C$38-SUM(AG$51:AG51)),0)) -> 0 | AI52: =IF((AH52-(Input!$C$9*Input!$C$38-SUM(AH$51:AH51)))<0,0,AH52-IF(Input!$C$9*Input!$C$38>SUM(AH$51:AH51),(Input!$C$9*Input!$C$38-SUM(AH$51:AH51)),0)) -> 0 | AJ52: =IF((AI52-(Input!$C$9*Input!$C$38-SUM(AI$51:AI51)))<0,0,AI52-IF(Input!$C$9*Input!$C$38>SUM(AI$51:AI51),(Input!$C$9*Input!$C$38-SUM(AI$51:AI51)),0)) -> 0 | AK52: =IF((AJ52-(Input!$C$9*Input!$C$38-SUM(AJ$51:AJ51)))<0,0,AJ52-IF(Input!$C$9*Input!$C$38>SUM(AJ$51:AJ51),(Input!$C$9*Input!$C$38-SUM(AJ$51:AJ51)),0)) -> 0 | AL52: =IF((AK52-(Input!$C$9*Input!$C$38-SUM(AK$51:AK51)))<0,0,AK52-IF(Input!$C$9*Input!$C$38>SUM(AK$51:AK51),(Input!$C$9*Input!$C$38-SUM(AK$51:AK51)),0)) -> 0 | AM52: =IF((AL52-(Input!$C$9*Input!$C$38-SUM(AL$51:AL51)))<0,0,AL52-IF(Input!$C$9*Input!$C$38>SUM(AL$51:AL51),(Input!$C$9*Input!$C$38-SUM(AL$51:AL51)),0)) -> 0 | AN52: =IF((AM52-(Input!$C$9*Input!$C$38-SUM(AM$51:AM51)))<0,0,AM52-IF(Input!$C$9*Input!$C$38>SUM(AM$51:AM51),(Input!$C$9*Input!$C$38-SUM(AM$51:AM51)),0)) -> 0 | AO52: =IF((AN52-(Input!$C$9*Input!$C$38-SUM(AN$51:AN51)))<0,0,AN52-IF(Input!$C$9*Input!$C$38>SUM(AN$51:AN51),(Input!$C$9*Input!$C$38-SUM(AN$51:AN51)),0)) -> 0 | AP52: =IF((AO52-(Input!$C$9*Input!$C$38-SUM(AO$51:AO51)))<0,0,AO52-IF(Input!$C$9*Input!$C$38>SUM(AO$51:AO51),(Input!$C$9*Input!$C$38-SUM(AO$51:AO51)),0)) -> 0 | AQ52: =IF((AP52-(Input!$C$9*Input!$C$38-SUM(AP$51:AP51)))<0,0,AP52-IF(Input!$C$9*Input!$C$38>SUM(AP$51:AP51),(Input!$C$9*Input!$C$38-SUM(AP$51:AP51)),0)) -> 0 | AR52: =IF((AQ52-(Input!$C$9*Input!$C$38-SUM(AQ$51:AQ51)))<0,0,AQ52-IF(Input!$C$9*Input!$C$38>SUM(AQ$51:AQ51),(Input!$C$9*Input!$C$38-SUM(AQ$51:AQ51)),0)) -> 0 | AS52: =IF((AR52-(Input!$C$9*Input!$C$38-SUM(AR$51:AR51)))<0,0,AR52-IF(Input!$C$9*Input!$C$38>SUM(AR$51:AR51),(Input!$C$9*Input!$C$38-SUM(AR$51:AR51)),0)) -> 0 | AT52: =IF((AS52-(Input!$C$9*Input!$C$38-SUM(AS$51:AS51)))<0,0,AS52-IF(Input!$C$9*Input!$C$38>SUM(AS$51:AS51),(Input!$C$9*Input!$C$38-SUM(AS$51:AS51)),0)) -> 0 | AU52: =IF((AT52-(Input!$C$9*Input!$C$38-SUM(AT$51:AT51)))<0,0,AT52-IF(Input!$C$9*Input!$C$38>SUM(AT$51:AT51),(Input!$C$9*Input!$C$38-SUM(AT$51:AT51)),0)) -> 0 | AV52: =IF((AU52-(Input!$C$9*Input!$C$38-SUM(AU$51:AU51)))<0,0,AU52-IF(Input!$C$9*Input!$C$38>SUM(AU$51:AU51),(Input!$C$9*Input!$C$38-SUM(AU$51:AU51)),0)) -> 0 | AW52: =IF((AV52-(Input!$C$9*Input!$C$38-SUM(AV$51:AV51)))<0,0,AV52-IF(Input!$C$9*Input!$C$38>SUM(AV$51:AV51),(Input!$C$9*Input!$C$38-SUM(AV$51:AV51)),0)) -> 0 | AX52: =IF((AW52-(Input!$C$9*Input!$C$38-SUM(AW$51:AW51)))<0,0,AW52-IF(Input!$C$9*Input!$C$38>SUM(AW$51:AW51),(Input!$C$9*Input!$C$38-SUM(AW$51:AW51)),0)) -> 0 | AY52: =IF((AX52-(Input!$C$9*Input!$C$38-SUM(AX$51:AX51)))<0,0,AX52-IF(Input!$C$9*Input!$C$38>SUM(AX$51:AX51),(Input!$C$9*Input!$C$38-SUM(AX$51:AX51)),0)) -> 0 | AZ52: =IF((AY52-(Input!$C$9*Input!$C$38-SUM(AY$51:AY51)))<0,0,AY52-IF(Input!$C$9*Input!$C$38>SUM(AY$51:AY51),(Input!$C$9*Input!$C$38-SUM(AY$51:AY51)),0)) -> 0 | BA52: =IF((AZ52-(Input!$C$9*Input!$C$38-SUM(AZ$51:AZ51)))<0,0,AZ52-IF(Input!$C$9*Input!$C$38>SUM(AZ$51:AZ51),(Input!$C$9*Input!$C$38-SUM(AZ$51:AZ51)),0)) -> 0 | BB52: =IF((BA52-(Input!$C$9*Input!$C$38-SUM(BA$51:BA51)))<0,0,BA52-IF(Input!$C$9*Input!$C$38>SUM(BA$51:BA51),(Input!$C$9*Input!$C$38-SUM(BA$51:BA51)),0)) -> 0 | BC52: =IF((BB52-(Input!$C$9*Input!$C$38-SUM(BB$51:BB51)))<0,0,BB52-IF(Input!$C$9*Input!$C$38>SUM(BB$51:BB51),(Input!$C$9*Input!$C$38-SUM(BB$51:BB51)),0)) -> 0 | BD52: =IF((BC52-(Input!$C$9*Input!$C$38-SUM(BC$51:BC51)))<0,0,BC52-IF(Input!$C$9*Input!$C$38>SUM(BC$51:BC51),(Input!$C$9*Input!$C$38-SUM(BC$51:BC51)),0)) -> 0
A53: 3 | C53: =ROUND(NORMDIST(A53,Reeksen!$B$46,Reeksen!$B$47,FALSE)*Reeksen!$B$45,0) -> 2 | D53: 0 | E53: 0 | F53: 0 | G53: 0 | H53: =IF((G53-(Input!$C$9*Input!$C$38-SUM(G$51:G52)))<0,0,G53-IF(Input!$C$9*Input!$C$38>SUM(G$51:G52),(Input!$C$9*Input!$C$38-SUM(G$51:G52)),0)) -> 0 | I53: =IF((H53-(Input!$C$9*Input!$C$38-SUM(H$51:H52)))<0,0,H53-IF(Input!$C$9*Input!$C$38>SUM(H$51:H52),(Input!$C$9*Input!$C$38-SUM(H$51:H52)),0)) -> 0 | J53: =IF((I53-(Input!$C$9*Input!$C$38-SUM(I$51:I52)))<0,0,I53-IF(Input!$C$9*Input!$C$38>SUM(I$51:I52),(Input!$C$9*Input!$C$38-SUM(I$51:I52)),0)) -> 0 | K53: =IF((J53-(Input!$C$9*Input!$C$38-SUM(J$51:J52)))<0,0,J53-IF(Input!$C$9*Input!$C$38>SUM(J$51:J52),(Input!$C$9*Input!$C$38-SUM(J$51:J52)),0)) -> 0 | L53: =IF((K53-(Input!$C$9*Input!$C$38-SUM(K$51:K52)))<0,0,K53-IF(Input!$C$9*Input!$C$38>SUM(K$51:K52),(Input!$C$9*Input!$C$38-SUM(K$51:K52)),0)) -> 0 | M53: =IF((L53-(Input!$C$9*Input!$C$38-SUM(L$51:L52)))<0,0,L53-IF(Input!$C$9*Input!$C$38>SUM(L$51:L52),(Input!$C$9*Input!$C$38-SUM(L$51:L52)),0)) -> 0 | N53: =IF((M53-(Input!$C$9*Input!$C$38-SUM(M$51:M52)))<0,0,M53-IF(Input!$C$9*Input!$C$38>SUM(M$51:M52),(Input!$C$9*Input!$C$38-SUM(M$51:M52)),0)) -> 0 | O53: =IF((N53-(Input!$C$9*Input!$C$38-SUM(N$51:N52)))<0,0,N53-IF(Input!$C$9*Input!$C$38>SUM(N$51:N52),(Input!$C$9*Input!$C$38-SUM(N$51:N52)),0)) -> 0 | P53: =IF((O53-(Input!$C$9*Input!$C$38-SUM(O$51:O52)))<0,0,O53-IF(Input!$C$9*Input!$C$38>SUM(O$51:O52),(Input!$C$9*Input!$C$38-SUM(O$51:O52)),0)) -> 0 | Q53: =IF((P53-(Input!$C$9*Input!$C$38-SUM(P$51:P52)))<0,0,P53-IF(Input!$C$9*Input!$C$38>SUM(P$51:P52),(Input!$C$9*Input!$C$38-SUM(P$51:P52)),0)) -> 0 | R53: =IF((Q53-(Input!$C$9*Input!$C$38-SUM(Q$51:Q52)))<0,0,Q53-IF(Input!$C$9*Input!$C$38>SUM(Q$51:Q52),(Input!$C$9*Input!$C$38-SUM(Q$51:Q52)),0)) -> 0 | S53: =IF((R53-(Input!$C$9*Input!$C$38-SUM(R$51:R52)))<0,0,R53-IF(Input!$C$9*Input!$C$38>SUM(R$51:R52),(Input!$C$9*Input!$C$38-SUM(R$51:R52)),0)) -> 0 | T53: =IF((S53-(Input!$C$9*Input!$C$38-SUM(S$51:S52)))<0,0,S53-IF(Input!$C$9*Input!$C$38>SUM(S$51:S52),(Input!$C$9*Input!$C$38-SUM(S$51:S52)),0)) -> 0 | U53: =IF((T53-(Input!$C$9*Input!$C$38-SUM(T$51:T52)))<0,0,T53-IF(Input!$C$9*Input!$C$38>SUM(T$51:T52),(Input!$C$9*Input!$C$38-SUM(T$51:T52)),0)) -> 0 | V53: =IF((U53-(Input!$C$9*Input!$C$38-SUM(U$51:U52)))<0,0,U53-IF(Input!$C$9*Input!$C$38>SUM(U$51:U52),(Input!$C$9*Input!$C$38-SUM(U$51:U52)),0)) -> 0 | W53: =IF((V53-(Input!$C$9*Input!$C$38-SUM(V$51:V52)))<0,0,V53-IF(Input!$C$9*Input!$C$38>SUM(V$51:V52),(Input!$C$9*Input!$C$38-SUM(V$51:V52)),0)) -> 0 | X53: =IF((W53-(Input!$C$9*Input!$C$38-SUM(W$51:W52)))<0,0,W53-IF(Input!$C$9*Input!$C$38>SUM(W$51:W52),(Input!$C$9*Input!$C$38-SUM(W$51:W52)),0)) -> 0 | Y53: =IF((X53-(Input!$C$9*Input!$C$38-SUM(X$51:X52)))<0,0,X53-IF(Input!$C$9*Input!$C$38>SUM(X$51:X52),(Input!$C$9*Input!$C$38-SUM(X$51:X52)),0)) -> 0 | Z53: =IF((Y53-(Input!$C$9*Input!$C$38-SUM(Y$51:Y52)))<0,0,Y53-IF(Input!$C$9*Input!$C$38>SUM(Y$51:Y52),(Input!$C$9*Input!$C$38-SUM(Y$51:Y52)),0)) -> 0 | AA53: =IF((Z53-(Input!$C$9*Input!$C$38-SUM(Z$51:Z52)))<0,0,Z53-IF(Input!$C$9*Input!$C$38>SUM(Z$51:Z52),(Input!$C$9*Input!$C$38-SUM(Z$51:Z52)),0)) -> 0 | AB53: =IF((AA53-(Input!$C$9*Input!$C$38-SUM(AA$51:AA52)))<0,0,AA53-IF(Input!$C$9*Input!$C$38>SUM(AA$51:AA52),(Input!$C$9*Input!$C$38-SUM(AA$51:AA52)),0)) -> 0 | AC53: =IF((AB53-(Input!$C$9*Input!$C$38-SUM(AB$51:AB52)))<0,0,AB53-IF(Input!$C$9*Input!$C$38>SUM(AB$51:AB52),(Input!$C$9*Input!$C$38-SUM(AB$51:AB52)),0)) -> 0 | AD53: =IF((AC53-(Input!$C$9*Input!$C$38-SUM(AC$51:AC52)))<0,0,AC53-IF(Input!$C$9*Input!$C$38>SUM(AC$51:AC52),(Input!$C$9*Input!$C$38-SUM(AC$51:AC52)),0)) -> 0 | AE53: =IF((AD53-(Input!$C$9*Input!$C$38-SUM(AD$51:AD52)))<0,0,AD53-IF(Input!$C$9*Input!$C$38>SUM(AD$51:AD52),(Input!$C$9*Input!$C$38-SUM(AD$51:AD52)),0)) -> 0 | AF53: =IF((AE53-(Input!$C$9*Input!$C$38-SUM(AE$51:AE52)))<0,0,AE53-IF(Input!$C$9*Input!$C$38>SUM(AE$51:AE52),(Input!$C$9*Input!$C$38-SUM(AE$51:AE52)),0)) -> 0 | AG53: =IF((AF53-(Input!$C$9*Input!$C$38-SUM(AF$51:AF52)))<0,0,AF53-IF(Input!$C$9*Input!$C$38>SUM(AF$51:AF52),(Input!$C$9*Input!$C$38-SUM(AF$51:AF52)),0)) -> 0 | AH53: =IF((AG53-(Input!$C$9*Input!$C$38-SUM(AG$51:AG52)))<0,0,AG53-IF(Input!$C$9*Input!$C$38>SUM(AG$51:AG52),(Input!$C$9*Input!$C$38-SUM(AG$51:AG52)),0)) -> 0 | AI53: =IF((AH53-(Input!$C$9*Input!$C$38-SUM(AH$51:AH52)))<0,0,AH53-IF(Input!$C$9*Input!$C$38>SUM(AH$51:AH52),(Input!$C$9*Input!$C$38-SUM(AH$51:AH52)),0)) -> 0 | AJ53: =IF((AI53-(Input!$C$9*Input!$C$38-SUM(AI$51:AI52)))<0,0,AI53-IF(Input!$C$9*Input!$C$38>SUM(AI$51:AI52),(Input!$C$9*Input!$C$38-SUM(AI$51:AI52)),0)) -> 0 | AK53: =IF((AJ53-(Input!$C$9*Input!$C$38-SUM(AJ$51:AJ52)))<0,0,AJ53-IF(Input!$C$9*Input!$C$38>SUM(AJ$51:AJ52),(Input!$C$9*Input!$C$38-SUM(AJ$51:AJ52)),0)) -> 0 | AL53: =IF((AK53-(Input!$C$9*Input!$C$38-SUM(AK$51:AK52)))<0,0,AK53-IF(Input!$C$9*Input!$C$38>SUM(AK$51:AK52),(Input!$C$9*Input!$C$38-SUM(AK$51:AK52)),0)) -> 0 | AM53: =IF((AL53-(Input!$C$9*Input!$C$38-SUM(AL$51:AL52)))<0,0,AL53-IF(Input!$C$9*Input!$C$38>SUM(AL$51:AL52),(Input!$C$9*Input!$C$38-SUM(AL$51:AL52)),0)) -> 0 | AN53: =IF((AM53-(Input!$C$9*Input!$C$38-SUM(AM$51:AM52)))<0,0,AM53-IF(Input!$C$9*Input!$C$38>SUM(AM$51:AM52),(Input!$C$9*Input!$C$38-SUM(AM$51:AM52)),0)) -> 0 | AO53: =IF((AN53-(Input!$C$9*Input!$C$38-SUM(AN$51:AN52)))<0,0,AN53-IF(Input!$C$9*Input!$C$38>SUM(AN$51:AN52),(Input!$C$9*Input!$C$38-SUM(AN$51:AN52)),0)) -> 0 | AP53: =IF((AO53-(Input!$C$9*Input!$C$38-SUM(AO$51:AO52)))<0,0,AO53-IF(Input!$C$9*Input!$C$38>SUM(AO$51:AO52),(Input!$C$9*Input!$C$38-SUM(AO$51:AO52)),0)) -> 0 | AQ53: =IF((AP53-(Input!$C$9*Input!$C$38-SUM(AP$51:AP52)))<0,0,AP53-IF(Input!$C$9*Input!$C$38>SUM(AP$51:AP52),(Input!$C$9*Input!$C$38-SUM(AP$51:AP52)),0)) -> 0 | AR53: =IF((AQ53-(Input!$C$9*Input!$C$38-SUM(AQ$51:AQ52)))<0,0,AQ53-IF(Input!$C$9*Input!$C$38>SUM(AQ$51:AQ52),(Input!$C$9*Input!$C$38-SUM(AQ$51:AQ52)),0)) -> 0 | AS53: =IF((AR53-(Input!$C$9*Input!$C$38-SUM(AR$51:AR52)))<0,0,AR53-IF(Input!$C$9*Input!$C$38>SUM(AR$51:AR52),(Input!$C$9*Input!$C$38-SUM(AR$51:AR52)),0)) -> 0 | AT53: =IF((AS53-(Input!$C$9*Input!$C$38-SUM(AS$51:AS52)))<0,0,AS53-IF(Input!$C$9*Input!$C$38>SUM(AS$51:AS52),(Input!$C$9*Input!$C$38-SUM(AS$51:AS52)),0)) -> 0 | AU53: =IF((AT53-(Input!$C$9*Input!$C$38-SUM(AT$51:AT52)))<0,0,AT53-IF(Input!$C$9*Input!$C$38>SUM(AT$51:AT52),(Input!$C$9*Input!$C$38-SUM(AT$51:AT52)),0)) -> 0 | AV53: =IF((AU53-(Input!$C$9*Input!$C$38-SUM(AU$51:AU52)))<0,0,AU53-IF(Input!$C$9*Input!$C$38>SUM(AU$51:AU52),(Input!$C$9*Input!$C$38-SUM(AU$51:AU52)),0)) -> 0 | AW53: =IF((AV53-(Input!$C$9*Input!$C$38-SUM(AV$51:AV52)))<0,0,AV53-IF(Input!$C$9*Input!$C$38>SUM(AV$51:AV52),(Input!$C$9*Input!$C$38-SUM(AV$51:AV52)),0)) -> 0 | AX53: =IF((AW53-(Input!$C$9*Input!$C$38-SUM(AW$51:AW52)))<0,0,AW53-IF(Input!$C$9*Input!$C$38>SUM(AW$51:AW52),(Input!$C$9*Input!$C$38-SUM(AW$51:AW52)),0)) -> 0 | AY53: =IF((AX53-(Input!$C$9*Input!$C$38-SUM(AX$51:AX52)))<0,0,AX53-IF(Input!$C$9*Input!$C$38>SUM(AX$51:AX52),(Input!$C$9*Input!$C$38-SUM(AX$51:AX52)),0)) -> 0 | AZ53: =IF((AY53-(Input!$C$9*Input!$C$38-SUM(AY$51:AY52)))<0,0,AY53-IF(Input!$C$9*Input!$C$38>SUM(AY$51:AY52),(Input!$C$9*Input!$C$38-SUM(AY$51:AY52)),0)) -> 0 | BA53: =IF((AZ53-(Input!$C$9*Input!$C$38-SUM(AZ$51:AZ52)))<0,0,AZ53-IF(Input!$C$9*Input!$C$38>SUM(AZ$51:AZ52),(Input!$C$9*Input!$C$38-SUM(AZ$51:AZ52)),0)) -> 0 | BB53: =IF((BA53-(Input!$C$9*Input!$C$38-SUM(BA$51:BA52)))<0,0,BA53-IF(Input!$C$9*Input!$C$38>SUM(BA$51:BA52),(Input!$C$9*Input!$C$38-SUM(BA$51:BA52)),0)) -> 0 | BC53: =IF((BB53-(Input!$C$9*Input!$C$38-SUM(BB$51:BB52)))<0,0,BB53-IF(Input!$C$9*Input!$C$38>SUM(BB$51:BB52),(Input!$C$9*Input!$C$38-SUM(BB$51:BB52)),0)) -> 0 | BD53: =IF((BC53-(Input!$C$9*Input!$C$38-SUM(BC$51:BC52)))<0,0,BC53-IF(Input!$C$9*Input!$C$38>SUM(BC$51:BC52),(Input!$C$9*Input!$C$38-SUM(BC$51:BC52)),0)) -> 0
A54: 4 | C54: =ROUND(NORMDIST(A54,Reeksen!$B$46,Reeksen!$B$47,FALSE)*Reeksen!$B$45,0) -> 4 | D54: 0 | E54: 0 | F54: 0 | G54: 0 | H54: =IF((G54-(Input!$C$9*Input!$C$38-SUM(G$51:G53)))<0,0,G54-IF(Input!$C$9*Input!$C$38>SUM(G$51:G53),(Input!$C$9*Input!$C$38-SUM(G$51:G53)),0)) -> 0 | I54: =IF((H54-(Input!$C$9*Input!$C$38-SUM(H$51:H53)))<0,0,H54-IF(Input!$C$9*Input!$C$38>SUM(H$51:H53),(Input!$C$9*Input!$C$38-SUM(H$51:H53)),0)) -> 0 | J54: =IF((I54-(Input!$C$9*Input!$C$38-SUM(I$51:I53)))<0,0,I54-IF(Input!$C$9*Input!$C$38>SUM(I$51:I53),(Input!$C$9*Input!$C$38-SUM(I$51:I53)),0)) -> 0 | K54: =IF((J54-(Input!$C$9*Input!$C$38-SUM(J$51:J53)))<0,0,J54-IF(Input!$C$9*Input!$C$38>SUM(J$51:J53),(Input!$C$9*Input!$C$38-SUM(J$51:J53)),0)) -> 0 | L54: =IF((K54-(Input!$C$9*Input!$C$38-SUM(K$51:K53)))<0,0,K54-IF(Input!$C$9*Input!$C$38>SUM(K$51:K53),(Input!$C$9*Input!$C$38-SUM(K$51:K53)),0)) -> 0 | M54: =IF((L54-(Input!$C$9*Input!$C$38-SUM(L$51:L53)))<0,0,L54-IF(Input!$C$9*Input!$C$38>SUM(L$51:L53),(Input!$C$9*Input!$C$38-SUM(L$51:L53)),0)) -> 0 | N54: =IF((M54-(Input!$C$9*Input!$C$38-SUM(M$51:M53)))<0,0,M54-IF(Input!$C$9*Input!$C$38>SUM(M$51:M53),(Input!$C$9*Input!$C$38-SUM(M$51:M53)),0)) -> 0 | O54: =IF((N54-(Input!$C$9*Input!$C$38-SUM(N$51:N53)))<0,0,N54-IF(Input!$C$9*Input!$C$38>SUM(N$51:N53),(Input!$C$9*Input!$C$38-SUM(N$51:N53)),0)) -> 0 | P54: =IF((O54-(Input!$C$9*Input!$C$38-SUM(O$51:O53)))<0,0,O54-IF(Input!$C$9*Input!$C$38>SUM(O$51:O53),(Input!$C$9*Input!$C$38-SUM(O$51:O53)),0)) -> 0 | Q54: =IF((P54-(Input!$C$9*Input!$C$38-SUM(P$51:P53)))<0,0,P54-IF(Input!$C$9*Input!$C$38>SUM(P$51:P53),(Input!$C$9*Input!$C$38-SUM(P$51:P53)),0)) -> 0 | R54: =IF((Q54-(Input!$C$9*Input!$C$38-SUM(Q$51:Q53)))<0,0,Q54-IF(Input!$C$9*Input!$C$38>SUM(Q$51:Q53),(Input!$C$9*Input!$C$38-SUM(Q$51:Q53)),0)) -> 0 | S54: =IF((R54-(Input!$C$9*Input!$C$38-SUM(R$51:R53)))<0,0,R54-IF(Input!$C$9*Input!$C$38>SUM(R$51:R53),(Input!$C$9*Input!$C$38-SUM(R$51:R53)),0)) -> 0 | T54: =IF((S54-(Input!$C$9*Input!$C$38-SUM(S$51:S53)))<0,0,S54-IF(Input!$C$9*Input!$C$38>SUM(S$51:S53),(Input!$C$9*Input!$C$38-SUM(S$51:S53)),0)) -> 0 | U54: =IF((T54-(Input!$C$9*Input!$C$38-SUM(T$51:T53)))<0,0,T54-IF(Input!$C$9*Input!$C$38>SUM(T$51:T53),(Input!$C$9*Input!$C$38-SUM(T$51:T53)),0)) -> 0 | V54: =IF((U54-(Input!$C$9*Input!$C$38-SUM(U$51:U53)))<0,0,U54-IF(Input!$C$9*Input!$C$38>SUM(U$51:U53),(Input!$C$9*Input!$C$38-SUM(U$51:U53)),0)) -> 0 | W54: =IF((V54-(Input!$C$9*Input!$C$38-SUM(V$51:V53)))<0,0,V54-IF(Input!$C$9*Input!$C$38>SUM(V$51:V53),(Input!$C$9*Input!$C$38-SUM(V$51:V53)),0)) -> 0 | X54: =IF((W54-(Input!$C$9*Input!$C$38-SUM(W$51:W53)))<0,0,W54-IF(Input!$C$9*Input!$C$38>SUM(W$51:W53),(Input!$C$9*Input!$C$38-SUM(W$51:W53)),0)) -> 0 | Y54: =IF((X54-(Input!$C$9*Input!$C$38-SUM(X$51:X53)))<0,0,X54-IF(Input!$C$9*Input!$C$38>SUM(X$51:X53),(Input!$C$9*Input!$C$38-SUM(X$51:X53)),0)) -> 0 | Z54: =IF((Y54-(Input!$C$9*Input!$C$38-SUM(Y$51:Y53)))<0,0,Y54-IF(Input!$C$9*Input!$C$38>SUM(Y$51:Y53),(Input!$C$9*Input!$C$38-SUM(Y$51:Y53)),0)) -> 0 | AA54: =IF((Z54-(Input!$C$9*Input!$C$38-SUM(Z$51:Z53)))<0,0,Z54-IF(Input!$C$9*Input!$C$38>SUM(Z$51:Z53),(Input!$C$9*Input!$C$38-SUM(Z$51:Z53)),0)) -> 0 | AB54: =IF((AA54-(Input!$C$9*Input!$C$38-SUM(AA$51:AA53)))<0,0,AA54-IF(Input!$C$9*Input!$C$38>SUM(AA$51:AA53),(Input!$C$9*Input!$C$38-SUM(AA$51:AA53)),0)) -> 0 | AC54: =IF((AB54-(Input!$C$9*Input!$C$38-SUM(AB$51:AB53)))<0,0,AB54-IF(Input!$C$9*Input!$C$38>SUM(AB$51:AB53),(Input!$C$9*Input!$C$38-SUM(AB$51:AB53)),0)) -> 0 | AD54: =IF((AC54-(Input!$C$9*Input!$C$38-SUM(AC$51:AC53)))<0,0,AC54-IF(Input!$C$9*Input!$C$38>SUM(AC$51:AC53),(Input!$C$9*Input!$C$38-SUM(AC$51:AC53)),0)) -> 0 | AE54: =IF((AD54-(Input!$C$9*Input!$C$38-SUM(AD$51:AD53)))<0,0,AD54-IF(Input!$C$9*Input!$C$38>SUM(AD$51:AD53),(Input!$C$9*Input!$C$38-SUM(AD$51:AD53)),0)) -> 0 | AF54: =IF((AE54-(Input!$C$9*Input!$C$38-SUM(AE$51:AE53)))<0,0,AE54-IF(Input!$C$9*Input!$C$38>SUM(AE$51:AE53),(Input!$C$9*Input!$C$38-SUM(AE$51:AE53)),0)) -> 0 | AG54: =IF((AF54-(Input!$C$9*Input!$C$38-SUM(AF$51:AF53)))<0,0,AF54-IF(Input!$C$9*Input!$C$38>SUM(AF$51:AF53),(Input!$C$9*Input!$C$38-SUM(AF$51:AF53)),0)) -> 0 | AH54: =IF((AG54-(Input!$C$9*Input!$C$38-SUM(AG$51:AG53)))<0,0,AG54-IF(Input!$C$9*Input!$C$38>SUM(AG$51:AG53),(Input!$C$9*Input!$C$38-SUM(AG$51:AG53)),0)) -> 0 | AI54: =IF((AH54-(Input!$C$9*Input!$C$38-SUM(AH$51:AH53)))<0,0,AH54-IF(Input!$C$9*Input!$C$38>SUM(AH$51:AH53),(Input!$C$9*Input!$C$38-SUM(AH$51:AH53)),0)) -> 0 | AJ54: =IF((AI54-(Input!$C$9*Input!$C$38-SUM(AI$51:AI53)))<0,0,AI54-IF(Input!$C$9*Input!$C$38>SUM(AI$51:AI53),(Input!$C$9*Input!$C$38-SUM(AI$51:AI53)),0)) -> 0 | AK54: =IF((AJ54-(Input!$C$9*Input!$C$38-SUM(AJ$51:AJ53)))<0,0,AJ54-IF(Input!$C$9*Input!$C$38>SUM(AJ$51:AJ53),(Input!$C$9*Input!$C$38-SUM(AJ$51:AJ53)),0)) -> 0 | AL54: =IF((AK54-(Input!$C$9*Input!$C$38-SUM(AK$51:AK53)))<0,0,AK54-IF(Input!$C$9*Input!$C$38>SUM(AK$51:AK53),(Input!$C$9*Input!$C$38-SUM(AK$51:AK53)),0)) -> 0 | AM54: =IF((AL54-(Input!$C$9*Input!$C$38-SUM(AL$51:AL53)))<0,0,AL54-IF(Input!$C$9*Input!$C$38>SUM(AL$51:AL53),(Input!$C$9*Input!$C$38-SUM(AL$51:AL53)),0)) -> 0 | AN54: =IF((AM54-(Input!$C$9*Input!$C$38-SUM(AM$51:AM53)))<0,0,AM54-IF(Input!$C$9*Input!$C$38>SUM(AM$51:AM53),(Input!$C$9*Input!$C$38-SUM(AM$51:AM53)),0)) -> 0 | AO54: =IF((AN54-(Input!$C$9*Input!$C$38-SUM(AN$51:AN53)))<0,0,AN54-IF(Input!$C$9*Input!$C$38>SUM(AN$51:AN53),(Input!$C$9*Input!$C$38-SUM(AN$51:AN53)),0)) -> 0 | AP54: =IF((AO54-(Input!$C$9*Input!$C$38-SUM(AO$51:AO53)))<0,0,AO54-IF(Input!$C$9*Input!$C$38>SUM(AO$51:AO53),(Input!$C$9*Input!$C$38-SUM(AO$51:AO53)),0)) -> 0 | AQ54: =IF((AP54-(Input!$C$9*Input!$C$38-SUM(AP$51:AP53)))<0,0,AP54-IF(Input!$C$9*Input!$C$38>SUM(AP$51:AP53),(Input!$C$9*Input!$C$38-SUM(AP$51:AP53)),0)) -> 0 | AR54: =IF((AQ54-(Input!$C$9*Input!$C$38-SUM(AQ$51:AQ53)))<0,0,AQ54-IF(Input!$C$9*Input!$C$38>SUM(AQ$51:AQ53),(Input!$C$9*Input!$C$38-SUM(AQ$51:AQ53)),0)) -> 0 | AS54: =IF((AR54-(Input!$C$9*Input!$C$38-SUM(AR$51:AR53)))<0,0,AR54-IF(Input!$C$9*Input!$C$38>SUM(AR$51:AR53),(Input!$C$9*Input!$C$38-SUM(AR$51:AR53)),0)) -> 0 | AT54: =IF((AS54-(Input!$C$9*Input!$C$38-SUM(AS$51:AS53)))<0,0,AS54-IF(Input!$C$9*Input!$C$38>SUM(AS$51:AS53),(Input!$C$9*Input!$C$38-SUM(AS$51:AS53)),0)) -> 0 | AU54: =IF((AT54-(Input!$C$9*Input!$C$38-SUM(AT$51:AT53)))<0,0,AT54-IF(Input!$C$9*Input!$C$38>SUM(AT$51:AT53),(Input!$C$9*Input!$C$38-SUM(AT$51:AT53)),0)) -> 0 | AV54: =IF((AU54-(Input!$C$9*Input!$C$38-SUM(AU$51:AU53)))<0,0,AU54-IF(Input!$C$9*Input!$C$38>SUM(AU$51:AU53),(Input!$C$9*Input!$C$38-SUM(AU$51:AU53)),0)) -> 0 | AW54: =IF((AV54-(Input!$C$9*Input!$C$38-SUM(AV$51:AV53)))<0,0,AV54-IF(Input!$C$9*Input!$C$38>SUM(AV$51:AV53),(Input!$C$9*Input!$C$38-SUM(AV$51:AV53)),0)) -> 0 | AX54: =IF((AW54-(Input!$C$9*Input!$C$38-SUM(AW$51:AW53)))<0,0,AW54-IF(Input!$C$9*Input!$C$38>SUM(AW$51:AW53),(Input!$C$9*Input!$C$38-SUM(AW$51:AW53)),0)) -> 0 | AY54: =IF((AX54-(Input!$C$9*Input!$C$38-SUM(AX$51:AX53)))<0,0,AX54-IF(Input!$C$9*Input!$C$38>SUM(AX$51:AX53),(Input!$C$9*Input!$C$38-SUM(AX$51:AX53)),0)) -> 0 | AZ54: =IF((AY54-(Input!$C$9*Input!$C$38-SUM(AY$51:AY53)))<0,0,AY54-IF(Input!$C$9*Input!$C$38>SUM(AY$51:AY53),(Input!$C$9*Input!$C$38-SUM(AY$51:AY53)),0)) -> 0 | BA54: =IF((AZ54-(Input!$C$9*Input!$C$38-SUM(AZ$51:AZ53)))<0,0,AZ54-IF(Input!$C$9*Input!$C$38>SUM(AZ$51:AZ53),(Input!$C$9*Input!$C$38-SUM(AZ$51:AZ53)),0)) -> 0 | BB54: =IF((BA54-(Input!$C$9*Input!$C$38-SUM(BA$51:BA53)))<0,0,BA54-IF(Input!$C$9*Input!$C$38>SUM(BA$51:BA53),(Input!$C$9*Input!$C$38-SUM(BA$51:BA53)),0)) -> 0 | BC54: =IF((BB54-(Input!$C$9*Input!$C$38-SUM(BB$51:BB53)))<0,0,BB54-IF(Input!$C$9*Input!$C$38>SUM(BB$51:BB53),(Input!$C$9*Input!$C$38-SUM(BB$51:BB53)),0)) -> 0 | BD54: =IF((BC54-(Input!$C$9*Input!$C$38-SUM(BC$51:BC53)))<0,0,BC54-IF(Input!$C$9*Input!$C$38>SUM(BC$51:BC53),(Input!$C$9*Input!$C$38-SUM(BC$51:BC53)),0)) -> 0
A55: 5 | C55: =ROUND(NORMDIST(A55,Reeksen!$B$46,Reeksen!$B$47,FALSE)*Reeksen!$B$45,0) -> 6 | D55: 0 | E55: 0 | F55: 0 | G55: 0 | H55: =IF((G55-(Input!$C$9*Input!$C$38-SUM(G$51:G54)))<0,0,G55-IF(Input!$C$9*Input!$C$38>SUM(G$51:G54),(Input!$C$9*Input!$C$38-SUM(G$51:G54)),0)) -> 0 | I55: =IF((H55-(Input!$C$9*Input!$C$38-SUM(H$51:H54)))<0,0,H55-IF(Input!$C$9*Input!$C$38>SUM(H$51:H54),(Input!$C$9*Input!$C$38-SUM(H$51:H54)),0)) -> 0 | J55: =IF((I55-(Input!$C$9*Input!$C$38-SUM(I$51:I54)))<0,0,I55-IF(Input!$C$9*Input!$C$38>SUM(I$51:I54),(Input!$C$9*Input!$C$38-SUM(I$51:I54)),0)) -> 0 | K55: =IF((J55-(Input!$C$9*Input!$C$38-SUM(J$51:J54)))<0,0,J55-IF(Input!$C$9*Input!$C$38>SUM(J$51:J54),(Input!$C$9*Input!$C$38-SUM(J$51:J54)),0)) -> 0 | L55: =IF((K55-(Input!$C$9*Input!$C$38-SUM(K$51:K54)))<0,0,K55-IF(Input!$C$9*Input!$C$38>SUM(K$51:K54),(Input!$C$9*Input!$C$38-SUM(K$51:K54)),0)) -> 0 | M55: =IF((L55-(Input!$C$9*Input!$C$38-SUM(L$51:L54)))<0,0,L55-IF(Input!$C$9*Input!$C$38>SUM(L$51:L54),(Input!$C$9*Input!$C$38-SUM(L$51:L54)),0)) -> 0 | N55: =IF((M55-(Input!$C$9*Input!$C$38-SUM(M$51:M54)))<0,0,M55-IF(Input!$C$9*Input!$C$38>SUM(M$51:M54),(Input!$C$9*Input!$C$38-SUM(M$51:M54)),0)) -> 0 | O55: =IF((N55-(Input!$C$9*Input!$C$38-SUM(N$51:N54)))<0,0,N55-IF(Input!$C$9*Input!$C$38>SUM(N$51:N54),(Input!$C$9*Input!$C$38-SUM(N$51:N54)),0)) -> 0 | P55: =IF((O55-(Input!$C$9*Input!$C$38-SUM(O$51:O54)))<0,0,O55-IF(Input!$C$9*Input!$C$38>SUM(O$51:O54),(Input!$C$9*Input!$C$38-SUM(O$51:O54)),0)) -> 0 | Q55: =IF((P55-(Input!$C$9*Input!$C$38-SUM(P$51:P54)))<0,0,P55-IF(Input!$C$9*Input!$C$38>SUM(P$51:P54),(Input!$C$9*Input!$C$38-SUM(P$51:P54)),0)) -> 0 | R55: =IF((Q55-(Input!$C$9*Input!$C$38-SUM(Q$51:Q54)))<0,0,Q55-IF(Input!$C$9*Input!$C$38>SUM(Q$51:Q54),(Input!$C$9*Input!$C$38-SUM(Q$51:Q54)),0)) -> 0 | S55: =IF((R55-(Input!$C$9*Input!$C$38-SUM(R$51:R54)))<0,0,R55-IF(Input!$C$9*Input!$C$38>SUM(R$51:R54),(Input!$C$9*Input!$C$38-SUM(R$51:R54)),0)) -> 0 | T55: =IF((S55-(Input!$C$9*Input!$C$38-SUM(S$51:S54)))<0,0,S55-IF(Input!$C$9*Input!$C$38>SUM(S$51:S54),(Input!$C$9*Input!$C$38-SUM(S$51:S54)),0)) -> 0 | U55: =IF((T55-(Input!$C$9*Input!$C$38-SUM(T$51:T54)))<0,0,T55-IF(Input!$C$9*Input!$C$38>SUM(T$51:T54),(Input!$C$9*Input!$C$38-SUM(T$51:T54)),0)) -> 0 | V55: =IF((U55-(Input!$C$9*Input!$C$38-SUM(U$51:U54)))<0,0,U55-IF(Input!$C$9*Input!$C$38>SUM(U$51:U54),(Input!$C$9*Input!$C$38-SUM(U$51:U54)),0)) -> 0 | W55: =IF((V55-(Input!$C$9*Input!$C$38-SUM(V$51:V54)))<0,0,V55-IF(Input!$C$9*Input!$C$38>SUM(V$51:V54),(Input!$C$9*Input!$C$38-SUM(V$51:V54)),0)) -> 0 | X55: =IF((W55-(Input!$C$9*Input!$C$38-SUM(W$51:W54)))<0,0,W55-IF(Input!$C$9*Input!$C$38>SUM(W$51:W54),(Input!$C$9*Input!$C$38-SUM(W$51:W54)),0)) -> 0 | Y55: =IF((X55-(Input!$C$9*Input!$C$38-SUM(X$51:X54)))<0,0,X55-IF(Input!$C$9*Input!$C$38>SUM(X$51:X54),(Input!$C$9*Input!$C$38-SUM(X$51:X54)),0)) -> 0 | Z55: =IF((Y55-(Input!$C$9*Input!$C$38-SUM(Y$51:Y54)))<0,0,Y55-IF(Input!$C$9*Input!$C$38>SUM(Y$51:Y54),(Input!$C$9*Input!$C$38-SUM(Y$51:Y54)),0)) -> 0 | AA55: =IF((Z55-(Input!$C$9*Input!$C$38-SUM(Z$51:Z54)))<0,0,Z55-IF(Input!$C$9*Input!$C$38>SUM(Z$51:Z54),(Input!$C$9*Input!$C$38-SUM(Z$51:Z54)),0)) -> 0 | AB55: =IF((AA55-(Input!$C$9*Input!$C$38-SUM(AA$51:AA54)))<0,0,AA55-IF(Input!$C$9*Input!$C$38>SUM(AA$51:AA54),(Input!$C$9*Input!$C$38-SUM(AA$51:AA54)),0)) -> 0 | AC55: =IF((AB55-(Input!$C$9*Input!$C$38-SUM(AB$51:AB54)))<0,0,AB55-IF(Input!$C$9*Input!$C$38>SUM(AB$51:AB54),(Input!$C$9*Input!$C$38-SUM(AB$51:AB54)),0)) -> 0 | AD55: =IF((AC55-(Input!$C$9*Input!$C$38-SUM(AC$51:AC54)))<0,0,AC55-IF(Input!$C$9*Input!$C$38>SUM(AC$51:AC54),(Input!$C$9*Input!$C$38-SUM(AC$51:AC54)),0)) -> 0 | AE55: =IF((AD55-(Input!$C$9*Input!$C$38-SUM(AD$51:AD54)))<0,0,AD55-IF(Input!$C$9*Input!$C$38>SUM(AD$51:AD54),(Input!$C$9*Input!$C$38-SUM(AD$51:AD54)),0)) -> 0 | AF55: =IF((AE55-(Input!$C$9*Input!$C$38-SUM(AE$51:AE54)))<0,0,AE55-IF(Input!$C$9*Input!$C$38>SUM(AE$51:AE54),(Input!$C$9*Input!$C$38-SUM(AE$51:AE54)),0)) -> 0 | AG55: =IF((AF55-(Input!$C$9*Input!$C$38-SUM(AF$51:AF54)))<0,0,AF55-IF(Input!$C$9*Input!$C$38>SUM(AF$51:AF54),(Input!$C$9*Input!$C$38-SUM(AF$51:AF54)),0)) -> 0 | AH55: =IF((AG55-(Input!$C$9*Input!$C$38-SUM(AG$51:AG54)))<0,0,AG55-IF(Input!$C$9*Input!$C$38>SUM(AG$51:AG54),(Input!$C$9*Input!$C$38-SUM(AG$51:AG54)),0)) -> 0 | AI55: =IF((AH55-(Input!$C$9*Input!$C$38-SUM(AH$51:AH54)))<0,0,AH55-IF(Input!$C$9*Input!$C$38>SUM(AH$51:AH54),(Input!$C$9*Input!$C$38-SUM(AH$51:AH54)),0)) -> 0 | AJ55: =IF((AI55-(Input!$C$9*Input!$C$38-SUM(AI$51:AI54)))<0,0,AI55-IF(Input!$C$9*Input!$C$38>SUM(AI$51:AI54),(Input!$C$9*Input!$C$38-SUM(AI$51:AI54)),0)) -> 0 | AK55: =IF((AJ55-(Input!$C$9*Input!$C$38-SUM(AJ$51:AJ54)))<0,0,AJ55-IF(Input!$C$9*Input!$C$38>SUM(AJ$51:AJ54),(Input!$C$9*Input!$C$38-SUM(AJ$51:AJ54)),0)) -> 0 | AL55: =IF((AK55-(Input!$C$9*Input!$C$38-SUM(AK$51:AK54)))<0,0,AK55-IF(Input!$C$9*Input!$C$38>SUM(AK$51:AK54),(Input!$C$9*Input!$C$38-SUM(AK$51:AK54)),0)) -> 0 | AM55: =IF((AL55-(Input!$C$9*Input!$C$38-SUM(AL$51:AL54)))<0,0,AL55-IF(Input!$C$9*Input!$C$38>SUM(AL$51:AL54),(Input!$C$9*Input!$C$38-SUM(AL$51:AL54)),0)) -> 0 | AN55: =IF((AM55-(Input!$C$9*Input!$C$38-SUM(AM$51:AM54)))<0,0,AM55-IF(Input!$C$9*Input!$C$38>SUM(AM$51:AM54),(Input!$C$9*Input!$C$38-SUM(AM$51:AM54)),0)) -> 0 | AO55: =IF((AN55-(Input!$C$9*Input!$C$38-SUM(AN$51:AN54)))<0,0,AN55-IF(Input!$C$9*Input!$C$38>SUM(AN$51:AN54),(Input!$C$9*Input!$C$38-SUM(AN$51:AN54)),0)) -> 0 | AP55: =IF((AO55-(Input!$C$9*Input!$C$38-SUM(AO$51:AO54)))<0,0,AO55-IF(Input!$C$9*Input!$C$38>SUM(AO$51:AO54),(Input!$C$9*Input!$C$38-SUM(AO$51:AO54)),0)) -> 0 | AQ55: =IF((AP55-(Input!$C$9*Input!$C$38-SUM(AP$51:AP54)))<0,0,AP55-IF(Input!$C$9*Input!$C$38>SUM(AP$51:AP54),(Input!$C$9*Input!$C$38-SUM(AP$51:AP54)),0)) -> 0 | AR55: =IF((AQ55-(Input!$C$9*Input!$C$38-SUM(AQ$51:AQ54)))<0,0,AQ55-IF(Input!$C$9*Input!$C$38>SUM(AQ$51:AQ54),(Input!$C$9*Input!$C$38-SUM(AQ$51:AQ54)),0)) -> 0 | AS55: =IF((AR55-(Input!$C$9*Input!$C$38-SUM(AR$51:AR54)))<0,0,AR55-IF(Input!$C$9*Input!$C$38>SUM(AR$51:AR54),(Input!$C$9*Input!$C$38-SUM(AR$51:AR54)),0)) -> 0 | AT55: =IF((AS55-(Input!$C$9*Input!$C$38-SUM(AS$51:AS54)))<0,0,AS55-IF(Input!$C$9*Input!$C$38>SUM(AS$51:AS54),(Input!$C$9*Input!$C$38-SUM(AS$51:AS54)),0)) -> 0 | AU55: =IF((AT55-(Input!$C$9*Input!$C$38-SUM(AT$51:AT54)))<0,0,AT55-IF(Input!$C$9*Input!$C$38>SUM(AT$51:AT54),(Input!$C$9*Input!$C$38-SUM(AT$51:AT54)),0)) -> 0 | AV55: =IF((AU55-(Input!$C$9*Input!$C$38-SUM(AU$51:AU54)))<0,0,AU55-IF(Input!$C$9*Input!$C$38>SUM(AU$51:AU54),(Input!$C$9*Input!$C$38-SUM(AU$51:AU54)),0)) -> 0 | AW55: =IF((AV55-(Input!$C$9*Input!$C$38-SUM(AV$51:AV54)))<0,0,AV55-IF(Input!$C$9*Input!$C$38>SUM(AV$51:AV54),(Input!$C$9*Input!$C$38-SUM(AV$51:AV54)),0)) -> 0 | AX55: =IF((AW55-(Input!$C$9*Input!$C$38-SUM(AW$51:AW54)))<0,0,AW55-IF(Input!$C$9*Input!$C$38>SUM(AW$51:AW54),(Input!$C$9*Input!$C$38-SUM(AW$51:AW54)),0)) -> 0 | AY55: =IF((AX55-(Input!$C$9*Input!$C$38-SUM(AX$51:AX54)))<0,0,AX55-IF(Input!$C$9*Input!$C$38>SUM(AX$51:AX54),(Input!$C$9*Input!$C$38-SUM(AX$51:AX54)),0)) -> 0 | AZ55: =IF((AY55-(Input!$C$9*Input!$C$38-SUM(AY$51:AY54)))<0,0,AY55-IF(Input!$C$9*Input!$C$38>SUM(AY$51:AY54),(Input!$C$9*Input!$C$38-SUM(AY$51:AY54)),0)) -> 0 | BA55: =IF((AZ55-(Input!$C$9*Input!$C$38-SUM(AZ$51:AZ54)))<0,0,AZ55-IF(Input!$C$9*Input!$C$38>SUM(AZ$51:AZ54),(Input!$C$9*Input!$C$38-SUM(AZ$51:AZ54)),0)) -> 0 | BB55: =IF((BA55-(Input!$C$9*Input!$C$38-SUM(BA$51:BA54)))<0,0,BA55-IF(Input!$C$9*Input!$C$38>SUM(BA$51:BA54),(Input!$C$9*Input!$C$38-SUM(BA$51:BA54)),0)) -> 0 | BC55: =IF((BB55-(Input!$C$9*Input!$C$38-SUM(BB$51:BB54)))<0,0,BB55-IF(Input!$C$9*Input!$C$38>SUM(BB$51:BB54),(Input!$C$9*Input!$C$38-SUM(BB$51:BB54)),0)) -> 0 | BD55: =IF((BC55-(Input!$C$9*Input!$C$38-SUM(BC$51:BC54)))<0,0,BC55-IF(Input!$C$9*Input!$C$38>SUM(BC$51:BC54),(Input!$C$9*Input!$C$38-SUM(BC$51:BC54)),0)) -> 0
A56: 6 | C56: =ROUND(NORMDIST(A56,Reeksen!$B$46,Reeksen!$B$47,FALSE)*Reeksen!$B$45,0) -> 9 | D56: 0 | E56: 0 | F56: 0 | G56: 0 | H56: =IF((G56-(Input!$C$9*Input!$C$38-SUM(G$51:G55)))<0,0,G56-IF(Input!$C$9*Input!$C$38>SUM(G$51:G55),(Input!$C$9*Input!$C$38-SUM(G$51:G55)),0)) -> 0 | I56: =IF((H56-(Input!$C$9*Input!$C$38-SUM(H$51:H55)))<0,0,H56-IF(Input!$C$9*Input!$C$38>SUM(H$51:H55),(Input!$C$9*Input!$C$38-SUM(H$51:H55)),0)) -> 0 | J56: =IF((I56-(Input!$C$9*Input!$C$38-SUM(I$51:I55)))<0,0,I56-IF(Input!$C$9*Input!$C$38>SUM(I$51:I55),(Input!$C$9*Input!$C$38-SUM(I$51:I55)),0)) -> 0 | K56: =IF((J56-(Input!$C$9*Input!$C$38-SUM(J$51:J55)))<0,0,J56-IF(Input!$C$9*Input!$C$38>SUM(J$51:J55),(Input!$C$9*Input!$C$38-SUM(J$51:J55)),0)) -> 0 | L56: =IF((K56-(Input!$C$9*Input!$C$38-SUM(K$51:K55)))<0,0,K56-IF(Input!$C$9*Input!$C$38>SUM(K$51:K55),(Input!$C$9*Input!$C$38-SUM(K$51:K55)),0)) -> 0 | M56: =IF((L56-(Input!$C$9*Input!$C$38-SUM(L$51:L55)))<0,0,L56-IF(Input!$C$9*Input!$C$38>SUM(L$51:L55),(Input!$C$9*Input!$C$38-SUM(L$51:L55)),0)) -> 0 | N56: =IF((M56-(Input!$C$9*Input!$C$38-SUM(M$51:M55)))<0,0,M56-IF(Input!$C$9*Input!$C$38>SUM(M$51:M55),(Input!$C$9*Input!$C$38-SUM(M$51:M55)),0)) -> 0 | O56: =IF((N56-(Input!$C$9*Input!$C$38-SUM(N$51:N55)))<0,0,N56-IF(Input!$C$9*Input!$C$38>SUM(N$51:N55),(Input!$C$9*Input!$C$38-SUM(N$51:N55)),0)) -> 0 | P56: =IF((O56-(Input!$C$9*Input!$C$38-SUM(O$51:O55)))<0,0,O56-IF(Input!$C$9*Input!$C$38>SUM(O$51:O55),(Input!$C$9*Input!$C$38-SUM(O$51:O55)),0)) -> 0 | Q56: =IF((P56-(Input!$C$9*Input!$C$38-SUM(P$51:P55)))<0,0,P56-IF(Input!$C$9*Input!$C$38>SUM(P$51:P55),(Input!$C$9*Input!$C$38-SUM(P$51:P55)),0)) -> 0 | R56: =IF((Q56-(Input!$C$9*Input!$C$38-SUM(Q$51:Q55)))<0,0,Q56-IF(Input!$C$9*Input!$C$38>SUM(Q$51:Q55),(Input!$C$9*Input!$C$38-SUM(Q$51:Q55)),0)) -> 0 | S56: =IF((R56-(Input!$C$9*Input!$C$38-SUM(R$51:R55)))<0,0,R56-IF(Input!$C$9*Input!$C$38>SUM(R$51:R55),(Input!$C$9*Input!$C$38-SUM(R$51:R55)),0)) -> 0 | T56: =IF((S56-(Input!$C$9*Input!$C$38-SUM(S$51:S55)))<0,0,S56-IF(Input!$C$9*Input!$C$38>SUM(S$51:S55),(Input!$C$9*Input!$C$38-SUM(S$51:S55)),0)) -> 0 | U56: =IF((T56-(Input!$C$9*Input!$C$38-SUM(T$51:T55)))<0,0,T56-IF(Input!$C$9*Input!$C$38>SUM(T$51:T55),(Input!$C$9*Input!$C$38-SUM(T$51:T55)),0)) -> 0 | V56: =IF((U56-(Input!$C$9*Input!$C$38-SUM(U$51:U55)))<0,0,U56-IF(Input!$C$9*Input!$C$38>SUM(U$51:U55),(Input!$C$9*Input!$C$38-SUM(U$51:U55)),0)) -> 0 | W56: =IF((V56-(Input!$C$9*Input!$C$38-SUM(V$51:V55)))<0,0,V56-IF(Input!$C$9*Input!$C$38>SUM(V$51:V55),(Input!$C$9*Input!$C$38-SUM(V$51:V55)),0)) -> 0 | X56: =IF((W56-(Input!$C$9*Input!$C$38-SUM(W$51:W55)))<0,0,W56-IF(Input!$C$9*Input!$C$38>SUM(W$51:W55),(Input!$C$9*Input!$C$38-SUM(W$51:W55)),0)) -> 0 | Y56: =IF((X56-(Input!$C$9*Input!$C$38-SUM(X$51:X55)))<0,0,X56-IF(Input!$C$9*Input!$C$38>SUM(X$51:X55),(Input!$C$9*Input!$C$38-SUM(X$51:X55)),0)) -> 0 | Z56: =IF((Y56-(Input!$C$9*Input!$C$38-SUM(Y$51:Y55)))<0,0,Y56-IF(Input!$C$9*Input!$C$38>SUM(Y$51:Y55),(Input!$C$9*Input!$C$38-SUM(Y$51:Y55)),0)) -> 0 | AA56: =IF((Z56-(Input!$C$9*Input!$C$38-SUM(Z$51:Z55)))<0,0,Z56-IF(Input!$C$9*Input!$C$38>SUM(Z$51:Z55),(Input!$C$9*Input!$C$38-SUM(Z$51:Z55)),0)) -> 0 | AB56: =IF((AA56-(Input!$C$9*Input!$C$38-SUM(AA$51:AA55)))<0,0,AA56-IF(Input!$C$9*Input!$C$38>SUM(AA$51:AA55),(Input!$C$9*Input!$C$38-SUM(AA$51:AA55)),0)) -> 0 | AC56: =IF((AB56-(Input!$C$9*Input!$C$38-SUM(AB$51:AB55)))<0,0,AB56-IF(Input!$C$9*Input!$C$38>SUM(AB$51:AB55),(Input!$C$9*Input!$C$38-SUM(AB$51:AB55)),0)) -> 0 | AD56: =IF((AC56-(Input!$C$9*Input!$C$38-SUM(AC$51:AC55)))<0,0,AC56-IF(Input!$C$9*Input!$C$38>SUM(AC$51:AC55),(Input!$C$9*Input!$C$38-SUM(AC$51:AC55)),0)) -> 0 | AE56: =IF((AD56-(Input!$C$9*Input!$C$38-SUM(AD$51:AD55)))<0,0,AD56-IF(Input!$C$9*Input!$C$38>SUM(AD$51:AD55),(Input!$C$9*Input!$C$38-SUM(AD$51:AD55)),0)) -> 0 | AF56: =IF((AE56-(Input!$C$9*Input!$C$38-SUM(AE$51:AE55)))<0,0,AE56-IF(Input!$C$9*Input!$C$38>SUM(AE$51:AE55),(Input!$C$9*Input!$C$38-SUM(AE$51:AE55)),0)) -> 0 | AG56: =IF((AF56-(Input!$C$9*Input!$C$38-SUM(AF$51:AF55)))<0,0,AF56-IF(Input!$C$9*Input!$C$38>SUM(AF$51:AF55),(Input!$C$9*Input!$C$38-SUM(AF$51:AF55)),0)) -> 0 | AH56: =IF((AG56-(Input!$C$9*Input!$C$38-SUM(AG$51:AG55)))<0,0,AG56-IF(Input!$C$9*Input!$C$38>SUM(AG$51:AG55),(Input!$C$9*Input!$C$38-SUM(AG$51:AG55)),0)) -> 0 | AI56: =IF((AH56-(Input!$C$9*Input!$C$38-SUM(AH$51:AH55)))<0,0,AH56-IF(Input!$C$9*Input!$C$38>SUM(AH$51:AH55),(Input!$C$9*Input!$C$38-SUM(AH$51:AH55)),0)) -> 0 | AJ56: =IF((AI56-(Input!$C$9*Input!$C$38-SUM(AI$51:AI55)))<0,0,AI56-IF(Input!$C$9*Input!$C$38>SUM(AI$51:AI55),(Input!$C$9*Input!$C$38-SUM(AI$51:AI55)),0)) -> 0 | AK56: =IF((AJ56-(Input!$C$9*Input!$C$38-SUM(AJ$51:AJ55)))<0,0,AJ56-IF(Input!$C$9*Input!$C$38>SUM(AJ$51:AJ55),(Input!$C$9*Input!$C$38-SUM(AJ$51:AJ55)),0)) -> 0 | AL56: =IF((AK56-(Input!$C$9*Input!$C$38-SUM(AK$51:AK55)))<0,0,AK56-IF(Input!$C$9*Input!$C$38>SUM(AK$51:AK55),(Input!$C$9*Input!$C$38-SUM(AK$51:AK55)),0)) -> 0 | AM56: =IF((AL56-(Input!$C$9*Input!$C$38-SUM(AL$51:AL55)))<0,0,AL56-IF(Input!$C$9*Input!$C$38>SUM(AL$51:AL55),(Input!$C$9*Input!$C$38-SUM(AL$51:AL55)),0)) -> 0 | AN56: =IF((AM56-(Input!$C$9*Input!$C$38-SUM(AM$51:AM55)))<0,0,AM56-IF(Input!$C$9*Input!$C$38>SUM(AM$51:AM55),(Input!$C$9*Input!$C$38-SUM(AM$51:AM55)),0)) -> 0 | AO56: =IF((AN56-(Input!$C$9*Input!$C$38-SUM(AN$51:AN55)))<0,0,AN56-IF(Input!$C$9*Input!$C$38>SUM(AN$51:AN55),(Input!$C$9*Input!$C$38-SUM(AN$51:AN55)),0)) -> 0 | AP56: =IF((AO56-(Input!$C$9*Input!$C$38-SUM(AO$51:AO55)))<0,0,AO56-IF(Input!$C$9*Input!$C$38>SUM(AO$51:AO55),(Input!$C$9*Input!$C$38-SUM(AO$51:AO55)),0)) -> 0 | AQ56: =IF((AP56-(Input!$C$9*Input!$C$38-SUM(AP$51:AP55)))<0,0,AP56-IF(Input!$C$9*Input!$C$38>SUM(AP$51:AP55),(Input!$C$9*Input!$C$38-SUM(AP$51:AP55)),0)) -> 0 | AR56: =IF((AQ56-(Input!$C$9*Input!$C$38-SUM(AQ$51:AQ55)))<0,0,AQ56-IF(Input!$C$9*Input!$C$38>SUM(AQ$51:AQ55),(Input!$C$9*Input!$C$38-SUM(AQ$51:AQ55)),0)) -> 0 | AS56: =IF((AR56-(Input!$C$9*Input!$C$38-SUM(AR$51:AR55)))<0,0,AR56-IF(Input!$C$9*Input!$C$38>SUM(AR$51:AR55),(Input!$C$9*Input!$C$38-SUM(AR$51:AR55)),0)) -> 0 | AT56: =IF((AS56-(Input!$C$9*Input!$C$38-SUM(AS$51:AS55)))<0,0,AS56-IF(Input!$C$9*Input!$C$38>SUM(AS$51:AS55),(Input!$C$9*Input!$C$38-SUM(AS$51:AS55)),0)) -> 0 | AU56: =IF((AT56-(Input!$C$9*Input!$C$38-SUM(AT$51:AT55)))<0,0,AT56-IF(Input!$C$9*Input!$C$38>SUM(AT$51:AT55),(Input!$C$9*Input!$C$38-SUM(AT$51:AT55)),0)) -> 0 | AV56: =IF((AU56-(Input!$C$9*Input!$C$38-SUM(AU$51:AU55)))<0,0,AU56-IF(Input!$C$9*Input!$C$38>SUM(AU$51:AU55),(Input!$C$9*Input!$C$38-SUM(AU$51:AU55)),0)) -> 0 | AW56: =IF((AV56-(Input!$C$9*Input!$C$38-SUM(AV$51:AV55)))<0,0,AV56-IF(Input!$C$9*Input!$C$38>SUM(AV$51:AV55),(Input!$C$9*Input!$C$38-SUM(AV$51:AV55)),0)) -> 0 | AX56: =IF((AW56-(Input!$C$9*Input!$C$38-SUM(AW$51:AW55)))<0,0,AW56-IF(Input!$C$9*Input!$C$38>SUM(AW$51:AW55),(Input!$C$9*Input!$C$38-SUM(AW$51:AW55)),0)) -> 0 | AY56: =IF((AX56-(Input!$C$9*Input!$C$38-SUM(AX$51:AX55)))<0,0,AX56-IF(Input!$C$9*Input!$C$38>SUM(AX$51:AX55),(Input!$C$9*Input!$C$38-SUM(AX$51:AX55)),0)) -> 0 | AZ56: =IF((AY56-(Input!$C$9*Input!$C$38-SUM(AY$51:AY55)))<0,0,AY56-IF(Input!$C$9*Input!$C$38>SUM(AY$51:AY55),(Input!$C$9*Input!$C$38-SUM(AY$51:AY55)),0)) -> 0 | BA56: =IF((AZ56-(Input!$C$9*Input!$C$38-SUM(AZ$51:AZ55)))<0,0,AZ56-IF(Input!$C$9*Input!$C$38>SUM(AZ$51:AZ55),(Input!$C$9*Input!$C$38-SUM(AZ$51:AZ55)),0)) -> 0 | BB56: =IF((BA56-(Input!$C$9*Input!$C$38-SUM(BA$51:BA55)))<0,0,BA56-IF(Input!$C$9*Input!$C$38>SUM(BA$51:BA55),(Input!$C$9*Input!$C$38-SUM(BA$51:BA55)),0)) -> 0 | BC56: =IF((BB56-(Input!$C$9*Input!$C$38-SUM(BB$51:BB55)))<0,0,BB56-IF(Input!$C$9*Input!$C$38>SUM(BB$51:BB55),(Input!$C$9*Input!$C$38-SUM(BB$51:BB55)),0)) -> 0 | BD56: =IF((BC56-(Input!$C$9*Input!$C$38-SUM(BC$51:BC55)))<0,0,BC56-IF(Input!$C$9*Input!$C$38>SUM(BC$51:BC55),(Input!$C$9*Input!$C$38-SUM(BC$51:BC55)),0)) -> 0
A57: 7 | C57: =ROUND(NORMDIST(A57,Reeksen!$B$46,Reeksen!$B$47,FALSE)*Reeksen!$B$45,0) -> 13 | D57: 0 | E57: 0 | F57: 0 | G57: 0 | H57: =IF((G57-(Input!$C$9*Input!$C$38-SUM(G$51:G56)))<0,0,G57-IF(Input!$C$9*Input!$C$38>SUM(G$51:G56),(Input!$C$9*Input!$C$38-SUM(G$51:G56)),0)) -> 0 | I57: =IF((H57-(Input!$C$9*Input!$C$38-SUM(H$51:H56)))<0,0,H57-IF(Input!$C$9*Input!$C$38>SUM(H$51:H56),(Input!$C$9*Input!$C$38-SUM(H$51:H56)),0)) -> 0 | J57: =IF((I57-(Input!$C$9*Input!$C$38-SUM(I$51:I56)))<0,0,I57-IF(Input!$C$9*Input!$C$38>SUM(I$51:I56),(Input!$C$9*Input!$C$38-SUM(I$51:I56)),0)) -> 0 | K57: =IF((J57-(Input!$C$9*Input!$C$38-SUM(J$51:J56)))<0,0,J57-IF(Input!$C$9*Input!$C$38>SUM(J$51:J56),(Input!$C$9*Input!$C$38-SUM(J$51:J56)),0)) -> 0 | L57: =IF((K57-(Input!$C$9*Input!$C$38-SUM(K$51:K56)))<0,0,K57-IF(Input!$C$9*Input!$C$38>SUM(K$51:K56),(Input!$C$9*Input!$C$38-SUM(K$51:K56)),0)) -> 0 | M57: =IF((L57-(Input!$C$9*Input!$C$38-SUM(L$51:L56)))<0,0,L57-IF(Input!$C$9*Input!$C$38>SUM(L$51:L56),(Input!$C$9*Input!$C$38-SUM(L$51:L56)),0)) -> 0 | N57: =IF((M57-(Input!$C$9*Input!$C$38-SUM(M$51:M56)))<0,0,M57-IF(Input!$C$9*Input!$C$38>SUM(M$51:M56),(Input!$C$9*Input!$C$38-SUM(M$51:M56)),0)) -> 0 | O57: =IF((N57-(Input!$C$9*Input!$C$38-SUM(N$51:N56)))<0,0,N57-IF(Input!$C$9*Input!$C$38>SUM(N$51:N56),(Input!$C$9*Input!$C$38-SUM(N$51:N56)),0)) -> 0 | P57: =IF((O57-(Input!$C$9*Input!$C$38-SUM(O$51:O56)))<0,0,O57-IF(Input!$C$9*Input!$C$38>SUM(O$51:O56),(Input!$C$9*Input!$C$38-SUM(O$51:O56)),0)) -> 0 | Q57: =IF((P57-(Input!$C$9*Input!$C$38-SUM(P$51:P56)))<0,0,P57-IF(Input!$C$9*Input!$C$38>SUM(P$51:P56),(Input!$C$9*Input!$C$38-SUM(P$51:P56)),0)) -> 0 | R57: =IF((Q57-(Input!$C$9*Input!$C$38-SUM(Q$51:Q56)))<0,0,Q57-IF(Input!$C$9*Input!$C$38>SUM(Q$51:Q56),(Input!$C$9*Input!$C$38-SUM(Q$51:Q56)),0)) -> 0 | S57: =IF((R57-(Input!$C$9*Input!$C$38-SUM(R$51:R56)))<0,0,R57-IF(Input!$C$9*Input!$C$38>SUM(R$51:R56),(Input!$C$9*Input!$C$38-SUM(R$51:R56)),0)) -> 0 | T57: =IF((S57-(Input!$C$9*Input!$C$38-SUM(S$51:S56)))<0,0,S57-IF(Input!$C$9*Input!$C$38>SUM(S$51:S56),(Input!$C$9*Input!$C$38-SUM(S$51:S56)),0)) -> 0 | U57: =IF((T57-(Input!$C$9*Input!$C$38-SUM(T$51:T56)))<0,0,T57-IF(Input!$C$9*Input!$C$38>SUM(T$51:T56),(Input!$C$9*Input!$C$38-SUM(T$51:T56)),0)) -> 0 | V57: =IF((U57-(Input!$C$9*Input!$C$38-SUM(U$51:U56)))<0,0,U57-IF(Input!$C$9*Input!$C$38>SUM(U$51:U56),(Input!$C$9*Input!$C$38-SUM(U$51:U56)),0)) -> 0 | W57: =IF((V57-(Input!$C$9*Input!$C$38-SUM(V$51:V56)))<0,0,V57-IF(Input!$C$9*Input!$C$38>SUM(V$51:V56),(Input!$C$9*Input!$C$38-SUM(V$51:V56)),0)) -> 0 | X57: =IF((W57-(Input!$C$9*Input!$C$38-SUM(W$51:W56)))<0,0,W57-IF(Input!$C$9*Input!$C$38>SUM(W$51:W56),(Input!$C$9*Input!$C$38-SUM(W$51:W56)),0)) -> 0 | Y57: =IF((X57-(Input!$C$9*Input!$C$38-SUM(X$51:X56)))<0,0,X57-IF(Input!$C$9*Input!$C$38>SUM(X$51:X56),(Input!$C$9*Input!$C$38-SUM(X$51:X56)),0)) -> 0 | Z57: =IF((Y57-(Input!$C$9*Input!$C$38-SUM(Y$51:Y56)))<0,0,Y57-IF(Input!$C$9*Input!$C$38>SUM(Y$51:Y56),(Input!$C$9*Input!$C$38-SUM(Y$51:Y56)),0)) -> 0 | AA57: =IF((Z57-(Input!$C$9*Input!$C$38-SUM(Z$51:Z56)))<0,0,Z57-IF(Input!$C$9*Input!$C$38>SUM(Z$51:Z56),(Input!$C$9*Input!$C$38-SUM(Z$51:Z56)),0)) -> 0 | AB57: =IF((AA57-(Input!$C$9*Input!$C$38-SUM(AA$51:AA56)))<0,0,AA57-IF(Input!$C$9*Input!$C$38>SUM(AA$51:AA56),(Input!$C$9*Input!$C$38-SUM(AA$51:AA56)),0)) -> 0 | AC57: =IF((AB57-(Input!$C$9*Input!$C$38-SUM(AB$51:AB56)))<0,0,AB57-IF(Input!$C$9*Input!$C$38>SUM(AB$51:AB56),(Input!$C$9*Input!$C$38-SUM(AB$51:AB56)),0)) -> 0 | AD57: =IF((AC57-(Input!$C$9*Input!$C$38-SUM(AC$51:AC56)))<0,0,AC57-IF(Input!$C$9*Input!$C$38>SUM(AC$51:AC56),(Input!$C$9*Input!$C$38-SUM(AC$51:AC56)),0)) -> 0 | AE57: =IF((AD57-(Input!$C$9*Input!$C$38-SUM(AD$51:AD56)))<0,0,AD57-IF(Input!$C$9*Input!$C$38>SUM(AD$51:AD56),(Input!$C$9*Input!$C$38-SUM(AD$51:AD56)),0)) -> 0 | AF57: =IF((AE57-(Input!$C$9*Input!$C$38-SUM(AE$51:AE56)))<0,0,AE57-IF(Input!$C$9*Input!$C$38>SUM(AE$51:AE56),(Input!$C$9*Input!$C$38-SUM(AE$51:AE56)),0)) -> 0 | AG57: =IF((AF57-(Input!$C$9*Input!$C$38-SUM(AF$51:AF56)))<0,0,AF57-IF(Input!$C$9*Input!$C$38>SUM(AF$51:AF56),(Input!$C$9*Input!$C$38-SUM(AF$51:AF56)),0)) -> 0 | AH57: =IF((AG57-(Input!$C$9*Input!$C$38-SUM(AG$51:AG56)))<0,0,AG57-IF(Input!$C$9*Input!$C$38>SUM(AG$51:AG56),(Input!$C$9*Input!$C$38-SUM(AG$51:AG56)),0)) -> 0 | AI57: =IF((AH57-(Input!$C$9*Input!$C$38-SUM(AH$51:AH56)))<0,0,AH57-IF(Input!$C$9*Input!$C$38>SUM(AH$51:AH56),(Input!$C$9*Input!$C$38-SUM(AH$51:AH56)),0)) -> 0 | AJ57: =IF((AI57-(Input!$C$9*Input!$C$38-SUM(AI$51:AI56)))<0,0,AI57-IF(Input!$C$9*Input!$C$38>SUM(AI$51:AI56),(Input!$C$9*Input!$C$38-SUM(AI$51:AI56)),0)) -> 0 | AK57: =IF((AJ57-(Input!$C$9*Input!$C$38-SUM(AJ$51:AJ56)))<0,0,AJ57-IF(Input!$C$9*Input!$C$38>SUM(AJ$51:AJ56),(Input!$C$9*Input!$C$38-SUM(AJ$51:AJ56)),0)) -> 0 | AL57: =IF((AK57-(Input!$C$9*Input!$C$38-SUM(AK$51:AK56)))<0,0,AK57-IF(Input!$C$9*Input!$C$38>SUM(AK$51:AK56),(Input!$C$9*Input!$C$38-SUM(AK$51:AK56)),0)) -> 0 | AM57: =IF((AL57-(Input!$C$9*Input!$C$38-SUM(AL$51:AL56)))<0,0,AL57-IF(Input!$C$9*Input!$C$38>SUM(AL$51:AL56),(Input!$C$9*Input!$C$38-SUM(AL$51:AL56)),0)) -> 0 | AN57: =IF((AM57-(Input!$C$9*Input!$C$38-SUM(AM$51:AM56)))<0,0,AM57-IF(Input!$C$9*Input!$C$38>SUM(AM$51:AM56),(Input!$C$9*Input!$C$38-SUM(AM$51:AM56)),0)) -> 0 | AO57: =IF((AN57-(Input!$C$9*Input!$C$38-SUM(AN$51:AN56)))<0,0,AN57-IF(Input!$C$9*Input!$C$38>SUM(AN$51:AN56),(Input!$C$9*Input!$C$38-SUM(AN$51:AN56)),0)) -> 0 | AP57: =IF((AO57-(Input!$C$9*Input!$C$38-SUM(AO$51:AO56)))<0,0,AO57-IF(Input!$C$9*Input!$C$38>SUM(AO$51:AO56),(Input!$C$9*Input!$C$38-SUM(AO$51:AO56)),0)) -> 0 | AQ57: =IF((AP57-(Input!$C$9*Input!$C$38-SUM(AP$51:AP56)))<0,0,AP57-IF(Input!$C$9*Input!$C$38>SUM(AP$51:AP56),(Input!$C$9*Input!$C$38-SUM(AP$51:AP56)),0)) -> 0 | AR57: =IF((AQ57-(Input!$C$9*Input!$C$38-SUM(AQ$51:AQ56)))<0,0,AQ57-IF(Input!$C$9*Input!$C$38>SUM(AQ$51:AQ56),(Input!$C$9*Input!$C$38-SUM(AQ$51:AQ56)),0)) -> 0 | AS57: =IF((AR57-(Input!$C$9*Input!$C$38-SUM(AR$51:AR56)))<0,0,AR57-IF(Input!$C$9*Input!$C$38>SUM(AR$51:AR56),(Input!$C$9*Input!$C$38-SUM(AR$51:AR56)),0)) -> 0 | AT57: =IF((AS57-(Input!$C$9*Input!$C$38-SUM(AS$51:AS56)))<0,0,AS57-IF(Input!$C$9*Input!$C$38>SUM(AS$51:AS56),(Input!$C$9*Input!$C$38-SUM(AS$51:AS56)),0)) -> 0 | AU57: =IF((AT57-(Input!$C$9*Input!$C$38-SUM(AT$51:AT56)))<0,0,AT57-IF(Input!$C$9*Input!$C$38>SUM(AT$51:AT56),(Input!$C$9*Input!$C$38-SUM(AT$51:AT56)),0)) -> 0 | AV57: =IF((AU57-(Input!$C$9*Input!$C$38-SUM(AU$51:AU56)))<0,0,AU57-IF(Input!$C$9*Input!$C$38>SUM(AU$51:AU56),(Input!$C$9*Input!$C$38-SUM(AU$51:AU56)),0)) -> 0 | AW57: =IF((AV57-(Input!$C$9*Input!$C$38-SUM(AV$51:AV56)))<0,0,AV57-IF(Input!$C$9*Input!$C$38>SUM(AV$51:AV56),(Input!$C$9*Input!$C$38-SUM(AV$51:AV56)),0)) -> 0 | AX57: =IF((AW57-(Input!$C$9*Input!$C$38-SUM(AW$51:AW56)))<0,0,AW57-IF(Input!$C$9*Input!$C$38>SUM(AW$51:AW56),(Input!$C$9*Input!$C$38-SUM(AW$51:AW56)),0)) -> 0 | AY57: =IF((AX57-(Input!$C$9*Input!$C$38-SUM(AX$51:AX56)))<0,0,AX57-IF(Input!$C$9*Input!$C$38>SUM(AX$51:AX56),(Input!$C$9*Input!$C$38-SUM(AX$51:AX56)),0)) -> 0 | AZ57: =IF((AY57-(Input!$C$9*Input!$C$38-SUM(AY$51:AY56)))<0,0,AY57-IF(Input!$C$9*Input!$C$38>SUM(AY$51:AY56),(Input!$C$9*Input!$C$38-SUM(AY$51:AY56)),0)) -> 0 | BA57: =IF((AZ57-(Input!$C$9*Input!$C$38-SUM(AZ$51:AZ56)))<0,0,AZ57-IF(Input!$C$9*Input!$C$38>SUM(AZ$51:AZ56),(Input!$C$9*Input!$C$38-SUM(AZ$51:AZ56)),0)) -> 0 | BB57: =IF((BA57-(Input!$C$9*Input!$C$38-SUM(BA$51:BA56)))<0,0,BA57-IF(Input!$C$9*Input!$C$38>SUM(BA$51:BA56),(Input!$C$9*Input!$C$38-SUM(BA$51:BA56)),0)) -> 0 | BC57: =IF((BB57-(Input!$C$9*Input!$C$38-SUM(BB$51:BB56)))<0,0,BB57-IF(Input!$C$9*Input!$C$38>SUM(BB$51:BB56),(Input!$C$9*Input!$C$38-SUM(BB$51:BB56)),0)) -> 0 | BD57: =IF((BC57-(Input!$C$9*Input!$C$38-SUM(BC$51:BC56)))<0,0,BC57-IF(Input!$C$9*Input!$C$38>SUM(BC$51:BC56),(Input!$C$9*Input!$C$38-SUM(BC$51:BC56)),0)) -> 0
A58: 8 | C58: =ROUND(NORMDIST(A58,Reeksen!$B$46,Reeksen!$B$47,FALSE)*Reeksen!$B$45,0) -> 19 | D58: 0 | E58: 0 | F58: 0 | G58: 0 | H58: =IF((G58-(Input!$C$9*Input!$C$38-SUM(G$51:G57)))<0,0,G58-IF(Input!$C$9*Input!$C$38>SUM(G$51:G57),(Input!$C$9*Input!$C$38-SUM(G$51:G57)),0)) -> 0 | I58: =IF((H58-(Input!$C$9*Input!$C$38-SUM(H$51:H57)))<0,0,H58-IF(Input!$C$9*Input!$C$38>SUM(H$51:H57),(Input!$C$9*Input!$C$38-SUM(H$51:H57)),0)) -> 0 | J58: =IF((I58-(Input!$C$9*Input!$C$38-SUM(I$51:I57)))<0,0,I58-IF(Input!$C$9*Input!$C$38>SUM(I$51:I57),(Input!$C$9*Input!$C$38-SUM(I$51:I57)),0)) -> 0 | K58: =IF((J58-(Input!$C$9*Input!$C$38-SUM(J$51:J57)))<0,0,J58-IF(Input!$C$9*Input!$C$38>SUM(J$51:J57),(Input!$C$9*Input!$C$38-SUM(J$51:J57)),0)) -> 0 | L58: =IF((K58-(Input!$C$9*Input!$C$38-SUM(K$51:K57)))<0,0,K58-IF(Input!$C$9*Input!$C$38>SUM(K$51:K57),(Input!$C$9*Input!$C$38-SUM(K$51:K57)),0)) -> 0 | M58: =IF((L58-(Input!$C$9*Input!$C$38-SUM(L$51:L57)))<0,0,L58-IF(Input!$C$9*Input!$C$38>SUM(L$51:L57),(Input!$C$9*Input!$C$38-SUM(L$51:L57)),0)) -> 0 | N58: =IF((M58-(Input!$C$9*Input!$C$38-SUM(M$51:M57)))<0,0,M58-IF(Input!$C$9*Input!$C$38>SUM(M$51:M57),(Input!$C$9*Input!$C$38-SUM(M$51:M57)),0)) -> 0 | O58: =IF((N58-(Input!$C$9*Input!$C$38-SUM(N$51:N57)))<0,0,N58-IF(Input!$C$9*Input!$C$38>SUM(N$51:N57),(Input!$C$9*Input!$C$38-SUM(N$51:N57)),0)) -> 0 | P58: =IF((O58-(Input!$C$9*Input!$C$38-SUM(O$51:O57)))<0,0,O58-IF(Input!$C$9*Input!$C$38>SUM(O$51:O57),(Input!$C$9*Input!$C$38-SUM(O$51:O57)),0)) -> 0 | Q58: =IF((P58-(Input!$C$9*Input!$C$38-SUM(P$51:P57)))<0,0,P58-IF(Input!$C$9*Input!$C$38>SUM(P$51:P57),(Input!$C$9*Input!$C$38-SUM(P$51:P57)),0)) -> 0 | R58: =IF((Q58-(Input!$C$9*Input!$C$38-SUM(Q$51:Q57)))<0,0,Q58-IF(Input!$C$9*Input!$C$38>SUM(Q$51:Q57),(Input!$C$9*Input!$C$38-SUM(Q$51:Q57)),0)) -> 0 | S58: =IF((R58-(Input!$C$9*Input!$C$38-SUM(R$51:R57)))<0,0,R58-IF(Input!$C$9*Input!$C$38>SUM(R$51:R57),(Input!$C$9*Input!$C$38-SUM(R$51:R57)),0)) -> 0 | T58: =IF((S58-(Input!$C$9*Input!$C$38-SUM(S$51:S57)))<0,0,S58-IF(Input!$C$9*Input!$C$38>SUM(S$51:S57),(Input!$C$9*Input!$C$38-SUM(S$51:S57)),0)) -> 0 | U58: =IF((T58-(Input!$C$9*Input!$C$38-SUM(T$51:T57)))<0,0,T58-IF(Input!$C$9*Input!$C$38>SUM(T$51:T57),(Input!$C$9*Input!$C$38-SUM(T$51:T57)),0)) -> 0 | V58: =IF((U58-(Input!$C$9*Input!$C$38-SUM(U$51:U57)))<0,0,U58-IF(Input!$C$9*Input!$C$38>SUM(U$51:U57),(Input!$C$9*Input!$C$38-SUM(U$51:U57)),0)) -> 0 | W58: =IF((V58-(Input!$C$9*Input!$C$38-SUM(V$51:V57)))<0,0,V58-IF(Input!$C$9*Input!$C$38>SUM(V$51:V57),(Input!$C$9*Input!$C$38-SUM(V$51:V57)),0)) -> 0 | X58: =IF((W58-(Input!$C$9*Input!$C$38-SUM(W$51:W57)))<0,0,W58-IF(Input!$C$9*Input!$C$38>SUM(W$51:W57),(Input!$C$9*Input!$C$38-SUM(W$51:W57)),0)) -> 0 | Y58: =IF((X58-(Input!$C$9*Input!$C$38-SUM(X$51:X57)))<0,0,X58-IF(Input!$C$9*Input!$C$38>SUM(X$51:X57),(Input!$C$9*Input!$C$38-SUM(X$51:X57)),0)) -> 0 | Z58: =IF((Y58-(Input!$C$9*Input!$C$38-SUM(Y$51:Y57)))<0,0,Y58-IF(Input!$C$9*Input!$C$38>SUM(Y$51:Y57),(Input!$C$9*Input!$C$38-SUM(Y$51:Y57)),0)) -> 0 | AA58: =IF((Z58-(Input!$C$9*Input!$C$38-SUM(Z$51:Z57)))<0,0,Z58-IF(Input!$C$9*Input!$C$38>SUM(Z$51:Z57),(Input!$C$9*Input!$C$38-SUM(Z$51:Z57)),0)) -> 0 | AB58: =IF((AA58-(Input!$C$9*Input!$C$38-SUM(AA$51:AA57)))<0,0,AA58-IF(Input!$C$9*Input!$C$38>SUM(AA$51:AA57),(Input!$C$9*Input!$C$38-SUM(AA$51:AA57)),0)) -> 0 | AC58: =IF((AB58-(Input!$C$9*Input!$C$38-SUM(AB$51:AB57)))<0,0,AB58-IF(Input!$C$9*Input!$C$38>SUM(AB$51:AB57),(Input!$C$9*Input!$C$38-SUM(AB$51:AB57)),0)) -> 0 | AD58: =IF((AC58-(Input!$C$9*Input!$C$38-SUM(AC$51:AC57)))<0,0,AC58-IF(Input!$C$9*Input!$C$38>SUM(AC$51:AC57),(Input!$C$9*Input!$C$38-SUM(AC$51:AC57)),0)) -> 0 | AE58: =IF((AD58-(Input!$C$9*Input!$C$38-SUM(AD$51:AD57)))<0,0,AD58-IF(Input!$C$9*Input!$C$38>SUM(AD$51:AD57),(Input!$C$9*Input!$C$38-SUM(AD$51:AD57)),0)) -> 0 | AF58: =IF((AE58-(Input!$C$9*Input!$C$38-SUM(AE$51:AE57)))<0,0,AE58-IF(Input!$C$9*Input!$C$38>SUM(AE$51:AE57),(Input!$C$9*Input!$C$38-SUM(AE$51:AE57)),0)) -> 0 | AG58: =IF((AF58-(Input!$C$9*Input!$C$38-SUM(AF$51:AF57)))<0,0,AF58-IF(Input!$C$9*Input!$C$38>SUM(AF$51:AF57),(Input!$C$9*Input!$C$38-SUM(AF$51:AF57)),0)) -> 0 | AH58: =IF((AG58-(Input!$C$9*Input!$C$38-SUM(AG$51:AG57)))<0,0,AG58-IF(Input!$C$9*Input!$C$38>SUM(AG$51:AG57),(Input!$C$9*Input!$C$38-SUM(AG$51:AG57)),0)) -> 0 | AI58: =IF((AH58-(Input!$C$9*Input!$C$38-SUM(AH$51:AH57)))<0,0,AH58-IF(Input!$C$9*Input!$C$38>SUM(AH$51:AH57),(Input!$C$9*Input!$C$38-SUM(AH$51:AH57)),0)) -> 0 | AJ58: =IF((AI58-(Input!$C$9*Input!$C$38-SUM(AI$51:AI57)))<0,0,AI58-IF(Input!$C$9*Input!$C$38>SUM(AI$51:AI57),(Input!$C$9*Input!$C$38-SUM(AI$51:AI57)),0)) -> 0 | AK58: =IF((AJ58-(Input!$C$9*Input!$C$38-SUM(AJ$51:AJ57)))<0,0,AJ58-IF(Input!$C$9*Input!$C$38>SUM(AJ$51:AJ57),(Input!$C$9*Input!$C$38-SUM(AJ$51:AJ57)),0)) -> 0 | AL58: =IF((AK58-(Input!$C$9*Input!$C$38-SUM(AK$51:AK57)))<0,0,AK58-IF(Input!$C$9*Input!$C$38>SUM(AK$51:AK57),(Input!$C$9*Input!$C$38-SUM(AK$51:AK57)),0)) -> 0 | AM58: =IF((AL58-(Input!$C$9*Input!$C$38-SUM(AL$51:AL57)))<0,0,AL58-IF(Input!$C$9*Input!$C$38>SUM(AL$51:AL57),(Input!$C$9*Input!$C$38-SUM(AL$51:AL57)),0)) -> 0 | AN58: =IF((AM58-(Input!$C$9*Input!$C$38-SUM(AM$51:AM57)))<0,0,AM58-IF(Input!$C$9*Input!$C$38>SUM(AM$51:AM57),(Input!$C$9*Input!$C$38-SUM(AM$51:AM57)),0)) -> 0 | AO58: =IF((AN58-(Input!$C$9*Input!$C$38-SUM(AN$51:AN57)))<0,0,AN58-IF(Input!$C$9*Input!$C$38>SUM(AN$51:AN57),(Input!$C$9*Input!$C$38-SUM(AN$51:AN57)),0)) -> 0 | AP58: =IF((AO58-(Input!$C$9*Input!$C$38-SUM(AO$51:AO57)))<0,0,AO58-IF(Input!$C$9*Input!$C$38>SUM(AO$51:AO57),(Input!$C$9*Input!$C$38-SUM(AO$51:AO57)),0)) -> 0 | AQ58: =IF((AP58-(Input!$C$9*Input!$C$38-SUM(AP$51:AP57)))<0,0,AP58-IF(Input!$C$9*Input!$C$38>SUM(AP$51:AP57),(Input!$C$9*Input!$C$38-SUM(AP$51:AP57)),0)) -> 0 | AR58: =IF((AQ58-(Input!$C$9*Input!$C$38-SUM(AQ$51:AQ57)))<0,0,AQ58-IF(Input!$C$9*Input!$C$38>SUM(AQ$51:AQ57),(Input!$C$9*Input!$C$38-SUM(AQ$51:AQ57)),0)) -> 0 | AS58: =IF((AR58-(Input!$C$9*Input!$C$38-SUM(AR$51:AR57)))<0,0,AR58-IF(Input!$C$9*Input!$C$38>SUM(AR$51:AR57),(Input!$C$9*Input!$C$38-SUM(AR$51:AR57)),0)) -> 0 | AT58: =IF((AS58-(Input!$C$9*Input!$C$38-SUM(AS$51:AS57)))<0,0,AS58-IF(Input!$C$9*Input!$C$38>SUM(AS$51:AS57),(Input!$C$9*Input!$C$38-SUM(AS$51:AS57)),0)) -> 0 | AU58: =IF((AT58-(Input!$C$9*Input!$C$38-SUM(AT$51:AT57)))<0,0,AT58-IF(Input!$C$9*Input!$C$38>SUM(AT$51:AT57),(Input!$C$9*Input!$C$38-SUM(AT$51:AT57)),0)) -> 0 | AV58: =IF((AU58-(Input!$C$9*Input!$C$38-SUM(AU$51:AU57)))<0,0,AU58-IF(Input!$C$9*Input!$C$38>SUM(AU$51:AU57),(Input!$C$9*Input!$C$38-SUM(AU$51:AU57)),0)) -> 0 | AW58: =IF((AV58-(Input!$C$9*Input!$C$38-SUM(AV$51:AV57)))<0,0,AV58-IF(Input!$C$9*Input!$C$38>SUM(AV$51:AV57),(Input!$C$9*Input!$C$38-SUM(AV$51:AV57)),0)) -> 0 | AX58: =IF((AW58-(Input!$C$9*Input!$C$38-SUM(AW$51:AW57)))<0,0,AW58-IF(Input!$C$9*Input!$C$38>SUM(AW$51:AW57),(Input!$C$9*Input!$C$38-SUM(AW$51:AW57)),0)) -> 0 | AY58: =IF((AX58-(Input!$C$9*Input!$C$38-SUM(AX$51:AX57)))<0,0,AX58-IF(Input!$C$9*Input!$C$38>SUM(AX$51:AX57),(Input!$C$9*Input!$C$38-SUM(AX$51:AX57)),0)) -> 0 | AZ58: =IF((AY58-(Input!$C$9*Input!$C$38-SUM(AY$51:AY57)))<0,0,AY58-IF(Input!$C$9*Input!$C$38>SUM(AY$51:AY57),(Input!$C$9*Input!$C$38-SUM(AY$51:AY57)),0)) -> 0 | BA58: =IF((AZ58-(Input!$C$9*Input!$C$38-SUM(AZ$51:AZ57)))<0,0,AZ58-IF(Input!$C$9*Input!$C$38>SUM(AZ$51:AZ57),(Input!$C$9*Input!$C$38-SUM(AZ$51:AZ57)),0)) -> 0 | BB58: =IF((BA58-(Input!$C$9*Input!$C$38-SUM(BA$51:BA57)))<0,0,BA58-IF(Input!$C$9*Input!$C$38>SUM(BA$51:BA57),(Input!$C$9*Input!$C$38-SUM(BA$51:BA57)),0)) -> 0 | BC58: =IF((BB58-(Input!$C$9*Input!$C$38-SUM(BB$51:BB57)))<0,0,BB58-IF(Input!$C$9*Input!$C$38>SUM(BB$51:BB57),(Input!$C$9*Input!$C$38-SUM(BB$51:BB57)),0)) -> 0 | BD58: =IF((BC58-(Input!$C$9*Input!$C$38-SUM(BC$51:BC57)))<0,0,BC58-IF(Input!$C$9*Input!$C$38>SUM(BC$51:BC57),(Input!$C$9*Input!$C$38-SUM(BC$51:BC57)),0)) -> 0
A59: 9 | C59: =ROUND(NORMDIST(A59,Reeksen!$B$46,Reeksen!$B$47,FALSE)*Reeksen!$B$45,0) -> 28 | D59: 0 | E59: 0 | F59: 0 | G59: 0 | H59: =IF((G59-(Input!$C$9*Input!$C$38-SUM(G$51:G58)))<0,0,G59-IF(Input!$C$9*Input!$C$38>SUM(G$51:G58),(Input!$C$9*Input!$C$38-SUM(G$51:G58)),0)) -> 0 | I59: =IF((H59-(Input!$C$9*Input!$C$38-SUM(H$51:H58)))<0,0,H59-IF(Input!$C$9*Input!$C$38>SUM(H$51:H58),(Input!$C$9*Input!$C$38-SUM(H$51:H58)),0)) -> 0 | J59: =IF((I59-(Input!$C$9*Input!$C$38-SUM(I$51:I58)))<0,0,I59-IF(Input!$C$9*Input!$C$38>SUM(I$51:I58),(Input!$C$9*Input!$C$38-SUM(I$51:I58)),0)) -> 0 | K59: =IF((J59-(Input!$C$9*Input!$C$38-SUM(J$51:J58)))<0,0,J59-IF(Input!$C$9*Input!$C$38>SUM(J$51:J58),(Input!$C$9*Input!$C$38-SUM(J$51:J58)),0)) -> 0 | L59: =IF((K59-(Input!$C$9*Input!$C$38-SUM(K$51:K58)))<0,0,K59-IF(Input!$C$9*Input!$C$38>SUM(K$51:K58),(Input!$C$9*Input!$C$38-SUM(K$51:K58)),0)) -> 0 | M59: =IF((L59-(Input!$C$9*Input!$C$38-SUM(L$51:L58)))<0,0,L59-IF(Input!$C$9*Input!$C$38>SUM(L$51:L58),(Input!$C$9*Input!$C$38-SUM(L$51:L58)),0)) -> 0 | N59: =IF((M59-(Input!$C$9*Input!$C$38-SUM(M$51:M58)))<0,0,M59-IF(Input!$C$9*Input!$C$38>SUM(M$51:M58),(Input!$C$9*Input!$C$38-SUM(M$51:M58)),0)) -> 0 | O59: =IF((N59-(Input!$C$9*Input!$C$38-SUM(N$51:N58)))<0,0,N59-IF(Input!$C$9*Input!$C$38>SUM(N$51:N58),(Input!$C$9*Input!$C$38-SUM(N$51:N58)),0)) -> 0 | P59: =IF((O59-(Input!$C$9*Input!$C$38-SUM(O$51:O58)))<0,0,O59-IF(Input!$C$9*Input!$C$38>SUM(O$51:O58),(Input!$C$9*Input!$C$38-SUM(O$51:O58)),0)) -> 0 | Q59: =IF((P59-(Input!$C$9*Input!$C$38-SUM(P$51:P58)))<0,0,P59-IF(Input!$C$9*Input!$C$38>SUM(P$51:P58),(Input!$C$9*Input!$C$38-SUM(P$51:P58)),0)) -> 0 | R59: =IF((Q59-(Input!$C$9*Input!$C$38-SUM(Q$51:Q58)))<0,0,Q59-IF(Input!$C$9*Input!$C$38>SUM(Q$51:Q58),(Input!$C$9*Input!$C$38-SUM(Q$51:Q58)),0)) -> 0 | S59: =IF((R59-(Input!$C$9*Input!$C$38-SUM(R$51:R58)))<0,0,R59-IF(Input!$C$9*Input!$C$38>SUM(R$51:R58),(Input!$C$9*Input!$C$38-SUM(R$51:R58)),0)) -> 0 | T59: =IF((S59-(Input!$C$9*Input!$C$38-SUM(S$51:S58)))<0,0,S59-IF(Input!$C$9*Input!$C$38>SUM(S$51:S58),(Input!$C$9*Input!$C$38-SUM(S$51:S58)),0)) -> 0 | U59: =IF((T59-(Input!$C$9*Input!$C$38-SUM(T$51:T58)))<0,0,T59-IF(Input!$C$9*Input!$C$38>SUM(T$51:T58),(Input!$C$9*Input!$C$38-SUM(T$51:T58)),0)) -> 0 | V59: =IF((U59-(Input!$C$9*Input!$C$38-SUM(U$51:U58)))<0,0,U59-IF(Input!$C$9*Input!$C$38>SUM(U$51:U58),(Input!$C$9*Input!$C$38-SUM(U$51:U58)),0)) -> 0 | W59: =IF((V59-(Input!$C$9*Input!$C$38-SUM(V$51:V58)))<0,0,V59-IF(Input!$C$9*Input!$C$38>SUM(V$51:V58),(Input!$C$9*Input!$C$38-SUM(V$51:V58)),0)) -> 0 | X59: =IF((W59-(Input!$C$9*Input!$C$38-SUM(W$51:W58)))<0,0,W59-IF(Input!$C$9*Input!$C$38>SUM(W$51:W58),(Input!$C$9*Input!$C$38-SUM(W$51:W58)),0)) -> 0 | Y59: =IF((X59-(Input!$C$9*Input!$C$38-SUM(X$51:X58)))<0,0,X59-IF(Input!$C$9*Input!$C$38>SUM(X$51:X58),(Input!$C$9*Input!$C$38-SUM(X$51:X58)),0)) -> 0 | Z59: =IF((Y59-(Input!$C$9*Input!$C$38-SUM(Y$51:Y58)))<0,0,Y59-IF(Input!$C$9*Input!$C$38>SUM(Y$51:Y58),(Input!$C$9*Input!$C$38-SUM(Y$51:Y58)),0)) -> 0 | AA59: =IF((Z59-(Input!$C$9*Input!$C$38-SUM(Z$51:Z58)))<0,0,Z59-IF(Input!$C$9*Input!$C$38>SUM(Z$51:Z58),(Input!$C$9*Input!$C$38-SUM(Z$51:Z58)),0)) -> 0 | AB59: =IF((AA59-(Input!$C$9*Input!$C$38-SUM(AA$51:AA58)))<0,0,AA59-IF(Input!$C$9*Input!$C$38>SUM(AA$51:AA58),(Input!$C$9*Input!$C$38-SUM(AA$51:AA58)),0)) -> 0 | AC59: =IF((AB59-(Input!$C$9*Input!$C$38-SUM(AB$51:AB58)))<0,0,AB59-IF(Input!$C$9*Input!$C$38>SUM(AB$51:AB58),(Input!$C$9*Input!$C$38-SUM(AB$51:AB58)),0)) -> 0 | AD59: =IF((AC59-(Input!$C$9*Input!$C$38-SUM(AC$51:AC58)))<0,0,AC59-IF(Input!$C$9*Input!$C$38>SUM(AC$51:AC58),(Input!$C$9*Input!$C$38-SUM(AC$51:AC58)),0)) -> 0 | AE59: =IF((AD59-(Input!$C$9*Input!$C$38-SUM(AD$51:AD58)))<0,0,AD59-IF(Input!$C$9*Input!$C$38>SUM(AD$51:AD58),(Input!$C$9*Input!$C$38-SUM(AD$51:AD58)),0)) -> 0 | AF59: =IF((AE59-(Input!$C$9*Input!$C$38-SUM(AE$51:AE58)))<0,0,AE59-IF(Input!$C$9*Input!$C$38>SUM(AE$51:AE58),(Input!$C$9*Input!$C$38-SUM(AE$51:AE58)),0)) -> 0 | AG59: =IF((AF59-(Input!$C$9*Input!$C$38-SUM(AF$51:AF58)))<0,0,AF59-IF(Input!$C$9*Input!$C$38>SUM(AF$51:AF58),(Input!$C$9*Input!$C$38-SUM(AF$51:AF58)),0)) -> 0 | AH59: =IF((AG59-(Input!$C$9*Input!$C$38-SUM(AG$51:AG58)))<0,0,AG59-IF(Input!$C$9*Input!$C$38>SUM(AG$51:AG58),(Input!$C$9*Input!$C$38-SUM(AG$51:AG58)),0)) -> 0 | AI59: =IF((AH59-(Input!$C$9*Input!$C$38-SUM(AH$51:AH58)))<0,0,AH59-IF(Input!$C$9*Input!$C$38>SUM(AH$51:AH58),(Input!$C$9*Input!$C$38-SUM(AH$51:AH58)),0)) -> 0 | AJ59: =IF((AI59-(Input!$C$9*Input!$C$38-SUM(AI$51:AI58)))<0,0,AI59-IF(Input!$C$9*Input!$C$38>SUM(AI$51:AI58),(Input!$C$9*Input!$C$38-SUM(AI$51:AI58)),0)) -> 0 | AK59: =IF((AJ59-(Input!$C$9*Input!$C$38-SUM(AJ$51:AJ58)))<0,0,AJ59-IF(Input!$C$9*Input!$C$38>SUM(AJ$51:AJ58),(Input!$C$9*Input!$C$38-SUM(AJ$51:AJ58)),0)) -> 0 | AL59: =IF((AK59-(Input!$C$9*Input!$C$38-SUM(AK$51:AK58)))<0,0,AK59-IF(Input!$C$9*Input!$C$38>SUM(AK$51:AK58),(Input!$C$9*Input!$C$38-SUM(AK$51:AK58)),0)) -> 0 | AM59: =IF((AL59-(Input!$C$9*Input!$C$38-SUM(AL$51:AL58)))<0,0,AL59-IF(Input!$C$9*Input!$C$38>SUM(AL$51:AL58),(Input!$C$9*Input!$C$38-SUM(AL$51:AL58)),0)) -> 0 | AN59: =IF((AM59-(Input!$C$9*Input!$C$38-SUM(AM$51:AM58)))<0,0,AM59-IF(Input!$C$9*Input!$C$38>SUM(AM$51:AM58),(Input!$C$9*Input!$C$38-SUM(AM$51:AM58)),0)) -> 0 | AO59: =IF((AN59-(Input!$C$9*Input!$C$38-SUM(AN$51:AN58)))<0,0,AN59-IF(Input!$C$9*Input!$C$38>SUM(AN$51:AN58),(Input!$C$9*Input!$C$38-SUM(AN$51:AN58)),0)) -> 0 | AP59: =IF((AO59-(Input!$C$9*Input!$C$38-SUM(AO$51:AO58)))<0,0,AO59-IF(Input!$C$9*Input!$C$38>SUM(AO$51:AO58),(Input!$C$9*Input!$C$38-SUM(AO$51:AO58)),0)) -> 0 | AQ59: =IF((AP59-(Input!$C$9*Input!$C$38-SUM(AP$51:AP58)))<0,0,AP59-IF(Input!$C$9*Input!$C$38>SUM(AP$51:AP58),(Input!$C$9*Input!$C$38-SUM(AP$51:AP58)),0)) -> 0 | AR59: =IF((AQ59-(Input!$C$9*Input!$C$38-SUM(AQ$51:AQ58)))<0,0,AQ59-IF(Input!$C$9*Input!$C$38>SUM(AQ$51:AQ58),(Input!$C$9*Input!$C$38-SUM(AQ$51:AQ58)),0)) -> 0 | AS59: =IF((AR59-(Input!$C$9*Input!$C$38-SUM(AR$51:AR58)))<0,0,AR59-IF(Input!$C$9*Input!$C$38>SUM(AR$51:AR58),(Input!$C$9*Input!$C$38-SUM(AR$51:AR58)),0)) -> 0 | AT59: =IF((AS59-(Input!$C$9*Input!$C$38-SUM(AS$51:AS58)))<0,0,AS59-IF(Input!$C$9*Input!$C$38>SUM(AS$51:AS58),(Input!$C$9*Input!$C$38-SUM(AS$51:AS58)),0)) -> 0 | AU59: =IF((AT59-(Input!$C$9*Input!$C$38-SUM(AT$51:AT58)))<0,0,AT59-IF(Input!$C$9*Input!$C$38>SUM(AT$51:AT58),(Input!$C$9*Input!$C$38-SUM(AT$51:AT58)),0)) -> 0 | AV59: =IF((AU59-(Input!$C$9*Input!$C$38-SUM(AU$51:AU58)))<0,0,AU59-IF(Input!$C$9*Input!$C$38>SUM(AU$51:AU58),(Input!$C$9*Input!$C$38-SUM(AU$51:AU58)),0)) -> 0 | AW59: =IF((AV59-(Input!$C$9*Input!$C$38-SUM(AV$51:AV58)))<0,0,AV59-IF(Input!$C$9*Input!$C$38>SUM(AV$51:AV58),(Input!$C$9*Input!$C$38-SUM(AV$51:AV58)),0)) -> 0 | AX59: =IF((AW59-(Input!$C$9*Input!$C$38-SUM(AW$51:AW58)))<0,0,AW59-IF(Input!$C$9*Input!$C$38>SUM(AW$51:AW58),(Input!$C$9*Input!$C$38-SUM(AW$51:AW58)),0)) -> 0 | AY59: =IF((AX59-(Input!$C$9*Input!$C$38-SUM(AX$51:AX58)))<0,0,AX59-IF(Input!$C$9*Input!$C$38>SUM(AX$51:AX58),(Input!$C$9*Input!$C$38-SUM(AX$51:AX58)),0)) -> 0 | AZ59: =IF((AY59-(Input!$C$9*Input!$C$38-SUM(AY$51:AY58)))<0,0,AY59-IF(Input!$C$9*Input!$C$38>SUM(AY$51:AY58),(Input!$C$9*Input!$C$38-SUM(AY$51:AY58)),0)) -> 0 | BA59: =IF((AZ59-(Input!$C$9*Input!$C$38-SUM(AZ$51:AZ58)))<0,0,AZ59-IF(Input!$C$9*Input!$C$38>SUM(AZ$51:AZ58),(Input!$C$9*Input!$C$38-SUM(AZ$51:AZ58)),0)) -> 0 | BB59: =IF((BA59-(Input!$C$9*Input!$C$38-SUM(BA$51:BA58)))<0,0,BA59-IF(Input!$C$9*Input!$C$38>SUM(BA$51:BA58),(Input!$C$9*Input!$C$38-SUM(BA$51:BA58)),0)) -> 0 | BC59: =IF((BB59-(Input!$C$9*Input!$C$38-SUM(BB$51:BB58)))<0,0,BB59-IF(Input!$C$9*Input!$C$38>SUM(BB$51:BB58),(Input!$C$9*Input!$C$38-SUM(BB$51:BB58)),0)) -> 0 | BD59: =IF((BC59-(Input!$C$9*Input!$C$38-SUM(BC$51:BC58)))<0,0,BC59-IF(Input!$C$9*Input!$C$38>SUM(BC$51:BC58),(Input!$C$9*Input!$C$38-SUM(BC$51:BC58)),0)) -> 0
A60: 10 | C60: =ROUND(NORMDIST(A60,Reeksen!$B$46,Reeksen!$B$47,FALSE)*Reeksen!$B$45,0) -> 39 | D60: 0 | E60: 0 | F60: 0 | G60: 0 | H60: =IF((G60-(Input!$C$9*Input!$C$38-SUM(G$51:G59)))<0,0,G60-IF(Input!$C$9*Input!$C$38>SUM(G$51:G59),(Input!$C$9*Input!$C$38-SUM(G$51:G59)),0)) -> 0 | I60: =IF((H60-(Input!$C$9*Input!$C$38-SUM(H$51:H59)))<0,0,H60-IF(Input!$C$9*Input!$C$38>SUM(H$51:H59),(Input!$C$9*Input!$C$38-SUM(H$51:H59)),0)) -> 0 | J60: =IF((I60-(Input!$C$9*Input!$C$38-SUM(I$51:I59)))<0,0,I60-IF(Input!$C$9*Input!$C$38>SUM(I$51:I59),(Input!$C$9*Input!$C$38-SUM(I$51:I59)),0)) -> 0 | K60: =IF((J60-(Input!$C$9*Input!$C$38-SUM(J$51:J59)))<0,0,J60-IF(Input!$C$9*Input!$C$38>SUM(J$51:J59),(Input!$C$9*Input!$C$38-SUM(J$51:J59)),0)) -> 0 | L60: =IF((K60-(Input!$C$9*Input!$C$38-SUM(K$51:K59)))<0,0,K60-IF(Input!$C$9*Input!$C$38>SUM(K$51:K59),(Input!$C$9*Input!$C$38-SUM(K$51:K59)),0)) -> 0 | M60: =IF((L60-(Input!$C$9*Input!$C$38-SUM(L$51:L59)))<0,0,L60-IF(Input!$C$9*Input!$C$38>SUM(L$51:L59),(Input!$C$9*Input!$C$38-SUM(L$51:L59)),0)) -> 0 | N60: =IF((M60-(Input!$C$9*Input!$C$38-SUM(M$51:M59)))<0,0,M60-IF(Input!$C$9*Input!$C$38>SUM(M$51:M59),(Input!$C$9*Input!$C$38-SUM(M$51:M59)),0)) -> 0 | O60: =IF((N60-(Input!$C$9*Input!$C$38-SUM(N$51:N59)))<0,0,N60-IF(Input!$C$9*Input!$C$38>SUM(N$51:N59),(Input!$C$9*Input!$C$38-SUM(N$51:N59)),0)) -> 0 | P60: =IF((O60-(Input!$C$9*Input!$C$38-SUM(O$51:O59)))<0,0,O60-IF(Input!$C$9*Input!$C$38>SUM(O$51:O59),(Input!$C$9*Input!$C$38-SUM(O$51:O59)),0)) -> 0 | Q60: =IF((P60-(Input!$C$9*Input!$C$38-SUM(P$51:P59)))<0,0,P60-IF(Input!$C$9*Input!$C$38>SUM(P$51:P59),(Input!$C$9*Input!$C$38-SUM(P$51:P59)),0)) -> 0 | R60: =IF((Q60-(Input!$C$9*Input!$C$38-SUM(Q$51:Q59)))<0,0,Q60-IF(Input!$C$9*Input!$C$38>SUM(Q$51:Q59),(Input!$C$9*Input!$C$38-SUM(Q$51:Q59)),0)) -> 0 | S60: =IF((R60-(Input!$C$9*Input!$C$38-SUM(R$51:R59)))<0,0,R60-IF(Input!$C$9*Input!$C$38>SUM(R$51:R59),(Input!$C$9*Input!$C$38-SUM(R$51:R59)),0)) -> 0 | T60: =IF((S60-(Input!$C$9*Input!$C$38-SUM(S$51:S59)))<0,0,S60-IF(Input!$C$9*Input!$C$38>SUM(S$51:S59),(Input!$C$9*Input!$C$38-SUM(S$51:S59)),0)) -> 0 | U60: =IF((T60-(Input!$C$9*Input!$C$38-SUM(T$51:T59)))<0,0,T60-IF(Input!$C$9*Input!$C$38>SUM(T$51:T59),(Input!$C$9*Input!$C$38-SUM(T$51:T59)),0)) -> 0 | V60: =IF((U60-(Input!$C$9*Input!$C$38-SUM(U$51:U59)))<0,0,U60-IF(Input!$C$9*Input!$C$38>SUM(U$51:U59),(Input!$C$9*Input!$C$38-SUM(U$51:U59)),0)) -> 0 | W60: =IF((V60-(Input!$C$9*Input!$C$38-SUM(V$51:V59)))<0,0,V60-IF(Input!$C$9*Input!$C$38>SUM(V$51:V59),(Input!$C$9*Input!$C$38-SUM(V$51:V59)),0)) -> 0 | X60: =IF((W60-(Input!$C$9*Input!$C$38-SUM(W$51:W59)))<0,0,W60-IF(Input!$C$9*Input!$C$38>SUM(W$51:W59),(Input!$C$9*Input!$C$38-SUM(W$51:W59)),0)) -> 0 | Y60: =IF((X60-(Input!$C$9*Input!$C$38-SUM(X$51:X59)))<0,0,X60-IF(Input!$C$9*Input!$C$38>SUM(X$51:X59),(Input!$C$9*Input!$C$38-SUM(X$51:X59)),0)) -> 0 | Z60: =IF((Y60-(Input!$C$9*Input!$C$38-SUM(Y$51:Y59)))<0,0,Y60-IF(Input!$C$9*Input!$C$38>SUM(Y$51:Y59),(Input!$C$9*Input!$C$38-SUM(Y$51:Y59)),0)) -> 0 | AA60: =IF((Z60-(Input!$C$9*Input!$C$38-SUM(Z$51:Z59)))<0,0,Z60-IF(Input!$C$9*Input!$C$38>SUM(Z$51:Z59),(Input!$C$9*Input!$C$38-SUM(Z$51:Z59)),0)) -> 0 | AB60: =IF((AA60-(Input!$C$9*Input!$C$38-SUM(AA$51:AA59)))<0,0,AA60-IF(Input!$C$9*Input!$C$38>SUM(AA$51:AA59),(Input!$C$9*Input!$C$38-SUM(AA$51:AA59)),0)) -> 0 | AC60: =IF((AB60-(Input!$C$9*Input!$C$38-SUM(AB$51:AB59)))<0,0,AB60-IF(Input!$C$9*Input!$C$38>SUM(AB$51:AB59),(Input!$C$9*Input!$C$38-SUM(AB$51:AB59)),0)) -> 0 | AD60: =IF((AC60-(Input!$C$9*Input!$C$38-SUM(AC$51:AC59)))<0,0,AC60-IF(Input!$C$9*Input!$C$38>SUM(AC$51:AC59),(Input!$C$9*Input!$C$38-SUM(AC$51:AC59)),0)) -> 0 | AE60: =IF((AD60-(Input!$C$9*Input!$C$38-SUM(AD$51:AD59)))<0,0,AD60-IF(Input!$C$9*Input!$C$38>SUM(AD$51:AD59),(Input!$C$9*Input!$C$38-SUM(AD$51:AD59)),0)) -> 0 | AF60: =IF((AE60-(Input!$C$9*Input!$C$38-SUM(AE$51:AE59)))<0,0,AE60-IF(Input!$C$9*Input!$C$38>SUM(AE$51:AE59),(Input!$C$9*Input!$C$38-SUM(AE$51:AE59)),0)) -> 0 | AG60: =IF((AF60-(Input!$C$9*Input!$C$38-SUM(AF$51:AF59)))<0,0,AF60-IF(Input!$C$9*Input!$C$38>SUM(AF$51:AF59),(Input!$C$9*Input!$C$38-SUM(AF$51:AF59)),0)) -> 0 | AH60: =IF((AG60-(Input!$C$9*Input!$C$38-SUM(AG$51:AG59)))<0,0,AG60-IF(Input!$C$9*Input!$C$38>SUM(AG$51:AG59),(Input!$C$9*Input!$C$38-SUM(AG$51:AG59)),0)) -> 0 | AI60: =IF((AH60-(Input!$C$9*Input!$C$38-SUM(AH$51:AH59)))<0,0,AH60-IF(Input!$C$9*Input!$C$38>SUM(AH$51:AH59),(Input!$C$9*Input!$C$38-SUM(AH$51:AH59)),0)) -> 0 | AJ60: =IF((AI60-(Input!$C$9*Input!$C$38-SUM(AI$51:AI59)))<0,0,AI60-IF(Input!$C$9*Input!$C$38>SUM(AI$51:AI59),(Input!$C$9*Input!$C$38-SUM(AI$51:AI59)),0)) -> 0 | AK60: =IF((AJ60-(Input!$C$9*Input!$C$38-SUM(AJ$51:AJ59)))<0,0,AJ60-IF(Input!$C$9*Input!$C$38>SUM(AJ$51:AJ59),(Input!$C$9*Input!$C$38-SUM(AJ$51:AJ59)),0)) -> 0 | AL60: =IF((AK60-(Input!$C$9*Input!$C$38-SUM(AK$51:AK59)))<0,0,AK60-IF(Input!$C$9*Input!$C$38>SUM(AK$51:AK59),(Input!$C$9*Input!$C$38-SUM(AK$51:AK59)),0)) -> 0 | AM60: =IF((AL60-(Input!$C$9*Input!$C$38-SUM(AL$51:AL59)))<0,0,AL60-IF(Input!$C$9*Input!$C$38>SUM(AL$51:AL59),(Input!$C$9*Input!$C$38-SUM(AL$51:AL59)),0)) -> 0 | AN60: =IF((AM60-(Input!$C$9*Input!$C$38-SUM(AM$51:AM59)))<0,0,AM60-IF(Input!$C$9*Input!$C$38>SUM(AM$51:AM59),(Input!$C$9*Input!$C$38-SUM(AM$51:AM59)),0)) -> 0 | AO60: =IF((AN60-(Input!$C$9*Input!$C$38-SUM(AN$51:AN59)))<0,0,AN60-IF(Input!$C$9*Input!$C$38>SUM(AN$51:AN59),(Input!$C$9*Input!$C$38-SUM(AN$51:AN59)),0)) -> 0 | AP60: =IF((AO60-(Input!$C$9*Input!$C$38-SUM(AO$51:AO59)))<0,0,AO60-IF(Input!$C$9*Input!$C$38>SUM(AO$51:AO59),(Input!$C$9*Input!$C$38-SUM(AO$51:AO59)),0)) -> 0 | AQ60: =IF((AP60-(Input!$C$9*Input!$C$38-SUM(AP$51:AP59)))<0,0,AP60-IF(Input!$C$9*Input!$C$38>SUM(AP$51:AP59),(Input!$C$9*Input!$C$38-SUM(AP$51:AP59)),0)) -> 0 | AR60: =IF((AQ60-(Input!$C$9*Input!$C$38-SUM(AQ$51:AQ59)))<0,0,AQ60-IF(Input!$C$9*Input!$C$38>SUM(AQ$51:AQ59),(Input!$C$9*Input!$C$38-SUM(AQ$51:AQ59)),0)) -> 0 | AS60: =IF((AR60-(Input!$C$9*Input!$C$38-SUM(AR$51:AR59)))<0,0,AR60-IF(Input!$C$9*Input!$C$38>SUM(AR$51:AR59),(Input!$C$9*Input!$C$38-SUM(AR$51:AR59)),0)) -> 0 | AT60: =IF((AS60-(Input!$C$9*Input!$C$38-SUM(AS$51:AS59)))<0,0,AS60-IF(Input!$C$9*Input!$C$38>SUM(AS$51:AS59),(Input!$C$9*Input!$C$38-SUM(AS$51:AS59)),0)) -> 0 | AU60: =IF((AT60-(Input!$C$9*Input!$C$38-SUM(AT$51:AT59)))<0,0,AT60-IF(Input!$C$9*Input!$C$38>SUM(AT$51:AT59),(Input!$C$9*Input!$C$38-SUM(AT$51:AT59)),0)) -> 0 | AV60: =IF((AU60-(Input!$C$9*Input!$C$38-SUM(AU$51:AU59)))<0,0,AU60-IF(Input!$C$9*Input!$C$38>SUM(AU$51:AU59),(Input!$C$9*Input!$C$38-SUM(AU$51:AU59)),0)) -> 0 | AW60: =IF((AV60-(Input!$C$9*Input!$C$38-SUM(AV$51:AV59)))<0,0,AV60-IF(Input!$C$9*Input!$C$38>SUM(AV$51:AV59),(Input!$C$9*Input!$C$38-SUM(AV$51:AV59)),0)) -> 0 | AX60: =IF((AW60-(Input!$C$9*Input!$C$38-SUM(AW$51:AW59)))<0,0,AW60-IF(Input!$C$9*Input!$C$38>SUM(AW$51:AW59),(Input!$C$9*Input!$C$38-SUM(AW$51:AW59)),0)) -> 0 | AY60: =IF((AX60-(Input!$C$9*Input!$C$38-SUM(AX$51:AX59)))<0,0,AX60-IF(Input!$C$9*Input!$C$38>SUM(AX$51:AX59),(Input!$C$9*Input!$C$38-SUM(AX$51:AX59)),0)) -> 0 | AZ60: =IF((AY60-(Input!$C$9*Input!$C$38-SUM(AY$51:AY59)))<0,0,AY60-IF(Input!$C$9*Input!$C$38>SUM(AY$51:AY59),(Input!$C$9*Input!$C$38-SUM(AY$51:AY59)),0)) -> 0 | BA60: =IF((AZ60-(Input!$C$9*Input!$C$38-SUM(AZ$51:AZ59)))<0,0,AZ60-IF(Input!$C$9*Input!$C$38>SUM(AZ$51:AZ59),(Input!$C$9*Input!$C$38-SUM(AZ$51:AZ59)),0)) -> 0 | BB60: =IF((BA60-(Input!$C$9*Input!$C$38-SUM(BA$51:BA59)))<0,0,BA60-IF(Input!$C$9*Input!$C$38>SUM(BA$51:BA59),(Input!$C$9*Input!$C$38-SUM(BA$51:BA59)),0)) -> 0 | BC60: =IF((BB60-(Input!$C$9*Input!$C$38-SUM(BB$51:BB59)))<0,0,BB60-IF(Input!$C$9*Input!$C$38>SUM(BB$51:BB59),(Input!$C$9*Input!$C$38-SUM(BB$51:BB59)),0)) -> 0 | BD60: =IF((BC60-(Input!$C$9*Input!$C$38-SUM(BC$51:BC59)))<0,0,BC60-IF(Input!$C$9*Input!$C$38>SUM(BC$51:BC59),(Input!$C$9*Input!$C$38-SUM(BC$51:BC59)),0)) -> 0
A61: 11 | C61: =ROUND(NORMDIST(A61,Reeksen!$B$46,Reeksen!$B$47,FALSE)*Reeksen!$B$45,0) -> 53 | D61: 0 | E61: 0 | F61: 0 | G61: 0 | H61: =IF((G61-(Input!$C$9*Input!$C$38-SUM(G$51:G60)))<0,0,G61-IF(Input!$C$9*Input!$C$38>SUM(G$51:G60),(Input!$C$9*Input!$C$38-SUM(G$51:G60)),0)) -> 0 | I61: =IF((H61-(Input!$C$9*Input!$C$38-SUM(H$51:H60)))<0,0,H61-IF(Input!$C$9*Input!$C$38>SUM(H$51:H60),(Input!$C$9*Input!$C$38-SUM(H$51:H60)),0)) -> 0 | J61: =IF((I61-(Input!$C$9*Input!$C$38-SUM(I$51:I60)))<0,0,I61-IF(Input!$C$9*Input!$C$38>SUM(I$51:I60),(Input!$C$9*Input!$C$38-SUM(I$51:I60)),0)) -> 0 | K61: =IF((J61-(Input!$C$9*Input!$C$38-SUM(J$51:J60)))<0,0,J61-IF(Input!$C$9*Input!$C$38>SUM(J$51:J60),(Input!$C$9*Input!$C$38-SUM(J$51:J60)),0)) -> 0 | L61: =IF((K61-(Input!$C$9*Input!$C$38-SUM(K$51:K60)))<0,0,K61-IF(Input!$C$9*Input!$C$38>SUM(K$51:K60),(Input!$C$9*Input!$C$38-SUM(K$51:K60)),0)) -> 0 | M61: =IF((L61-(Input!$C$9*Input!$C$38-SUM(L$51:L60)))<0,0,L61-IF(Input!$C$9*Input!$C$38>SUM(L$51:L60),(Input!$C$9*Input!$C$38-SUM(L$51:L60)),0)) -> 0 | N61: =IF((M61-(Input!$C$9*Input!$C$38-SUM(M$51:M60)))<0,0,M61-IF(Input!$C$9*Input!$C$38>SUM(M$51:M60),(Input!$C$9*Input!$C$38-SUM(M$51:M60)),0)) -> 0 | O61: =IF((N61-(Input!$C$9*Input!$C$38-SUM(N$51:N60)))<0,0,N61-IF(Input!$C$9*Input!$C$38>SUM(N$51:N60),(Input!$C$9*Input!$C$38-SUM(N$51:N60)),0)) -> 0 | P61: =IF((O61-(Input!$C$9*Input!$C$38-SUM(O$51:O60)))<0,0,O61-IF(Input!$C$9*Input!$C$38>SUM(O$51:O60),(Input!$C$9*Input!$C$38-SUM(O$51:O60)),0)) -> 0 | Q61: =IF((P61-(Input!$C$9*Input!$C$38-SUM(P$51:P60)))<0,0,P61-IF(Input!$C$9*Input!$C$38>SUM(P$51:P60),(Input!$C$9*Input!$C$38-SUM(P$51:P60)),0)) -> 0 | R61: =IF((Q61-(Input!$C$9*Input!$C$38-SUM(Q$51:Q60)))<0,0,Q61-IF(Input!$C$9*Input!$C$38>SUM(Q$51:Q60),(Input!$C$9*Input!$C$38-SUM(Q$51:Q60)),0)) -> 0 | S61: =IF((R61-(Input!$C$9*Input!$C$38-SUM(R$51:R60)))<0,0,R61-IF(Input!$C$9*Input!$C$38>SUM(R$51:R60),(Input!$C$9*Input!$C$38-SUM(R$51:R60)),0)) -> 0 | T61: =IF((S61-(Input!$C$9*Input!$C$38-SUM(S$51:S60)))<0,0,S61-IF(Input!$C$9*Input!$C$38>SUM(S$51:S60),(Input!$C$9*Input!$C$38-SUM(S$51:S60)),0)) -> 0 | U61: =IF((T61-(Input!$C$9*Input!$C$38-SUM(T$51:T60)))<0,0,T61-IF(Input!$C$9*Input!$C$38>SUM(T$51:T60),(Input!$C$9*Input!$C$38-SUM(T$51:T60)),0)) -> 0 | V61: =IF((U61-(Input!$C$9*Input!$C$38-SUM(U$51:U60)))<0,0,U61-IF(Input!$C$9*Input!$C$38>SUM(U$51:U60),(Input!$C$9*Input!$C$38-SUM(U$51:U60)),0)) -> 0 | W61: =IF((V61-(Input!$C$9*Input!$C$38-SUM(V$51:V60)))<0,0,V61-IF(Input!$C$9*Input!$C$38>SUM(V$51:V60),(Input!$C$9*Input!$C$38-SUM(V$51:V60)),0)) -> 0 | X61: =IF((W61-(Input!$C$9*Input!$C$38-SUM(W$51:W60)))<0,0,W61-IF(Input!$C$9*Input!$C$38>SUM(W$51:W60),(Input!$C$9*Input!$C$38-SUM(W$51:W60)),0)) -> 0 | Y61: =IF((X61-(Input!$C$9*Input!$C$38-SUM(X$51:X60)))<0,0,X61-IF(Input!$C$9*Input!$C$38>SUM(X$51:X60),(Input!$C$9*Input!$C$38-SUM(X$51:X60)),0)) -> 0 | Z61: =IF((Y61-(Input!$C$9*Input!$C$38-SUM(Y$51:Y60)))<0,0,Y61-IF(Input!$C$9*Input!$C$38>SUM(Y$51:Y60),(Input!$C$9*Input!$C$38-SUM(Y$51:Y60)),0)) -> 0 | AA61: =IF((Z61-(Input!$C$9*Input!$C$38-SUM(Z$51:Z60)))<0,0,Z61-IF(Input!$C$9*Input!$C$38>SUM(Z$51:Z60),(Input!$C$9*Input!$C$38-SUM(Z$51:Z60)),0)) -> 0 | AB61: =IF((AA61-(Input!$C$9*Input!$C$38-SUM(AA$51:AA60)))<0,0,AA61-IF(Input!$C$9*Input!$C$38>SUM(AA$51:AA60),(Input!$C$9*Input!$C$38-SUM(AA$51:AA60)),0)) -> 0 | AC61: =IF((AB61-(Input!$C$9*Input!$C$38-SUM(AB$51:AB60)))<0,0,AB61-IF(Input!$C$9*Input!$C$38>SUM(AB$51:AB60),(Input!$C$9*Input!$C$38-SUM(AB$51:AB60)),0)) -> 0 | AD61: =IF((AC61-(Input!$C$9*Input!$C$38-SUM(AC$51:AC60)))<0,0,AC61-IF(Input!$C$9*Input!$C$38>SUM(AC$51:AC60),(Input!$C$9*Input!$C$38-SUM(AC$51:AC60)),0)) -> 0 | AE61: =IF((AD61-(Input!$C$9*Input!$C$38-SUM(AD$51:AD60)))<0,0,AD61-IF(Input!$C$9*Input!$C$38>SUM(AD$51:AD60),(Input!$C$9*Input!$C$38-SUM(AD$51:AD60)),0)) -> 0 | AF61: =IF((AE61-(Input!$C$9*Input!$C$38-SUM(AE$51:AE60)))<0,0,AE61-IF(Input!$C$9*Input!$C$38>SUM(AE$51:AE60),(Input!$C$9*Input!$C$38-SUM(AE$51:AE60)),0)) -> 0 | AG61: =IF((AF61-(Input!$C$9*Input!$C$38-SUM(AF$51:AF60)))<0,0,AF61-IF(Input!$C$9*Input!$C$38>SUM(AF$51:AF60),(Input!$C$9*Input!$C$38-SUM(AF$51:AF60)),0)) -> 0 | AH61: =IF((AG61-(Input!$C$9*Input!$C$38-SUM(AG$51:AG60)))<0,0,AG61-IF(Input!$C$9*Input!$C$38>SUM(AG$51:AG60),(Input!$C$9*Input!$C$38-SUM(AG$51:AG60)),0)) -> 0 | AI61: =IF((AH61-(Input!$C$9*Input!$C$38-SUM(AH$51:AH60)))<0,0,AH61-IF(Input!$C$9*Input!$C$38>SUM(AH$51:AH60),(Input!$C$9*Input!$C$38-SUM(AH$51:AH60)),0)) -> 0 | AJ61: =IF((AI61-(Input!$C$9*Input!$C$38-SUM(AI$51:AI60)))<0,0,AI61-IF(Input!$C$9*Input!$C$38>SUM(AI$51:AI60),(Input!$C$9*Input!$C$38-SUM(AI$51:AI60)),0)) -> 0 | AK61: =IF((AJ61-(Input!$C$9*Input!$C$38-SUM(AJ$51:AJ60)))<0,0,AJ61-IF(Input!$C$9*Input!$C$38>SUM(AJ$51:AJ60),(Input!$C$9*Input!$C$38-SUM(AJ$51:AJ60)),0)) -> 0 | AL61: =IF((AK61-(Input!$C$9*Input!$C$38-SUM(AK$51:AK60)))<0,0,AK61-IF(Input!$C$9*Input!$C$38>SUM(AK$51:AK60),(Input!$C$9*Input!$C$38-SUM(AK$51:AK60)),0)) -> 0 | AM61: =IF((AL61-(Input!$C$9*Input!$C$38-SUM(AL$51:AL60)))<0,0,AL61-IF(Input!$C$9*Input!$C$38>SUM(AL$51:AL60),(Input!$C$9*Input!$C$38-SUM(AL$51:AL60)),0)) -> 0 | AN61: =IF((AM61-(Input!$C$9*Input!$C$38-SUM(AM$51:AM60)))<0,0,AM61-IF(Input!$C$9*Input!$C$38>SUM(AM$51:AM60),(Input!$C$9*Input!$C$38-SUM(AM$51:AM60)),0)) -> 0 | AO61: =IF((AN61-(Input!$C$9*Input!$C$38-SUM(AN$51:AN60)))<0,0,AN61-IF(Input!$C$9*Input!$C$38>SUM(AN$51:AN60),(Input!$C$9*Input!$C$38-SUM(AN$51:AN60)),0)) -> 0 | AP61: =IF((AO61-(Input!$C$9*Input!$C$38-SUM(AO$51:AO60)))<0,0,AO61-IF(Input!$C$9*Input!$C$38>SUM(AO$51:AO60),(Input!$C$9*Input!$C$38-SUM(AO$51:AO60)),0)) -> 0 | AQ61: =IF((AP61-(Input!$C$9*Input!$C$38-SUM(AP$51:AP60)))<0,0,AP61-IF(Input!$C$9*Input!$C$38>SUM(AP$51:AP60),(Input!$C$9*Input!$C$38-SUM(AP$51:AP60)),0)) -> 0 | AR61: =IF((AQ61-(Input!$C$9*Input!$C$38-SUM(AQ$51:AQ60)))<0,0,AQ61-IF(Input!$C$9*Input!$C$38>SUM(AQ$51:AQ60),(Input!$C$9*Input!$C$38-SUM(AQ$51:AQ60)),0)) -> 0 | AS61: =IF((AR61-(Input!$C$9*Input!$C$38-SUM(AR$51:AR60)))<0,0,AR61-IF(Input!$C$9*Input!$C$38>SUM(AR$51:AR60),(Input!$C$9*Input!$C$38-SUM(AR$51:AR60)),0)) -> 0 | AT61: =IF((AS61-(Input!$C$9*Input!$C$38-SUM(AS$51:AS60)))<0,0,AS61-IF(Input!$C$9*Input!$C$38>SUM(AS$51:AS60),(Input!$C$9*Input!$C$38-SUM(AS$51:AS60)),0)) -> 0 | AU61: =IF((AT61-(Input!$C$9*Input!$C$38-SUM(AT$51:AT60)))<0,0,AT61-IF(Input!$C$9*Input!$C$38>SUM(AT$51:AT60),(Input!$C$9*Input!$C$38-SUM(AT$51:AT60)),0)) -> 0 | AV61: =IF((AU61-(Input!$C$9*Input!$C$38-SUM(AU$51:AU60)))<0,0,AU61-IF(Input!$C$9*Input!$C$38>SUM(AU$51:AU60),(Input!$C$9*Input!$C$38-SUM(AU$51:AU60)),0)) -> 0 | AW61: =IF((AV61-(Input!$C$9*Input!$C$38-SUM(AV$51:AV60)))<0,0,AV61-IF(Input!$C$9*Input!$C$38>SUM(AV$51:AV60),(Input!$C$9*Input!$C$38-SUM(AV$51:AV60)),0)) -> 0 | AX61: =IF((AW61-(Input!$C$9*Input!$C$38-SUM(AW$51:AW60)))<0,0,AW61-IF(Input!$C$9*Input!$C$38>SUM(AW$51:AW60),(Input!$C$9*Input!$C$38-SUM(AW$51:AW60)),0)) -> 0 | AY61: =IF((AX61-(Input!$C$9*Input!$C$38-SUM(AX$51:AX60)))<0,0,AX61-IF(Input!$C$9*Input!$C$38>SUM(AX$51:AX60),(Input!$C$9*Input!$C$38-SUM(AX$51:AX60)),0)) -> 0 | AZ61: =IF((AY61-(Input!$C$9*Input!$C$38-SUM(AY$51:AY60)))<0,0,AY61-IF(Input!$C$9*Input!$C$38>SUM(AY$51:AY60),(Input!$C$9*Input!$C$38-SUM(AY$51:AY60)),0)) -> 0 | BA61: =IF((AZ61-(Input!$C$9*Input!$C$38-SUM(AZ$51:AZ60)))<0,0,AZ61-IF(Input!$C$9*Input!$C$38>SUM(AZ$51:AZ60),(Input!$C$9*Input!$C$38-SUM(AZ$51:AZ60)),0)) -> 0 | BB61: =IF((BA61-(Input!$C$9*Input!$C$38-SUM(BA$51:BA60)))<0,0,BA61-IF(Input!$C$9*Input!$C$38>SUM(BA$51:BA60),(Input!$C$9*Input!$C$38-SUM(BA$51:BA60)),0)) -> 0 | BC61: =IF((BB61-(Input!$C$9*Input!$C$38-SUM(BB$51:BB60)))<0,0,BB61-IF(Input!$C$9*Input!$C$38>SUM(BB$51:BB60),(Input!$C$9*Input!$C$38-SUM(BB$51:BB60)),0)) -> 0 | BD61: =IF((BC61-(Input!$C$9*Input!$C$38-SUM(BC$51:BC60)))<0,0,BC61-IF(Input!$C$9*Input!$C$38>SUM(BC$51:BC60),(Input!$C$9*Input!$C$38-SUM(BC$51:BC60)),0)) -> 0
A62: 12 | C62: =ROUND(NORMDIST(A62,Reeksen!$B$46,Reeksen!$B$47,FALSE)*Reeksen!$B$45,0) -> 70 | D62: 0 | E62: 0 | F62: 0 | G62: 0 | H62: =IF((G62-(Input!$C$9*Input!$C$38-SUM(G$51:G61)))<0,0,G62-IF(Input!$C$9*Input!$C$38>SUM(G$51:G61),(Input!$C$9*Input!$C$38-SUM(G$51:G61)),0)) -> 0 | I62: =IF((H62-(Input!$C$9*Input!$C$38-SUM(H$51:H61)))<0,0,H62-IF(Input!$C$9*Input!$C$38>SUM(H$51:H61),(Input!$C$9*Input!$C$38-SUM(H$51:H61)),0)) -> 0 | J62: =IF((I62-(Input!$C$9*Input!$C$38-SUM(I$51:I61)))<0,0,I62-IF(Input!$C$9*Input!$C$38>SUM(I$51:I61),(Input!$C$9*Input!$C$38-SUM(I$51:I61)),0)) -> 0 | K62: =IF((J62-(Input!$C$9*Input!$C$38-SUM(J$51:J61)))<0,0,J62-IF(Input!$C$9*Input!$C$38>SUM(J$51:J61),(Input!$C$9*Input!$C$38-SUM(J$51:J61)),0)) -> 0 | L62: =IF((K62-(Input!$C$9*Input!$C$38-SUM(K$51:K61)))<0,0,K62-IF(Input!$C$9*Input!$C$38>SUM(K$51:K61),(Input!$C$9*Input!$C$38-SUM(K$51:K61)),0)) -> 0 | M62: =IF((L62-(Input!$C$9*Input!$C$38-SUM(L$51:L61)))<0,0,L62-IF(Input!$C$9*Input!$C$38>SUM(L$51:L61),(Input!$C$9*Input!$C$38-SUM(L$51:L61)),0)) -> 0 | N62: =IF((M62-(Input!$C$9*Input!$C$38-SUM(M$51:M61)))<0,0,M62-IF(Input!$C$9*Input!$C$38>SUM(M$51:M61),(Input!$C$9*Input!$C$38-SUM(M$51:M61)),0)) -> 0 | O62: =IF((N62-(Input!$C$9*Input!$C$38-SUM(N$51:N61)))<0,0,N62-IF(Input!$C$9*Input!$C$38>SUM(N$51:N61),(Input!$C$9*Input!$C$38-SUM(N$51:N61)),0)) -> 0 | P62: =IF((O62-(Input!$C$9*Input!$C$38-SUM(O$51:O61)))<0,0,O62-IF(Input!$C$9*Input!$C$38>SUM(O$51:O61),(Input!$C$9*Input!$C$38-SUM(O$51:O61)),0)) -> 0 | Q62: =IF((P62-(Input!$C$9*Input!$C$38-SUM(P$51:P61)))<0,0,P62-IF(Input!$C$9*Input!$C$38>SUM(P$51:P61),(Input!$C$9*Input!$C$38-SUM(P$51:P61)),0)) -> 0 | R62: =IF((Q62-(Input!$C$9*Input!$C$38-SUM(Q$51:Q61)))<0,0,Q62-IF(Input!$C$9*Input!$C$38>SUM(Q$51:Q61),(Input!$C$9*Input!$C$38-SUM(Q$51:Q61)),0)) -> 0 | S62: =IF((R62-(Input!$C$9*Input!$C$38-SUM(R$51:R61)))<0,0,R62-IF(Input!$C$9*Input!$C$38>SUM(R$51:R61),(Input!$C$9*Input!$C$38-SUM(R$51:R61)),0)) -> 0 | T62: =IF((S62-(Input!$C$9*Input!$C$38-SUM(S$51:S61)))<0,0,S62-IF(Input!$C$9*Input!$C$38>SUM(S$51:S61),(Input!$C$9*Input!$C$38-SUM(S$51:S61)),0)) -> 0 | U62: =IF((T62-(Input!$C$9*Input!$C$38-SUM(T$51:T61)))<0,0,T62-IF(Input!$C$9*Input!$C$38>SUM(T$51:T61),(Input!$C$9*Input!$C$38-SUM(T$51:T61)),0)) -> 0 | V62: =IF((U62-(Input!$C$9*Input!$C$38-SUM(U$51:U61)))<0,0,U62-IF(Input!$C$9*Input!$C$38>SUM(U$51:U61),(Input!$C$9*Input!$C$38-SUM(U$51:U61)),0)) -> 0 | W62: =IF((V62-(Input!$C$9*Input!$C$38-SUM(V$51:V61)))<0,0,V62-IF(Input!$C$9*Input!$C$38>SUM(V$51:V61),(Input!$C$9*Input!$C$38-SUM(V$51:V61)),0)) -> 0 | X62: =IF((W62-(Input!$C$9*Input!$C$38-SUM(W$51:W61)))<0,0,W62-IF(Input!$C$9*Input!$C$38>SUM(W$51:W61),(Input!$C$9*Input!$C$38-SUM(W$51:W61)),0)) -> 0 | Y62: =IF((X62-(Input!$C$9*Input!$C$38-SUM(X$51:X61)))<0,0,X62-IF(Input!$C$9*Input!$C$38>SUM(X$51:X61),(Input!$C$9*Input!$C$38-SUM(X$51:X61)),0)) -> 0 | Z62: =IF((Y62-(Input!$C$9*Input!$C$38-SUM(Y$51:Y61)))<0,0,Y62-IF(Input!$C$9*Input!$C$38>SUM(Y$51:Y61),(Input!$C$9*Input!$C$38-SUM(Y$51:Y61)),0)) -> 0 | AA62: =IF((Z62-(Input!$C$9*Input!$C$38-SUM(Z$51:Z61)))<0,0,Z62-IF(Input!$C$9*Input!$C$38>SUM(Z$51:Z61),(Input!$C$9*Input!$C$38-SUM(Z$51:Z61)),0)) -> 0 | AB62: =IF((AA62-(Input!$C$9*Input!$C$38-SUM(AA$51:AA61)))<0,0,AA62-IF(Input!$C$9*Input!$C$38>SUM(AA$51:AA61),(Input!$C$9*Input!$C$38-SUM(AA$51:AA61)),0)) -> 0 | AC62: =IF((AB62-(Input!$C$9*Input!$C$38-SUM(AB$51:AB61)))<0,0,AB62-IF(Input!$C$9*Input!$C$38>SUM(AB$51:AB61),(Input!$C$9*Input!$C$38-SUM(AB$51:AB61)),0)) -> 0 | AD62: =IF((AC62-(Input!$C$9*Input!$C$38-SUM(AC$51:AC61)))<0,0,AC62-IF(Input!$C$9*Input!$C$38>SUM(AC$51:AC61),(Input!$C$9*Input!$C$38-SUM(AC$51:AC61)),0)) -> 0 | AE62: =IF((AD62-(Input!$C$9*Input!$C$38-SUM(AD$51:AD61)))<0,0,AD62-IF(Input!$C$9*Input!$C$38>SUM(AD$51:AD61),(Input!$C$9*Input!$C$38-SUM(AD$51:AD61)),0)) -> 0 | AF62: =IF((AE62-(Input!$C$9*Input!$C$38-SUM(AE$51:AE61)))<0,0,AE62-IF(Input!$C$9*Input!$C$38>SUM(AE$51:AE61),(Input!$C$9*Input!$C$38-SUM(AE$51:AE61)),0)) -> 0 | AG62: =IF((AF62-(Input!$C$9*Input!$C$38-SUM(AF$51:AF61)))<0,0,AF62-IF(Input!$C$9*Input!$C$38>SUM(AF$51:AF61),(Input!$C$9*Input!$C$38-SUM(AF$51:AF61)),0)) -> 0 | AH62: =IF((AG62-(Input!$C$9*Input!$C$38-SUM(AG$51:AG61)))<0,0,AG62-IF(Input!$C$9*Input!$C$38>SUM(AG$51:AG61),(Input!$C$9*Input!$C$38-SUM(AG$51:AG61)),0)) -> 0 | AI62: =IF((AH62-(Input!$C$9*Input!$C$38-SUM(AH$51:AH61)))<0,0,AH62-IF(Input!$C$9*Input!$C$38>SUM(AH$51:AH61),(Input!$C$9*Input!$C$38-SUM(AH$51:AH61)),0)) -> 0 | AJ62: =IF((AI62-(Input!$C$9*Input!$C$38-SUM(AI$51:AI61)))<0,0,AI62-IF(Input!$C$9*Input!$C$38>SUM(AI$51:AI61),(Input!$C$9*Input!$C$38-SUM(AI$51:AI61)),0)) -> 0 | AK62: =IF((AJ62-(Input!$C$9*Input!$C$38-SUM(AJ$51:AJ61)))<0,0,AJ62-IF(Input!$C$9*Input!$C$38>SUM(AJ$51:AJ61),(Input!$C$9*Input!$C$38-SUM(AJ$51:AJ61)),0)) -> 0 | AL62: =IF((AK62-(Input!$C$9*Input!$C$38-SUM(AK$51:AK61)))<0,0,AK62-IF(Input!$C$9*Input!$C$38>SUM(AK$51:AK61),(Input!$C$9*Input!$C$38-SUM(AK$51:AK61)),0)) -> 0 | AM62: =IF((AL62-(Input!$C$9*Input!$C$38-SUM(AL$51:AL61)))<0,0,AL62-IF(Input!$C$9*Input!$C$38>SUM(AL$51:AL61),(Input!$C$9*Input!$C$38-SUM(AL$51:AL61)),0)) -> 0 | AN62: =IF((AM62-(Input!$C$9*Input!$C$38-SUM(AM$51:AM61)))<0,0,AM62-IF(Input!$C$9*Input!$C$38>SUM(AM$51:AM61),(Input!$C$9*Input!$C$38-SUM(AM$51:AM61)),0)) -> 0 | AO62: =IF((AN62-(Input!$C$9*Input!$C$38-SUM(AN$51:AN61)))<0,0,AN62-IF(Input!$C$9*Input!$C$38>SUM(AN$51:AN61),(Input!$C$9*Input!$C$38-SUM(AN$51:AN61)),0)) -> 0 | AP62: =IF((AO62-(Input!$C$9*Input!$C$38-SUM(AO$51:AO61)))<0,0,AO62-IF(Input!$C$9*Input!$C$38>SUM(AO$51:AO61),(Input!$C$9*Input!$C$38-SUM(AO$51:AO61)),0)) -> 0 | AQ62: =IF((AP62-(Input!$C$9*Input!$C$38-SUM(AP$51:AP61)))<0,0,AP62-IF(Input!$C$9*Input!$C$38>SUM(AP$51:AP61),(Input!$C$9*Input!$C$38-SUM(AP$51:AP61)),0)) -> 0 | AR62: =IF((AQ62-(Input!$C$9*Input!$C$38-SUM(AQ$51:AQ61)))<0,0,AQ62-IF(Input!$C$9*Input!$C$38>SUM(AQ$51:AQ61),(Input!$C$9*Input!$C$38-SUM(AQ$51:AQ61)),0)) -> 0 | AS62: =IF((AR62-(Input!$C$9*Input!$C$38-SUM(AR$51:AR61)))<0,0,AR62-IF(Input!$C$9*Input!$C$38>SUM(AR$51:AR61),(Input!$C$9*Input!$C$38-SUM(AR$51:AR61)),0)) -> 0 | AT62: =IF((AS62-(Input!$C$9*Input!$C$38-SUM(AS$51:AS61)))<0,0,AS62-IF(Input!$C$9*Input!$C$38>SUM(AS$51:AS61),(Input!$C$9*Input!$C$38-SUM(AS$51:AS61)),0)) -> 0 | AU62: =IF((AT62-(Input!$C$9*Input!$C$38-SUM(AT$51:AT61)))<0,0,AT62-IF(Input!$C$9*Input!$C$38>SUM(AT$51:AT61),(Input!$C$9*Input!$C$38-SUM(AT$51:AT61)),0)) -> 0 | AV62: =IF((AU62-(Input!$C$9*Input!$C$38-SUM(AU$51:AU61)))<0,0,AU62-IF(Input!$C$9*Input!$C$38>SUM(AU$51:AU61),(Input!$C$9*Input!$C$38-SUM(AU$51:AU61)),0)) -> 0 | AW62: =IF((AV62-(Input!$C$9*Input!$C$38-SUM(AV$51:AV61)))<0,0,AV62-IF(Input!$C$9*Input!$C$38>SUM(AV$51:AV61),(Input!$C$9*Input!$C$38-SUM(AV$51:AV61)),0)) -> 0 | AX62: =IF((AW62-(Input!$C$9*Input!$C$38-SUM(AW$51:AW61)))<0,0,AW62-IF(Input!$C$9*Input!$C$38>SUM(AW$51:AW61),(Input!$C$9*Input!$C$38-SUM(AW$51:AW61)),0)) -> 0 | AY62: =IF((AX62-(Input!$C$9*Input!$C$38-SUM(AX$51:AX61)))<0,0,AX62-IF(Input!$C$9*Input!$C$38>SUM(AX$51:AX61),(Input!$C$9*Input!$C$38-SUM(AX$51:AX61)),0)) -> 0 | AZ62: =IF((AY62-(Input!$C$9*Input!$C$38-SUM(AY$51:AY61)))<0,0,AY62-IF(Input!$C$9*Input!$C$38>SUM(AY$51:AY61),(Input!$C$9*Input!$C$38-SUM(AY$51:AY61)),0)) -> 0 | BA62: =IF((AZ62-(Input!$C$9*Input!$C$38-SUM(AZ$51:AZ61)))<0,0,AZ62-IF(Input!$C$9*Input!$C$38>SUM(AZ$51:AZ61),(Input!$C$9*Input!$C$38-SUM(AZ$51:AZ61)),0)) -> 0 | BB62: =IF((BA62-(Input!$C$9*Input!$C$38-SUM(BA$51:BA61)))<0,0,BA62-IF(Input!$C$9*Input!$C$38>SUM(BA$51:BA61),(Input!$C$9*Input!$C$38-SUM(BA$51:BA61)),0)) -> 0 | BC62: =IF((BB62-(Input!$C$9*Input!$C$38-SUM(BB$51:BB61)))<0,0,BB62-IF(Input!$C$9*Input!$C$38>SUM(BB$51:BB61),(Input!$C$9*Input!$C$38-SUM(BB$51:BB61)),0)) -> 0 | BD62: =IF((BC62-(Input!$C$9*Input!$C$38-SUM(BC$51:BC61)))<0,0,BC62-IF(Input!$C$9*Input!$C$38>SUM(BC$51:BC61),(Input!$C$9*Input!$C$38-SUM(BC$51:BC61)),0)) -> 0
A63: 13 | C63: =ROUND(NORMDIST(A63,Reeksen!$B$46,Reeksen!$B$47,FALSE)*Reeksen!$B$45,0) -> 91 | D63: 0 | E63: 0 | F63: 0 | G63: 0 | H63: =IF((G63-(Input!$C$9*Input!$C$38-SUM(G$51:G62)))<0,0,G63-IF(Input!$C$9*Input!$C$38>SUM(G$51:G62),(Input!$C$9*Input!$C$38-SUM(G$51:G62)),0)) -> 0 | I63: =IF((H63-(Input!$C$9*Input!$C$38-SUM(H$51:H62)))<0,0,H63-IF(Input!$C$9*Input!$C$38>SUM(H$51:H62),(Input!$C$9*Input!$C$38-SUM(H$51:H62)),0)) -> 0 | J63: =IF((I63-(Input!$C$9*Input!$C$38-SUM(I$51:I62)))<0,0,I63-IF(Input!$C$9*Input!$C$38>SUM(I$51:I62),(Input!$C$9*Input!$C$38-SUM(I$51:I62)),0)) -> 0 | K63: =IF((J63-(Input!$C$9*Input!$C$38-SUM(J$51:J62)))<0,0,J63-IF(Input!$C$9*Input!$C$38>SUM(J$51:J62),(Input!$C$9*Input!$C$38-SUM(J$51:J62)),0)) -> 0 | L63: =IF((K63-(Input!$C$9*Input!$C$38-SUM(K$51:K62)))<0,0,K63-IF(Input!$C$9*Input!$C$38>SUM(K$51:K62),(Input!$C$9*Input!$C$38-SUM(K$51:K62)),0)) -> 0 | M63: =IF((L63-(Input!$C$9*Input!$C$38-SUM(L$51:L62)))<0,0,L63-IF(Input!$C$9*Input!$C$38>SUM(L$51:L62),(Input!$C$9*Input!$C$38-SUM(L$51:L62)),0)) -> 0 | N63: =IF((M63-(Input!$C$9*Input!$C$38-SUM(M$51:M62)))<0,0,M63-IF(Input!$C$9*Input!$C$38>SUM(M$51:M62),(Input!$C$9*Input!$C$38-SUM(M$51:M62)),0)) -> 0 | O63: =IF((N63-(Input!$C$9*Input!$C$38-SUM(N$51:N62)))<0,0,N63-IF(Input!$C$9*Input!$C$38>SUM(N$51:N62),(Input!$C$9*Input!$C$38-SUM(N$51:N62)),0)) -> 0 | P63: =IF((O63-(Input!$C$9*Input!$C$38-SUM(O$51:O62)))<0,0,O63-IF(Input!$C$9*Input!$C$38>SUM(O$51:O62),(Input!$C$9*Input!$C$38-SUM(O$51:O62)),0)) -> 0 | Q63: =IF((P63-(Input!$C$9*Input!$C$38-SUM(P$51:P62)))<0,0,P63-IF(Input!$C$9*Input!$C$38>SUM(P$51:P62),(Input!$C$9*Input!$C$38-SUM(P$51:P62)),0)) -> 0 | R63: =IF((Q63-(Input!$C$9*Input!$C$38-SUM(Q$51:Q62)))<0,0,Q63-IF(Input!$C$9*Input!$C$38>SUM(Q$51:Q62),(Input!$C$9*Input!$C$38-SUM(Q$51:Q62)),0)) -> 0 | S63: =IF((R63-(Input!$C$9*Input!$C$38-SUM(R$51:R62)))<0,0,R63-IF(Input!$C$9*Input!$C$38>SUM(R$51:R62),(Input!$C$9*Input!$C$38-SUM(R$51:R62)),0)) -> 0 | T63: =IF((S63-(Input!$C$9*Input!$C$38-SUM(S$51:S62)))<0,0,S63-IF(Input!$C$9*Input!$C$38>SUM(S$51:S62),(Input!$C$9*Input!$C$38-SUM(S$51:S62)),0)) -> 0 | U63: =IF((T63-(Input!$C$9*Input!$C$38-SUM(T$51:T62)))<0,0,T63-IF(Input!$C$9*Input!$C$38>SUM(T$51:T62),(Input!$C$9*Input!$C$38-SUM(T$51:T62)),0)) -> 0 | V63: =IF((U63-(Input!$C$9*Input!$C$38-SUM(U$51:U62)))<0,0,U63-IF(Input!$C$9*Input!$C$38>SUM(U$51:U62),(Input!$C$9*Input!$C$38-SUM(U$51:U62)),0)) -> 0 | W63: =IF((V63-(Input!$C$9*Input!$C$38-SUM(V$51:V62)))<0,0,V63-IF(Input!$C$9*Input!$C$38>SUM(V$51:V62),(Input!$C$9*Input!$C$38-SUM(V$51:V62)),0)) -> 0 | X63: =IF((W63-(Input!$C$9*Input!$C$38-SUM(W$51:W62)))<0,0,W63-IF(Input!$C$9*Input!$C$38>SUM(W$51:W62),(Input!$C$9*Input!$C$38-SUM(W$51:W62)),0)) -> 0 | Y63: =IF((X63-(Input!$C$9*Input!$C$38-SUM(X$51:X62)))<0,0,X63-IF(Input!$C$9*Input!$C$38>SUM(X$51:X62),(Input!$C$9*Input!$C$38-SUM(X$51:X62)),0)) -> 0 | Z63: =IF((Y63-(Input!$C$9*Input!$C$38-SUM(Y$51:Y62)))<0,0,Y63-IF(Input!$C$9*Input!$C$38>SUM(Y$51:Y62),(Input!$C$9*Input!$C$38-SUM(Y$51:Y62)),0)) -> 0 | AA63: =IF((Z63-(Input!$C$9*Input!$C$38-SUM(Z$51:Z62)))<0,0,Z63-IF(Input!$C$9*Input!$C$38>SUM(Z$51:Z62),(Input!$C$9*Input!$C$38-SUM(Z$51:Z62)),0)) -> 0 | AB63: =IF((AA63-(Input!$C$9*Input!$C$38-SUM(AA$51:AA62)))<0,0,AA63-IF(Input!$C$9*Input!$C$38>SUM(AA$51:AA62),(Input!$C$9*Input!$C$38-SUM(AA$51:AA62)),0)) -> 0 | AC63: =IF((AB63-(Input!$C$9*Input!$C$38-SUM(AB$51:AB62)))<0,0,AB63-IF(Input!$C$9*Input!$C$38>SUM(AB$51:AB62),(Input!$C$9*Input!$C$38-SUM(AB$51:AB62)),0)) -> 0 | AD63: =IF((AC63-(Input!$C$9*Input!$C$38-SUM(AC$51:AC62)))<0,0,AC63-IF(Input!$C$9*Input!$C$38>SUM(AC$51:AC62),(Input!$C$9*Input!$C$38-SUM(AC$51:AC62)),0)) -> 0 | AE63: =IF((AD63-(Input!$C$9*Input!$C$38-SUM(AD$51:AD62)))<0,0,AD63-IF(Input!$C$9*Input!$C$38>SUM(AD$51:AD62),(Input!$C$9*Input!$C$38-SUM(AD$51:AD62)),0)) -> 0 | AF63: =IF((AE63-(Input!$C$9*Input!$C$38-SUM(AE$51:AE62)))<0,0,AE63-IF(Input!$C$9*Input!$C$38>SUM(AE$51:AE62),(Input!$C$9*Input!$C$38-SUM(AE$51:AE62)),0)) -> 0 | AG63: =IF((AF63-(Input!$C$9*Input!$C$38-SUM(AF$51:AF62)))<0,0,AF63-IF(Input!$C$9*Input!$C$38>SUM(AF$51:AF62),(Input!$C$9*Input!$C$38-SUM(AF$51:AF62)),0)) -> 0 | AH63: =IF((AG63-(Input!$C$9*Input!$C$38-SUM(AG$51:AG62)))<0,0,AG63-IF(Input!$C$9*Input!$C$38>SUM(AG$51:AG62),(Input!$C$9*Input!$C$38-SUM(AG$51:AG62)),0)) -> 0 | AI63: =IF((AH63-(Input!$C$9*Input!$C$38-SUM(AH$51:AH62)))<0,0,AH63-IF(Input!$C$9*Input!$C$38>SUM(AH$51:AH62),(Input!$C$9*Input!$C$38-SUM(AH$51:AH62)),0)) -> 0 | AJ63: =IF((AI63-(Input!$C$9*Input!$C$38-SUM(AI$51:AI62)))<0,0,AI63-IF(Input!$C$9*Input!$C$38>SUM(AI$51:AI62),(Input!$C$9*Input!$C$38-SUM(AI$51:AI62)),0)) -> 0 | AK63: =IF((AJ63-(Input!$C$9*Input!$C$38-SUM(AJ$51:AJ62)))<0,0,AJ63-IF(Input!$C$9*Input!$C$38>SUM(AJ$51:AJ62),(Input!$C$9*Input!$C$38-SUM(AJ$51:AJ62)),0)) -> 0 | AL63: =IF((AK63-(Input!$C$9*Input!$C$38-SUM(AK$51:AK62)))<0,0,AK63-IF(Input!$C$9*Input!$C$38>SUM(AK$51:AK62),(Input!$C$9*Input!$C$38-SUM(AK$51:AK62)),0)) -> 0 | AM63: =IF((AL63-(Input!$C$9*Input!$C$38-SUM(AL$51:AL62)))<0,0,AL63-IF(Input!$C$9*Input!$C$38>SUM(AL$51:AL62),(Input!$C$9*Input!$C$38-SUM(AL$51:AL62)),0)) -> 0 | AN63: =IF((AM63-(Input!$C$9*Input!$C$38-SUM(AM$51:AM62)))<0,0,AM63-IF(Input!$C$9*Input!$C$38>SUM(AM$51:AM62),(Input!$C$9*Input!$C$38-SUM(AM$51:AM62)),0)) -> 0 | AO63: =IF((AN63-(Input!$C$9*Input!$C$38-SUM(AN$51:AN62)))<0,0,AN63-IF(Input!$C$9*Input!$C$38>SUM(AN$51:AN62),(Input!$C$9*Input!$C$38-SUM(AN$51:AN62)),0)) -> 0 | AP63: =IF((AO63-(Input!$C$9*Input!$C$38-SUM(AO$51:AO62)))<0,0,AO63-IF(Input!$C$9*Input!$C$38>SUM(AO$51:AO62),(Input!$C$9*Input!$C$38-SUM(AO$51:AO62)),0)) -> 0 | AQ63: =IF((AP63-(Input!$C$9*Input!$C$38-SUM(AP$51:AP62)))<0,0,AP63-IF(Input!$C$9*Input!$C$38>SUM(AP$51:AP62),(Input!$C$9*Input!$C$38-SUM(AP$51:AP62)),0)) -> 0 | AR63: =IF((AQ63-(Input!$C$9*Input!$C$38-SUM(AQ$51:AQ62)))<0,0,AQ63-IF(Input!$C$9*Input!$C$38>SUM(AQ$51:AQ62),(Input!$C$9*Input!$C$38-SUM(AQ$51:AQ62)),0)) -> 0 | AS63: =IF((AR63-(Input!$C$9*Input!$C$38-SUM(AR$51:AR62)))<0,0,AR63-IF(Input!$C$9*Input!$C$38>SUM(AR$51:AR62),(Input!$C$9*Input!$C$38-SUM(AR$51:AR62)),0)) -> 0 | AT63: =IF((AS63-(Input!$C$9*Input!$C$38-SUM(AS$51:AS62)))<0,0,AS63-IF(Input!$C$9*Input!$C$38>SUM(AS$51:AS62),(Input!$C$9*Input!$C$38-SUM(AS$51:AS62)),0)) -> 0 | AU63: =IF((AT63-(Input!$C$9*Input!$C$38-SUM(AT$51:AT62)))<0,0,AT63-IF(Input!$C$9*Input!$C$38>SUM(AT$51:AT62),(Input!$C$9*Input!$C$38-SUM(AT$51:AT62)),0)) -> 0 | AV63: =IF((AU63-(Input!$C$9*Input!$C$38-SUM(AU$51:AU62)))<0,0,AU63-IF(Input!$C$9*Input!$C$38>SUM(AU$51:AU62),(Input!$C$9*Input!$C$38-SUM(AU$51:AU62)),0)) -> 0 | AW63: =IF((AV63-(Input!$C$9*Input!$C$38-SUM(AV$51:AV62)))<0,0,AV63-IF(Input!$C$9*Input!$C$38>SUM(AV$51:AV62),(Input!$C$9*Input!$C$38-SUM(AV$51:AV62)),0)) -> 0 | AX63: =IF((AW63-(Input!$C$9*Input!$C$38-SUM(AW$51:AW62)))<0,0,AW63-IF(Input!$C$9*Input!$C$38>SUM(AW$51:AW62),(Input!$C$9*Input!$C$38-SUM(AW$51:AW62)),0)) -> 0 | AY63: =IF((AX63-(Input!$C$9*Input!$C$38-SUM(AX$51:AX62)))<0,0,AX63-IF(Input!$C$9*Input!$C$38>SUM(AX$51:AX62),(Input!$C$9*Input!$C$38-SUM(AX$51:AX62)),0)) -> 0 | AZ63: =IF((AY63-(Input!$C$9*Input!$C$38-SUM(AY$51:AY62)))<0,0,AY63-IF(Input!$C$9*Input!$C$38>SUM(AY$51:AY62),(Input!$C$9*Input!$C$38-SUM(AY$51:AY62)),0)) -> 0 | BA63: =IF((AZ63-(Input!$C$9*Input!$C$38-SUM(AZ$51:AZ62)))<0,0,AZ63-IF(Input!$C$9*Input!$C$38>SUM(AZ$51:AZ62),(Input!$C$9*Input!$C$38-SUM(AZ$51:AZ62)),0)) -> 0 | BB63: =IF((BA63-(Input!$C$9*Input!$C$38-SUM(BA$51:BA62)))<0,0,BA63-IF(Input!$C$9*Input!$C$38>SUM(BA$51:BA62),(Input!$C$9*Input!$C$38-SUM(BA$51:BA62)),0)) -> 0 | BC63: =IF((BB63-(Input!$C$9*Input!$C$38-SUM(BB$51:BB62)))<0,0,BB63-IF(Input!$C$9*Input!$C$38>SUM(BB$51:BB62),(Input!$C$9*Input!$C$38-SUM(BB$51:BB62)),0)) -> 0 | BD63: =IF((BC63-(Input!$C$9*Input!$C$38-SUM(BC$51:BC62)))<0,0,BC63-IF(Input!$C$9*Input!$C$38>SUM(BC$51:BC62),(Input!$C$9*Input!$C$38-SUM(BC$51:BC62)),0)) -> 0
A64: 14 | C64: =ROUND(NORMDIST(A64,Reeksen!$B$46,Reeksen!$B$47,FALSE)*Reeksen!$B$45,0) -> 116 | D64: 0 | E64: 0 | F64: 0 | G64: 0 | H64: =IF((G64-(Input!$C$9*Input!$C$38-SUM(G$51:G63)))<0,0,G64-IF(Input!$C$9*Input!$C$38>SUM(G$51:G63),(Input!$C$9*Input!$C$38-SUM(G$51:G63)),0)) -> 0 | I64: =IF((H64-(Input!$C$9*Input!$C$38-SUM(H$51:H63)))<0,0,H64-IF(Input!$C$9*Input!$C$38>SUM(H$51:H63),(Input!$C$9*Input!$C$38-SUM(H$51:H63)),0)) -> 0 | J64: =IF((I64-(Input!$C$9*Input!$C$38-SUM(I$51:I63)))<0,0,I64-IF(Input!$C$9*Input!$C$38>SUM(I$51:I63),(Input!$C$9*Input!$C$38-SUM(I$51:I63)),0)) -> 0 | K64: =IF((J64-(Input!$C$9*Input!$C$38-SUM(J$51:J63)))<0,0,J64-IF(Input!$C$9*Input!$C$38>SUM(J$51:J63),(Input!$C$9*Input!$C$38-SUM(J$51:J63)),0)) -> 0 | L64: =IF((K64-(Input!$C$9*Input!$C$38-SUM(K$51:K63)))<0,0,K64-IF(Input!$C$9*Input!$C$38>SUM(K$51:K63),(Input!$C$9*Input!$C$38-SUM(K$51:K63)),0)) -> 0 | M64: =IF((L64-(Input!$C$9*Input!$C$38-SUM(L$51:L63)))<0,0,L64-IF(Input!$C$9*Input!$C$38>SUM(L$51:L63),(Input!$C$9*Input!$C$38-SUM(L$51:L63)),0)) -> 0 | N64: =IF((M64-(Input!$C$9*Input!$C$38-SUM(M$51:M63)))<0,0,M64-IF(Input!$C$9*Input!$C$38>SUM(M$51:M63),(Input!$C$9*Input!$C$38-SUM(M$51:M63)),0)) -> 0 | O64: =IF((N64-(Input!$C$9*Input!$C$38-SUM(N$51:N63)))<0,0,N64-IF(Input!$C$9*Input!$C$38>SUM(N$51:N63),(Input!$C$9*Input!$C$38-SUM(N$51:N63)),0)) -> 0 | P64: =IF((O64-(Input!$C$9*Input!$C$38-SUM(O$51:O63)))<0,0,O64-IF(Input!$C$9*Input!$C$38>SUM(O$51:O63),(Input!$C$9*Input!$C$38-SUM(O$51:O63)),0)) -> 0 | Q64: =IF((P64-(Input!$C$9*Input!$C$38-SUM(P$51:P63)))<0,0,P64-IF(Input!$C$9*Input!$C$38>SUM(P$51:P63),(Input!$C$9*Input!$C$38-SUM(P$51:P63)),0)) -> 0 | R64: =IF((Q64-(Input!$C$9*Input!$C$38-SUM(Q$51:Q63)))<0,0,Q64-IF(Input!$C$9*Input!$C$38>SUM(Q$51:Q63),(Input!$C$9*Input!$C$38-SUM(Q$51:Q63)),0)) -> 0 | S64: =IF((R64-(Input!$C$9*Input!$C$38-SUM(R$51:R63)))<0,0,R64-IF(Input!$C$9*Input!$C$38>SUM(R$51:R63),(Input!$C$9*Input!$C$38-SUM(R$51:R63)),0)) -> 0 | T64: =IF((S64-(Input!$C$9*Input!$C$38-SUM(S$51:S63)))<0,0,S64-IF(Input!$C$9*Input!$C$38>SUM(S$51:S63),(Input!$C$9*Input!$C$38-SUM(S$51:S63)),0)) -> 0 | U64: =IF((T64-(Input!$C$9*Input!$C$38-SUM(T$51:T63)))<0,0,T64-IF(Input!$C$9*Input!$C$38>SUM(T$51:T63),(Input!$C$9*Input!$C$38-SUM(T$51:T63)),0)) -> 0 | V64: =IF((U64-(Input!$C$9*Input!$C$38-SUM(U$51:U63)))<0,0,U64-IF(Input!$C$9*Input!$C$38>SUM(U$51:U63),(Input!$C$9*Input!$C$38-SUM(U$51:U63)),0)) -> 0 | W64: =IF((V64-(Input!$C$9*Input!$C$38-SUM(V$51:V63)))<0,0,V64-IF(Input!$C$9*Input!$C$38>SUM(V$51:V63),(Input!$C$9*Input!$C$38-SUM(V$51:V63)),0)) -> 0 | X64: =IF((W64-(Input!$C$9*Input!$C$38-SUM(W$51:W63)))<0,0,W64-IF(Input!$C$9*Input!$C$38>SUM(W$51:W63),(Input!$C$9*Input!$C$38-SUM(W$51:W63)),0)) -> 0 | Y64: =IF((X64-(Input!$C$9*Input!$C$38-SUM(X$51:X63)))<0,0,X64-IF(Input!$C$9*Input!$C$38>SUM(X$51:X63),(Input!$C$9*Input!$C$38-SUM(X$51:X63)),0)) -> 0 | Z64: =IF((Y64-(Input!$C$9*Input!$C$38-SUM(Y$51:Y63)))<0,0,Y64-IF(Input!$C$9*Input!$C$38>SUM(Y$51:Y63),(Input!$C$9*Input!$C$38-SUM(Y$51:Y63)),0)) -> 0 | AA64: =IF((Z64-(Input!$C$9*Input!$C$38-SUM(Z$51:Z63)))<0,0,Z64-IF(Input!$C$9*Input!$C$38>SUM(Z$51:Z63),(Input!$C$9*Input!$C$38-SUM(Z$51:Z63)),0)) -> 0 | AB64: =IF((AA64-(Input!$C$9*Input!$C$38-SUM(AA$51:AA63)))<0,0,AA64-IF(Input!$C$9*Input!$C$38>SUM(AA$51:AA63),(Input!$C$9*Input!$C$38-SUM(AA$51:AA63)),0)) -> 0 | AC64: =IF((AB64-(Input!$C$9*Input!$C$38-SUM(AB$51:AB63)))<0,0,AB64-IF(Input!$C$9*Input!$C$38>SUM(AB$51:AB63),(Input!$C$9*Input!$C$38-SUM(AB$51:AB63)),0)) -> 0 | AD64: =IF((AC64-(Input!$C$9*Input!$C$38-SUM(AC$51:AC63)))<0,0,AC64-IF(Input!$C$9*Input!$C$38>SUM(AC$51:AC63),(Input!$C$9*Input!$C$38-SUM(AC$51:AC63)),0)) -> 0 | AE64: =IF((AD64-(Input!$C$9*Input!$C$38-SUM(AD$51:AD63)))<0,0,AD64-IF(Input!$C$9*Input!$C$38>SUM(AD$51:AD63),(Input!$C$9*Input!$C$38-SUM(AD$51:AD63)),0)) -> 0 | AF64: =IF((AE64-(Input!$C$9*Input!$C$38-SUM(AE$51:AE63)))<0,0,AE64-IF(Input!$C$9*Input!$C$38>SUM(AE$51:AE63),(Input!$C$9*Input!$C$38-SUM(AE$51:AE63)),0)) -> 0 | AG64: =IF((AF64-(Input!$C$9*Input!$C$38-SUM(AF$51:AF63)))<0,0,AF64-IF(Input!$C$9*Input!$C$38>SUM(AF$51:AF63),(Input!$C$9*Input!$C$38-SUM(AF$51:AF63)),0)) -> 0 | AH64: =IF((AG64-(Input!$C$9*Input!$C$38-SUM(AG$51:AG63)))<0,0,AG64-IF(Input!$C$9*Input!$C$38>SUM(AG$51:AG63),(Input!$C$9*Input!$C$38-SUM(AG$51:AG63)),0)) -> 0 | AI64: =IF((AH64-(Input!$C$9*Input!$C$38-SUM(AH$51:AH63)))<0,0,AH64-IF(Input!$C$9*Input!$C$38>SUM(AH$51:AH63),(Input!$C$9*Input!$C$38-SUM(AH$51:AH63)),0)) -> 0 | AJ64: =IF((AI64-(Input!$C$9*Input!$C$38-SUM(AI$51:AI63)))<0,0,AI64-IF(Input!$C$9*Input!$C$38>SUM(AI$51:AI63),(Input!$C$9*Input!$C$38-SUM(AI$51:AI63)),0)) -> 0 | AK64: =IF((AJ64-(Input!$C$9*Input!$C$38-SUM(AJ$51:AJ63)))<0,0,AJ64-IF(Input!$C$9*Input!$C$38>SUM(AJ$51:AJ63),(Input!$C$9*Input!$C$38-SUM(AJ$51:AJ63)),0)) -> 0 | AL64: =IF((AK64-(Input!$C$9*Input!$C$38-SUM(AK$51:AK63)))<0,0,AK64-IF(Input!$C$9*Input!$C$38>SUM(AK$51:AK63),(Input!$C$9*Input!$C$38-SUM(AK$51:AK63)),0)) -> 0 | AM64: =IF((AL64-(Input!$C$9*Input!$C$38-SUM(AL$51:AL63)))<0,0,AL64-IF(Input!$C$9*Input!$C$38>SUM(AL$51:AL63),(Input!$C$9*Input!$C$38-SUM(AL$51:AL63)),0)) -> 0 | AN64: =IF((AM64-(Input!$C$9*Input!$C$38-SUM(AM$51:AM63)))<0,0,AM64-IF(Input!$C$9*Input!$C$38>SUM(AM$51:AM63),(Input!$C$9*Input!$C$38-SUM(AM$51:AM63)),0)) -> 0 | AO64: =IF((AN64-(Input!$C$9*Input!$C$38-SUM(AN$51:AN63)))<0,0,AN64-IF(Input!$C$9*Input!$C$38>SUM(AN$51:AN63),(Input!$C$9*Input!$C$38-SUM(AN$51:AN63)),0)) -> 0 | AP64: =IF((AO64-(Input!$C$9*Input!$C$38-SUM(AO$51:AO63)))<0,0,AO64-IF(Input!$C$9*Input!$C$38>SUM(AO$51:AO63),(Input!$C$9*Input!$C$38-SUM(AO$51:AO63)),0)) -> 0 | AQ64: =IF((AP64-(Input!$C$9*Input!$C$38-SUM(AP$51:AP63)))<0,0,AP64-IF(Input!$C$9*Input!$C$38>SUM(AP$51:AP63),(Input!$C$9*Input!$C$38-SUM(AP$51:AP63)),0)) -> 0 | AR64: =IF((AQ64-(Input!$C$9*Input!$C$38-SUM(AQ$51:AQ63)))<0,0,AQ64-IF(Input!$C$9*Input!$C$38>SUM(AQ$51:AQ63),(Input!$C$9*Input!$C$38-SUM(AQ$51:AQ63)),0)) -> 0 | AS64: =IF((AR64-(Input!$C$9*Input!$C$38-SUM(AR$51:AR63)))<0,0,AR64-IF(Input!$C$9*Input!$C$38>SUM(AR$51:AR63),(Input!$C$9*Input!$C$38-SUM(AR$51:AR63)),0)) -> 0 | AT64: =IF((AS64-(Input!$C$9*Input!$C$38-SUM(AS$51:AS63)))<0,0,AS64-IF(Input!$C$9*Input!$C$38>SUM(AS$51:AS63),(Input!$C$9*Input!$C$38-SUM(AS$51:AS63)),0)) -> 0 | AU64: =IF((AT64-(Input!$C$9*Input!$C$38-SUM(AT$51:AT63)))<0,0,AT64-IF(Input!$C$9*Input!$C$38>SUM(AT$51:AT63),(Input!$C$9*Input!$C$38-SUM(AT$51:AT63)),0)) -> 0 | AV64: =IF((AU64-(Input!$C$9*Input!$C$38-SUM(AU$51:AU63)))<0,0,AU64-IF(Input!$C$9*Input!$C$38>SUM(AU$51:AU63),(Input!$C$9*Input!$C$38-SUM(AU$51:AU63)),0)) -> 0 | AW64: =IF((AV64-(Input!$C$9*Input!$C$38-SUM(AV$51:AV63)))<0,0,AV64-IF(Input!$C$9*Input!$C$38>SUM(AV$51:AV63),(Input!$C$9*Input!$C$38-SUM(AV$51:AV63)),0)) -> 0 | AX64: =IF((AW64-(Input!$C$9*Input!$C$38-SUM(AW$51:AW63)))<0,0,AW64-IF(Input!$C$9*Input!$C$38>SUM(AW$51:AW63),(Input!$C$9*Input!$C$38-SUM(AW$51:AW63)),0)) -> 0 | AY64: =IF((AX64-(Input!$C$9*Input!$C$38-SUM(AX$51:AX63)))<0,0,AX64-IF(Input!$C$9*Input!$C$38>SUM(AX$51:AX63),(Input!$C$9*Input!$C$38-SUM(AX$51:AX63)),0)) -> 0 | AZ64: =IF((AY64-(Input!$C$9*Input!$C$38-SUM(AY$51:AY63)))<0,0,AY64-IF(Input!$C$9*Input!$C$38>SUM(AY$51:AY63),(Input!$C$9*Input!$C$38-SUM(AY$51:AY63)),0)) -> 0 | BA64: =IF((AZ64-(Input!$C$9*Input!$C$38-SUM(AZ$51:AZ63)))<0,0,AZ64-IF(Input!$C$9*Input!$C$38>SUM(AZ$51:AZ63),(Input!$C$9*Input!$C$38-SUM(AZ$51:AZ63)),0)) -> 0 | BB64: =IF((BA64-(Input!$C$9*Input!$C$38-SUM(BA$51:BA63)))<0,0,BA64-IF(Input!$C$9*Input!$C$38>SUM(BA$51:BA63),(Input!$C$9*Input!$C$38-SUM(BA$51:BA63)),0)) -> 0 | BC64: =IF((BB64-(Input!$C$9*Input!$C$38-SUM(BB$51:BB63)))<0,0,BB64-IF(Input!$C$9*Input!$C$38>SUM(BB$51:BB63),(Input!$C$9*Input!$C$38-SUM(BB$51:BB63)),0)) -> 0 | BD64: =IF((BC64-(Input!$C$9*Input!$C$38-SUM(BC$51:BC63)))<0,0,BC64-IF(Input!$C$9*Input!$C$38>SUM(BC$51:BC63),(Input!$C$9*Input!$C$38-SUM(BC$51:BC63)),0)) -> 0
A65: 15 | C65: =ROUND(NORMDIST(A65,Reeksen!$B$46,Reeksen!$B$47,FALSE)*Reeksen!$B$45,0) -> 144 | D65: =IF($B$37=0,0,C65)+IF($B$36=0,0,C64)+IF($B$36=0,0,C63)+IF($B$36=0,0,C62)+IF($B$36=0,0,C61)+IF($B$36=0,0,C60)+IF($B$35=0,0,C59)+IF($B$35=0,0,C58)+IF($B$35=0,0,C57)+IF($B$35=0,0,C56)+IF($B$35=0,0,C55)+IF($B$34=0,0,C55)+IF($B$34=0,0,C54)+IF($B$34=0,0,C53)+IF($B$34=0,0,C52)+IF($B$34=0,0,C51) -> 602 | E65: 0.09953703704 | F65: =($B$45-$D$102)*E65 -> -0.008250396118 | G65: 601.9917496 | H65: =IF((G65-(Input!$C$9*Input!$C$38-SUM(G$51:G64)))<0,0,G65-IF(Input!$C$9*Input!$C$38>SUM(G$51:G64),(Input!$C$9*Input!$C$38-SUM(G$51:G64)),0)) -> 360.0750651 | I65: =IF((H65-(Input!$C$9*Input!$C$38-SUM(H$51:H64)))<0,0,H65-IF(Input!$C$9*Input!$C$38>SUM(H$51:H64),(Input!$C$9*Input!$C$38-SUM(H$51:H64)),0)) -> 118.1583806 | J65: =IF((I65-(Input!$C$9*Input!$C$38-SUM(I$51:I64)))<0,0,I65-IF(Input!$C$9*Input!$C$38>SUM(I$51:I64),(Input!$C$9*Input!$C$38-SUM(I$51:I64)),0)) -> 0 | K65: =IF((J65-(Input!$C$9*Input!$C$38-SUM(J$51:J64)))<0,0,J65-IF(Input!$C$9*Input!$C$38>SUM(J$51:J64),(Input!$C$9*Input!$C$38-SUM(J$51:J64)),0)) -> 0 | L65: =IF((K65-(Input!$C$9*Input!$C$38-SUM(K$51:K64)))<0,0,K65-IF(Input!$C$9*Input!$C$38>SUM(K$51:K64),(Input!$C$9*Input!$C$38-SUM(K$51:K64)),0)) -> 0 | M65: =IF((L65-(Input!$C$9*Input!$C$38-SUM(L$51:L64)))<0,0,L65-IF(Input!$C$9*Input!$C$38>SUM(L$51:L64),(Input!$C$9*Input!$C$38-SUM(L$51:L64)),0)) -> 0 | N65: =IF((M65-(Input!$C$9*Input!$C$38-SUM(M$51:M64)))<0,0,M65-IF(Input!$C$9*Input!$C$38>SUM(M$51:M64),(Input!$C$9*Input!$C$38-SUM(M$51:M64)),0)) -> 0 | O65: =IF((N65-(Input!$C$9*Input!$C$38-SUM(N$51:N64)))<0,0,N65-IF(Input!$C$9*Input!$C$38>SUM(N$51:N64),(Input!$C$9*Input!$C$38-SUM(N$51:N64)),0)) -> 0 | P65: =IF((O65-(Input!$C$9*Input!$C$38-SUM(O$51:O64)))<0,0,O65-IF(Input!$C$9*Input!$C$38>SUM(O$51:O64),(Input!$C$9*Input!$C$38-SUM(O$51:O64)),0)) -> 0 | Q65: =IF((P65-(Input!$C$9*Input!$C$38-SUM(P$51:P64)))<0,0,P65-IF(Input!$C$9*Input!$C$38>SUM(P$51:P64),(Input!$C$9*Input!$C$38-SUM(P$51:P64)),0)) -> 0 | R65: =IF((Q65-(Input!$C$9*Input!$C$38-SUM(Q$51:Q64)))<0,0,Q65-IF(Input!$C$9*Input!$C$38>SUM(Q$51:Q64),(Input!$C$9*Input!$C$38-SUM(Q$51:Q64)),0)) -> 0 | S65: =IF((R65-(Input!$C$9*Input!$C$38-SUM(R$51:R64)))<0,0,R65-IF(Input!$C$9*Input!$C$38>SUM(R$51:R64),(Input!$C$9*Input!$C$38-SUM(R$51:R64)),0)) -> 0 | T65: =IF((S65-(Input!$C$9*Input!$C$38-SUM(S$51:S64)))<0,0,S65-IF(Input!$C$9*Input!$C$38>SUM(S$51:S64),(Input!$C$9*Input!$C$38-SUM(S$51:S64)),0)) -> 0 | U65: =IF((T65-(Input!$C$9*Input!$C$38-SUM(T$51:T64)))<0,0,T65-IF(Input!$C$9*Input!$C$38>SUM(T$51:T64),(Input!$C$9*Input!$C$38-SUM(T$51:T64)),0)) -> 0 | V65: =IF((U65-(Input!$C$9*Input!$C$38-SUM(U$51:U64)))<0,0,U65-IF(Input!$C$9*Input!$C$38>SUM(U$51:U64),(Input!$C$9*Input!$C$38-SUM(U$51:U64)),0)) -> 0 | W65: =IF((V65-(Input!$C$9*Input!$C$38-SUM(V$51:V64)))<0,0,V65-IF(Input!$C$9*Input!$C$38>SUM(V$51:V64),(Input!$C$9*Input!$C$38-SUM(V$51:V64)),0)) -> 0 | X65: =IF((W65-(Input!$C$9*Input!$C$38-SUM(W$51:W64)))<0,0,W65-IF(Input!$C$9*Input!$C$38>SUM(W$51:W64),(Input!$C$9*Input!$C$38-SUM(W$51:W64)),0)) -> 0 | Y65: =IF((X65-(Input!$C$9*Input!$C$38-SUM(X$51:X64)))<0,0,X65-IF(Input!$C$9*Input!$C$38>SUM(X$51:X64),(Input!$C$9*Input!$C$38-SUM(X$51:X64)),0)) -> 0 | Z65: =IF((Y65-(Input!$C$9*Input!$C$38-SUM(Y$51:Y64)))<0,0,Y65-IF(Input!$C$9*Input!$C$38>SUM(Y$51:Y64),(Input!$C$9*Input!$C$38-SUM(Y$51:Y64)),0)) -> 0 | AA65: =IF((Z65-(Input!$C$9*Input!$C$38-SUM(Z$51:Z64)))<0,0,Z65-IF(Input!$C$9*Input!$C$38>SUM(Z$51:Z64),(Input!$C$9*Input!$C$38-SUM(Z$51:Z64)),0)) -> 0 | AB65: =IF((AA65-(Input!$C$9*Input!$C$38-SUM(AA$51:AA64)))<0,0,AA65-IF(Input!$C$9*Input!$C$38>SUM(AA$51:AA64),(Input!$C$9*Input!$C$38-SUM(AA$51:AA64)),0)) -> 0 | AC65: =IF((AB65-(Input!$C$9*Input!$C$38-SUM(AB$51:AB64)))<0,0,AB65-IF(Input!$C$9*Input!$C$38>SUM(AB$51:AB64),(Input!$C$9*Input!$C$38-SUM(AB$51:AB64)),0)) -> 0 | AD65: =IF((AC65-(Input!$C$9*Input!$C$38-SUM(AC$51:AC64)))<0,0,AC65-IF(Input!$C$9*Input!$C$38>SUM(AC$51:AC64),(Input!$C$9*Input!$C$38-SUM(AC$51:AC64)),0)) -> 0 | AE65: =IF((AD65-(Input!$C$9*Input!$C$38-SUM(AD$51:AD64)))<0,0,AD65-IF(Input!$C$9*Input!$C$38>SUM(AD$51:AD64),(Input!$C$9*Input!$C$38-SUM(AD$51:AD64)),0)) -> 0 | AF65: =IF((AE65-(Input!$C$9*Input!$C$38-SUM(AE$51:AE64)))<0,0,AE65-IF(Input!$C$9*Input!$C$38>SUM(AE$51:AE64),(Input!$C$9*Input!$C$38-SUM(AE$51:AE64)),0)) -> 0 | AG65: =IF((AF65-(Input!$C$9*Input!$C$38-SUM(AF$51:AF64)))<0,0,AF65-IF(Input!$C$9*Input!$C$38>SUM(AF$51:AF64),(Input!$C$9*Input!$C$38-SUM(AF$51:AF64)),0)) -> 0 | AH65: =IF((AG65-(Input!$C$9*Input!$C$38-SUM(AG$51:AG64)))<0,0,AG65-IF(Input!$C$9*Input!$C$38>SUM(AG$51:AG64),(Input!$C$9*Input!$C$38-SUM(AG$51:AG64)),0)) -> 0 | AI65: =IF((AH65-(Input!$C$9*Input!$C$38-SUM(AH$51:AH64)))<0,0,AH65-IF(Input!$C$9*Input!$C$38>SUM(AH$51:AH64),(Input!$C$9*Input!$C$38-SUM(AH$51:AH64)),0)) -> 0 | AJ65: =IF((AI65-(Input!$C$9*Input!$C$38-SUM(AI$51:AI64)))<0,0,AI65-IF(Input!$C$9*Input!$C$38>SUM(AI$51:AI64),(Input!$C$9*Input!$C$38-SUM(AI$51:AI64)),0)) -> 0 | AK65: =IF((AJ65-(Input!$C$9*Input!$C$38-SUM(AJ$51:AJ64)))<0,0,AJ65-IF(Input!$C$9*Input!$C$38>SUM(AJ$51:AJ64),(Input!$C$9*Input!$C$38-SUM(AJ$51:AJ64)),0)) -> 0 | AL65: =IF((AK65-(Input!$C$9*Input!$C$38-SUM(AK$51:AK64)))<0,0,AK65-IF(Input!$C$9*Input!$C$38>SUM(AK$51:AK64),(Input!$C$9*Input!$C$38-SUM(AK$51:AK64)),0)) -> 0 | AM65: =IF((AL65-(Input!$C$9*Input!$C$38-SUM(AL$51:AL64)))<0,0,AL65-IF(Input!$C$9*Input!$C$38>SUM(AL$51:AL64),(Input!$C$9*Input!$C$38-SUM(AL$51:AL64)),0)) -> 0 | AN65: =IF((AM65-(Input!$C$9*Input!$C$38-SUM(AM$51:AM64)))<0,0,AM65-IF(Input!$C$9*Input!$C$38>SUM(AM$51:AM64),(Input!$C$9*Input!$C$38-SUM(AM$51:AM64)),0)) -> 0 | AO65: =IF((AN65-(Input!$C$9*Input!$C$38-SUM(AN$51:AN64)))<0,0,AN65-IF(Input!$C$9*Input!$C$38>SUM(AN$51:AN64),(Input!$C$9*Input!$C$38-SUM(AN$51:AN64)),0)) -> 0 | AP65: =IF((AO65-(Input!$C$9*Input!$C$38-SUM(AO$51:AO64)))<0,0,AO65-IF(Input!$C$9*Input!$C$38>SUM(AO$51:AO64),(Input!$C$9*Input!$C$38-SUM(AO$51:AO64)),0)) -> 0 | AQ65: =IF((AP65-(Input!$C$9*Input!$C$38-SUM(AP$51:AP64)))<0,0,AP65-IF(Input!$C$9*Input!$C$38>SUM(AP$51:AP64),(Input!$C$9*Input!$C$38-SUM(AP$51:AP64)),0)) -> 0 | AR65: =IF((AQ65-(Input!$C$9*Input!$C$38-SUM(AQ$51:AQ64)))<0,0,AQ65-IF(Input!$C$9*Input!$C$38>SUM(AQ$51:AQ64),(Input!$C$9*Input!$C$38-SUM(AQ$51:AQ64)),0)) -> 0 | AS65: =IF((AR65-(Input!$C$9*Input!$C$38-SUM(AR$51:AR64)))<0,0,AR65-IF(Input!$C$9*Input!$C$38>SUM(AR$51:AR64),(Input!$C$9*Input!$C$38-SUM(AR$51:AR64)),0)) -> 0 | AT65: =IF((AS65-(Input!$C$9*Input!$C$38-SUM(AS$51:AS64)))<0,0,AS65-IF(Input!$C$9*Input!$C$38>SUM(AS$51:AS64),(Input!$C$9*Input!$C$38-SUM(AS$51:AS64)),0)) -> 0 | AU65: =IF((AT65-(Input!$C$9*Input!$C$38-SUM(AT$51:AT64)))<0,0,AT65-IF(Input!$C$9*Input!$C$38>SUM(AT$51:AT64),(Input!$C$9*Input!$C$38-SUM(AT$51:AT64)),0)) -> 0 | AV65: =IF((AU65-(Input!$C$9*Input!$C$38-SUM(AU$51:AU64)))<0,0,AU65-IF(Input!$C$9*Input!$C$38>SUM(AU$51:AU64),(Input!$C$9*Input!$C$38-SUM(AU$51:AU64)),0)) -> 0 | AW65: =IF((AV65-(Input!$C$9*Input!$C$38-SUM(AV$51:AV64)))<0,0,AV65-IF(Input!$C$9*Input!$C$38>SUM(AV$51:AV64),(Input!$C$9*Input!$C$38-SUM(AV$51:AV64)),0)) -> 0 | AX65: =IF((AW65-(Input!$C$9*Input!$C$38-SUM(AW$51:AW64)))<0,0,AW65-IF(Input!$C$9*Input!$C$38>SUM(AW$51:AW64),(Input!$C$9*Input!$C$38-SUM(AW$51:AW64)),0)) -> 0 | AY65: =IF((AX65-(Input!$C$9*Input!$C$38-SUM(AX$51:AX64)))<0,0,AX65-IF(Input!$C$9*Input!$C$38>SUM(AX$51:AX64),(Input!$C$9*Input!$C$38-SUM(AX$51:AX64)),0)) -> 0 | AZ65: =IF((AY65-(Input!$C$9*Input!$C$38-SUM(AY$51:AY64)))<0,0,AY65-IF(Input!$C$9*Input!$C$38>SUM(AY$51:AY64),(Input!$C$9*Input!$C$38-SUM(AY$51:AY64)),0)) -> 0 | BA65: =IF((AZ65-(Input!$C$9*Input!$C$38-SUM(AZ$51:AZ64)))<0,0,AZ65-IF(Input!$C$9*Input!$C$38>SUM(AZ$51:AZ64),(Input!$C$9*Input!$C$38-SUM(AZ$51:AZ64)),0)) -> 0 | BB65: =IF((BA65-(Input!$C$9*Input!$C$38-SUM(BA$51:BA64)))<0,0,BA65-IF(Input!$C$9*Input!$C$38>SUM(BA$51:BA64),(Input!$C$9*Input!$C$38-SUM(BA$51:BA64)),0)) -> 0 | BC65: =IF((BB65-(Input!$C$9*Input!$C$38-SUM(BB$51:BB64)))<0,0,BB65-IF(Input!$C$9*Input!$C$38>SUM(BB$51:BB64),(Input!$C$9*Input!$C$38-SUM(BB$51:BB64)),0)) -> 0 | BD65: =IF((BC65-(Input!$C$9*Input!$C$38-SUM(BC$51:BC64)))<0,0,BC65-IF(Input!$C$9*Input!$C$38>SUM(BC$51:BC64),(Input!$C$9*Input!$C$38-SUM(BC$51:BC64)),0)) -> 0
A66: 16 | C66: =ROUND(NORMDIST(A66,Reeksen!$B$46,Reeksen!$B$47,FALSE)*Reeksen!$B$45,0) -> 175 | D66: =IF($B$37=0,0,C66) -> 175 | E66: 0.02893518519 | F66: -0.002398370965 | G66: =F66+D66 -> 174.9976016 | H66: =IF((G66-(Input!$C$9*Input!$C$38-SUM(G$51:G65)))<0,0,G66-IF(Input!$C$9*Input!$C$38>SUM(G$51:G65),(Input!$C$9*Input!$C$38-SUM(G$51:G65)),0)) -> 174.9976016 | I66: =IF((H66-(Input!$C$9*Input!$C$38-SUM(H$51:H65)))<0,0,H66-IF(Input!$C$9*Input!$C$38>SUM(H$51:H65),(Input!$C$9*Input!$C$38-SUM(H$51:H65)),0)) -> 174.9976016 | J66: =IF((I66-(Input!$C$9*Input!$C$38-SUM(I$51:I65)))<0,0,I66-IF(Input!$C$9*Input!$C$38>SUM(I$51:I65),(Input!$C$9*Input!$C$38-SUM(I$51:I65)),0)) -> 51.23929776 | K66: =IF((J66-(Input!$C$9*Input!$C$38-SUM(J$51:J65)))<0,0,J66-IF(Input!$C$9*Input!$C$38>SUM(J$51:J65),(Input!$C$9*Input!$C$38-SUM(J$51:J65)),0)) -> 0 | L66: =IF((K66-(Input!$C$9*Input!$C$38-SUM(K$51:K65)))<0,0,K66-IF(Input!$C$9*Input!$C$38>SUM(K$51:K65),(Input!$C$9*Input!$C$38-SUM(K$51:K65)),0)) -> 0 | M66: =IF((L66-(Input!$C$9*Input!$C$38-SUM(L$51:L65)))<0,0,L66-IF(Input!$C$9*Input!$C$38>SUM(L$51:L65),(Input!$C$9*Input!$C$38-SUM(L$51:L65)),0)) -> 0 | N66: =IF((M66-(Input!$C$9*Input!$C$38-SUM(M$51:M65)))<0,0,M66-IF(Input!$C$9*Input!$C$38>SUM(M$51:M65),(Input!$C$9*Input!$C$38-SUM(M$51:M65)),0)) -> 0 | O66: =IF((N66-(Input!$C$9*Input!$C$38-SUM(N$51:N65)))<0,0,N66-IF(Input!$C$9*Input!$C$38>SUM(N$51:N65),(Input!$C$9*Input!$C$38-SUM(N$51:N65)),0)) -> 0 | P66: =IF((O66-(Input!$C$9*Input!$C$38-SUM(O$51:O65)))<0,0,O66-IF(Input!$C$9*Input!$C$38>SUM(O$51:O65),(Input!$C$9*Input!$C$38-SUM(O$51:O65)),0)) -> 0 | Q66: =IF((P66-(Input!$C$9*Input!$C$38-SUM(P$51:P65)))<0,0,P66-IF(Input!$C$9*Input!$C$38>SUM(P$51:P65),(Input!$C$9*Input!$C$38-SUM(P$51:P65)),0)) -> 0 | R66: =IF((Q66-(Input!$C$9*Input!$C$38-SUM(Q$51:Q65)))<0,0,Q66-IF(Input!$C$9*Input!$C$38>SUM(Q$51:Q65),(Input!$C$9*Input!$C$38-SUM(Q$51:Q65)),0)) -> 0 | S66: =IF((R66-(Input!$C$9*Input!$C$38-SUM(R$51:R65)))<0,0,R66-IF(Input!$C$9*Input!$C$38>SUM(R$51:R65),(Input!$C$9*Input!$C$38-SUM(R$51:R65)),0)) -> 0 | T66: =IF((S66-(Input!$C$9*Input!$C$38-SUM(S$51:S65)))<0,0,S66-IF(Input!$C$9*Input!$C$38>SUM(S$51:S65),(Input!$C$9*Input!$C$38-SUM(S$51:S65)),0)) -> 0 | U66: =IF((T66-(Input!$C$9*Input!$C$38-SUM(T$51:T65)))<0,0,T66-IF(Input!$C$9*Input!$C$38>SUM(T$51:T65),(Input!$C$9*Input!$C$38-SUM(T$51:T65)),0)) -> 0 | V66: =IF((U66-(Input!$C$9*Input!$C$38-SUM(U$51:U65)))<0,0,U66-IF(Input!$C$9*Input!$C$38>SUM(U$51:U65),(Input!$C$9*Input!$C$38-SUM(U$51:U65)),0)) -> 0 | W66: =IF((V66-(Input!$C$9*Input!$C$38-SUM(V$51:V65)))<0,0,V66-IF(Input!$C$9*Input!$C$38>SUM(V$51:V65),(Input!$C$9*Input!$C$38-SUM(V$51:V65)),0)) -> 0 | X66: =IF((W66-(Input!$C$9*Input!$C$38-SUM(W$51:W65)))<0,0,W66-IF(Input!$C$9*Input!$C$38>SUM(W$51:W65),(Input!$C$9*Input!$C$38-SUM(W$51:W65)),0)) -> 0 | Y66: =IF((X66-(Input!$C$9*Input!$C$38-SUM(X$51:X65)))<0,0,X66-IF(Input!$C$9*Input!$C$38>SUM(X$51:X65),(Input!$C$9*Input!$C$38-SUM(X$51:X65)),0)) -> 0 | Z66: =IF((Y66-(Input!$C$9*Input!$C$38-SUM(Y$51:Y65)))<0,0,Y66-IF(Input!$C$9*Input!$C$38>SUM(Y$51:Y65),(Input!$C$9*Input!$C$38-SUM(Y$51:Y65)),0)) -> 0 | AA66: =IF((Z66-(Input!$C$9*Input!$C$38-SUM(Z$51:Z65)))<0,0,Z66-IF(Input!$C$9*Input!$C$38>SUM(Z$51:Z65),(Input!$C$9*Input!$C$38-SUM(Z$51:Z65)),0)) -> 0 | AB66: =IF((AA66-(Input!$C$9*Input!$C$38-SUM(AA$51:AA65)))<0,0,AA66-IF(Input!$C$9*Input!$C$38>SUM(AA$51:AA65),(Input!$C$9*Input!$C$38-SUM(AA$51:AA65)),0)) -> 0 | AC66: =IF((AB66-(Input!$C$9*Input!$C$38-SUM(AB$51:AB65)))<0,0,AB66-IF(Input!$C$9*Input!$C$38>SUM(AB$51:AB65),(Input!$C$9*Input!$C$38-SUM(AB$51:AB65)),0)) -> 0 | AD66: =IF((AC66-(Input!$C$9*Input!$C$38-SUM(AC$51:AC65)))<0,0,AC66-IF(Input!$C$9*Input!$C$38>SUM(AC$51:AC65),(Input!$C$9*Input!$C$38-SUM(AC$51:AC65)),0)) -> 0 | AE66: =IF((AD66-(Input!$C$9*Input!$C$38-SUM(AD$51:AD65)))<0,0,AD66-IF(Input!$C$9*Input!$C$38>SUM(AD$51:AD65),(Input!$C$9*Input!$C$38-SUM(AD$51:AD65)),0)) -> 0 | AF66: =IF((AE66-(Input!$C$9*Input!$C$38-SUM(AE$51:AE65)))<0,0,AE66-IF(Input!$C$9*Input!$C$38>SUM(AE$51:AE65),(Input!$C$9*Input!$C$38-SUM(AE$51:AE65)),0)) -> 0 | AG66: =IF((AF66-(Input!$C$9*Input!$C$38-SUM(AF$51:AF65)))<0,0,AF66-IF(Input!$C$9*Input!$C$38>SUM(AF$51:AF65),(Input!$C$9*Input!$C$38-SUM(AF$51:AF65)),0)) -> 0 | AH66: =IF((AG66-(Input!$C$9*Input!$C$38-SUM(AG$51:AG65)))<0,0,AG66-IF(Input!$C$9*Input!$C$38>SUM(AG$51:AG65),(Input!$C$9*Input!$C$38-SUM(AG$51:AG65)),0)) -> 0 | AI66: =IF((AH66-(Input!$C$9*Input!$C$38-SUM(AH$51:AH65)))<0,0,AH66-IF(Input!$C$9*Input!$C$38>SUM(AH$51:AH65),(Input!$C$9*Input!$C$38-SUM(AH$51:AH65)),0)) -> 0 | AJ66: =IF((AI66-(Input!$C$9*Input!$C$38-SUM(AI$51:AI65)))<0,0,AI66-IF(Input!$C$9*Input!$C$38>SUM(AI$51:AI65),(Input!$C$9*Input!$C$38-SUM(AI$51:AI65)),0)) -> 0 | AK66: =IF((AJ66-(Input!$C$9*Input!$C$38-SUM(AJ$51:AJ65)))<0,0,AJ66-IF(Input!$C$9*Input!$C$38>SUM(AJ$51:AJ65),(Input!$C$9*Input!$C$38-SUM(AJ$51:AJ65)),0)) -> 0 | AL66: =IF((AK66-(Input!$C$9*Input!$C$38-SUM(AK$51:AK65)))<0,0,AK66-IF(Input!$C$9*Input!$C$38>SUM(AK$51:AK65),(Input!$C$9*Input!$C$38-SUM(AK$51:AK65)),0)) -> 0 | AM66: =IF((AL66-(Input!$C$9*Input!$C$38-SUM(AL$51:AL65)))<0,0,AL66-IF(Input!$C$9*Input!$C$38>SUM(AL$51:AL65),(Input!$C$9*Input!$C$38-SUM(AL$51:AL65)),0)) -> 0 | AN66: =IF((AM66-(Input!$C$9*Input!$C$38-SUM(AM$51:AM65)))<0,0,AM66-IF(Input!$C$9*Input!$C$38>SUM(AM$51:AM65),(Input!$C$9*Input!$C$38-SUM(AM$51:AM65)),0)) -> 0 | AO66: =IF((AN66-(Input!$C$9*Input!$C$38-SUM(AN$51:AN65)))<0,0,AN66-IF(Input!$C$9*Input!$C$38>SUM(AN$51:AN65),(Input!$C$9*Input!$C$38-SUM(AN$51:AN65)),0)) -> 0 | AP66: =IF((AO66-(Input!$C$9*Input!$C$38-SUM(AO$51:AO65)))<0,0,AO66-IF(Input!$C$9*Input!$C$38>SUM(AO$51:AO65),(Input!$C$9*Input!$C$38-SUM(AO$51:AO65)),0)) -> 0 | AQ66: =IF((AP66-(Input!$C$9*Input!$C$38-SUM(AP$51:AP65)))<0,0,AP66-IF(Input!$C$9*Input!$C$38>SUM(AP$51:AP65),(Input!$C$9*Input!$C$38-SUM(AP$51:AP65)),0)) -> 0 | AR66: =IF((AQ66-(Input!$C$9*Input!$C$38-SUM(AQ$51:AQ65)))<0,0,AQ66-IF(Input!$C$9*Input!$C$38>SUM(AQ$51:AQ65),(Input!$C$9*Input!$C$38-SUM(AQ$51:AQ65)),0)) -> 0 | AS66: =IF((AR66-(Input!$C$9*Input!$C$38-SUM(AR$51:AR65)))<0,0,AR66-IF(Input!$C$9*Input!$C$38>SUM(AR$51:AR65),(Input!$C$9*Input!$C$38-SUM(AR$51:AR65)),0)) -> 0 | AT66: =IF((AS66-(Input!$C$9*Input!$C$38-SUM(AS$51:AS65)))<0,0,AS66-IF(Input!$C$9*Input!$C$38>SUM(AS$51:AS65),(Input!$C$9*Input!$C$38-SUM(AS$51:AS65)),0)) -> 0 | AU66: =IF((AT66-(Input!$C$9*Input!$C$38-SUM(AT$51:AT65)))<0,0,AT66-IF(Input!$C$9*Input!$C$38>SUM(AT$51:AT65),(Input!$C$9*Input!$C$38-SUM(AT$51:AT65)),0)) -> 0 | AV66: =IF((AU66-(Input!$C$9*Input!$C$38-SUM(AU$51:AU65)))<0,0,AU66-IF(Input!$C$9*Input!$C$38>SUM(AU$51:AU65),(Input!$C$9*Input!$C$38-SUM(AU$51:AU65)),0)) -> 0 | AW66: =IF((AV66-(Input!$C$9*Input!$C$38-SUM(AV$51:AV65)))<0,0,AV66-IF(Input!$C$9*Input!$C$38>SUM(AV$51:AV65),(Input!$C$9*Input!$C$38-SUM(AV$51:AV65)),0)) -> 0 | AX66: =IF((AW66-(Input!$C$9*Input!$C$38-SUM(AW$51:AW65)))<0,0,AW66-IF(Input!$C$9*Input!$C$38>SUM(AW$51:AW65),(Input!$C$9*Input!$C$38-SUM(AW$51:AW65)),0)) -> 0 | AY66: =IF((AX66-(Input!$C$9*Input!$C$38-SUM(AX$51:AX65)))<0,0,AX66-IF(Input!$C$9*Input!$C$38>SUM(AX$51:AX65),(Input!$C$9*Input!$C$38-SUM(AX$51:AX65)),0)) -> 0 | AZ66: =IF((AY66-(Input!$C$9*Input!$C$38-SUM(AY$51:AY65)))<0,0,AY66-IF(Input!$C$9*Input!$C$38>SUM(AY$51:AY65),(Input!$C$9*Input!$C$38-SUM(AY$51:AY65)),0)) -> 0 | BA66: =IF((AZ66-(Input!$C$9*Input!$C$38-SUM(AZ$51:AZ65)))<0,0,AZ66-IF(Input!$C$9*Input!$C$38>SUM(AZ$51:AZ65),(Input!$C$9*Input!$C$38-SUM(AZ$51:AZ65)),0)) -> 0 | BB66: =IF((BA66-(Input!$C$9*Input!$C$38-SUM(BA$51:BA65)))<0,0,BA66-IF(Input!$C$9*Input!$C$38>SUM(BA$51:BA65),(Input!$C$9*Input!$C$38-SUM(BA$51:BA65)),0)) -> 0 | BC66: =IF((BB66-(Input!$C$9*Input!$C$38-SUM(BB$51:BB65)))<0,0,BB66-IF(Input!$C$9*Input!$C$38>SUM(BB$51:BB65),(Input!$C$9*Input!$C$38-SUM(BB$51:BB65)),0)) -> 0 | BD66: =IF((BC66-(Input!$C$9*Input!$C$38-SUM(BC$51:BC65)))<0,0,BC66-IF(Input!$C$9*Input!$C$38>SUM(BC$51:BC65),(Input!$C$9*Input!$C$38-SUM(BC$51:BC65)),0)) -> 0
A67: 17 | C67: =ROUND(NORMDIST(A67,Reeksen!$B$46,Reeksen!$B$47,FALSE)*Reeksen!$B$45,0) -> 208 | D67: =IF($B$37=0,0,C67) -> 208 | E67: 0.03439153439 | F67: -0.002850635204 | G67: 207.9971494 | H67: =IF((G67-(Input!$C$9*Input!$C$38-SUM(G$51:G66)))<0,0,G67-IF(Input!$C$9*Input!$C$38>SUM(G$51:G66),(Input!$C$9*Input!$C$38-SUM(G$51:G66)),0)) -> 207.9971494 | I67: =IF((H67-(Input!$C$9*Input!$C$38-SUM(H$51:H66)))<0,0,H67-IF(Input!$C$9*Input!$C$38>SUM(H$51:H66),(Input!$C$9*Input!$C$38-SUM(H$51:H66)),0)) -> 207.9971494 | J67: =IF((I67-(Input!$C$9*Input!$C$38-SUM(I$51:I66)))<0,0,I67-IF(Input!$C$9*Input!$C$38>SUM(I$51:I66),(Input!$C$9*Input!$C$38-SUM(I$51:I66)),0)) -> 207.9971494 | K67: =IF((J67-(Input!$C$9*Input!$C$38-SUM(J$51:J66)))<0,0,J67-IF(Input!$C$9*Input!$C$38>SUM(J$51:J66),(Input!$C$9*Input!$C$38-SUM(J$51:J66)),0)) -> 17.31976263 | L67: =IF((K67-(Input!$C$9*Input!$C$38-SUM(K$51:K66)))<0,0,K67-IF(Input!$C$9*Input!$C$38>SUM(K$51:K66),(Input!$C$9*Input!$C$38-SUM(K$51:K66)),0)) -> 0 | M67: =IF((L67-(Input!$C$9*Input!$C$38-SUM(L$51:L66)))<0,0,L67-IF(Input!$C$9*Input!$C$38>SUM(L$51:L66),(Input!$C$9*Input!$C$38-SUM(L$51:L66)),0)) -> 0 | N67: =IF((M67-(Input!$C$9*Input!$C$38-SUM(M$51:M66)))<0,0,M67-IF(Input!$C$9*Input!$C$38>SUM(M$51:M66),(Input!$C$9*Input!$C$38-SUM(M$51:M66)),0)) -> 0 | O67: =IF((N67-(Input!$C$9*Input!$C$38-SUM(N$51:N66)))<0,0,N67-IF(Input!$C$9*Input!$C$38>SUM(N$51:N66),(Input!$C$9*Input!$C$38-SUM(N$51:N66)),0)) -> 0 | P67: =IF((O67-(Input!$C$9*Input!$C$38-SUM(O$51:O66)))<0,0,O67-IF(Input!$C$9*Input!$C$38>SUM(O$51:O66),(Input!$C$9*Input!$C$38-SUM(O$51:O66)),0)) -> 0 | Q67: =IF((P67-(Input!$C$9*Input!$C$38-SUM(P$51:P66)))<0,0,P67-IF(Input!$C$9*Input!$C$38>SUM(P$51:P66),(Input!$C$9*Input!$C$38-SUM(P$51:P66)),0)) -> 0 | R67: =IF((Q67-(Input!$C$9*Input!$C$38-SUM(Q$51:Q66)))<0,0,Q67-IF(Input!$C$9*Input!$C$38>SUM(Q$51:Q66),(Input!$C$9*Input!$C$38-SUM(Q$51:Q66)),0)) -> 0 | S67: =IF((R67-(Input!$C$9*Input!$C$38-SUM(R$51:R66)))<0,0,R67-IF(Input!$C$9*Input!$C$38>SUM(R$51:R66),(Input!$C$9*Input!$C$38-SUM(R$51:R66)),0)) -> 0 | T67: =IF((S67-(Input!$C$9*Input!$C$38-SUM(S$51:S66)))<0,0,S67-IF(Input!$C$9*Input!$C$38>SUM(S$51:S66),(Input!$C$9*Input!$C$38-SUM(S$51:S66)),0)) -> 0 | U67: =IF((T67-(Input!$C$9*Input!$C$38-SUM(T$51:T66)))<0,0,T67-IF(Input!$C$9*Input!$C$38>SUM(T$51:T66),(Input!$C$9*Input!$C$38-SUM(T$51:T66)),0)) -> 0 | V67: =IF((U67-(Input!$C$9*Input!$C$38-SUM(U$51:U66)))<0,0,U67-IF(Input!$C$9*Input!$C$38>SUM(U$51:U66),(Input!$C$9*Input!$C$38-SUM(U$51:U66)),0)) -> 0 | W67: =IF((V67-(Input!$C$9*Input!$C$38-SUM(V$51:V66)))<0,0,V67-IF(Input!$C$9*Input!$C$38>SUM(V$51:V66),(Input!$C$9*Input!$C$38-SUM(V$51:V66)),0)) -> 0 | X67: =IF((W67-(Input!$C$9*Input!$C$38-SUM(W$51:W66)))<0,0,W67-IF(Input!$C$9*Input!$C$38>SUM(W$51:W66),(Input!$C$9*Input!$C$38-SUM(W$51:W66)),0)) -> 0 | Y67: =IF((X67-(Input!$C$9*Input!$C$38-SUM(X$51:X66)))<0,0,X67-IF(Input!$C$9*Input!$C$38>SUM(X$51:X66),(Input!$C$9*Input!$C$38-SUM(X$51:X66)),0)) -> 0 | Z67: =IF((Y67-(Input!$C$9*Input!$C$38-SUM(Y$51:Y66)))<0,0,Y67-IF(Input!$C$9*Input!$C$38>SUM(Y$51:Y66),(Input!$C$9*Input!$C$38-SUM(Y$51:Y66)),0)) -> 0 | AA67: =IF((Z67-(Input!$C$9*Input!$C$38-SUM(Z$51:Z66)))<0,0,Z67-IF(Input!$C$9*Input!$C$38>SUM(Z$51:Z66),(Input!$C$9*Input!$C$38-SUM(Z$51:Z66)),0)) -> 0 | AB67: =IF((AA67-(Input!$C$9*Input!$C$38-SUM(AA$51:AA66)))<0,0,AA67-IF(Input!$C$9*Input!$C$38>SUM(AA$51:AA66),(Input!$C$9*Input!$C$38-SUM(AA$51:AA66)),0)) -> 0 | AC67: =IF((AB67-(Input!$C$9*Input!$C$38-SUM(AB$51:AB66)))<0,0,AB67-IF(Input!$C$9*Input!$C$38>SUM(AB$51:AB66),(Input!$C$9*Input!$C$38-SUM(AB$51:AB66)),0)) -> 0 | AD67: =IF((AC67-(Input!$C$9*Input!$C$38-SUM(AC$51:AC66)))<0,0,AC67-IF(Input!$C$9*Input!$C$38>SUM(AC$51:AC66),(Input!$C$9*Input!$C$38-SUM(AC$51:AC66)),0)) -> 0 | AE67: =IF((AD67-(Input!$C$9*Input!$C$38-SUM(AD$51:AD66)))<0,0,AD67-IF(Input!$C$9*Input!$C$38>SUM(AD$51:AD66),(Input!$C$9*Input!$C$38-SUM(AD$51:AD66)),0)) -> 0 | AF67: =IF((AE67-(Input!$C$9*Input!$C$38-SUM(AE$51:AE66)))<0,0,AE67-IF(Input!$C$9*Input!$C$38>SUM(AE$51:AE66),(Input!$C$9*Input!$C$38-SUM(AE$51:AE66)),0)) -> 0 | AG67: =IF((AF67-(Input!$C$9*Input!$C$38-SUM(AF$51:AF66)))<0,0,AF67-IF(Input!$C$9*Input!$C$38>SUM(AF$51:AF66),(Input!$C$9*Input!$C$38-SUM(AF$51:AF66)),0)) -> 0 | AH67: =IF((AG67-(Input!$C$9*Input!$C$38-SUM(AG$51:AG66)))<0,0,AG67-IF(Input!$C$9*Input!$C$38>SUM(AG$51:AG66),(Input!$C$9*Input!$C$38-SUM(AG$51:AG66)),0)) -> 0 | AI67: =IF((AH67-(Input!$C$9*Input!$C$38-SUM(AH$51:AH66)))<0,0,AH67-IF(Input!$C$9*Input!$C$38>SUM(AH$51:AH66),(Input!$C$9*Input!$C$38-SUM(AH$51:AH66)),0)) -> 0 | AJ67: =IF((AI67-(Input!$C$9*Input!$C$38-SUM(AI$51:AI66)))<0,0,AI67-IF(Input!$C$9*Input!$C$38>SUM(AI$51:AI66),(Input!$C$9*Input!$C$38-SUM(AI$51:AI66)),0)) -> 0 | AK67: =IF((AJ67-(Input!$C$9*Input!$C$38-SUM(AJ$51:AJ66)))<0,0,AJ67-IF(Input!$C$9*Input!$C$38>SUM(AJ$51:AJ66),(Input!$C$9*Input!$C$38-SUM(AJ$51:AJ66)),0)) -> 0 | AL67: =IF((AK67-(Input!$C$9*Input!$C$38-SUM(AK$51:AK66)))<0,0,AK67-IF(Input!$C$9*Input!$C$38>SUM(AK$51:AK66),(Input!$C$9*Input!$C$38-SUM(AK$51:AK66)),0)) -> 0 | AM67: =IF((AL67-(Input!$C$9*Input!$C$38-SUM(AL$51:AL66)))<0,0,AL67-IF(Input!$C$9*Input!$C$38>SUM(AL$51:AL66),(Input!$C$9*Input!$C$38-SUM(AL$51:AL66)),0)) -> 0 | AN67: =IF((AM67-(Input!$C$9*Input!$C$38-SUM(AM$51:AM66)))<0,0,AM67-IF(Input!$C$9*Input!$C$38>SUM(AM$51:AM66),(Input!$C$9*Input!$C$38-SUM(AM$51:AM66)),0)) -> 0 | AO67: =IF((AN67-(Input!$C$9*Input!$C$38-SUM(AN$51:AN66)))<0,0,AN67-IF(Input!$C$9*Input!$C$38>SUM(AN$51:AN66),(Input!$C$9*Input!$C$38-SUM(AN$51:AN66)),0)) -> 0 | AP67: =IF((AO67-(Input!$C$9*Input!$C$38-SUM(AO$51:AO66)))<0,0,AO67-IF(Input!$C$9*Input!$C$38>SUM(AO$51:AO66),(Input!$C$9*Input!$C$38-SUM(AO$51:AO66)),0)) -> 0 | AQ67: =IF((AP67-(Input!$C$9*Input!$C$38-SUM(AP$51:AP66)))<0,0,AP67-IF(Input!$C$9*Input!$C$38>SUM(AP$51:AP66),(Input!$C$9*Input!$C$38-SUM(AP$51:AP66)),0)) -> 0 | AR67: =IF((AQ67-(Input!$C$9*Input!$C$38-SUM(AQ$51:AQ66)))<0,0,AQ67-IF(Input!$C$9*Input!$C$38>SUM(AQ$51:AQ66),(Input!$C$9*Input!$C$38-SUM(AQ$51:AQ66)),0)) -> 0 | AS67: =IF((AR67-(Input!$C$9*Input!$C$38-SUM(AR$51:AR66)))<0,0,AR67-IF(Input!$C$9*Input!$C$38>SUM(AR$51:AR66),(Input!$C$9*Input!$C$38-SUM(AR$51:AR66)),0)) -> 0 | AT67: =IF((AS67-(Input!$C$9*Input!$C$38-SUM(AS$51:AS66)))<0,0,AS67-IF(Input!$C$9*Input!$C$38>SUM(AS$51:AS66),(Input!$C$9*Input!$C$38-SUM(AS$51:AS66)),0)) -> 0 | AU67: =IF((AT67-(Input!$C$9*Input!$C$38-SUM(AT$51:AT66)))<0,0,AT67-IF(Input!$C$9*Input!$C$38>SUM(AT$51:AT66),(Input!$C$9*Input!$C$38-SUM(AT$51:AT66)),0)) -> 0 | AV67: =IF((AU67-(Input!$C$9*Input!$C$38-SUM(AU$51:AU66)))<0,0,AU67-IF(Input!$C$9*Input!$C$38>SUM(AU$51:AU66),(Input!$C$9*Input!$C$38-SUM(AU$51:AU66)),0)) -> 0 | AW67: =IF((AV67-(Input!$C$9*Input!$C$38-SUM(AV$51:AV66)))<0,0,AV67-IF(Input!$C$9*Input!$C$38>SUM(AV$51:AV66),(Input!$C$9*Input!$C$38-SUM(AV$51:AV66)),0)) -> 0 | AX67: =IF((AW67-(Input!$C$9*Input!$C$38-SUM(AW$51:AW66)))<0,0,AW67-IF(Input!$C$9*Input!$C$38>SUM(AW$51:AW66),(Input!$C$9*Input!$C$38-SUM(AW$51:AW66)),0)) -> 0 | AY67: =IF((AX67-(Input!$C$9*Input!$C$38-SUM(AX$51:AX66)))<0,0,AX67-IF(Input!$C$9*Input!$C$38>SUM(AX$51:AX66),(Input!$C$9*Input!$C$38-SUM(AX$51:AX66)),0)) -> 0 | AZ67: =IF((AY67-(Input!$C$9*Input!$C$38-SUM(AY$51:AY66)))<0,0,AY67-IF(Input!$C$9*Input!$C$38>SUM(AY$51:AY66),(Input!$C$9*Input!$C$38-SUM(AY$51:AY66)),0)) -> 0 | BA67: =IF((AZ67-(Input!$C$9*Input!$C$38-SUM(AZ$51:AZ66)))<0,0,AZ67-IF(Input!$C$9*Input!$C$38>SUM(AZ$51:AZ66),(Input!$C$9*Input!$C$38-SUM(AZ$51:AZ66)),0)) -> 0 | BB67: =IF((BA67-(Input!$C$9*Input!$C$38-SUM(BA$51:BA66)))<0,0,BA67-IF(Input!$C$9*Input!$C$38>SUM(BA$51:BA66),(Input!$C$9*Input!$C$38-SUM(BA$51:BA66)),0)) -> 0 | BC67: =IF((BB67-(Input!$C$9*Input!$C$38-SUM(BB$51:BB66)))<0,0,BB67-IF(Input!$C$9*Input!$C$38>SUM(BB$51:BB66),(Input!$C$9*Input!$C$38-SUM(BB$51:BB66)),0)) -> 0 | BD67: =IF((BC67-(Input!$C$9*Input!$C$38-SUM(BC$51:BC66)))<0,0,BC67-IF(Input!$C$9*Input!$C$38>SUM(BC$51:BC66),(Input!$C$9*Input!$C$38-SUM(BC$51:BC66)),0)) -> 0
A68: 18 | C68: =ROUND(NORMDIST(A68,Reeksen!$B$46,Reeksen!$B$47,FALSE)*Reeksen!$B$45,0) -> 242 | D68: 242 | E68: 0.04001322751 | F68: -0.00331660442 | G68: 241.9966834 | H68: =IF((G68-(Input!$C$9*Input!$C$38-SUM(G$51:G67)))<0,0,G68-IF(Input!$C$9*Input!$C$38>SUM(G$51:G67),(Input!$C$9*Input!$C$38-SUM(G$51:G67)),0)) -> 241.9966834 | I68: =IF((H68-(Input!$C$9*Input!$C$38-SUM(H$51:H67)))<0,0,H68-IF(Input!$C$9*Input!$C$38>SUM(H$51:H67),(Input!$C$9*Input!$C$38-SUM(H$51:H67)),0)) -> 241.9966834 | J68: =IF((I68-(Input!$C$9*Input!$C$38-SUM(I$51:I67)))<0,0,I68-IF(Input!$C$9*Input!$C$38>SUM(I$51:I67),(Input!$C$9*Input!$C$38-SUM(I$51:I67)),0)) -> 241.9966834 | K68: =IF((J68-(Input!$C$9*Input!$C$38-SUM(J$51:J67)))<0,0,J68-IF(Input!$C$9*Input!$C$38>SUM(J$51:J67),(Input!$C$9*Input!$C$38-SUM(J$51:J67)),0)) -> 241.9966834 | L68: =IF((K68-(Input!$C$9*Input!$C$38-SUM(K$51:K67)))<0,0,K68-IF(Input!$C$9*Input!$C$38>SUM(K$51:K67),(Input!$C$9*Input!$C$38-SUM(K$51:K67)),0)) -> 17.39976153 | M68: =IF((L68-(Input!$C$9*Input!$C$38-SUM(L$51:L67)))<0,0,L68-IF(Input!$C$9*Input!$C$38>SUM(L$51:L67),(Input!$C$9*Input!$C$38-SUM(L$51:L67)),0)) -> 0 | N68: =IF((M68-(Input!$C$9*Input!$C$38-SUM(M$51:M67)))<0,0,M68-IF(Input!$C$9*Input!$C$38>SUM(M$51:M67),(Input!$C$9*Input!$C$38-SUM(M$51:M67)),0)) -> 0 | O68: =IF((N68-(Input!$C$9*Input!$C$38-SUM(N$51:N67)))<0,0,N68-IF(Input!$C$9*Input!$C$38>SUM(N$51:N67),(Input!$C$9*Input!$C$38-SUM(N$51:N67)),0)) -> 0 | P68: =IF((O68-(Input!$C$9*Input!$C$38-SUM(O$51:O67)))<0,0,O68-IF(Input!$C$9*Input!$C$38>SUM(O$51:O67),(Input!$C$9*Input!$C$38-SUM(O$51:O67)),0)) -> 0 | Q68: =IF((P68-(Input!$C$9*Input!$C$38-SUM(P$51:P67)))<0,0,P68-IF(Input!$C$9*Input!$C$38>SUM(P$51:P67),(Input!$C$9*Input!$C$38-SUM(P$51:P67)),0)) -> 0 | R68: =IF((Q68-(Input!$C$9*Input!$C$38-SUM(Q$51:Q67)))<0,0,Q68-IF(Input!$C$9*Input!$C$38>SUM(Q$51:Q67),(Input!$C$9*Input!$C$38-SUM(Q$51:Q67)),0)) -> 0 | S68: =IF((R68-(Input!$C$9*Input!$C$38-SUM(R$51:R67)))<0,0,R68-IF(Input!$C$9*Input!$C$38>SUM(R$51:R67),(Input!$C$9*Input!$C$38-SUM(R$51:R67)),0)) -> 0 | T68: =IF((S68-(Input!$C$9*Input!$C$38-SUM(S$51:S67)))<0,0,S68-IF(Input!$C$9*Input!$C$38>SUM(S$51:S67),(Input!$C$9*Input!$C$38-SUM(S$51:S67)),0)) -> 0 | U68: =IF((T68-(Input!$C$9*Input!$C$38-SUM(T$51:T67)))<0,0,T68-IF(Input!$C$9*Input!$C$38>SUM(T$51:T67),(Input!$C$9*Input!$C$38-SUM(T$51:T67)),0)) -> 0 | V68: =IF((U68-(Input!$C$9*Input!$C$38-SUM(U$51:U67)))<0,0,U68-IF(Input!$C$9*Input!$C$38>SUM(U$51:U67),(Input!$C$9*Input!$C$38-SUM(U$51:U67)),0)) -> 0 | W68: =IF((V68-(Input!$C$9*Input!$C$38-SUM(V$51:V67)))<0,0,V68-IF(Input!$C$9*Input!$C$38>SUM(V$51:V67),(Input!$C$9*Input!$C$38-SUM(V$51:V67)),0)) -> 0 | X68: =IF((W68-(Input!$C$9*Input!$C$38-SUM(W$51:W67)))<0,0,W68-IF(Input!$C$9*Input!$C$38>SUM(W$51:W67),(Input!$C$9*Input!$C$38-SUM(W$51:W67)),0)) -> 0 | Y68: =IF((X68-(Input!$C$9*Input!$C$38-SUM(X$51:X67)))<0,0,X68-IF(Input!$C$9*Input!$C$38>SUM(X$51:X67),(Input!$C$9*Input!$C$38-SUM(X$51:X67)),0)) -> 0 | Z68: =IF((Y68-(Input!$C$9*Input!$C$38-SUM(Y$51:Y67)))<0,0,Y68-IF(Input!$C$9*Input!$C$38>SUM(Y$51:Y67),(Input!$C$9*Input!$C$38-SUM(Y$51:Y67)),0)) -> 0 | AA68: =IF((Z68-(Input!$C$9*Input!$C$38-SUM(Z$51:Z67)))<0,0,Z68-IF(Input!$C$9*Input!$C$38>SUM(Z$51:Z67),(Input!$C$9*Input!$C$38-SUM(Z$51:Z67)),0)) -> 0 | AB68: =IF((AA68-(Input!$C$9*Input!$C$38-SUM(AA$51:AA67)))<0,0,AA68-IF(Input!$C$9*Input!$C$38>SUM(AA$51:AA67),(Input!$C$9*Input!$C$38-SUM(AA$51:AA67)),0)) -> 0 | AC68: =IF((AB68-(Input!$C$9*Input!$C$38-SUM(AB$51:AB67)))<0,0,AB68-IF(Input!$C$9*Input!$C$38>SUM(AB$51:AB67),(Input!$C$9*Input!$C$38-SUM(AB$51:AB67)),0)) -> 0 | AD68: =IF((AC68-(Input!$C$9*Input!$C$38-SUM(AC$51:AC67)))<0,0,AC68-IF(Input!$C$9*Input!$C$38>SUM(AC$51:AC67),(Input!$C$9*Input!$C$38-SUM(AC$51:AC67)),0)) -> 0 | AE68: =IF((AD68-(Input!$C$9*Input!$C$38-SUM(AD$51:AD67)))<0,0,AD68-IF(Input!$C$9*Input!$C$38>SUM(AD$51:AD67),(Input!$C$9*Input!$C$38-SUM(AD$51:AD67)),0)) -> 0 | AF68: =IF((AE68-(Input!$C$9*Input!$C$38-SUM(AE$51:AE67)))<0,0,AE68-IF(Input!$C$9*Input!$C$38>SUM(AE$51:AE67),(Input!$C$9*Input!$C$38-SUM(AE$51:AE67)),0)) -> 0 | AG68: =IF((AF68-(Input!$C$9*Input!$C$38-SUM(AF$51:AF67)))<0,0,AF68-IF(Input!$C$9*Input!$C$38>SUM(AF$51:AF67),(Input!$C$9*Input!$C$38-SUM(AF$51:AF67)),0)) -> 0 | AH68: =IF((AG68-(Input!$C$9*Input!$C$38-SUM(AG$51:AG67)))<0,0,AG68-IF(Input!$C$9*Input!$C$38>SUM(AG$51:AG67),(Input!$C$9*Input!$C$38-SUM(AG$51:AG67)),0)) -> 0 | AI68: =IF((AH68-(Input!$C$9*Input!$C$38-SUM(AH$51:AH67)))<0,0,AH68-IF(Input!$C$9*Input!$C$38>SUM(AH$51:AH67),(Input!$C$9*Input!$C$38-SUM(AH$51:AH67)),0)) -> 0 | AJ68: =IF((AI68-(Input!$C$9*Input!$C$38-SUM(AI$51:AI67)))<0,0,AI68-IF(Input!$C$9*Input!$C$38>SUM(AI$51:AI67),(Input!$C$9*Input!$C$38-SUM(AI$51:AI67)),0)) -> 0 | AK68: =IF((AJ68-(Input!$C$9*Input!$C$38-SUM(AJ$51:AJ67)))<0,0,AJ68-IF(Input!$C$9*Input!$C$38>SUM(AJ$51:AJ67),(Input!$C$9*Input!$C$38-SUM(AJ$51:AJ67)),0)) -> 0 | AL68: =IF((AK68-(Input!$C$9*Input!$C$38-SUM(AK$51:AK67)))<0,0,AK68-IF(Input!$C$9*Input!$C$38>SUM(AK$51:AK67),(Input!$C$9*Input!$C$38-SUM(AK$51:AK67)),0)) -> 0 | AM68: =IF((AL68-(Input!$C$9*Input!$C$38-SUM(AL$51:AL67)))<0,0,AL68-IF(Input!$C$9*Input!$C$38>SUM(AL$51:AL67),(Input!$C$9*Input!$C$38-SUM(AL$51:AL67)),0)) -> 0 | AN68: =IF((AM68-(Input!$C$9*Input!$C$38-SUM(AM$51:AM67)))<0,0,AM68-IF(Input!$C$9*Input!$C$38>SUM(AM$51:AM67),(Input!$C$9*Input!$C$38-SUM(AM$51:AM67)),0)) -> 0 | AO68: =IF((AN68-(Input!$C$9*Input!$C$38-SUM(AN$51:AN67)))<0,0,AN68-IF(Input!$C$9*Input!$C$38>SUM(AN$51:AN67),(Input!$C$9*Input!$C$38-SUM(AN$51:AN67)),0)) -> 0 | AP68: =IF((AO68-(Input!$C$9*Input!$C$38-SUM(AO$51:AO67)))<0,0,AO68-IF(Input!$C$9*Input!$C$38>SUM(AO$51:AO67),(Input!$C$9*Input!$C$38-SUM(AO$51:AO67)),0)) -> 0 | AQ68: =IF((AP68-(Input!$C$9*Input!$C$38-SUM(AP$51:AP67)))<0,0,AP68-IF(Input!$C$9*Input!$C$38>SUM(AP$51:AP67),(Input!$C$9*Input!$C$38-SUM(AP$51:AP67)),0)) -> 0 | AR68: =IF((AQ68-(Input!$C$9*Input!$C$38-SUM(AQ$51:AQ67)))<0,0,AQ68-IF(Input!$C$9*Input!$C$38>SUM(AQ$51:AQ67),(Input!$C$9*Input!$C$38-SUM(AQ$51:AQ67)),0)) -> 0 | AS68: =IF((AR68-(Input!$C$9*Input!$C$38-SUM(AR$51:AR67)))<0,0,AR68-IF(Input!$C$9*Input!$C$38>SUM(AR$51:AR67),(Input!$C$9*Input!$C$38-SUM(AR$51:AR67)),0)) -> 0 | AT68: =IF((AS68-(Input!$C$9*Input!$C$38-SUM(AS$51:AS67)))<0,0,AS68-IF(Input!$C$9*Input!$C$38>SUM(AS$51:AS67),(Input!$C$9*Input!$C$38-SUM(AS$51:AS67)),0)) -> 0 | AU68: =IF((AT68-(Input!$C$9*Input!$C$38-SUM(AT$51:AT67)))<0,0,AT68-IF(Input!$C$9*Input!$C$38>SUM(AT$51:AT67),(Input!$C$9*Input!$C$38-SUM(AT$51:AT67)),0)) -> 0 | AV68: =IF((AU68-(Input!$C$9*Input!$C$38-SUM(AU$51:AU67)))<0,0,AU68-IF(Input!$C$9*Input!$C$38>SUM(AU$51:AU67),(Input!$C$9*Input!$C$38-SUM(AU$51:AU67)),0)) -> 0 | AW68: =IF((AV68-(Input!$C$9*Input!$C$38-SUM(AV$51:AV67)))<0,0,AV68-IF(Input!$C$9*Input!$C$38>SUM(AV$51:AV67),(Input!$C$9*Input!$C$38-SUM(AV$51:AV67)),0)) -> 0 | AX68: =IF((AW68-(Input!$C$9*Input!$C$38-SUM(AW$51:AW67)))<0,0,AW68-IF(Input!$C$9*Input!$C$38>SUM(AW$51:AW67),(Input!$C$9*Input!$C$38-SUM(AW$51:AW67)),0)) -> 0 | AY68: =IF((AX68-(Input!$C$9*Input!$C$38-SUM(AX$51:AX67)))<0,0,AX68-IF(Input!$C$9*Input!$C$38>SUM(AX$51:AX67),(Input!$C$9*Input!$C$38-SUM(AX$51:AX67)),0)) -> 0 | AZ68: =IF((AY68-(Input!$C$9*Input!$C$38-SUM(AY$51:AY67)))<0,0,AY68-IF(Input!$C$9*Input!$C$38>SUM(AY$51:AY67),(Input!$C$9*Input!$C$38-SUM(AY$51:AY67)),0)) -> 0 | BA68: =IF((AZ68-(Input!$C$9*Input!$C$38-SUM(AZ$51:AZ67)))<0,0,AZ68-IF(Input!$C$9*Input!$C$38>SUM(AZ$51:AZ67),(Input!$C$9*Input!$C$38-SUM(AZ$51:AZ67)),0)) -> 0 | BB68: =IF((BA68-(Input!$C$9*Input!$C$38-SUM(BA$51:BA67)))<0,0,BA68-IF(Input!$C$9*Input!$C$38>SUM(BA$51:BA67),(Input!$C$9*Input!$C$38-SUM(BA$51:BA67)),0)) -> 0 | BC68: =IF((BB68-(Input!$C$9*Input!$C$38-SUM(BB$51:BB67)))<0,0,BB68-IF(Input!$C$9*Input!$C$38>SUM(BB$51:BB67),(Input!$C$9*Input!$C$38-SUM(BB$51:BB67)),0)) -> 0 | BD68: =IF((BC68-(Input!$C$9*Input!$C$38-SUM(BC$51:BC67)))<0,0,BC68-IF(Input!$C$9*Input!$C$38>SUM(BC$51:BC67),(Input!$C$9*Input!$C$38-SUM(BC$51:BC67)),0)) -> 0
A69: 19 | C69: =ROUND(NORMDIST(A69,Reeksen!$B$46,Reeksen!$B$47,FALSE)*Reeksen!$B$45,0) -> 274 | D69: 274 | E69: 0.0453042328 | F69: -0.003755163682 | G69: 273.9962448 | H69: =IF((G69-(Input!$C$9*Input!$C$38-SUM(G$51:G68)))<0,0,G69-IF(Input!$C$9*Input!$C$38>SUM(G$51:G68),(Input!$C$9*Input!$C$38-SUM(G$51:G68)),0)) -> 273.9962448 | I69: =IF((H69-(Input!$C$9*Input!$C$38-SUM(H$51:H68)))<0,0,H69-IF(Input!$C$9*Input!$C$38>SUM(H$51:H68),(Input!$C$9*Input!$C$38-SUM(H$51:H68)),0)) -> 273.9962448 | J69: =IF((I69-(Input!$C$9*Input!$C$38-SUM(I$51:I68)))<0,0,I69-IF(Input!$C$9*Input!$C$38>SUM(I$51:I68),(Input!$C$9*Input!$C$38-SUM(I$51:I68)),0)) -> 273.9962448 | K69: =IF((J69-(Input!$C$9*Input!$C$38-SUM(J$51:J68)))<0,0,J69-IF(Input!$C$9*Input!$C$38>SUM(J$51:J68),(Input!$C$9*Input!$C$38-SUM(J$51:J68)),0)) -> 273.9962448 | L69: =IF((K69-(Input!$C$9*Input!$C$38-SUM(K$51:K68)))<0,0,K69-IF(Input!$C$9*Input!$C$38>SUM(K$51:K68),(Input!$C$9*Input!$C$38-SUM(K$51:K68)),0)) -> 273.9962448 | M69: =IF((L69-(Input!$C$9*Input!$C$38-SUM(L$51:L68)))<0,0,L69-IF(Input!$C$9*Input!$C$38>SUM(L$51:L68),(Input!$C$9*Input!$C$38-SUM(L$51:L68)),0)) -> 49.47932188 | N69: =IF((M69-(Input!$C$9*Input!$C$38-SUM(M$51:M68)))<0,0,M69-IF(Input!$C$9*Input!$C$38>SUM(M$51:M68),(Input!$C$9*Input!$C$38-SUM(M$51:M68)),0)) -> 0 | O69: =IF((N69-(Input!$C$9*Input!$C$38-SUM(N$51:N68)))<0,0,N69-IF(Input!$C$9*Input!$C$38>SUM(N$51:N68),(Input!$C$9*Input!$C$38-SUM(N$51:N68)),0)) -> 0 | P69: =IF((O69-(Input!$C$9*Input!$C$38-SUM(O$51:O68)))<0,0,O69-IF(Input!$C$9*Input!$C$38>SUM(O$51:O68),(Input!$C$9*Input!$C$38-SUM(O$51:O68)),0)) -> 0 | Q69: =IF((P69-(Input!$C$9*Input!$C$38-SUM(P$51:P68)))<0,0,P69-IF(Input!$C$9*Input!$C$38>SUM(P$51:P68),(Input!$C$9*Input!$C$38-SUM(P$51:P68)),0)) -> 0 | R69: =IF((Q69-(Input!$C$9*Input!$C$38-SUM(Q$51:Q68)))<0,0,Q69-IF(Input!$C$9*Input!$C$38>SUM(Q$51:Q68),(Input!$C$9*Input!$C$38-SUM(Q$51:Q68)),0)) -> 0 | S69: =IF((R69-(Input!$C$9*Input!$C$38-SUM(R$51:R68)))<0,0,R69-IF(Input!$C$9*Input!$C$38>SUM(R$51:R68),(Input!$C$9*Input!$C$38-SUM(R$51:R68)),0)) -> 0 | T69: =IF((S69-(Input!$C$9*Input!$C$38-SUM(S$51:S68)))<0,0,S69-IF(Input!$C$9*Input!$C$38>SUM(S$51:S68),(Input!$C$9*Input!$C$38-SUM(S$51:S68)),0)) -> 0 | U69: =IF((T69-(Input!$C$9*Input!$C$38-SUM(T$51:T68)))<0,0,T69-IF(Input!$C$9*Input!$C$38>SUM(T$51:T68),(Input!$C$9*Input!$C$38-SUM(T$51:T68)),0)) -> 0 | V69: =IF((U69-(Input!$C$9*Input!$C$38-SUM(U$51:U68)))<0,0,U69-IF(Input!$C$9*Input!$C$38>SUM(U$51:U68),(Input!$C$9*Input!$C$38-SUM(U$51:U68)),0)) -> 0 | W69: =IF((V69-(Input!$C$9*Input!$C$38-SUM(V$51:V68)))<0,0,V69-IF(Input!$C$9*Input!$C$38>SUM(V$51:V68),(Input!$C$9*Input!$C$38-SUM(V$51:V68)),0)) -> 0 | X69: =IF((W69-(Input!$C$9*Input!$C$38-SUM(W$51:W68)))<0,0,W69-IF(Input!$C$9*Input!$C$38>SUM(W$51:W68),(Input!$C$9*Input!$C$38-SUM(W$51:W68)),0)) -> 0 | Y69: =IF((X69-(Input!$C$9*Input!$C$38-SUM(X$51:X68)))<0,0,X69-IF(Input!$C$9*Input!$C$38>SUM(X$51:X68),(Input!$C$9*Input!$C$38-SUM(X$51:X68)),0)) -> 0 | Z69: =IF((Y69-(Input!$C$9*Input!$C$38-SUM(Y$51:Y68)))<0,0,Y69-IF(Input!$C$9*Input!$C$38>SUM(Y$51:Y68),(Input!$C$9*Input!$C$38-SUM(Y$51:Y68)),0)) -> 0 | AA69: =IF((Z69-(Input!$C$9*Input!$C$38-SUM(Z$51:Z68)))<0,0,Z69-IF(Input!$C$9*Input!$C$38>SUM(Z$51:Z68),(Input!$C$9*Input!$C$38-SUM(Z$51:Z68)),0)) -> 0 | AB69: =IF((AA69-(Input!$C$9*Input!$C$38-SUM(AA$51:AA68)))<0,0,AA69-IF(Input!$C$9*Input!$C$38>SUM(AA$51:AA68),(Input!$C$9*Input!$C$38-SUM(AA$51:AA68)),0)) -> 0 | AC69: =IF((AB69-(Input!$C$9*Input!$C$38-SUM(AB$51:AB68)))<0,0,AB69-IF(Input!$C$9*Input!$C$38>SUM(AB$51:AB68),(Input!$C$9*Input!$C$38-SUM(AB$51:AB68)),0)) -> 0 | AD69: =IF((AC69-(Input!$C$9*Input!$C$38-SUM(AC$51:AC68)))<0,0,AC69-IF(Input!$C$9*Input!$C$38>SUM(AC$51:AC68),(Input!$C$9*Input!$C$38-SUM(AC$51:AC68)),0)) -> 0 | AE69: =IF((AD69-(Input!$C$9*Input!$C$38-SUM(AD$51:AD68)))<0,0,AD69-IF(Input!$C$9*Input!$C$38>SUM(AD$51:AD68),(Input!$C$9*Input!$C$38-SUM(AD$51:AD68)),0)) -> 0 | AF69: =IF((AE69-(Input!$C$9*Input!$C$38-SUM(AE$51:AE68)))<0,0,AE69-IF(Input!$C$9*Input!$C$38>SUM(AE$51:AE68),(Input!$C$9*Input!$C$38-SUM(AE$51:AE68)),0)) -> 0 | AG69: =IF((AF69-(Input!$C$9*Input!$C$38-SUM(AF$51:AF68)))<0,0,AF69-IF(Input!$C$9*Input!$C$38>SUM(AF$51:AF68),(Input!$C$9*Input!$C$38-SUM(AF$51:AF68)),0)) -> 0 | AH69: =IF((AG69-(Input!$C$9*Input!$C$38-SUM(AG$51:AG68)))<0,0,AG69-IF(Input!$C$9*Input!$C$38>SUM(AG$51:AG68),(Input!$C$9*Input!$C$38-SUM(AG$51:AG68)),0)) -> 0 | AI69: =IF((AH69-(Input!$C$9*Input!$C$38-SUM(AH$51:AH68)))<0,0,AH69-IF(Input!$C$9*Input!$C$38>SUM(AH$51:AH68),(Input!$C$9*Input!$C$38-SUM(AH$51:AH68)),0)) -> 0 | AJ69: =IF((AI69-(Input!$C$9*Input!$C$38-SUM(AI$51:AI68)))<0,0,AI69-IF(Input!$C$9*Input!$C$38>SUM(AI$51:AI68),(Input!$C$9*Input!$C$38-SUM(AI$51:AI68)),0)) -> 0 | AK69: =IF((AJ69-(Input!$C$9*Input!$C$38-SUM(AJ$51:AJ68)))<0,0,AJ69-IF(Input!$C$9*Input!$C$38>SUM(AJ$51:AJ68),(Input!$C$9*Input!$C$38-SUM(AJ$51:AJ68)),0)) -> 0 | AL69: =IF((AK69-(Input!$C$9*Input!$C$38-SUM(AK$51:AK68)))<0,0,AK69-IF(Input!$C$9*Input!$C$38>SUM(AK$51:AK68),(Input!$C$9*Input!$C$38-SUM(AK$51:AK68)),0)) -> 0 | AM69: =IF((AL69-(Input!$C$9*Input!$C$38-SUM(AL$51:AL68)))<0,0,AL69-IF(Input!$C$9*Input!$C$38>SUM(AL$51:AL68),(Input!$C$9*Input!$C$38-SUM(AL$51:AL68)),0)) -> 0 | AN69: =IF((AM69-(Input!$C$9*Input!$C$38-SUM(AM$51:AM68)))<0,0,AM69-IF(Input!$C$9*Input!$C$38>SUM(AM$51:AM68),(Input!$C$9*Input!$C$38-SUM(AM$51:AM68)),0)) -> 0 | AO69: =IF((AN69-(Input!$C$9*Input!$C$38-SUM(AN$51:AN68)))<0,0,AN69-IF(Input!$C$9*Input!$C$38>SUM(AN$51:AN68),(Input!$C$9*Input!$C$38-SUM(AN$51:AN68)),0)) -> 0 | AP69: =IF((AO69-(Input!$C$9*Input!$C$38-SUM(AO$51:AO68)))<0,0,AO69-IF(Input!$C$9*Input!$C$38>SUM(AO$51:AO68),(Input!$C$9*Input!$C$38-SUM(AO$51:AO68)),0)) -> 0 | AQ69: =IF((AP69-(Input!$C$9*Input!$C$38-SUM(AP$51:AP68)))<0,0,AP69-IF(Input!$C$9*Input!$C$38>SUM(AP$51:AP68),(Input!$C$9*Input!$C$38-SUM(AP$51:AP68)),0)) -> 0 | AR69: =IF((AQ69-(Input!$C$9*Input!$C$38-SUM(AQ$51:AQ68)))<0,0,AQ69-IF(Input!$C$9*Input!$C$38>SUM(AQ$51:AQ68),(Input!$C$9*Input!$C$38-SUM(AQ$51:AQ68)),0)) -> 0 | AS69: =IF((AR69-(Input!$C$9*Input!$C$38-SUM(AR$51:AR68)))<0,0,AR69-IF(Input!$C$9*Input!$C$38>SUM(AR$51:AR68),(Input!$C$9*Input!$C$38-SUM(AR$51:AR68)),0)) -> 0 | AT69: =IF((AS69-(Input!$C$9*Input!$C$38-SUM(AS$51:AS68)))<0,0,AS69-IF(Input!$C$9*Input!$C$38>SUM(AS$51:AS68),(Input!$C$9*Input!$C$38-SUM(AS$51:AS68)),0)) -> 0 | AU69: =IF((AT69-(Input!$C$9*Input!$C$38-SUM(AT$51:AT68)))<0,0,AT69-IF(Input!$C$9*Input!$C$38>SUM(AT$51:AT68),(Input!$C$9*Input!$C$38-SUM(AT$51:AT68)),0)) -> 0 | AV69: =IF((AU69-(Input!$C$9*Input!$C$38-SUM(AU$51:AU68)))<0,0,AU69-IF(Input!$C$9*Input!$C$38>SUM(AU$51:AU68),(Input!$C$9*Input!$C$38-SUM(AU$51:AU68)),0)) -> 0 | AW69: =IF((AV69-(Input!$C$9*Input!$C$38-SUM(AV$51:AV68)))<0,0,AV69-IF(Input!$C$9*Input!$C$38>SUM(AV$51:AV68),(Input!$C$9*Input!$C$38-SUM(AV$51:AV68)),0)) -> 0 | AX69: =IF((AW69-(Input!$C$9*Input!$C$38-SUM(AW$51:AW68)))<0,0,AW69-IF(Input!$C$9*Input!$C$38>SUM(AW$51:AW68),(Input!$C$9*Input!$C$38-SUM(AW$51:AW68)),0)) -> 0 | AY69: =IF((AX69-(Input!$C$9*Input!$C$38-SUM(AX$51:AX68)))<0,0,AX69-IF(Input!$C$9*Input!$C$38>SUM(AX$51:AX68),(Input!$C$9*Input!$C$38-SUM(AX$51:AX68)),0)) -> 0 | AZ69: =IF((AY69-(Input!$C$9*Input!$C$38-SUM(AY$51:AY68)))<0,0,AY69-IF(Input!$C$9*Input!$C$38>SUM(AY$51:AY68),(Input!$C$9*Input!$C$38-SUM(AY$51:AY68)),0)) -> 0 | BA69: =IF((AZ69-(Input!$C$9*Input!$C$38-SUM(AZ$51:AZ68)))<0,0,AZ69-IF(Input!$C$9*Input!$C$38>SUM(AZ$51:AZ68),(Input!$C$9*Input!$C$38-SUM(AZ$51:AZ68)),0)) -> 0 | BB69: =IF((BA69-(Input!$C$9*Input!$C$38-SUM(BA$51:BA68)))<0,0,BA69-IF(Input!$C$9*Input!$C$38>SUM(BA$51:BA68),(Input!$C$9*Input!$C$38-SUM(BA$51:BA68)),0)) -> 0 | BC69: =IF((BB69-(Input!$C$9*Input!$C$38-SUM(BB$51:BB68)))<0,0,BB69-IF(Input!$C$9*Input!$C$38>SUM(BB$51:BB68),(Input!$C$9*Input!$C$38-SUM(BB$51:BB68)),0)) -> 0 | BD69: =IF((BC69-(Input!$C$9*Input!$C$38-SUM(BC$51:BC68)))<0,0,BC69-IF(Input!$C$9*Input!$C$38>SUM(BC$51:BC68),(Input!$C$9*Input!$C$38-SUM(BC$51:BC68)),0)) -> 0
A70: 20 | C70: =ROUND(NORMDIST(A70,Reeksen!$B$46,Reeksen!$B$47,FALSE)*Reeksen!$B$45,0) -> 304 | D70: =IF($B$38=0,0,C70) -> 304 | E70: 0.05026455026 | F70: -0.00416631299 | G70: 303.9958337 | H70: =IF((G70-(Input!$C$9*Input!$C$38-SUM(G$51:G69)))<0,0,G70-IF(Input!$C$9*Input!$C$38>SUM(G$51:G69),(Input!$C$9*Input!$C$38-SUM(G$51:G69)),0)) -> 303.9958337 | I70: =IF((H70-(Input!$C$9*Input!$C$38-SUM(H$51:H69)))<0,0,H70-IF(Input!$C$9*Input!$C$38>SUM(H$51:H69),(Input!$C$9*Input!$C$38-SUM(H$51:H69)),0)) -> 303.9958337 | J70: =IF((I70-(Input!$C$9*Input!$C$38-SUM(I$51:I69)))<0,0,I70-IF(Input!$C$9*Input!$C$38>SUM(I$51:I69),(Input!$C$9*Input!$C$38-SUM(I$51:I69)),0)) -> 303.9958337 | K70: =IF((J70-(Input!$C$9*Input!$C$38-SUM(J$51:J69)))<0,0,J70-IF(Input!$C$9*Input!$C$38>SUM(J$51:J69),(Input!$C$9*Input!$C$38-SUM(J$51:J69)),0)) -> 303.9958337 | L70: =IF((K70-(Input!$C$9*Input!$C$38-SUM(K$51:K69)))<0,0,K70-IF(Input!$C$9*Input!$C$38>SUM(K$51:K69),(Input!$C$9*Input!$C$38-SUM(K$51:K69)),0)) -> 303.9958337 | M70: =IF((L70-(Input!$C$9*Input!$C$38-SUM(L$51:L69)))<0,0,L70-IF(Input!$C$9*Input!$C$38>SUM(L$51:L69),(Input!$C$9*Input!$C$38-SUM(L$51:L69)),0)) -> 303.9958337 | N70: =IF((M70-(Input!$C$9*Input!$C$38-SUM(M$51:M69)))<0,0,M70-IF(Input!$C$9*Input!$C$38>SUM(M$51:M69),(Input!$C$9*Input!$C$38-SUM(M$51:M69)),0)) -> 111.5584711 | O70: =IF((N70-(Input!$C$9*Input!$C$38-SUM(N$51:N69)))<0,0,N70-IF(Input!$C$9*Input!$C$38>SUM(N$51:N69),(Input!$C$9*Input!$C$38-SUM(N$51:N69)),0)) -> 0 | P70: =IF((O70-(Input!$C$9*Input!$C$38-SUM(O$51:O69)))<0,0,O70-IF(Input!$C$9*Input!$C$38>SUM(O$51:O69),(Input!$C$9*Input!$C$38-SUM(O$51:O69)),0)) -> 0 | Q70: =IF((P70-(Input!$C$9*Input!$C$38-SUM(P$51:P69)))<0,0,P70-IF(Input!$C$9*Input!$C$38>SUM(P$51:P69),(Input!$C$9*Input!$C$38-SUM(P$51:P69)),0)) -> 0 | R70: =IF((Q70-(Input!$C$9*Input!$C$38-SUM(Q$51:Q69)))<0,0,Q70-IF(Input!$C$9*Input!$C$38>SUM(Q$51:Q69),(Input!$C$9*Input!$C$38-SUM(Q$51:Q69)),0)) -> 0 | S70: =IF((R70-(Input!$C$9*Input!$C$38-SUM(R$51:R69)))<0,0,R70-IF(Input!$C$9*Input!$C$38>SUM(R$51:R69),(Input!$C$9*Input!$C$38-SUM(R$51:R69)),0)) -> 0 | T70: =IF((S70-(Input!$C$9*Input!$C$38-SUM(S$51:S69)))<0,0,S70-IF(Input!$C$9*Input!$C$38>SUM(S$51:S69),(Input!$C$9*Input!$C$38-SUM(S$51:S69)),0)) -> 0 | U70: =IF((T70-(Input!$C$9*Input!$C$38-SUM(T$51:T69)))<0,0,T70-IF(Input!$C$9*Input!$C$38>SUM(T$51:T69),(Input!$C$9*Input!$C$38-SUM(T$51:T69)),0)) -> 0 | V70: =IF((U70-(Input!$C$9*Input!$C$38-SUM(U$51:U69)))<0,0,U70-IF(Input!$C$9*Input!$C$38>SUM(U$51:U69),(Input!$C$9*Input!$C$38-SUM(U$51:U69)),0)) -> 0 | W70: =IF((V70-(Input!$C$9*Input!$C$38-SUM(V$51:V69)))<0,0,V70-IF(Input!$C$9*Input!$C$38>SUM(V$51:V69),(Input!$C$9*Input!$C$38-SUM(V$51:V69)),0)) -> 0 | X70: =IF((W70-(Input!$C$9*Input!$C$38-SUM(W$51:W69)))<0,0,W70-IF(Input!$C$9*Input!$C$38>SUM(W$51:W69),(Input!$C$9*Input!$C$38-SUM(W$51:W69)),0)) -> 0 | Y70: =IF((X70-(Input!$C$9*Input!$C$38-SUM(X$51:X69)))<0,0,X70-IF(Input!$C$9*Input!$C$38>SUM(X$51:X69),(Input!$C$9*Input!$C$38-SUM(X$51:X69)),0)) -> 0 | Z70: =IF((Y70-(Input!$C$9*Input!$C$38-SUM(Y$51:Y69)))<0,0,Y70-IF(Input!$C$9*Input!$C$38>SUM(Y$51:Y69),(Input!$C$9*Input!$C$38-SUM(Y$51:Y69)),0)) -> 0 | AA70: =IF((Z70-(Input!$C$9*Input!$C$38-SUM(Z$51:Z69)))<0,0,Z70-IF(Input!$C$9*Input!$C$38>SUM(Z$51:Z69),(Input!$C$9*Input!$C$38-SUM(Z$51:Z69)),0)) -> 0 | AB70: =IF((AA70-(Input!$C$9*Input!$C$38-SUM(AA$51:AA69)))<0,0,AA70-IF(Input!$C$9*Input!$C$38>SUM(AA$51:AA69),(Input!$C$9*Input!$C$38-SUM(AA$51:AA69)),0)) -> 0 | AC70: =IF((AB70-(Input!$C$9*Input!$C$38-SUM(AB$51:AB69)))<0,0,AB70-IF(Input!$C$9*Input!$C$38>SUM(AB$51:AB69),(Input!$C$9*Input!$C$38-SUM(AB$51:AB69)),0)) -> 0 | AD70: =IF((AC70-(Input!$C$9*Input!$C$38-SUM(AC$51:AC69)))<0,0,AC70-IF(Input!$C$9*Input!$C$38>SUM(AC$51:AC69),(Input!$C$9*Input!$C$38-SUM(AC$51:AC69)),0)) -> 0 | AE70: =IF((AD70-(Input!$C$9*Input!$C$38-SUM(AD$51:AD69)))<0,0,AD70-IF(Input!$C$9*Input!$C$38>SUM(AD$51:AD69),(Input!$C$9*Input!$C$38-SUM(AD$51:AD69)),0)) -> 0 | AF70: =IF((AE70-(Input!$C$9*Input!$C$38-SUM(AE$51:AE69)))<0,0,AE70-IF(Input!$C$9*Input!$C$38>SUM(AE$51:AE69),(Input!$C$9*Input!$C$38-SUM(AE$51:AE69)),0)) -> 0 | AG70: =IF((AF70-(Input!$C$9*Input!$C$38-SUM(AF$51:AF69)))<0,0,AF70-IF(Input!$C$9*Input!$C$38>SUM(AF$51:AF69),(Input!$C$9*Input!$C$38-SUM(AF$51:AF69)),0)) -> 0 | AH70: =IF((AG70-(Input!$C$9*Input!$C$38-SUM(AG$51:AG69)))<0,0,AG70-IF(Input!$C$9*Input!$C$38>SUM(AG$51:AG69),(Input!$C$9*Input!$C$38-SUM(AG$51:AG69)),0)) -> 0 | AI70: =IF((AH70-(Input!$C$9*Input!$C$38-SUM(AH$51:AH69)))<0,0,AH70-IF(Input!$C$9*Input!$C$38>SUM(AH$51:AH69),(Input!$C$9*Input!$C$38-SUM(AH$51:AH69)),0)) -> 0 | AJ70: =IF((AI70-(Input!$C$9*Input!$C$38-SUM(AI$51:AI69)))<0,0,AI70-IF(Input!$C$9*Input!$C$38>SUM(AI$51:AI69),(Input!$C$9*Input!$C$38-SUM(AI$51:AI69)),0)) -> 0 | AK70: =IF((AJ70-(Input!$C$9*Input!$C$38-SUM(AJ$51:AJ69)))<0,0,AJ70-IF(Input!$C$9*Input!$C$38>SUM(AJ$51:AJ69),(Input!$C$9*Input!$C$38-SUM(AJ$51:AJ69)),0)) -> 0 | AL70: =IF((AK70-(Input!$C$9*Input!$C$38-SUM(AK$51:AK69)))<0,0,AK70-IF(Input!$C$9*Input!$C$38>SUM(AK$51:AK69),(Input!$C$9*Input!$C$38-SUM(AK$51:AK69)),0)) -> 0 | AM70: =IF((AL70-(Input!$C$9*Input!$C$38-SUM(AL$51:AL69)))<0,0,AL70-IF(Input!$C$9*Input!$C$38>SUM(AL$51:AL69),(Input!$C$9*Input!$C$38-SUM(AL$51:AL69)),0)) -> 0 | AN70: =IF((AM70-(Input!$C$9*Input!$C$38-SUM(AM$51:AM69)))<0,0,AM70-IF(Input!$C$9*Input!$C$38>SUM(AM$51:AM69),(Input!$C$9*Input!$C$38-SUM(AM$51:AM69)),0)) -> 0 | AO70: =IF((AN70-(Input!$C$9*Input!$C$38-SUM(AN$51:AN69)))<0,0,AN70-IF(Input!$C$9*Input!$C$38>SUM(AN$51:AN69),(Input!$C$9*Input!$C$38-SUM(AN$51:AN69)),0)) -> 0 | AP70: =IF((AO70-(Input!$C$9*Input!$C$38-SUM(AO$51:AO69)))<0,0,AO70-IF(Input!$C$9*Input!$C$38>SUM(AO$51:AO69),(Input!$C$9*Input!$C$38-SUM(AO$51:AO69)),0)) -> 0 | AQ70: =IF((AP70-(Input!$C$9*Input!$C$38-SUM(AP$51:AP69)))<0,0,AP70-IF(Input!$C$9*Input!$C$38>SUM(AP$51:AP69),(Input!$C$9*Input!$C$38-SUM(AP$51:AP69)),0)) -> 0 | AR70: =IF((AQ70-(Input!$C$9*Input!$C$38-SUM(AQ$51:AQ69)))<0,0,AQ70-IF(Input!$C$9*Input!$C$38>SUM(AQ$51:AQ69),(Input!$C$9*Input!$C$38-SUM(AQ$51:AQ69)),0)) -> 0 | AS70: =IF((AR70-(Input!$C$9*Input!$C$38-SUM(AR$51:AR69)))<0,0,AR70-IF(Input!$C$9*Input!$C$38>SUM(AR$51:AR69),(Input!$C$9*Input!$C$38-SUM(AR$51:AR69)),0)) -> 0 | AT70: =IF((AS70-(Input!$C$9*Input!$C$38-SUM(AS$51:AS69)))<0,0,AS70-IF(Input!$C$9*Input!$C$38>SUM(AS$51:AS69),(Input!$C$9*Input!$C$38-SUM(AS$51:AS69)),0)) -> 0 | AU70: =IF((AT70-(Input!$C$9*Input!$C$38-SUM(AT$51:AT69)))<0,0,AT70-IF(Input!$C$9*Input!$C$38>SUM(AT$51:AT69),(Input!$C$9*Input!$C$38-SUM(AT$51:AT69)),0)) -> 0 | AV70: =IF((AU70-(Input!$C$9*Input!$C$38-SUM(AU$51:AU69)))<0,0,AU70-IF(Input!$C$9*Input!$C$38>SUM(AU$51:AU69),(Input!$C$9*Input!$C$38-SUM(AU$51:AU69)),0)) -> 0 | AW70: =IF((AV70-(Input!$C$9*Input!$C$38-SUM(AV$51:AV69)))<0,0,AV70-IF(Input!$C$9*Input!$C$38>SUM(AV$51:AV69),(Input!$C$9*Input!$C$38-SUM(AV$51:AV69)),0)) -> 0 | AX70: =IF((AW70-(Input!$C$9*Input!$C$38-SUM(AW$51:AW69)))<0,0,AW70-IF(Input!$C$9*Input!$C$38>SUM(AW$51:AW69),(Input!$C$9*Input!$C$38-SUM(AW$51:AW69)),0)) -> 0 | AY70: =IF((AX70-(Input!$C$9*Input!$C$38-SUM(AX$51:AX69)))<0,0,AX70-IF(Input!$C$9*Input!$C$38>SUM(AX$51:AX69),(Input!$C$9*Input!$C$38-SUM(AX$51:AX69)),0)) -> 0 | AZ70: =IF((AY70-(Input!$C$9*Input!$C$38-SUM(AY$51:AY69)))<0,0,AY70-IF(Input!$C$9*Input!$C$38>SUM(AY$51:AY69),(Input!$C$9*Input!$C$38-SUM(AY$51:AY69)),0)) -> 0 | BA70: =IF((AZ70-(Input!$C$9*Input!$C$38-SUM(AZ$51:AZ69)))<0,0,AZ70-IF(Input!$C$9*Input!$C$38>SUM(AZ$51:AZ69),(Input!$C$9*Input!$C$38-SUM(AZ$51:AZ69)),0)) -> 0 | BB70: =IF((BA70-(Input!$C$9*Input!$C$38-SUM(BA$51:BA69)))<0,0,BA70-IF(Input!$C$9*Input!$C$38>SUM(BA$51:BA69),(Input!$C$9*Input!$C$38-SUM(BA$51:BA69)),0)) -> 0 | BC70: =IF((BB70-(Input!$C$9*Input!$C$38-SUM(BB$51:BB69)))<0,0,BB70-IF(Input!$C$9*Input!$C$38>SUM(BB$51:BB69),(Input!$C$9*Input!$C$38-SUM(BB$51:BB69)),0)) -> 0 | BD70: =IF((BC70-(Input!$C$9*Input!$C$38-SUM(BC$51:BC69)))<0,0,BC70-IF(Input!$C$9*Input!$C$38>SUM(BC$51:BC69),(Input!$C$9*Input!$C$38-SUM(BC$51:BC69)),0)) -> 0
A71: 21 | C71: =ROUND(NORMDIST(A71,Reeksen!$B$46,Reeksen!$B$47,FALSE)*Reeksen!$B$45,0) -> 329 | D71: =IF($B$38=0,0,C71) -> 329 | E71: 0.05439814815 | F71: -0.004508937413 | G71: =F71+D71 -> 328.9954911 | H71: =IF((G71-(Input!$C$9*Input!$C$38-SUM(G$51:G70)))<0,0,G71-IF(Input!$C$9*Input!$C$38>SUM(G$51:G70),(Input!$C$9*Input!$C$38-SUM(G$51:G70)),0)) -> 328.9954911 | I71: =IF((H71-(Input!$C$9*Input!$C$38-SUM(H$51:H70)))<0,0,H71-IF(Input!$C$9*Input!$C$38>SUM(H$51:H70),(Input!$C$9*Input!$C$38-SUM(H$51:H70)),0)) -> 328.9954911 | J71: =IF((I71-(Input!$C$9*Input!$C$38-SUM(I$51:I70)))<0,0,I71-IF(Input!$C$9*Input!$C$38>SUM(I$51:I70),(Input!$C$9*Input!$C$38-SUM(I$51:I70)),0)) -> 328.9954911 | K71: =IF((J71-(Input!$C$9*Input!$C$38-SUM(J$51:J70)))<0,0,J71-IF(Input!$C$9*Input!$C$38>SUM(J$51:J70),(Input!$C$9*Input!$C$38-SUM(J$51:J70)),0)) -> 328.9954911 | L71: =IF((K71-(Input!$C$9*Input!$C$38-SUM(K$51:K70)))<0,0,K71-IF(Input!$C$9*Input!$C$38>SUM(K$51:K70),(Input!$C$9*Input!$C$38-SUM(K$51:K70)),0)) -> 328.9954911 | M71: =IF((L71-(Input!$C$9*Input!$C$38-SUM(L$51:L70)))<0,0,L71-IF(Input!$C$9*Input!$C$38>SUM(L$51:L70),(Input!$C$9*Input!$C$38-SUM(L$51:L70)),0)) -> 328.9954911 | N71: =IF((M71-(Input!$C$9*Input!$C$38-SUM(M$51:M70)))<0,0,M71-IF(Input!$C$9*Input!$C$38>SUM(M$51:M70),(Input!$C$9*Input!$C$38-SUM(M$51:M70)),0)) -> 328.9954911 | O71: =IF((N71-(Input!$C$9*Input!$C$38-SUM(N$51:N70)))<0,0,N71-IF(Input!$C$9*Input!$C$38>SUM(N$51:N70),(Input!$C$9*Input!$C$38-SUM(N$51:N70)),0)) -> 198.6372776 | P71: =IF((O71-(Input!$C$9*Input!$C$38-SUM(O$51:O70)))<0,0,O71-IF(Input!$C$9*Input!$C$38>SUM(O$51:O70),(Input!$C$9*Input!$C$38-SUM(O$51:O70)),0)) -> 0 | Q71: =IF((P71-(Input!$C$9*Input!$C$38-SUM(P$51:P70)))<0,0,P71-IF(Input!$C$9*Input!$C$38>SUM(P$51:P70),(Input!$C$9*Input!$C$38-SUM(P$51:P70)),0)) -> 0 | R71: =IF((Q71-(Input!$C$9*Input!$C$38-SUM(Q$51:Q70)))<0,0,Q71-IF(Input!$C$9*Input!$C$38>SUM(Q$51:Q70),(Input!$C$9*Input!$C$38-SUM(Q$51:Q70)),0)) -> 0 | S71: =IF((R71-(Input!$C$9*Input!$C$38-SUM(R$51:R70)))<0,0,R71-IF(Input!$C$9*Input!$C$38>SUM(R$51:R70),(Input!$C$9*Input!$C$38-SUM(R$51:R70)),0)) -> 0 | T71: =IF((S71-(Input!$C$9*Input!$C$38-SUM(S$51:S70)))<0,0,S71-IF(Input!$C$9*Input!$C$38>SUM(S$51:S70),(Input!$C$9*Input!$C$38-SUM(S$51:S70)),0)) -> 0 | U71: =IF((T71-(Input!$C$9*Input!$C$38-SUM(T$51:T70)))<0,0,T71-IF(Input!$C$9*Input!$C$38>SUM(T$51:T70),(Input!$C$9*Input!$C$38-SUM(T$51:T70)),0)) -> 0 | V71: =IF((U71-(Input!$C$9*Input!$C$38-SUM(U$51:U70)))<0,0,U71-IF(Input!$C$9*Input!$C$38>SUM(U$51:U70),(Input!$C$9*Input!$C$38-SUM(U$51:U70)),0)) -> 0 | W71: =IF((V71-(Input!$C$9*Input!$C$38-SUM(V$51:V70)))<0,0,V71-IF(Input!$C$9*Input!$C$38>SUM(V$51:V70),(Input!$C$9*Input!$C$38-SUM(V$51:V70)),0)) -> 0 | X71: =IF((W71-(Input!$C$9*Input!$C$38-SUM(W$51:W70)))<0,0,W71-IF(Input!$C$9*Input!$C$38>SUM(W$51:W70),(Input!$C$9*Input!$C$38-SUM(W$51:W70)),0)) -> 0 | Y71: =IF((X71-(Input!$C$9*Input!$C$38-SUM(X$51:X70)))<0,0,X71-IF(Input!$C$9*Input!$C$38>SUM(X$51:X70),(Input!$C$9*Input!$C$38-SUM(X$51:X70)),0)) -> 0 | Z71: =IF((Y71-(Input!$C$9*Input!$C$38-SUM(Y$51:Y70)))<0,0,Y71-IF(Input!$C$9*Input!$C$38>SUM(Y$51:Y70),(Input!$C$9*Input!$C$38-SUM(Y$51:Y70)),0)) -> 0 | AA71: =IF((Z71-(Input!$C$9*Input!$C$38-SUM(Z$51:Z70)))<0,0,Z71-IF(Input!$C$9*Input!$C$38>SUM(Z$51:Z70),(Input!$C$9*Input!$C$38-SUM(Z$51:Z70)),0)) -> 0 | AB71: =IF((AA71-(Input!$C$9*Input!$C$38-SUM(AA$51:AA70)))<0,0,AA71-IF(Input!$C$9*Input!$C$38>SUM(AA$51:AA70),(Input!$C$9*Input!$C$38-SUM(AA$51:AA70)),0)) -> 0 | AC71: =IF((AB71-(Input!$C$9*Input!$C$38-SUM(AB$51:AB70)))<0,0,AB71-IF(Input!$C$9*Input!$C$38>SUM(AB$51:AB70),(Input!$C$9*Input!$C$38-SUM(AB$51:AB70)),0)) -> 0 | AD71: =IF((AC71-(Input!$C$9*Input!$C$38-SUM(AC$51:AC70)))<0,0,AC71-IF(Input!$C$9*Input!$C$38>SUM(AC$51:AC70),(Input!$C$9*Input!$C$38-SUM(AC$51:AC70)),0)) -> 0 | AE71: =IF((AD71-(Input!$C$9*Input!$C$38-SUM(AD$51:AD70)))<0,0,AD71-IF(Input!$C$9*Input!$C$38>SUM(AD$51:AD70),(Input!$C$9*Input!$C$38-SUM(AD$51:AD70)),0)) -> 0 | AF71: =IF((AE71-(Input!$C$9*Input!$C$38-SUM(AE$51:AE70)))<0,0,AE71-IF(Input!$C$9*Input!$C$38>SUM(AE$51:AE70),(Input!$C$9*Input!$C$38-SUM(AE$51:AE70)),0)) -> 0 | AG71: =IF((AF71-(Input!$C$9*Input!$C$38-SUM(AF$51:AF70)))<0,0,AF71-IF(Input!$C$9*Input!$C$38>SUM(AF$51:AF70),(Input!$C$9*Input!$C$38-SUM(AF$51:AF70)),0)) -> 0 | AH71: =IF((AG71-(Input!$C$9*Input!$C$38-SUM(AG$51:AG70)))<0,0,AG71-IF(Input!$C$9*Input!$C$38>SUM(AG$51:AG70),(Input!$C$9*Input!$C$38-SUM(AG$51:AG70)),0)) -> 0 | AI71: =IF((AH71-(Input!$C$9*Input!$C$38-SUM(AH$51:AH70)))<0,0,AH71-IF(Input!$C$9*Input!$C$38>SUM(AH$51:AH70),(Input!$C$9*Input!$C$38-SUM(AH$51:AH70)),0)) -> 0 | AJ71: =IF((AI71-(Input!$C$9*Input!$C$38-SUM(AI$51:AI70)))<0,0,AI71-IF(Input!$C$9*Input!$C$38>SUM(AI$51:AI70),(Input!$C$9*Input!$C$38-SUM(AI$51:AI70)),0)) -> 0 | AK71: =IF((AJ71-(Input!$C$9*Input!$C$38-SUM(AJ$51:AJ70)))<0,0,AJ71-IF(Input!$C$9*Input!$C$38>SUM(AJ$51:AJ70),(Input!$C$9*Input!$C$38-SUM(AJ$51:AJ70)),0)) -> 0 | AL71: =IF((AK71-(Input!$C$9*Input!$C$38-SUM(AK$51:AK70)))<0,0,AK71-IF(Input!$C$9*Input!$C$38>SUM(AK$51:AK70),(Input!$C$9*Input!$C$38-SUM(AK$51:AK70)),0)) -> 0 | AM71: =IF((AL71-(Input!$C$9*Input!$C$38-SUM(AL$51:AL70)))<0,0,AL71-IF(Input!$C$9*Input!$C$38>SUM(AL$51:AL70),(Input!$C$9*Input!$C$38-SUM(AL$51:AL70)),0)) -> 0 | AN71: =IF((AM71-(Input!$C$9*Input!$C$38-SUM(AM$51:AM70)))<0,0,AM71-IF(Input!$C$9*Input!$C$38>SUM(AM$51:AM70),(Input!$C$9*Input!$C$38-SUM(AM$51:AM70)),0)) -> 0 | AO71: =IF((AN71-(Input!$C$9*Input!$C$38-SUM(AN$51:AN70)))<0,0,AN71-IF(Input!$C$9*Input!$C$38>SUM(AN$51:AN70),(Input!$C$9*Input!$C$38-SUM(AN$51:AN70)),0)) -> 0 | AP71: =IF((AO71-(Input!$C$9*Input!$C$38-SUM(AO$51:AO70)))<0,0,AO71-IF(Input!$C$9*Input!$C$38>SUM(AO$51:AO70),(Input!$C$9*Input!$C$38-SUM(AO$51:AO70)),0)) -> 0 | AQ71: =IF((AP71-(Input!$C$9*Input!$C$38-SUM(AP$51:AP70)))<0,0,AP71-IF(Input!$C$9*Input!$C$38>SUM(AP$51:AP70),(Input!$C$9*Input!$C$38-SUM(AP$51:AP70)),0)) -> 0 | AR71: =IF((AQ71-(Input!$C$9*Input!$C$38-SUM(AQ$51:AQ70)))<0,0,AQ71-IF(Input!$C$9*Input!$C$38>SUM(AQ$51:AQ70),(Input!$C$9*Input!$C$38-SUM(AQ$51:AQ70)),0)) -> 0 | AS71: =IF((AR71-(Input!$C$9*Input!$C$38-SUM(AR$51:AR70)))<0,0,AR71-IF(Input!$C$9*Input!$C$38>SUM(AR$51:AR70),(Input!$C$9*Input!$C$38-SUM(AR$51:AR70)),0)) -> 0 | AT71: =IF((AS71-(Input!$C$9*Input!$C$38-SUM(AS$51:AS70)))<0,0,AS71-IF(Input!$C$9*Input!$C$38>SUM(AS$51:AS70),(Input!$C$9*Input!$C$38-SUM(AS$51:AS70)),0)) -> 0 | AU71: =IF((AT71-(Input!$C$9*Input!$C$38-SUM(AT$51:AT70)))<0,0,AT71-IF(Input!$C$9*Input!$C$38>SUM(AT$51:AT70),(Input!$C$9*Input!$C$38-SUM(AT$51:AT70)),0)) -> 0 | AV71: =IF((AU71-(Input!$C$9*Input!$C$38-SUM(AU$51:AU70)))<0,0,AU71-IF(Input!$C$9*Input!$C$38>SUM(AU$51:AU70),(Input!$C$9*Input!$C$38-SUM(AU$51:AU70)),0)) -> 0 | AW71: =IF((AV71-(Input!$C$9*Input!$C$38-SUM(AV$51:AV70)))<0,0,AV71-IF(Input!$C$9*Input!$C$38>SUM(AV$51:AV70),(Input!$C$9*Input!$C$38-SUM(AV$51:AV70)),0)) -> 0 | AX71: =IF((AW71-(Input!$C$9*Input!$C$38-SUM(AW$51:AW70)))<0,0,AW71-IF(Input!$C$9*Input!$C$38>SUM(AW$51:AW70),(Input!$C$9*Input!$C$38-SUM(AW$51:AW70)),0)) -> 0 | AY71: =IF((AX71-(Input!$C$9*Input!$C$38-SUM(AX$51:AX70)))<0,0,AX71-IF(Input!$C$9*Input!$C$38>SUM(AX$51:AX70),(Input!$C$9*Input!$C$38-SUM(AX$51:AX70)),0)) -> 0 | AZ71: =IF((AY71-(Input!$C$9*Input!$C$38-SUM(AY$51:AY70)))<0,0,AY71-IF(Input!$C$9*Input!$C$38>SUM(AY$51:AY70),(Input!$C$9*Input!$C$38-SUM(AY$51:AY70)),0)) -> 0 | BA71: =IF((AZ71-(Input!$C$9*Input!$C$38-SUM(AZ$51:AZ70)))<0,0,AZ71-IF(Input!$C$9*Input!$C$38>SUM(AZ$51:AZ70),(Input!$C$9*Input!$C$38-SUM(AZ$51:AZ70)),0)) -> 0 | BB71: =IF((BA71-(Input!$C$9*Input!$C$38-SUM(BA$51:BA70)))<0,0,BA71-IF(Input!$C$9*Input!$C$38>SUM(BA$51:BA70),(Input!$C$9*Input!$C$38-SUM(BA$51:BA70)),0)) -> 0 | BC71: =IF((BB71-(Input!$C$9*Input!$C$38-SUM(BB$51:BB70)))<0,0,BB71-IF(Input!$C$9*Input!$C$38>SUM(BB$51:BB70),(Input!$C$9*Input!$C$38-SUM(BB$51:BB70)),0)) -> 0 | BD71: =IF((BC71-(Input!$C$9*Input!$C$38-SUM(BC$51:BC70)))<0,0,BC71-IF(Input!$C$9*Input!$C$38>SUM(BC$51:BC70),(Input!$C$9*Input!$C$38-SUM(BC$51:BC70)),0)) -> 0
A72: 22 | C72: =ROUND(NORMDIST(A72,Reeksen!$B$46,Reeksen!$B$47,FALSE)*Reeksen!$B$45,0) -> 349 | D72: =IF($B$38=0,0,C72) -> 349 | E72: 0.05770502646 | F72: -0.004783036952 | G72: 348.995217 | H72: =IF((G72-(Input!$C$9*Input!$C$38-SUM(G$51:G71)))<0,0,G72-IF(Input!$C$9*Input!$C$38>SUM(G$51:G71),(Input!$C$9*Input!$C$38-SUM(G$51:G71)),0)) -> 348.995217 | I72: =IF((H72-(Input!$C$9*Input!$C$38-SUM(H$51:H71)))<0,0,H72-IF(Input!$C$9*Input!$C$38>SUM(H$51:H71),(Input!$C$9*Input!$C$38-SUM(H$51:H71)),0)) -> 348.995217 | J72: =IF((I72-(Input!$C$9*Input!$C$38-SUM(I$51:I71)))<0,0,I72-IF(Input!$C$9*Input!$C$38>SUM(I$51:I71),(Input!$C$9*Input!$C$38-SUM(I$51:I71)),0)) -> 348.995217 | K72: =IF((J72-(Input!$C$9*Input!$C$38-SUM(J$51:J71)))<0,0,J72-IF(Input!$C$9*Input!$C$38>SUM(J$51:J71),(Input!$C$9*Input!$C$38-SUM(J$51:J71)),0)) -> 348.995217 | L72: =IF((K72-(Input!$C$9*Input!$C$38-SUM(K$51:K71)))<0,0,K72-IF(Input!$C$9*Input!$C$38>SUM(K$51:K71),(Input!$C$9*Input!$C$38-SUM(K$51:K71)),0)) -> 348.995217 | M72: =IF((L72-(Input!$C$9*Input!$C$38-SUM(L$51:L71)))<0,0,L72-IF(Input!$C$9*Input!$C$38>SUM(L$51:L71),(Input!$C$9*Input!$C$38-SUM(L$51:L71)),0)) -> 348.995217 | N72: =IF((M72-(Input!$C$9*Input!$C$38-SUM(M$51:M71)))<0,0,M72-IF(Input!$C$9*Input!$C$38>SUM(M$51:M71),(Input!$C$9*Input!$C$38-SUM(M$51:M71)),0)) -> 348.995217 | O72: =IF((N72-(Input!$C$9*Input!$C$38-SUM(N$51:N71)))<0,0,N72-IF(Input!$C$9*Input!$C$38>SUM(N$51:N71),(Input!$C$9*Input!$C$38-SUM(N$51:N71)),0)) -> 348.995217 | P72: =IF((O72-(Input!$C$9*Input!$C$38-SUM(O$51:O71)))<0,0,O72-IF(Input!$C$9*Input!$C$38>SUM(O$51:O71),(Input!$C$9*Input!$C$38-SUM(O$51:O71)),0)) -> 305.7158101 | Q72: =IF((P72-(Input!$C$9*Input!$C$38-SUM(P$51:P71)))<0,0,P72-IF(Input!$C$9*Input!$C$38>SUM(P$51:P71),(Input!$C$9*Input!$C$38-SUM(P$51:P71)),0)) -> 63.79912562 | R72: =IF((Q72-(Input!$C$9*Input!$C$38-SUM(Q$51:Q71)))<0,0,Q72-IF(Input!$C$9*Input!$C$38>SUM(Q$51:Q71),(Input!$C$9*Input!$C$38-SUM(Q$51:Q71)),0)) -> 0 | S72: =IF((R72-(Input!$C$9*Input!$C$38-SUM(R$51:R71)))<0,0,R72-IF(Input!$C$9*Input!$C$38>SUM(R$51:R71),(Input!$C$9*Input!$C$38-SUM(R$51:R71)),0)) -> 0 | T72: =IF((S72-(Input!$C$9*Input!$C$38-SUM(S$51:S71)))<0,0,S72-IF(Input!$C$9*Input!$C$38>SUM(S$51:S71),(Input!$C$9*Input!$C$38-SUM(S$51:S71)),0)) -> 0 | U72: =IF((T72-(Input!$C$9*Input!$C$38-SUM(T$51:T71)))<0,0,T72-IF(Input!$C$9*Input!$C$38>SUM(T$51:T71),(Input!$C$9*Input!$C$38-SUM(T$51:T71)),0)) -> 0 | V72: =IF((U72-(Input!$C$9*Input!$C$38-SUM(U$51:U71)))<0,0,U72-IF(Input!$C$9*Input!$C$38>SUM(U$51:U71),(Input!$C$9*Input!$C$38-SUM(U$51:U71)),0)) -> 0 | W72: =IF((V72-(Input!$C$9*Input!$C$38-SUM(V$51:V71)))<0,0,V72-IF(Input!$C$9*Input!$C$38>SUM(V$51:V71),(Input!$C$9*Input!$C$38-SUM(V$51:V71)),0)) -> 0 | X72: =IF((W72-(Input!$C$9*Input!$C$38-SUM(W$51:W71)))<0,0,W72-IF(Input!$C$9*Input!$C$38>SUM(W$51:W71),(Input!$C$9*Input!$C$38-SUM(W$51:W71)),0)) -> 0 | Y72: =IF((X72-(Input!$C$9*Input!$C$38-SUM(X$51:X71)))<0,0,X72-IF(Input!$C$9*Input!$C$38>SUM(X$51:X71),(Input!$C$9*Input!$C$38-SUM(X$51:X71)),0)) -> 0 | Z72: =IF((Y72-(Input!$C$9*Input!$C$38-SUM(Y$51:Y71)))<0,0,Y72-IF(Input!$C$9*Input!$C$38>SUM(Y$51:Y71),(Input!$C$9*Input!$C$38-SUM(Y$51:Y71)),0)) -> 0 | AA72: =IF((Z72-(Input!$C$9*Input!$C$38-SUM(Z$51:Z71)))<0,0,Z72-IF(Input!$C$9*Input!$C$38>SUM(Z$51:Z71),(Input!$C$9*Input!$C$38-SUM(Z$51:Z71)),0)) -> 0 | AB72: =IF((AA72-(Input!$C$9*Input!$C$38-SUM(AA$51:AA71)))<0,0,AA72-IF(Input!$C$9*Input!$C$38>SUM(AA$51:AA71),(Input!$C$9*Input!$C$38-SUM(AA$51:AA71)),0)) -> 0 | AC72: =IF((AB72-(Input!$C$9*Input!$C$38-SUM(AB$51:AB71)))<0,0,AB72-IF(Input!$C$9*Input!$C$38>SUM(AB$51:AB71),(Input!$C$9*Input!$C$38-SUM(AB$51:AB71)),0)) -> 0 | AD72: =IF((AC72-(Input!$C$9*Input!$C$38-SUM(AC$51:AC71)))<0,0,AC72-IF(Input!$C$9*Input!$C$38>SUM(AC$51:AC71),(Input!$C$9*Input!$C$38-SUM(AC$51:AC71)),0)) -> 0 | AE72: =IF((AD72-(Input!$C$9*Input!$C$38-SUM(AD$51:AD71)))<0,0,AD72-IF(Input!$C$9*Input!$C$38>SUM(AD$51:AD71),(Input!$C$9*Input!$C$38-SUM(AD$51:AD71)),0)) -> 0 | AF72: =IF((AE72-(Input!$C$9*Input!$C$38-SUM(AE$51:AE71)))<0,0,AE72-IF(Input!$C$9*Input!$C$38>SUM(AE$51:AE71),(Input!$C$9*Input!$C$38-SUM(AE$51:AE71)),0)) -> 0 | AG72: =IF((AF72-(Input!$C$9*Input!$C$38-SUM(AF$51:AF71)))<0,0,AF72-IF(Input!$C$9*Input!$C$38>SUM(AF$51:AF71),(Input!$C$9*Input!$C$38-SUM(AF$51:AF71)),0)) -> 0 | AH72: =IF((AG72-(Input!$C$9*Input!$C$38-SUM(AG$51:AG71)))<0,0,AG72-IF(Input!$C$9*Input!$C$38>SUM(AG$51:AG71),(Input!$C$9*Input!$C$38-SUM(AG$51:AG71)),0)) -> 0 | AI72: =IF((AH72-(Input!$C$9*Input!$C$38-SUM(AH$51:AH71)))<0,0,AH72-IF(Input!$C$9*Input!$C$38>SUM(AH$51:AH71),(Input!$C$9*Input!$C$38-SUM(AH$51:AH71)),0)) -> 0 | AJ72: =IF((AI72-(Input!$C$9*Input!$C$38-SUM(AI$51:AI71)))<0,0,AI72-IF(Input!$C$9*Input!$C$38>SUM(AI$51:AI71),(Input!$C$9*Input!$C$38-SUM(AI$51:AI71)),0)) -> 0 | AK72: =IF((AJ72-(Input!$C$9*Input!$C$38-SUM(AJ$51:AJ71)))<0,0,AJ72-IF(Input!$C$9*Input!$C$38>SUM(AJ$51:AJ71),(Input!$C$9*Input!$C$38-SUM(AJ$51:AJ71)),0)) -> 0 | AL72: =IF((AK72-(Input!$C$9*Input!$C$38-SUM(AK$51:AK71)))<0,0,AK72-IF(Input!$C$9*Input!$C$38>SUM(AK$51:AK71),(Input!$C$9*Input!$C$38-SUM(AK$51:AK71)),0)) -> 0 | AM72: =IF((AL72-(Input!$C$9*Input!$C$38-SUM(AL$51:AL71)))<0,0,AL72-IF(Input!$C$9*Input!$C$38>SUM(AL$51:AL71),(Input!$C$9*Input!$C$38-SUM(AL$51:AL71)),0)) -> 0 | AN72: =IF((AM72-(Input!$C$9*Input!$C$38-SUM(AM$51:AM71)))<0,0,AM72-IF(Input!$C$9*Input!$C$38>SUM(AM$51:AM71),(Input!$C$9*Input!$C$38-SUM(AM$51:AM71)),0)) -> 0 | AO72: =IF((AN72-(Input!$C$9*Input!$C$38-SUM(AN$51:AN71)))<0,0,AN72-IF(Input!$C$9*Input!$C$38>SUM(AN$51:AN71),(Input!$C$9*Input!$C$38-SUM(AN$51:AN71)),0)) -> 0 | AP72: =IF((AO72-(Input!$C$9*Input!$C$38-SUM(AO$51:AO71)))<0,0,AO72-IF(Input!$C$9*Input!$C$38>SUM(AO$51:AO71),(Input!$C$9*Input!$C$38-SUM(AO$51:AO71)),0)) -> 0 | AQ72: =IF((AP72-(Input!$C$9*Input!$C$38-SUM(AP$51:AP71)))<0,0,AP72-IF(Input!$C$9*Input!$C$38>SUM(AP$51:AP71),(Input!$C$9*Input!$C$38-SUM(AP$51:AP71)),0)) -> 0 | AR72: =IF((AQ72-(Input!$C$9*Input!$C$38-SUM(AQ$51:AQ71)))<0,0,AQ72-IF(Input!$C$9*Input!$C$38>SUM(AQ$51:AQ71),(Input!$C$9*Input!$C$38-SUM(AQ$51:AQ71)),0)) -> 0 | AS72: =IF((AR72-(Input!$C$9*Input!$C$38-SUM(AR$51:AR71)))<0,0,AR72-IF(Input!$C$9*Input!$C$38>SUM(AR$51:AR71),(Input!$C$9*Input!$C$38-SUM(AR$51:AR71)),0)) -> 0 | AT72: =IF((AS72-(Input!$C$9*Input!$C$38-SUM(AS$51:AS71)))<0,0,AS72-IF(Input!$C$9*Input!$C$38>SUM(AS$51:AS71),(Input!$C$9*Input!$C$38-SUM(AS$51:AS71)),0)) -> 0 | AU72: =IF((AT72-(Input!$C$9*Input!$C$38-SUM(AT$51:AT71)))<0,0,AT72-IF(Input!$C$9*Input!$C$38>SUM(AT$51:AT71),(Input!$C$9*Input!$C$38-SUM(AT$51:AT71)),0)) -> 0 | AV72: =IF((AU72-(Input!$C$9*Input!$C$38-SUM(AU$51:AU71)))<0,0,AU72-IF(Input!$C$9*Input!$C$38>SUM(AU$51:AU71),(Input!$C$9*Input!$C$38-SUM(AU$51:AU71)),0)) -> 0 | AW72: =IF((AV72-(Input!$C$9*Input!$C$38-SUM(AV$51:AV71)))<0,0,AV72-IF(Input!$C$9*Input!$C$38>SUM(AV$51:AV71),(Input!$C$9*Input!$C$38-SUM(AV$51:AV71)),0)) -> 0 | AX72: =IF((AW72-(Input!$C$9*Input!$C$38-SUM(AW$51:AW71)))<0,0,AW72-IF(Input!$C$9*Input!$C$38>SUM(AW$51:AW71),(Input!$C$9*Input!$C$38-SUM(AW$51:AW71)),0)) -> 0 | AY72: =IF((AX72-(Input!$C$9*Input!$C$38-SUM(AX$51:AX71)))<0,0,AX72-IF(Input!$C$9*Input!$C$38>SUM(AX$51:AX71),(Input!$C$9*Input!$C$38-SUM(AX$51:AX71)),0)) -> 0 | AZ72: =IF((AY72-(Input!$C$9*Input!$C$38-SUM(AY$51:AY71)))<0,0,AY72-IF(Input!$C$9*Input!$C$38>SUM(AY$51:AY71),(Input!$C$9*Input!$C$38-SUM(AY$51:AY71)),0)) -> 0 | BA72: =IF((AZ72-(Input!$C$9*Input!$C$38-SUM(AZ$51:AZ71)))<0,0,AZ72-IF(Input!$C$9*Input!$C$38>SUM(AZ$51:AZ71),(Input!$C$9*Input!$C$38-SUM(AZ$51:AZ71)),0)) -> 0 | BB72: =IF((BA72-(Input!$C$9*Input!$C$38-SUM(BA$51:BA71)))<0,0,BA72-IF(Input!$C$9*Input!$C$38>SUM(BA$51:BA71),(Input!$C$9*Input!$C$38-SUM(BA$51:BA71)),0)) -> 0 | BC72: =IF((BB72-(Input!$C$9*Input!$C$38-SUM(BB$51:BB71)))<0,0,BB72-IF(Input!$C$9*Input!$C$38>SUM(BB$51:BB71),(Input!$C$9*Input!$C$38-SUM(BB$51:BB71)),0)) -> 0 | BD72: =IF((BC72-(Input!$C$9*Input!$C$38-SUM(BC$51:BC71)))<0,0,BC72-IF(Input!$C$9*Input!$C$38>SUM(BC$51:BC71),(Input!$C$9*Input!$C$38-SUM(BC$51:BC71)),0)) -> 0
A73: 23 | C73: =ROUND(NORMDIST(A73,Reeksen!$B$46,Reeksen!$B$47,FALSE)*Reeksen!$B$45,0) -> 361 | D73: 361 | E73: 0.05968915344 | F73: -0.004947496675 | G73: 360.9950525 | H73: =IF((G73-(Input!$C$9*Input!$C$38-SUM(G$51:G72)))<0,0,G73-IF(Input!$C$9*Input!$C$38>SUM(G$51:G72),(Input!$C$9*Input!$C$38-SUM(G$51:G72)),0)) -> 360.9950525 | I73: =IF((H73-(Input!$C$9*Input!$C$38-SUM(H$51:H72)))<0,0,H73-IF(Input!$C$9*Input!$C$38>SUM(H$51:H72),(Input!$C$9*Input!$C$38-SUM(H$51:H72)),0)) -> 360.9950525 | J73: =IF((I73-(Input!$C$9*Input!$C$38-SUM(I$51:I72)))<0,0,I73-IF(Input!$C$9*Input!$C$38>SUM(I$51:I72),(Input!$C$9*Input!$C$38-SUM(I$51:I72)),0)) -> 360.9950525 | K73: =IF((J73-(Input!$C$9*Input!$C$38-SUM(J$51:J72)))<0,0,J73-IF(Input!$C$9*Input!$C$38>SUM(J$51:J72),(Input!$C$9*Input!$C$38-SUM(J$51:J72)),0)) -> 360.9950525 | L73: =IF((K73-(Input!$C$9*Input!$C$38-SUM(K$51:K72)))<0,0,K73-IF(Input!$C$9*Input!$C$38>SUM(K$51:K72),(Input!$C$9*Input!$C$38-SUM(K$51:K72)),0)) -> 360.9950525 | M73: =IF((L73-(Input!$C$9*Input!$C$38-SUM(L$51:L72)))<0,0,L73-IF(Input!$C$9*Input!$C$38>SUM(L$51:L72),(Input!$C$9*Input!$C$38-SUM(L$51:L72)),0)) -> 360.9950525 | N73: =IF((M73-(Input!$C$9*Input!$C$38-SUM(M$51:M72)))<0,0,M73-IF(Input!$C$9*Input!$C$38>SUM(M$51:M72),(Input!$C$9*Input!$C$38-SUM(M$51:M72)),0)) -> 360.9950525 | O73: =IF((N73-(Input!$C$9*Input!$C$38-SUM(N$51:N72)))<0,0,N73-IF(Input!$C$9*Input!$C$38>SUM(N$51:N72),(Input!$C$9*Input!$C$38-SUM(N$51:N72)),0)) -> 360.9950525 | P73: =IF((O73-(Input!$C$9*Input!$C$38-SUM(O$51:O72)))<0,0,O73-IF(Input!$C$9*Input!$C$38>SUM(O$51:O72),(Input!$C$9*Input!$C$38-SUM(O$51:O72)),0)) -> 360.9950525 | Q73: =IF((P73-(Input!$C$9*Input!$C$38-SUM(P$51:P72)))<0,0,P73-IF(Input!$C$9*Input!$C$38>SUM(P$51:P72),(Input!$C$9*Input!$C$38-SUM(P$51:P72)),0)) -> 360.9950525 | R73: =IF((Q73-(Input!$C$9*Input!$C$38-SUM(Q$51:Q72)))<0,0,Q73-IF(Input!$C$9*Input!$C$38>SUM(Q$51:Q72),(Input!$C$9*Input!$C$38-SUM(Q$51:Q72)),0)) -> 182.8774936 | S73: =IF((R73-(Input!$C$9*Input!$C$38-SUM(R$51:R72)))<0,0,R73-IF(Input!$C$9*Input!$C$38>SUM(R$51:R72),(Input!$C$9*Input!$C$38-SUM(R$51:R72)),0)) -> 0 | T73: =IF((S73-(Input!$C$9*Input!$C$38-SUM(S$51:S72)))<0,0,S73-IF(Input!$C$9*Input!$C$38>SUM(S$51:S72),(Input!$C$9*Input!$C$38-SUM(S$51:S72)),0)) -> 0 | U73: =IF((T73-(Input!$C$9*Input!$C$38-SUM(T$51:T72)))<0,0,T73-IF(Input!$C$9*Input!$C$38>SUM(T$51:T72),(Input!$C$9*Input!$C$38-SUM(T$51:T72)),0)) -> 0 | V73: =IF((U73-(Input!$C$9*Input!$C$38-SUM(U$51:U72)))<0,0,U73-IF(Input!$C$9*Input!$C$38>SUM(U$51:U72),(Input!$C$9*Input!$C$38-SUM(U$51:U72)),0)) -> 0 | W73: =IF((V73-(Input!$C$9*Input!$C$38-SUM(V$51:V72)))<0,0,V73-IF(Input!$C$9*Input!$C$38>SUM(V$51:V72),(Input!$C$9*Input!$C$38-SUM(V$51:V72)),0)) -> 0 | X73: =IF((W73-(Input!$C$9*Input!$C$38-SUM(W$51:W72)))<0,0,W73-IF(Input!$C$9*Input!$C$38>SUM(W$51:W72),(Input!$C$9*Input!$C$38-SUM(W$51:W72)),0)) -> 0 | Y73: =IF((X73-(Input!$C$9*Input!$C$38-SUM(X$51:X72)))<0,0,X73-IF(Input!$C$9*Input!$C$38>SUM(X$51:X72),(Input!$C$9*Input!$C$38-SUM(X$51:X72)),0)) -> 0 | Z73: =IF((Y73-(Input!$C$9*Input!$C$38-SUM(Y$51:Y72)))<0,0,Y73-IF(Input!$C$9*Input!$C$38>SUM(Y$51:Y72),(Input!$C$9*Input!$C$38-SUM(Y$51:Y72)),0)) -> 0 | AA73: =IF((Z73-(Input!$C$9*Input!$C$38-SUM(Z$51:Z72)))<0,0,Z73-IF(Input!$C$9*Input!$C$38>SUM(Z$51:Z72),(Input!$C$9*Input!$C$38-SUM(Z$51:Z72)),0)) -> 0 | AB73: =IF((AA73-(Input!$C$9*Input!$C$38-SUM(AA$51:AA72)))<0,0,AA73-IF(Input!$C$9*Input!$C$38>SUM(AA$51:AA72),(Input!$C$9*Input!$C$38-SUM(AA$51:AA72)),0)) -> 0 | AC73: =IF((AB73-(Input!$C$9*Input!$C$38-SUM(AB$51:AB72)))<0,0,AB73-IF(Input!$C$9*Input!$C$38>SUM(AB$51:AB72),(Input!$C$9*Input!$C$38-SUM(AB$51:AB72)),0)) -> 0 | AD73: =IF((AC73-(Input!$C$9*Input!$C$38-SUM(AC$51:AC72)))<0,0,AC73-IF(Input!$C$9*Input!$C$38>SUM(AC$51:AC72),(Input!$C$9*Input!$C$38-SUM(AC$51:AC72)),0)) -> 0 | AE73: =IF((AD73-(Input!$C$9*Input!$C$38-SUM(AD$51:AD72)))<0,0,AD73-IF(Input!$C$9*Input!$C$38>SUM(AD$51:AD72),(Input!$C$9*Input!$C$38-SUM(AD$51:AD72)),0)) -> 0 | AF73: =IF((AE73-(Input!$C$9*Input!$C$38-SUM(AE$51:AE72)))<0,0,AE73-IF(Input!$C$9*Input!$C$38>SUM(AE$51:AE72),(Input!$C$9*Input!$C$38-SUM(AE$51:AE72)),0)) -> 0 | AG73: =IF((AF73-(Input!$C$9*Input!$C$38-SUM(AF$51:AF72)))<0,0,AF73-IF(Input!$C$9*Input!$C$38>SUM(AF$51:AF72),(Input!$C$9*Input!$C$38-SUM(AF$51:AF72)),0)) -> 0 | AH73: =IF((AG73-(Input!$C$9*Input!$C$38-SUM(AG$51:AG72)))<0,0,AG73-IF(Input!$C$9*Input!$C$38>SUM(AG$51:AG72),(Input!$C$9*Input!$C$38-SUM(AG$51:AG72)),0)) -> 0 | AI73: =IF((AH73-(Input!$C$9*Input!$C$38-SUM(AH$51:AH72)))<0,0,AH73-IF(Input!$C$9*Input!$C$38>SUM(AH$51:AH72),(Input!$C$9*Input!$C$38-SUM(AH$51:AH72)),0)) -> 0 | AJ73: =IF((AI73-(Input!$C$9*Input!$C$38-SUM(AI$51:AI72)))<0,0,AI73-IF(Input!$C$9*Input!$C$38>SUM(AI$51:AI72),(Input!$C$9*Input!$C$38-SUM(AI$51:AI72)),0)) -> 0 | AK73: =IF((AJ73-(Input!$C$9*Input!$C$38-SUM(AJ$51:AJ72)))<0,0,AJ73-IF(Input!$C$9*Input!$C$38>SUM(AJ$51:AJ72),(Input!$C$9*Input!$C$38-SUM(AJ$51:AJ72)),0)) -> 0 | AL73: =IF((AK73-(Input!$C$9*Input!$C$38-SUM(AK$51:AK72)))<0,0,AK73-IF(Input!$C$9*Input!$C$38>SUM(AK$51:AK72),(Input!$C$9*Input!$C$38-SUM(AK$51:AK72)),0)) -> 0 | AM73: =IF((AL73-(Input!$C$9*Input!$C$38-SUM(AL$51:AL72)))<0,0,AL73-IF(Input!$C$9*Input!$C$38>SUM(AL$51:AL72),(Input!$C$9*Input!$C$38-SUM(AL$51:AL72)),0)) -> 0 | AN73: =IF((AM73-(Input!$C$9*Input!$C$38-SUM(AM$51:AM72)))<0,0,AM73-IF(Input!$C$9*Input!$C$38>SUM(AM$51:AM72),(Input!$C$9*Input!$C$38-SUM(AM$51:AM72)),0)) -> 0 | AO73: =IF((AN73-(Input!$C$9*Input!$C$38-SUM(AN$51:AN72)))<0,0,AN73-IF(Input!$C$9*Input!$C$38>SUM(AN$51:AN72),(Input!$C$9*Input!$C$38-SUM(AN$51:AN72)),0)) -> 0 | AP73: =IF((AO73-(Input!$C$9*Input!$C$38-SUM(AO$51:AO72)))<0,0,AO73-IF(Input!$C$9*Input!$C$38>SUM(AO$51:AO72),(Input!$C$9*Input!$C$38-SUM(AO$51:AO72)),0)) -> 0 | AQ73: =IF((AP73-(Input!$C$9*Input!$C$38-SUM(AP$51:AP72)))<0,0,AP73-IF(Input!$C$9*Input!$C$38>SUM(AP$51:AP72),(Input!$C$9*Input!$C$38-SUM(AP$51:AP72)),0)) -> 0 | AR73: =IF((AQ73-(Input!$C$9*Input!$C$38-SUM(AQ$51:AQ72)))<0,0,AQ73-IF(Input!$C$9*Input!$C$38>SUM(AQ$51:AQ72),(Input!$C$9*Input!$C$38-SUM(AQ$51:AQ72)),0)) -> 0 | AS73: =IF((AR73-(Input!$C$9*Input!$C$38-SUM(AR$51:AR72)))<0,0,AR73-IF(Input!$C$9*Input!$C$38>SUM(AR$51:AR72),(Input!$C$9*Input!$C$38-SUM(AR$51:AR72)),0)) -> 0 | AT73: =IF((AS73-(Input!$C$9*Input!$C$38-SUM(AS$51:AS72)))<0,0,AS73-IF(Input!$C$9*Input!$C$38>SUM(AS$51:AS72),(Input!$C$9*Input!$C$38-SUM(AS$51:AS72)),0)) -> 0 | AU73: =IF((AT73-(Input!$C$9*Input!$C$38-SUM(AT$51:AT72)))<0,0,AT73-IF(Input!$C$9*Input!$C$38>SUM(AT$51:AT72),(Input!$C$9*Input!$C$38-SUM(AT$51:AT72)),0)) -> 0 | AV73: =IF((AU73-(Input!$C$9*Input!$C$38-SUM(AU$51:AU72)))<0,0,AU73-IF(Input!$C$9*Input!$C$38>SUM(AU$51:AU72),(Input!$C$9*Input!$C$38-SUM(AU$51:AU72)),0)) -> 0 | AW73: =IF((AV73-(Input!$C$9*Input!$C$38-SUM(AV$51:AV72)))<0,0,AV73-IF(Input!$C$9*Input!$C$38>SUM(AV$51:AV72),(Input!$C$9*Input!$C$38-SUM(AV$51:AV72)),0)) -> 0 | AX73: =IF((AW73-(Input!$C$9*Input!$C$38-SUM(AW$51:AW72)))<0,0,AW73-IF(Input!$C$9*Input!$C$38>SUM(AW$51:AW72),(Input!$C$9*Input!$C$38-SUM(AW$51:AW72)),0)) -> 0 | AY73: =IF((AX73-(Input!$C$9*Input!$C$38-SUM(AX$51:AX72)))<0,0,AX73-IF(Input!$C$9*Input!$C$38>SUM(AX$51:AX72),(Input!$C$9*Input!$C$38-SUM(AX$51:AX72)),0)) -> 0 | AZ73: =IF((AY73-(Input!$C$9*Input!$C$38-SUM(AY$51:AY72)))<0,0,AY73-IF(Input!$C$9*Input!$C$38>SUM(AY$51:AY72),(Input!$C$9*Input!$C$38-SUM(AY$51:AY72)),0)) -> 0 | BA73: =IF((AZ73-(Input!$C$9*Input!$C$38-SUM(AZ$51:AZ72)))<0,0,AZ73-IF(Input!$C$9*Input!$C$38>SUM(AZ$51:AZ72),(Input!$C$9*Input!$C$38-SUM(AZ$51:AZ72)),0)) -> 0 | BB73: =IF((BA73-(Input!$C$9*Input!$C$38-SUM(BA$51:BA72)))<0,0,BA73-IF(Input!$C$9*Input!$C$38>SUM(BA$51:BA72),(Input!$C$9*Input!$C$38-SUM(BA$51:BA72)),0)) -> 0 | BC73: =IF((BB73-(Input!$C$9*Input!$C$38-SUM(BB$51:BB72)))<0,0,BB73-IF(Input!$C$9*Input!$C$38>SUM(BB$51:BB72),(Input!$C$9*Input!$C$38-SUM(BB$51:BB72)),0)) -> 0 | BD73: =IF((BC73-(Input!$C$9*Input!$C$38-SUM(BC$51:BC72)))<0,0,BC73-IF(Input!$C$9*Input!$C$38>SUM(BC$51:BC72),(Input!$C$9*Input!$C$38-SUM(BC$51:BC72)),0)) -> 0
A74: 24 | C74: =ROUND(NORMDIST(A74,Reeksen!$B$46,Reeksen!$B$47,FALSE)*Reeksen!$B$45,0) -> 365 | D74: 365 | E74: 0.0603505291 | F74: -0.005002316583 | G74: 364.9949977 | H74: =IF((G74-(Input!$C$9*Input!$C$38-SUM(G$51:G73)))<0,0,G74-IF(Input!$C$9*Input!$C$38>SUM(G$51:G73),(Input!$C$9*Input!$C$38-SUM(G$51:G73)),0)) -> 364.9949977 | I74: =IF((H74-(Input!$C$9*Input!$C$38-SUM(H$51:H73)))<0,0,H74-IF(Input!$C$9*Input!$C$38>SUM(H$51:H73),(Input!$C$9*Input!$C$38-SUM(H$51:H73)),0)) -> 364.9949977 | J74: =IF((I74-(Input!$C$9*Input!$C$38-SUM(I$51:I73)))<0,0,I74-IF(Input!$C$9*Input!$C$38>SUM(I$51:I73),(Input!$C$9*Input!$C$38-SUM(I$51:I73)),0)) -> 364.9949977 | K74: =IF((J74-(Input!$C$9*Input!$C$38-SUM(J$51:J73)))<0,0,J74-IF(Input!$C$9*Input!$C$38>SUM(J$51:J73),(Input!$C$9*Input!$C$38-SUM(J$51:J73)),0)) -> 364.9949977 | L74: =IF((K74-(Input!$C$9*Input!$C$38-SUM(K$51:K73)))<0,0,K74-IF(Input!$C$9*Input!$C$38>SUM(K$51:K73),(Input!$C$9*Input!$C$38-SUM(K$51:K73)),0)) -> 364.9949977 | M74: =IF((L74-(Input!$C$9*Input!$C$38-SUM(L$51:L73)))<0,0,L74-IF(Input!$C$9*Input!$C$38>SUM(L$51:L73),(Input!$C$9*Input!$C$38-SUM(L$51:L73)),0)) -> 364.9949977 | N74: =IF((M74-(Input!$C$9*Input!$C$38-SUM(M$51:M73)))<0,0,M74-IF(Input!$C$9*Input!$C$38>SUM(M$51:M73),(Input!$C$9*Input!$C$38-SUM(M$51:M73)),0)) -> 364.9949977 | O74: =IF((N74-(Input!$C$9*Input!$C$38-SUM(N$51:N73)))<0,0,N74-IF(Input!$C$9*Input!$C$38>SUM(N$51:N73),(Input!$C$9*Input!$C$38-SUM(N$51:N73)),0)) -> 364.9949977 | P74: =IF((O74-(Input!$C$9*Input!$C$38-SUM(O$51:O73)))<0,0,O74-IF(Input!$C$9*Input!$C$38>SUM(O$51:O73),(Input!$C$9*Input!$C$38-SUM(O$51:O73)),0)) -> 364.9949977 | Q74: =IF((P74-(Input!$C$9*Input!$C$38-SUM(P$51:P73)))<0,0,P74-IF(Input!$C$9*Input!$C$38>SUM(P$51:P73),(Input!$C$9*Input!$C$38-SUM(P$51:P73)),0)) -> 364.9949977 | R74: =IF((Q74-(Input!$C$9*Input!$C$38-SUM(Q$51:Q73)))<0,0,Q74-IF(Input!$C$9*Input!$C$38>SUM(Q$51:Q73),(Input!$C$9*Input!$C$38-SUM(Q$51:Q73)),0)) -> 364.9949977 | S74: =IF((R74-(Input!$C$9*Input!$C$38-SUM(R$51:R73)))<0,0,R74-IF(Input!$C$9*Input!$C$38>SUM(R$51:R73),(Input!$C$9*Input!$C$38-SUM(R$51:R73)),0)) -> 305.9558068 | T74: =IF((S74-(Input!$C$9*Input!$C$38-SUM(S$51:S73)))<0,0,S74-IF(Input!$C$9*Input!$C$38>SUM(S$51:S73),(Input!$C$9*Input!$C$38-SUM(S$51:S73)),0)) -> 64.03912233 | U74: =IF((T74-(Input!$C$9*Input!$C$38-SUM(T$51:T73)))<0,0,T74-IF(Input!$C$9*Input!$C$38>SUM(T$51:T73),(Input!$C$9*Input!$C$38-SUM(T$51:T73)),0)) -> 0 | V74: =IF((U74-(Input!$C$9*Input!$C$38-SUM(U$51:U73)))<0,0,U74-IF(Input!$C$9*Input!$C$38>SUM(U$51:U73),(Input!$C$9*Input!$C$38-SUM(U$51:U73)),0)) -> 0 | W74: =IF((V74-(Input!$C$9*Input!$C$38-SUM(V$51:V73)))<0,0,V74-IF(Input!$C$9*Input!$C$38>SUM(V$51:V73),(Input!$C$9*Input!$C$38-SUM(V$51:V73)),0)) -> 0 | X74: =IF((W74-(Input!$C$9*Input!$C$38-SUM(W$51:W73)))<0,0,W74-IF(Input!$C$9*Input!$C$38>SUM(W$51:W73),(Input!$C$9*Input!$C$38-SUM(W$51:W73)),0)) -> 0 | Y74: =IF((X74-(Input!$C$9*Input!$C$38-SUM(X$51:X73)))<0,0,X74-IF(Input!$C$9*Input!$C$38>SUM(X$51:X73),(Input!$C$9*Input!$C$38-SUM(X$51:X73)),0)) -> 0 | Z74: =IF((Y74-(Input!$C$9*Input!$C$38-SUM(Y$51:Y73)))<0,0,Y74-IF(Input!$C$9*Input!$C$38>SUM(Y$51:Y73),(Input!$C$9*Input!$C$38-SUM(Y$51:Y73)),0)) -> 0 | AA74: =IF((Z74-(Input!$C$9*Input!$C$38-SUM(Z$51:Z73)))<0,0,Z74-IF(Input!$C$9*Input!$C$38>SUM(Z$51:Z73),(Input!$C$9*Input!$C$38-SUM(Z$51:Z73)),0)) -> 0 | AB74: =IF((AA74-(Input!$C$9*Input!$C$38-SUM(AA$51:AA73)))<0,0,AA74-IF(Input!$C$9*Input!$C$38>SUM(AA$51:AA73),(Input!$C$9*Input!$C$38-SUM(AA$51:AA73)),0)) -> 0 | AC74: =IF((AB74-(Input!$C$9*Input!$C$38-SUM(AB$51:AB73)))<0,0,AB74-IF(Input!$C$9*Input!$C$38>SUM(AB$51:AB73),(Input!$C$9*Input!$C$38-SUM(AB$51:AB73)),0)) -> 0 | AD74: =IF((AC74-(Input!$C$9*Input!$C$38-SUM(AC$51:AC73)))<0,0,AC74-IF(Input!$C$9*Input!$C$38>SUM(AC$51:AC73),(Input!$C$9*Input!$C$38-SUM(AC$51:AC73)),0)) -> 0 | AE74: =IF((AD74-(Input!$C$9*Input!$C$38-SUM(AD$51:AD73)))<0,0,AD74-IF(Input!$C$9*Input!$C$38>SUM(AD$51:AD73),(Input!$C$9*Input!$C$38-SUM(AD$51:AD73)),0)) -> 0 | AF74: =IF((AE74-(Input!$C$9*Input!$C$38-SUM(AE$51:AE73)))<0,0,AE74-IF(Input!$C$9*Input!$C$38>SUM(AE$51:AE73),(Input!$C$9*Input!$C$38-SUM(AE$51:AE73)),0)) -> 0 | AG74: =IF((AF74-(Input!$C$9*Input!$C$38-SUM(AF$51:AF73)))<0,0,AF74-IF(Input!$C$9*Input!$C$38>SUM(AF$51:AF73),(Input!$C$9*Input!$C$38-SUM(AF$51:AF73)),0)) -> 0 | AH74: =IF((AG74-(Input!$C$9*Input!$C$38-SUM(AG$51:AG73)))<0,0,AG74-IF(Input!$C$9*Input!$C$38>SUM(AG$51:AG73),(Input!$C$9*Input!$C$38-SUM(AG$51:AG73)),0)) -> 0 | AI74: =IF((AH74-(Input!$C$9*Input!$C$38-SUM(AH$51:AH73)))<0,0,AH74-IF(Input!$C$9*Input!$C$38>SUM(AH$51:AH73),(Input!$C$9*Input!$C$38-SUM(AH$51:AH73)),0)) -> 0 | AJ74: =IF((AI74-(Input!$C$9*Input!$C$38-SUM(AI$51:AI73)))<0,0,AI74-IF(Input!$C$9*Input!$C$38>SUM(AI$51:AI73),(Input!$C$9*Input!$C$38-SUM(AI$51:AI73)),0)) -> 0 | AK74: =IF((AJ74-(Input!$C$9*Input!$C$38-SUM(AJ$51:AJ73)))<0,0,AJ74-IF(Input!$C$9*Input!$C$38>SUM(AJ$51:AJ73),(Input!$C$9*Input!$C$38-SUM(AJ$51:AJ73)),0)) -> 0 | AL74: =IF((AK74-(Input!$C$9*Input!$C$38-SUM(AK$51:AK73)))<0,0,AK74-IF(Input!$C$9*Input!$C$38>SUM(AK$51:AK73),(Input!$C$9*Input!$C$38-SUM(AK$51:AK73)),0)) -> 0 | AM74: =IF((AL74-(Input!$C$9*Input!$C$38-SUM(AL$51:AL73)))<0,0,AL74-IF(Input!$C$9*Input!$C$38>SUM(AL$51:AL73),(Input!$C$9*Input!$C$38-SUM(AL$51:AL73)),0)) -> 0 | AN74: =IF((AM74-(Input!$C$9*Input!$C$38-SUM(AM$51:AM73)))<0,0,AM74-IF(Input!$C$9*Input!$C$38>SUM(AM$51:AM73),(Input!$C$9*Input!$C$38-SUM(AM$51:AM73)),0)) -> 0 | AO74: =IF((AN74-(Input!$C$9*Input!$C$38-SUM(AN$51:AN73)))<0,0,AN74-IF(Input!$C$9*Input!$C$38>SUM(AN$51:AN73),(Input!$C$9*Input!$C$38-SUM(AN$51:AN73)),0)) -> 0 | AP74: =IF((AO74-(Input!$C$9*Input!$C$38-SUM(AO$51:AO73)))<0,0,AO74-IF(Input!$C$9*Input!$C$38>SUM(AO$51:AO73),(Input!$C$9*Input!$C$38-SUM(AO$51:AO73)),0)) -> 0 | AQ74: =IF((AP74-(Input!$C$9*Input!$C$38-SUM(AP$51:AP73)))<0,0,AP74-IF(Input!$C$9*Input!$C$38>SUM(AP$51:AP73),(Input!$C$9*Input!$C$38-SUM(AP$51:AP73)),0)) -> 0 | AR74: =IF((AQ74-(Input!$C$9*Input!$C$38-SUM(AQ$51:AQ73)))<0,0,AQ74-IF(Input!$C$9*Input!$C$38>SUM(AQ$51:AQ73),(Input!$C$9*Input!$C$38-SUM(AQ$51:AQ73)),0)) -> 0 | AS74: =IF((AR74-(Input!$C$9*Input!$C$38-SUM(AR$51:AR73)))<0,0,AR74-IF(Input!$C$9*Input!$C$38>SUM(AR$51:AR73),(Input!$C$9*Input!$C$38-SUM(AR$51:AR73)),0)) -> 0 | AT74: =IF((AS74-(Input!$C$9*Input!$C$38-SUM(AS$51:AS73)))<0,0,AS74-IF(Input!$C$9*Input!$C$38>SUM(AS$51:AS73),(Input!$C$9*Input!$C$38-SUM(AS$51:AS73)),0)) -> 0 | AU74: =IF((AT74-(Input!$C$9*Input!$C$38-SUM(AT$51:AT73)))<0,0,AT74-IF(Input!$C$9*Input!$C$38>SUM(AT$51:AT73),(Input!$C$9*Input!$C$38-SUM(AT$51:AT73)),0)) -> 0 | AV74: =IF((AU74-(Input!$C$9*Input!$C$38-SUM(AU$51:AU73)))<0,0,AU74-IF(Input!$C$9*Input!$C$38>SUM(AU$51:AU73),(Input!$C$9*Input!$C$38-SUM(AU$51:AU73)),0)) -> 0 | AW74: =IF((AV74-(Input!$C$9*Input!$C$38-SUM(AV$51:AV73)))<0,0,AV74-IF(Input!$C$9*Input!$C$38>SUM(AV$51:AV73),(Input!$C$9*Input!$C$38-SUM(AV$51:AV73)),0)) -> 0 | AX74: =IF((AW74-(Input!$C$9*Input!$C$38-SUM(AW$51:AW73)))<0,0,AW74-IF(Input!$C$9*Input!$C$38>SUM(AW$51:AW73),(Input!$C$9*Input!$C$38-SUM(AW$51:AW73)),0)) -> 0 | AY74: =IF((AX74-(Input!$C$9*Input!$C$38-SUM(AX$51:AX73)))<0,0,AX74-IF(Input!$C$9*Input!$C$38>SUM(AX$51:AX73),(Input!$C$9*Input!$C$38-SUM(AX$51:AX73)),0)) -> 0 | AZ74: =IF((AY74-(Input!$C$9*Input!$C$38-SUM(AY$51:AY73)))<0,0,AY74-IF(Input!$C$9*Input!$C$38>SUM(AY$51:AY73),(Input!$C$9*Input!$C$38-SUM(AY$51:AY73)),0)) -> 0 | BA74: =IF((AZ74-(Input!$C$9*Input!$C$38-SUM(AZ$51:AZ73)))<0,0,AZ74-IF(Input!$C$9*Input!$C$38>SUM(AZ$51:AZ73),(Input!$C$9*Input!$C$38-SUM(AZ$51:AZ73)),0)) -> 0 | BB74: =IF((BA74-(Input!$C$9*Input!$C$38-SUM(BA$51:BA73)))<0,0,BA74-IF(Input!$C$9*Input!$C$38>SUM(BA$51:BA73),(Input!$C$9*Input!$C$38-SUM(BA$51:BA73)),0)) -> 0 | BC74: =IF((BB74-(Input!$C$9*Input!$C$38-SUM(BB$51:BB73)))<0,0,BB74-IF(Input!$C$9*Input!$C$38>SUM(BB$51:BB73),(Input!$C$9*Input!$C$38-SUM(BB$51:BB73)),0)) -> 0 | BD74: =IF((BC74-(Input!$C$9*Input!$C$38-SUM(BC$51:BC73)))<0,0,BC74-IF(Input!$C$9*Input!$C$38>SUM(BC$51:BC73),(Input!$C$9*Input!$C$38-SUM(BC$51:BC73)),0)) -> 0
A75: 25 | C75: =ROUND(NORMDIST(A75,Reeksen!$B$46,Reeksen!$B$47,FALSE)*Reeksen!$B$45,0) -> 361 | D75: =IF($B$39=0,0,C75) -> 361 | E75: 0.05968915344 | F75: -0.004947496675 | G75: 360.9950525 | H75: =IF((G75-(Input!$C$9*Input!$C$38-SUM(G$51:G74)))<0,0,G75-IF(Input!$C$9*Input!$C$38>SUM(G$51:G74),(Input!$C$9*Input!$C$38-SUM(G$51:G74)),0)) -> 360.9950525 | I75: =IF((H75-(Input!$C$9*Input!$C$38-SUM(H$51:H74)))<0,0,H75-IF(Input!$C$9*Input!$C$38>SUM(H$51:H74),(Input!$C$9*Input!$C$38-SUM(H$51:H74)),0)) -> 360.9950525 | J75: =IF((I75-(Input!$C$9*Input!$C$38-SUM(I$51:I74)))<0,0,I75-IF(Input!$C$9*Input!$C$38>SUM(I$51:I74),(Input!$C$9*Input!$C$38-SUM(I$51:I74)),0)) -> 360.9950525 | K75: =IF((J75-(Input!$C$9*Input!$C$38-SUM(J$51:J74)))<0,0,J75-IF(Input!$C$9*Input!$C$38>SUM(J$51:J74),(Input!$C$9*Input!$C$38-SUM(J$51:J74)),0)) -> 360.9950525 | L75: =IF((K75-(Input!$C$9*Input!$C$38-SUM(K$51:K74)))<0,0,K75-IF(Input!$C$9*Input!$C$38>SUM(K$51:K74),(Input!$C$9*Input!$C$38-SUM(K$51:K74)),0)) -> 360.9950525 | M75: =IF((L75-(Input!$C$9*Input!$C$38-SUM(L$51:L74)))<0,0,L75-IF(Input!$C$9*Input!$C$38>SUM(L$51:L74),(Input!$C$9*Input!$C$38-SUM(L$51:L74)),0)) -> 360.9950525 | N75: =IF((M75-(Input!$C$9*Input!$C$38-SUM(M$51:M74)))<0,0,M75-IF(Input!$C$9*Input!$C$38>SUM(M$51:M74),(Input!$C$9*Input!$C$38-SUM(M$51:M74)),0)) -> 360.9950525 | O75: =IF((N75-(Input!$C$9*Input!$C$38-SUM(N$51:N74)))<0,0,N75-IF(Input!$C$9*Input!$C$38>SUM(N$51:N74),(Input!$C$9*Input!$C$38-SUM(N$51:N74)),0)) -> 360.9950525 | P75: =IF((O75-(Input!$C$9*Input!$C$38-SUM(O$51:O74)))<0,0,O75-IF(Input!$C$9*Input!$C$38>SUM(O$51:O74),(Input!$C$9*Input!$C$38-SUM(O$51:O74)),0)) -> 360.9950525 | Q75: =IF((P75-(Input!$C$9*Input!$C$38-SUM(P$51:P74)))<0,0,P75-IF(Input!$C$9*Input!$C$38>SUM(P$51:P74),(Input!$C$9*Input!$C$38-SUM(P$51:P74)),0)) -> 360.9950525 | R75: =IF((Q75-(Input!$C$9*Input!$C$38-SUM(Q$51:Q74)))<0,0,Q75-IF(Input!$C$9*Input!$C$38>SUM(Q$51:Q74),(Input!$C$9*Input!$C$38-SUM(Q$51:Q74)),0)) -> 360.9950525 | S75: =IF((R75-(Input!$C$9*Input!$C$38-SUM(R$51:R74)))<0,0,R75-IF(Input!$C$9*Input!$C$38>SUM(R$51:R74),(Input!$C$9*Input!$C$38-SUM(R$51:R74)),0)) -> 360.9950525 | T75: =IF((S75-(Input!$C$9*Input!$C$38-SUM(S$51:S74)))<0,0,S75-IF(Input!$C$9*Input!$C$38>SUM(S$51:S74),(Input!$C$9*Input!$C$38-SUM(S$51:S74)),0)) -> 360.9950525 | U75: =IF((T75-(Input!$C$9*Input!$C$38-SUM(T$51:T74)))<0,0,T75-IF(Input!$C$9*Input!$C$38>SUM(T$51:T74),(Input!$C$9*Input!$C$38-SUM(T$51:T74)),0)) -> 183.1174903 | V75: =IF((U75-(Input!$C$9*Input!$C$38-SUM(U$51:U74)))<0,0,U75-IF(Input!$C$9*Input!$C$38>SUM(U$51:U74),(Input!$C$9*Input!$C$38-SUM(U$51:U74)),0)) -> 0 | W75: =IF((V75-(Input!$C$9*Input!$C$38-SUM(V$51:V74)))<0,0,V75-IF(Input!$C$9*Input!$C$38>SUM(V$51:V74),(Input!$C$9*Input!$C$38-SUM(V$51:V74)),0)) -> 0 | X75: =IF((W75-(Input!$C$9*Input!$C$38-SUM(W$51:W74)))<0,0,W75-IF(Input!$C$9*Input!$C$38>SUM(W$51:W74),(Input!$C$9*Input!$C$38-SUM(W$51:W74)),0)) -> 0 | Y75: =IF((X75-(Input!$C$9*Input!$C$38-SUM(X$51:X74)))<0,0,X75-IF(Input!$C$9*Input!$C$38>SUM(X$51:X74),(Input!$C$9*Input!$C$38-SUM(X$51:X74)),0)) -> 0 | Z75: =IF((Y75-(Input!$C$9*Input!$C$38-SUM(Y$51:Y74)))<0,0,Y75-IF(Input!$C$9*Input!$C$38>SUM(Y$51:Y74),(Input!$C$9*Input!$C$38-SUM(Y$51:Y74)),0)) -> 0 | AA75: =IF((Z75-(Input!$C$9*Input!$C$38-SUM(Z$51:Z74)))<0,0,Z75-IF(Input!$C$9*Input!$C$38>SUM(Z$51:Z74),(Input!$C$9*Input!$C$38-SUM(Z$51:Z74)),0)) -> 0 | AB75: =IF((AA75-(Input!$C$9*Input!$C$38-SUM(AA$51:AA74)))<0,0,AA75-IF(Input!$C$9*Input!$C$38>SUM(AA$51:AA74),(Input!$C$9*Input!$C$38-SUM(AA$51:AA74)),0)) -> 0 | AC75: =IF((AB75-(Input!$C$9*Input!$C$38-SUM(AB$51:AB74)))<0,0,AB75-IF(Input!$C$9*Input!$C$38>SUM(AB$51:AB74),(Input!$C$9*Input!$C$38-SUM(AB$51:AB74)),0)) -> 0 | AD75: =IF((AC75-(Input!$C$9*Input!$C$38-SUM(AC$51:AC74)))<0,0,AC75-IF(Input!$C$9*Input!$C$38>SUM(AC$51:AC74),(Input!$C$9*Input!$C$38-SUM(AC$51:AC74)),0)) -> 0 | AE75: =IF((AD75-(Input!$C$9*Input!$C$38-SUM(AD$51:AD74)))<0,0,AD75-IF(Input!$C$9*Input!$C$38>SUM(AD$51:AD74),(Input!$C$9*Input!$C$38-SUM(AD$51:AD74)),0)) -> 0 | AF75: =IF((AE75-(Input!$C$9*Input!$C$38-SUM(AE$51:AE74)))<0,0,AE75-IF(Input!$C$9*Input!$C$38>SUM(AE$51:AE74),(Input!$C$9*Input!$C$38-SUM(AE$51:AE74)),0)) -> 0 | AG75: =IF((AF75-(Input!$C$9*Input!$C$38-SUM(AF$51:AF74)))<0,0,AF75-IF(Input!$C$9*Input!$C$38>SUM(AF$51:AF74),(Input!$C$9*Input!$C$38-SUM(AF$51:AF74)),0)) -> 0 | AH75: =IF((AG75-(Input!$C$9*Input!$C$38-SUM(AG$51:AG74)))<0,0,AG75-IF(Input!$C$9*Input!$C$38>SUM(AG$51:AG74),(Input!$C$9*Input!$C$38-SUM(AG$51:AG74)),0)) -> 0 | AI75: =IF((AH75-(Input!$C$9*Input!$C$38-SUM(AH$51:AH74)))<0,0,AH75-IF(Input!$C$9*Input!$C$38>SUM(AH$51:AH74),(Input!$C$9*Input!$C$38-SUM(AH$51:AH74)),0)) -> 0 | AJ75: =IF((AI75-(Input!$C$9*Input!$C$38-SUM(AI$51:AI74)))<0,0,AI75-IF(Input!$C$9*Input!$C$38>SUM(AI$51:AI74),(Input!$C$9*Input!$C$38-SUM(AI$51:AI74)),0)) -> 0 | AK75: =IF((AJ75-(Input!$C$9*Input!$C$38-SUM(AJ$51:AJ74)))<0,0,AJ75-IF(Input!$C$9*Input!$C$38>SUM(AJ$51:AJ74),(Input!$C$9*Input!$C$38-SUM(AJ$51:AJ74)),0)) -> 0 | AL75: =IF((AK75-(Input!$C$9*Input!$C$38-SUM(AK$51:AK74)))<0,0,AK75-IF(Input!$C$9*Input!$C$38>SUM(AK$51:AK74),(Input!$C$9*Input!$C$38-SUM(AK$51:AK74)),0)) -> 0 | AM75: =IF((AL75-(Input!$C$9*Input!$C$38-SUM(AL$51:AL74)))<0,0,AL75-IF(Input!$C$9*Input!$C$38>SUM(AL$51:AL74),(Input!$C$9*Input!$C$38-SUM(AL$51:AL74)),0)) -> 0 | AN75: =IF((AM75-(Input!$C$9*Input!$C$38-SUM(AM$51:AM74)))<0,0,AM75-IF(Input!$C$9*Input!$C$38>SUM(AM$51:AM74),(Input!$C$9*Input!$C$38-SUM(AM$51:AM74)),0)) -> 0 | AO75: =IF((AN75-(Input!$C$9*Input!$C$38-SUM(AN$51:AN74)))<0,0,AN75-IF(Input!$C$9*Input!$C$38>SUM(AN$51:AN74),(Input!$C$9*Input!$C$38-SUM(AN$51:AN74)),0)) -> 0 | AP75: =IF((AO75-(Input!$C$9*Input!$C$38-SUM(AO$51:AO74)))<0,0,AO75-IF(Input!$C$9*Input!$C$38>SUM(AO$51:AO74),(Input!$C$9*Input!$C$38-SUM(AO$51:AO74)),0)) -> 0 | AQ75: =IF((AP75-(Input!$C$9*Input!$C$38-SUM(AP$51:AP74)))<0,0,AP75-IF(Input!$C$9*Input!$C$38>SUM(AP$51:AP74),(Input!$C$9*Input!$C$38-SUM(AP$51:AP74)),0)) -> 0 | AR75: =IF((AQ75-(Input!$C$9*Input!$C$38-SUM(AQ$51:AQ74)))<0,0,AQ75-IF(Input!$C$9*Input!$C$38>SUM(AQ$51:AQ74),(Input!$C$9*Input!$C$38-SUM(AQ$51:AQ74)),0)) -> 0 | AS75: =IF((AR75-(Input!$C$9*Input!$C$38-SUM(AR$51:AR74)))<0,0,AR75-IF(Input!$C$9*Input!$C$38>SUM(AR$51:AR74),(Input!$C$9*Input!$C$38-SUM(AR$51:AR74)),0)) -> 0 | AT75: =IF((AS75-(Input!$C$9*Input!$C$38-SUM(AS$51:AS74)))<0,0,AS75-IF(Input!$C$9*Input!$C$38>SUM(AS$51:AS74),(Input!$C$9*Input!$C$38-SUM(AS$51:AS74)),0)) -> 0 | AU75: =IF((AT75-(Input!$C$9*Input!$C$38-SUM(AT$51:AT74)))<0,0,AT75-IF(Input!$C$9*Input!$C$38>SUM(AT$51:AT74),(Input!$C$9*Input!$C$38-SUM(AT$51:AT74)),0)) -> 0 | AV75: =IF((AU75-(Input!$C$9*Input!$C$38-SUM(AU$51:AU74)))<0,0,AU75-IF(Input!$C$9*Input!$C$38>SUM(AU$51:AU74),(Input!$C$9*Input!$C$38-SUM(AU$51:AU74)),0)) -> 0 | AW75: =IF((AV75-(Input!$C$9*Input!$C$38-SUM(AV$51:AV74)))<0,0,AV75-IF(Input!$C$9*Input!$C$38>SUM(AV$51:AV74),(Input!$C$9*Input!$C$38-SUM(AV$51:AV74)),0)) -> 0 | AX75: =IF((AW75-(Input!$C$9*Input!$C$38-SUM(AW$51:AW74)))<0,0,AW75-IF(Input!$C$9*Input!$C$38>SUM(AW$51:AW74),(Input!$C$9*Input!$C$38-SUM(AW$51:AW74)),0)) -> 0 | AY75: =IF((AX75-(Input!$C$9*Input!$C$38-SUM(AX$51:AX74)))<0,0,AX75-IF(Input!$C$9*Input!$C$38>SUM(AX$51:AX74),(Input!$C$9*Input!$C$38-SUM(AX$51:AX74)),0)) -> 0 | AZ75: =IF((AY75-(Input!$C$9*Input!$C$38-SUM(AY$51:AY74)))<0,0,AY75-IF(Input!$C$9*Input!$C$38>SUM(AY$51:AY74),(Input!$C$9*Input!$C$38-SUM(AY$51:AY74)),0)) -> 0 | BA75: =IF((AZ75-(Input!$C$9*Input!$C$38-SUM(AZ$51:AZ74)))<0,0,AZ75-IF(Input!$C$9*Input!$C$38>SUM(AZ$51:AZ74),(Input!$C$9*Input!$C$38-SUM(AZ$51:AZ74)),0)) -> 0 | BB75: =IF((BA75-(Input!$C$9*Input!$C$38-SUM(BA$51:BA74)))<0,0,BA75-IF(Input!$C$9*Input!$C$38>SUM(BA$51:BA74),(Input!$C$9*Input!$C$38-SUM(BA$51:BA74)),0)) -> 0 | BC75: =IF((BB75-(Input!$C$9*Input!$C$38-SUM(BB$51:BB74)))<0,0,BB75-IF(Input!$C$9*Input!$C$38>SUM(BB$51:BB74),(Input!$C$9*Input!$C$38-SUM(BB$51:BB74)),0)) -> 0 | BD75: =IF((BC75-(Input!$C$9*Input!$C$38-SUM(BC$51:BC74)))<0,0,BC75-IF(Input!$C$9*Input!$C$38>SUM(BC$51:BC74),(Input!$C$9*Input!$C$38-SUM(BC$51:BC74)),0)) -> 0
A76: 26 | C76: =ROUND(NORMDIST(A76,Reeksen!$B$46,Reeksen!$B$47,FALSE)*Reeksen!$B$45,0) -> 349 | D76: =IF($B$39=0,0,C76) -> 349 | E76: 0.05770502646 | F76: -0.004783036952 | G76: 348.995217 | H76: =IF((G76-(Input!$C$9*Input!$C$38-SUM(G$51:G75)))<0,0,G76-IF(Input!$C$9*Input!$C$38>SUM(G$51:G75),(Input!$C$9*Input!$C$38-SUM(G$51:G75)),0)) -> 348.995217 | I76: =IF((H76-(Input!$C$9*Input!$C$38-SUM(H$51:H75)))<0,0,H76-IF(Input!$C$9*Input!$C$38>SUM(H$51:H75),(Input!$C$9*Input!$C$38-SUM(H$51:H75)),0)) -> 348.995217 | J76: =IF((I76-(Input!$C$9*Input!$C$38-SUM(I$51:I75)))<0,0,I76-IF(Input!$C$9*Input!$C$38>SUM(I$51:I75),(Input!$C$9*Input!$C$38-SUM(I$51:I75)),0)) -> 348.995217 | K76: =IF((J76-(Input!$C$9*Input!$C$38-SUM(J$51:J75)))<0,0,J76-IF(Input!$C$9*Input!$C$38>SUM(J$51:J75),(Input!$C$9*Input!$C$38-SUM(J$51:J75)),0)) -> 348.995217 | L76: =IF((K76-(Input!$C$9*Input!$C$38-SUM(K$51:K75)))<0,0,K76-IF(Input!$C$9*Input!$C$38>SUM(K$51:K75),(Input!$C$9*Input!$C$38-SUM(K$51:K75)),0)) -> 348.995217 | M76: =IF((L76-(Input!$C$9*Input!$C$38-SUM(L$51:L75)))<0,0,L76-IF(Input!$C$9*Input!$C$38>SUM(L$51:L75),(Input!$C$9*Input!$C$38-SUM(L$51:L75)),0)) -> 348.995217 | N76: =IF((M76-(Input!$C$9*Input!$C$38-SUM(M$51:M75)))<0,0,M76-IF(Input!$C$9*Input!$C$38>SUM(M$51:M75),(Input!$C$9*Input!$C$38-SUM(M$51:M75)),0)) -> 348.995217 | O76: =IF((N76-(Input!$C$9*Input!$C$38-SUM(N$51:N75)))<0,0,N76-IF(Input!$C$9*Input!$C$38>SUM(N$51:N75),(Input!$C$9*Input!$C$38-SUM(N$51:N75)),0)) -> 348.995217 | P76: =IF((O76-(Input!$C$9*Input!$C$38-SUM(O$51:O75)))<0,0,O76-IF(Input!$C$9*Input!$C$38>SUM(O$51:O75),(Input!$C$9*Input!$C$38-SUM(O$51:O75)),0)) -> 348.995217 | Q76: =IF((P76-(Input!$C$9*Input!$C$38-SUM(P$51:P75)))<0,0,P76-IF(Input!$C$9*Input!$C$38>SUM(P$51:P75),(Input!$C$9*Input!$C$38-SUM(P$51:P75)),0)) -> 348.995217 | R76: =IF((Q76-(Input!$C$9*Input!$C$38-SUM(Q$51:Q75)))<0,0,Q76-IF(Input!$C$9*Input!$C$38>SUM(Q$51:Q75),(Input!$C$9*Input!$C$38-SUM(Q$51:Q75)),0)) -> 348.995217 | S76: =IF((R76-(Input!$C$9*Input!$C$38-SUM(R$51:R75)))<0,0,R76-IF(Input!$C$9*Input!$C$38>SUM(R$51:R75),(Input!$C$9*Input!$C$38-SUM(R$51:R75)),0)) -> 348.995217 | T76: =IF((S76-(Input!$C$9*Input!$C$38-SUM(S$51:S75)))<0,0,S76-IF(Input!$C$9*Input!$C$38>SUM(S$51:S75),(Input!$C$9*Input!$C$38-SUM(S$51:S75)),0)) -> 348.995217 | U76: =IF((T76-(Input!$C$9*Input!$C$38-SUM(T$51:T75)))<0,0,T76-IF(Input!$C$9*Input!$C$38>SUM(T$51:T75),(Input!$C$9*Input!$C$38-SUM(T$51:T75)),0)) -> 348.995217 | V76: =IF((U76-(Input!$C$9*Input!$C$38-SUM(U$51:U75)))<0,0,U76-IF(Input!$C$9*Input!$C$38>SUM(U$51:U75),(Input!$C$9*Input!$C$38-SUM(U$51:U75)),0)) -> 290.1960228 | W76: =IF((V76-(Input!$C$9*Input!$C$38-SUM(V$51:V75)))<0,0,V76-IF(Input!$C$9*Input!$C$38>SUM(V$51:V75),(Input!$C$9*Input!$C$38-SUM(V$51:V75)),0)) -> 48.27933832 | X76: =IF((W76-(Input!$C$9*Input!$C$38-SUM(W$51:W75)))<0,0,W76-IF(Input!$C$9*Input!$C$38>SUM(W$51:W75),(Input!$C$9*Input!$C$38-SUM(W$51:W75)),0)) -> 0 | Y76: =IF((X76-(Input!$C$9*Input!$C$38-SUM(X$51:X75)))<0,0,X76-IF(Input!$C$9*Input!$C$38>SUM(X$51:X75),(Input!$C$9*Input!$C$38-SUM(X$51:X75)),0)) -> 0 | Z76: =IF((Y76-(Input!$C$9*Input!$C$38-SUM(Y$51:Y75)))<0,0,Y76-IF(Input!$C$9*Input!$C$38>SUM(Y$51:Y75),(Input!$C$9*Input!$C$38-SUM(Y$51:Y75)),0)) -> 0 | AA76: =IF((Z76-(Input!$C$9*Input!$C$38-SUM(Z$51:Z75)))<0,0,Z76-IF(Input!$C$9*Input!$C$38>SUM(Z$51:Z75),(Input!$C$9*Input!$C$38-SUM(Z$51:Z75)),0)) -> 0 | AB76: =IF((AA76-(Input!$C$9*Input!$C$38-SUM(AA$51:AA75)))<0,0,AA76-IF(Input!$C$9*Input!$C$38>SUM(AA$51:AA75),(Input!$C$9*Input!$C$38-SUM(AA$51:AA75)),0)) -> 0 | AC76: =IF((AB76-(Input!$C$9*Input!$C$38-SUM(AB$51:AB75)))<0,0,AB76-IF(Input!$C$9*Input!$C$38>SUM(AB$51:AB75),(Input!$C$9*Input!$C$38-SUM(AB$51:AB75)),0)) -> 0 | AD76: =IF((AC76-(Input!$C$9*Input!$C$38-SUM(AC$51:AC75)))<0,0,AC76-IF(Input!$C$9*Input!$C$38>SUM(AC$51:AC75),(Input!$C$9*Input!$C$38-SUM(AC$51:AC75)),0)) -> 0 | AE76: =IF((AD76-(Input!$C$9*Input!$C$38-SUM(AD$51:AD75)))<0,0,AD76-IF(Input!$C$9*Input!$C$38>SUM(AD$51:AD75),(Input!$C$9*Input!$C$38-SUM(AD$51:AD75)),0)) -> 0 | AF76: =IF((AE76-(Input!$C$9*Input!$C$38-SUM(AE$51:AE75)))<0,0,AE76-IF(Input!$C$9*Input!$C$38>SUM(AE$51:AE75),(Input!$C$9*Input!$C$38-SUM(AE$51:AE75)),0)) -> 0 | AG76: =IF((AF76-(Input!$C$9*Input!$C$38-SUM(AF$51:AF75)))<0,0,AF76-IF(Input!$C$9*Input!$C$38>SUM(AF$51:AF75),(Input!$C$9*Input!$C$38-SUM(AF$51:AF75)),0)) -> 0 | AH76: =IF((AG76-(Input!$C$9*Input!$C$38-SUM(AG$51:AG75)))<0,0,AG76-IF(Input!$C$9*Input!$C$38>SUM(AG$51:AG75),(Input!$C$9*Input!$C$38-SUM(AG$51:AG75)),0)) -> 0 | AI76: =IF((AH76-(Input!$C$9*Input!$C$38-SUM(AH$51:AH75)))<0,0,AH76-IF(Input!$C$9*Input!$C$38>SUM(AH$51:AH75),(Input!$C$9*Input!$C$38-SUM(AH$51:AH75)),0)) -> 0 | AJ76: =IF((AI76-(Input!$C$9*Input!$C$38-SUM(AI$51:AI75)))<0,0,AI76-IF(Input!$C$9*Input!$C$38>SUM(AI$51:AI75),(Input!$C$9*Input!$C$38-SUM(AI$51:AI75)),0)) -> 0 | AK76: =IF((AJ76-(Input!$C$9*Input!$C$38-SUM(AJ$51:AJ75)))<0,0,AJ76-IF(Input!$C$9*Input!$C$38>SUM(AJ$51:AJ75),(Input!$C$9*Input!$C$38-SUM(AJ$51:AJ75)),0)) -> 0 | AL76: =IF((AK76-(Input!$C$9*Input!$C$38-SUM(AK$51:AK75)))<0,0,AK76-IF(Input!$C$9*Input!$C$38>SUM(AK$51:AK75),(Input!$C$9*Input!$C$38-SUM(AK$51:AK75)),0)) -> 0 | AM76: =IF((AL76-(Input!$C$9*Input!$C$38-SUM(AL$51:AL75)))<0,0,AL76-IF(Input!$C$9*Input!$C$38>SUM(AL$51:AL75),(Input!$C$9*Input!$C$38-SUM(AL$51:AL75)),0)) -> 0 | AN76: =IF((AM76-(Input!$C$9*Input!$C$38-SUM(AM$51:AM75)))<0,0,AM76-IF(Input!$C$9*Input!$C$38>SUM(AM$51:AM75),(Input!$C$9*Input!$C$38-SUM(AM$51:AM75)),0)) -> 0 | AO76: =IF((AN76-(Input!$C$9*Input!$C$38-SUM(AN$51:AN75)))<0,0,AN76-IF(Input!$C$9*Input!$C$38>SUM(AN$51:AN75),(Input!$C$9*Input!$C$38-SUM(AN$51:AN75)),0)) -> 0 | AP76: =IF((AO76-(Input!$C$9*Input!$C$38-SUM(AO$51:AO75)))<0,0,AO76-IF(Input!$C$9*Input!$C$38>SUM(AO$51:AO75),(Input!$C$9*Input!$C$38-SUM(AO$51:AO75)),0)) -> 0 | AQ76: =IF((AP76-(Input!$C$9*Input!$C$38-SUM(AP$51:AP75)))<0,0,AP76-IF(Input!$C$9*Input!$C$38>SUM(AP$51:AP75),(Input!$C$9*Input!$C$38-SUM(AP$51:AP75)),0)) -> 0 | AR76: =IF((AQ76-(Input!$C$9*Input!$C$38-SUM(AQ$51:AQ75)))<0,0,AQ76-IF(Input!$C$9*Input!$C$38>SUM(AQ$51:AQ75),(Input!$C$9*Input!$C$38-SUM(AQ$51:AQ75)),0)) -> 0 | AS76: =IF((AR76-(Input!$C$9*Input!$C$38-SUM(AR$51:AR75)))<0,0,AR76-IF(Input!$C$9*Input!$C$38>SUM(AR$51:AR75),(Input!$C$9*Input!$C$38-SUM(AR$51:AR75)),0)) -> 0 | AT76: =IF((AS76-(Input!$C$9*Input!$C$38-SUM(AS$51:AS75)))<0,0,AS76-IF(Input!$C$9*Input!$C$38>SUM(AS$51:AS75),(Input!$C$9*Input!$C$38-SUM(AS$51:AS75)),0)) -> 0 | AU76: =IF((AT76-(Input!$C$9*Input!$C$38-SUM(AT$51:AT75)))<0,0,AT76-IF(Input!$C$9*Input!$C$38>SUM(AT$51:AT75),(Input!$C$9*Input!$C$38-SUM(AT$51:AT75)),0)) -> 0 | AV76: =IF((AU76-(Input!$C$9*Input!$C$38-SUM(AU$51:AU75)))<0,0,AU76-IF(Input!$C$9*Input!$C$38>SUM(AU$51:AU75),(Input!$C$9*Input!$C$38-SUM(AU$51:AU75)),0)) -> 0 | AW76: =IF((AV76-(Input!$C$9*Input!$C$38-SUM(AV$51:AV75)))<0,0,AV76-IF(Input!$C$9*Input!$C$38>SUM(AV$51:AV75),(Input!$C$9*Input!$C$38-SUM(AV$51:AV75)),0)) -> 0 | AX76: =IF((AW76-(Input!$C$9*Input!$C$38-SUM(AW$51:AW75)))<0,0,AW76-IF(Input!$C$9*Input!$C$38>SUM(AW$51:AW75),(Input!$C$9*Input!$C$38-SUM(AW$51:AW75)),0)) -> 0 | AY76: =IF((AX76-(Input!$C$9*Input!$C$38-SUM(AX$51:AX75)))<0,0,AX76-IF(Input!$C$9*Input!$C$38>SUM(AX$51:AX75),(Input!$C$9*Input!$C$38-SUM(AX$51:AX75)),0)) -> 0 | AZ76: =IF((AY76-(Input!$C$9*Input!$C$38-SUM(AY$51:AY75)))<0,0,AY76-IF(Input!$C$9*Input!$C$38>SUM(AY$51:AY75),(Input!$C$9*Input!$C$38-SUM(AY$51:AY75)),0)) -> 0 | BA76: =IF((AZ76-(Input!$C$9*Input!$C$38-SUM(AZ$51:AZ75)))<0,0,AZ76-IF(Input!$C$9*Input!$C$38>SUM(AZ$51:AZ75),(Input!$C$9*Input!$C$38-SUM(AZ$51:AZ75)),0)) -> 0 | BB76: =IF((BA76-(Input!$C$9*Input!$C$38-SUM(BA$51:BA75)))<0,0,BA76-IF(Input!$C$9*Input!$C$38>SUM(BA$51:BA75),(Input!$C$9*Input!$C$38-SUM(BA$51:BA75)),0)) -> 0 | BC76: =IF((BB76-(Input!$C$9*Input!$C$38-SUM(BB$51:BB75)))<0,0,BB76-IF(Input!$C$9*Input!$C$38>SUM(BB$51:BB75),(Input!$C$9*Input!$C$38-SUM(BB$51:BB75)),0)) -> 0 | BD76: =IF((BC76-(Input!$C$9*Input!$C$38-SUM(BC$51:BC75)))<0,0,BC76-IF(Input!$C$9*Input!$C$38>SUM(BC$51:BC75),(Input!$C$9*Input!$C$38-SUM(BC$51:BC75)),0)) -> 0
A77: 27 | C77: =ROUND(NORMDIST(A77,Reeksen!$B$46,Reeksen!$B$47,FALSE)*Reeksen!$B$45,0) -> 329 | D77: =IF($B$39=0,0,C77) -> 329 | E77: =D77/SUM($D$51:$D$100) -> 0.05439814815 | F77: -0.004508937413 | G77: 328.9954911 | H77: =IF((G77-(Input!$C$9*Input!$C$38-SUM(G$51:G76)))<0,0,G77-IF(Input!$C$9*Input!$C$38>SUM(G$51:G76),(Input!$C$9*Input!$C$38-SUM(G$51:G76)),0)) -> 328.9954911 | I77: =IF((H77-(Input!$C$9*Input!$C$38-SUM(H$51:H76)))<0,0,H77-IF(Input!$C$9*Input!$C$38>SUM(H$51:H76),(Input!$C$9*Input!$C$38-SUM(H$51:H76)),0)) -> 328.9954911 | J77: =IF((I77-(Input!$C$9*Input!$C$38-SUM(I$51:I76)))<0,0,I77-IF(Input!$C$9*Input!$C$38>SUM(I$51:I76),(Input!$C$9*Input!$C$38-SUM(I$51:I76)),0)) -> 328.9954911 | K77: =IF((J77-(Input!$C$9*Input!$C$38-SUM(J$51:J76)))<0,0,J77-IF(Input!$C$9*Input!$C$38>SUM(J$51:J76),(Input!$C$9*Input!$C$38-SUM(J$51:J76)),0)) -> 328.9954911 | L77: =IF((K77-(Input!$C$9*Input!$C$38-SUM(K$51:K76)))<0,0,K77-IF(Input!$C$9*Input!$C$38>SUM(K$51:K76),(Input!$C$9*Input!$C$38-SUM(K$51:K76)),0)) -> 328.9954911 | M77: =IF((L77-(Input!$C$9*Input!$C$38-SUM(L$51:L76)))<0,0,L77-IF(Input!$C$9*Input!$C$38>SUM(L$51:L76),(Input!$C$9*Input!$C$38-SUM(L$51:L76)),0)) -> 328.9954911 | N77: =IF((M77-(Input!$C$9*Input!$C$38-SUM(M$51:M76)))<0,0,M77-IF(Input!$C$9*Input!$C$38>SUM(M$51:M76),(Input!$C$9*Input!$C$38-SUM(M$51:M76)),0)) -> 328.9954911 | O77: =IF((N77-(Input!$C$9*Input!$C$38-SUM(N$51:N76)))<0,0,N77-IF(Input!$C$9*Input!$C$38>SUM(N$51:N76),(Input!$C$9*Input!$C$38-SUM(N$51:N76)),0)) -> 328.9954911 | P77: =IF((O77-(Input!$C$9*Input!$C$38-SUM(O$51:O76)))<0,0,O77-IF(Input!$C$9*Input!$C$38>SUM(O$51:O76),(Input!$C$9*Input!$C$38-SUM(O$51:O76)),0)) -> 328.9954911 | Q77: =IF((P77-(Input!$C$9*Input!$C$38-SUM(P$51:P76)))<0,0,P77-IF(Input!$C$9*Input!$C$38>SUM(P$51:P76),(Input!$C$9*Input!$C$38-SUM(P$51:P76)),0)) -> 328.9954911 | R77: =IF((Q77-(Input!$C$9*Input!$C$38-SUM(Q$51:Q76)))<0,0,Q77-IF(Input!$C$9*Input!$C$38>SUM(Q$51:Q76),(Input!$C$9*Input!$C$38-SUM(Q$51:Q76)),0)) -> 328.9954911 | S77: =IF((R77-(Input!$C$9*Input!$C$38-SUM(R$51:R76)))<0,0,R77-IF(Input!$C$9*Input!$C$38>SUM(R$51:R76),(Input!$C$9*Input!$C$38-SUM(R$51:R76)),0)) -> 328.9954911 | T77: =IF((S77-(Input!$C$9*Input!$C$38-SUM(S$51:S76)))<0,0,S77-IF(Input!$C$9*Input!$C$38>SUM(S$51:S76),(Input!$C$9*Input!$C$38-SUM(S$51:S76)),0)) -> 328.9954911 | U77: =IF((T77-(Input!$C$9*Input!$C$38-SUM(T$51:T76)))<0,0,T77-IF(Input!$C$9*Input!$C$38>SUM(T$51:T76),(Input!$C$9*Input!$C$38-SUM(T$51:T76)),0)) -> 328.9954911 | V77: =IF((U77-(Input!$C$9*Input!$C$38-SUM(U$51:U76)))<0,0,U77-IF(Input!$C$9*Input!$C$38>SUM(U$51:U76),(Input!$C$9*Input!$C$38-SUM(U$51:U76)),0)) -> 328.9954911 | W77: =IF((V77-(Input!$C$9*Input!$C$38-SUM(V$51:V76)))<0,0,V77-IF(Input!$C$9*Input!$C$38>SUM(V$51:V76),(Input!$C$9*Input!$C$38-SUM(V$51:V76)),0)) -> 328.9954911 | X77: =IF((W77-(Input!$C$9*Input!$C$38-SUM(W$51:W76)))<0,0,W77-IF(Input!$C$9*Input!$C$38>SUM(W$51:W76),(Input!$C$9*Input!$C$38-SUM(W$51:W76)),0)) -> 135.3581449 | Y77: =IF((X77-(Input!$C$9*Input!$C$38-SUM(X$51:X76)))<0,0,X77-IF(Input!$C$9*Input!$C$38>SUM(X$51:X76),(Input!$C$9*Input!$C$38-SUM(X$51:X76)),0)) -> 0 | Z77: =IF((Y77-(Input!$C$9*Input!$C$38-SUM(Y$51:Y76)))<0,0,Y77-IF(Input!$C$9*Input!$C$38>SUM(Y$51:Y76),(Input!$C$9*Input!$C$38-SUM(Y$51:Y76)),0)) -> 0 | AA77: =IF((Z77-(Input!$C$9*Input!$C$38-SUM(Z$51:Z76)))<0,0,Z77-IF(Input!$C$9*Input!$C$38>SUM(Z$51:Z76),(Input!$C$9*Input!$C$38-SUM(Z$51:Z76)),0)) -> 0 | AB77: =IF((AA77-(Input!$C$9*Input!$C$38-SUM(AA$51:AA76)))<0,0,AA77-IF(Input!$C$9*Input!$C$38>SUM(AA$51:AA76),(Input!$C$9*Input!$C$38-SUM(AA$51:AA76)),0)) -> 0 | AC77: =IF((AB77-(Input!$C$9*Input!$C$38-SUM(AB$51:AB76)))<0,0,AB77-IF(Input!$C$9*Input!$C$38>SUM(AB$51:AB76),(Input!$C$9*Input!$C$38-SUM(AB$51:AB76)),0)) -> 0 | AD77: =IF((AC77-(Input!$C$9*Input!$C$38-SUM(AC$51:AC76)))<0,0,AC77-IF(Input!$C$9*Input!$C$38>SUM(AC$51:AC76),(Input!$C$9*Input!$C$38-SUM(AC$51:AC76)),0)) -> 0 | AE77: =IF((AD77-(Input!$C$9*Input!$C$38-SUM(AD$51:AD76)))<0,0,AD77-IF(Input!$C$9*Input!$C$38>SUM(AD$51:AD76),(Input!$C$9*Input!$C$38-SUM(AD$51:AD76)),0)) -> 0 | AF77: =IF((AE77-(Input!$C$9*Input!$C$38-SUM(AE$51:AE76)))<0,0,AE77-IF(Input!$C$9*Input!$C$38>SUM(AE$51:AE76),(Input!$C$9*Input!$C$38-SUM(AE$51:AE76)),0)) -> 0 | AG77: =IF((AF77-(Input!$C$9*Input!$C$38-SUM(AF$51:AF76)))<0,0,AF77-IF(Input!$C$9*Input!$C$38>SUM(AF$51:AF76),(Input!$C$9*Input!$C$38-SUM(AF$51:AF76)),0)) -> 0 | AH77: =IF((AG77-(Input!$C$9*Input!$C$38-SUM(AG$51:AG76)))<0,0,AG77-IF(Input!$C$9*Input!$C$38>SUM(AG$51:AG76),(Input!$C$9*Input!$C$38-SUM(AG$51:AG76)),0)) -> 0 | AI77: =IF((AH77-(Input!$C$9*Input!$C$38-SUM(AH$51:AH76)))<0,0,AH77-IF(Input!$C$9*Input!$C$38>SUM(AH$51:AH76),(Input!$C$9*Input!$C$38-SUM(AH$51:AH76)),0)) -> 0 | AJ77: =IF((AI77-(Input!$C$9*Input!$C$38-SUM(AI$51:AI76)))<0,0,AI77-IF(Input!$C$9*Input!$C$38>SUM(AI$51:AI76),(Input!$C$9*Input!$C$38-SUM(AI$51:AI76)),0)) -> 0 | AK77: =IF((AJ77-(Input!$C$9*Input!$C$38-SUM(AJ$51:AJ76)))<0,0,AJ77-IF(Input!$C$9*Input!$C$38>SUM(AJ$51:AJ76),(Input!$C$9*Input!$C$38-SUM(AJ$51:AJ76)),0)) -> 0 | AL77: =IF((AK77-(Input!$C$9*Input!$C$38-SUM(AK$51:AK76)))<0,0,AK77-IF(Input!$C$9*Input!$C$38>SUM(AK$51:AK76),(Input!$C$9*Input!$C$38-SUM(AK$51:AK76)),0)) -> 0 | AM77: =IF((AL77-(Input!$C$9*Input!$C$38-SUM(AL$51:AL76)))<0,0,AL77-IF(Input!$C$9*Input!$C$38>SUM(AL$51:AL76),(Input!$C$9*Input!$C$38-SUM(AL$51:AL76)),0)) -> 0 | AN77: =IF((AM77-(Input!$C$9*Input!$C$38-SUM(AM$51:AM76)))<0,0,AM77-IF(Input!$C$9*Input!$C$38>SUM(AM$51:AM76),(Input!$C$9*Input!$C$38-SUM(AM$51:AM76)),0)) -> 0 | AO77: =IF((AN77-(Input!$C$9*Input!$C$38-SUM(AN$51:AN76)))<0,0,AN77-IF(Input!$C$9*Input!$C$38>SUM(AN$51:AN76),(Input!$C$9*Input!$C$38-SUM(AN$51:AN76)),0)) -> 0 | AP77: =IF((AO77-(Input!$C$9*Input!$C$38-SUM(AO$51:AO76)))<0,0,AO77-IF(Input!$C$9*Input!$C$38>SUM(AO$51:AO76),(Input!$C$9*Input!$C$38-SUM(AO$51:AO76)),0)) -> 0 | AQ77: =IF((AP77-(Input!$C$9*Input!$C$38-SUM(AP$51:AP76)))<0,0,AP77-IF(Input!$C$9*Input!$C$38>SUM(AP$51:AP76),(Input!$C$9*Input!$C$38-SUM(AP$51:AP76)),0)) -> 0 | AR77: =IF((AQ77-(Input!$C$9*Input!$C$38-SUM(AQ$51:AQ76)))<0,0,AQ77-IF(Input!$C$9*Input!$C$38>SUM(AQ$51:AQ76),(Input!$C$9*Input!$C$38-SUM(AQ$51:AQ76)),0)) -> 0 | AS77: =IF((AR77-(Input!$C$9*Input!$C$38-SUM(AR$51:AR76)))<0,0,AR77-IF(Input!$C$9*Input!$C$38>SUM(AR$51:AR76),(Input!$C$9*Input!$C$38-SUM(AR$51:AR76)),0)) -> 0 | AT77: =IF((AS77-(Input!$C$9*Input!$C$38-SUM(AS$51:AS76)))<0,0,AS77-IF(Input!$C$9*Input!$C$38>SUM(AS$51:AS76),(Input!$C$9*Input!$C$38-SUM(AS$51:AS76)),0)) -> 0 | AU77: =IF((AT77-(Input!$C$9*Input!$C$38-SUM(AT$51:AT76)))<0,0,AT77-IF(Input!$C$9*Input!$C$38>SUM(AT$51:AT76),(Input!$C$9*Input!$C$38-SUM(AT$51:AT76)),0)) -> 0 | AV77: =IF((AU77-(Input!$C$9*Input!$C$38-SUM(AU$51:AU76)))<0,0,AU77-IF(Input!$C$9*Input!$C$38>SUM(AU$51:AU76),(Input!$C$9*Input!$C$38-SUM(AU$51:AU76)),0)) -> 0 | AW77: =IF((AV77-(Input!$C$9*Input!$C$38-SUM(AV$51:AV76)))<0,0,AV77-IF(Input!$C$9*Input!$C$38>SUM(AV$51:AV76),(Input!$C$9*Input!$C$38-SUM(AV$51:AV76)),0)) -> 0 | AX77: =IF((AW77-(Input!$C$9*Input!$C$38-SUM(AW$51:AW76)))<0,0,AW77-IF(Input!$C$9*Input!$C$38>SUM(AW$51:AW76),(Input!$C$9*Input!$C$38-SUM(AW$51:AW76)),0)) -> 0 | AY77: =IF((AX77-(Input!$C$9*Input!$C$38-SUM(AX$51:AX76)))<0,0,AX77-IF(Input!$C$9*Input!$C$38>SUM(AX$51:AX76),(Input!$C$9*Input!$C$38-SUM(AX$51:AX76)),0)) -> 0 | AZ77: =IF((AY77-(Input!$C$9*Input!$C$38-SUM(AY$51:AY76)))<0,0,AY77-IF(Input!$C$9*Input!$C$38>SUM(AY$51:AY76),(Input!$C$9*Input!$C$38-SUM(AY$51:AY76)),0)) -> 0 | BA77: =IF((AZ77-(Input!$C$9*Input!$C$38-SUM(AZ$51:AZ76)))<0,0,AZ77-IF(Input!$C$9*Input!$C$38>SUM(AZ$51:AZ76),(Input!$C$9*Input!$C$38-SUM(AZ$51:AZ76)),0)) -> 0 | BB77: =IF((BA77-(Input!$C$9*Input!$C$38-SUM(BA$51:BA76)))<0,0,BA77-IF(Input!$C$9*Input!$C$38>SUM(BA$51:BA76),(Input!$C$9*Input!$C$38-SUM(BA$51:BA76)),0)) -> 0 | BC77: =IF((BB77-(Input!$C$9*Input!$C$38-SUM(BB$51:BB76)))<0,0,BB77-IF(Input!$C$9*Input!$C$38>SUM(BB$51:BB76),(Input!$C$9*Input!$C$38-SUM(BB$51:BB76)),0)) -> 0 | BD77: =IF((BC77-(Input!$C$9*Input!$C$38-SUM(BC$51:BC76)))<0,0,BC77-IF(Input!$C$9*Input!$C$38>SUM(BC$51:BC76),(Input!$C$9*Input!$C$38-SUM(BC$51:BC76)),0)) -> 0
A78: 28 | C78: =ROUND(NORMDIST(A78,Reeksen!$B$46,Reeksen!$B$47,FALSE)*Reeksen!$B$45,0) -> 304 | D78: 304 | E78: 0.05026455026 | F78: -0.00416631299 | G78: 303.9958337 | H78: =IF((G78-(Input!$C$9*Input!$C$38-SUM(G$51:G77)))<0,0,G78-IF(Input!$C$9*Input!$C$38>SUM(G$51:G77),(Input!$C$9*Input!$C$38-SUM(G$51:G77)),0)) -> 303.9958337 | I78: =IF((H78-(Input!$C$9*Input!$C$38-SUM(H$51:H77)))<0,0,H78-IF(Input!$C$9*Input!$C$38>SUM(H$51:H77),(Input!$C$9*Input!$C$38-SUM(H$51:H77)),0)) -> 303.9958337 | J78: =IF((I78-(Input!$C$9*Input!$C$38-SUM(I$51:I77)))<0,0,I78-IF(Input!$C$9*Input!$C$38>SUM(I$51:I77),(Input!$C$9*Input!$C$38-SUM(I$51:I77)),0)) -> 303.9958337 | K78: =IF((J78-(Input!$C$9*Input!$C$38-SUM(J$51:J77)))<0,0,J78-IF(Input!$C$9*Input!$C$38>SUM(J$51:J77),(Input!$C$9*Input!$C$38-SUM(J$51:J77)),0)) -> 303.9958337 | L78: =IF((K78-(Input!$C$9*Input!$C$38-SUM(K$51:K77)))<0,0,K78-IF(Input!$C$9*Input!$C$38>SUM(K$51:K77),(Input!$C$9*Input!$C$38-SUM(K$51:K77)),0)) -> 303.9958337 | M78: =IF((L78-(Input!$C$9*Input!$C$38-SUM(L$51:L77)))<0,0,L78-IF(Input!$C$9*Input!$C$38>SUM(L$51:L77),(Input!$C$9*Input!$C$38-SUM(L$51:L77)),0)) -> 303.9958337 | N78: =IF((M78-(Input!$C$9*Input!$C$38-SUM(M$51:M77)))<0,0,M78-IF(Input!$C$9*Input!$C$38>SUM(M$51:M77),(Input!$C$9*Input!$C$38-SUM(M$51:M77)),0)) -> 303.9958337 | O78: =IF((N78-(Input!$C$9*Input!$C$38-SUM(N$51:N77)))<0,0,N78-IF(Input!$C$9*Input!$C$38>SUM(N$51:N77),(Input!$C$9*Input!$C$38-SUM(N$51:N77)),0)) -> 303.9958337 | P78: =IF((O78-(Input!$C$9*Input!$C$38-SUM(O$51:O77)))<0,0,O78-IF(Input!$C$9*Input!$C$38>SUM(O$51:O77),(Input!$C$9*Input!$C$38-SUM(O$51:O77)),0)) -> 303.9958337 | Q78: =IF((P78-(Input!$C$9*Input!$C$38-SUM(P$51:P77)))<0,0,P78-IF(Input!$C$9*Input!$C$38>SUM(P$51:P77),(Input!$C$9*Input!$C$38-SUM(P$51:P77)),0)) -> 303.9958337 | R78: =IF((Q78-(Input!$C$9*Input!$C$38-SUM(Q$51:Q77)))<0,0,Q78-IF(Input!$C$9*Input!$C$38>SUM(Q$51:Q77),(Input!$C$9*Input!$C$38-SUM(Q$51:Q77)),0)) -> 303.9958337 | S78: =IF((R78-(Input!$C$9*Input!$C$38-SUM(R$51:R77)))<0,0,R78-IF(Input!$C$9*Input!$C$38>SUM(R$51:R77),(Input!$C$9*Input!$C$38-SUM(R$51:R77)),0)) -> 303.9958337 | T78: =IF((S78-(Input!$C$9*Input!$C$38-SUM(S$51:S77)))<0,0,S78-IF(Input!$C$9*Input!$C$38>SUM(S$51:S77),(Input!$C$9*Input!$C$38-SUM(S$51:S77)),0)) -> 303.9958337 | U78: =IF((T78-(Input!$C$9*Input!$C$38-SUM(T$51:T77)))<0,0,T78-IF(Input!$C$9*Input!$C$38>SUM(T$51:T77),(Input!$C$9*Input!$C$38-SUM(T$51:T77)),0)) -> 303.9958337 | V78: =IF((U78-(Input!$C$9*Input!$C$38-SUM(U$51:U77)))<0,0,U78-IF(Input!$C$9*Input!$C$38>SUM(U$51:U77),(Input!$C$9*Input!$C$38-SUM(U$51:U77)),0)) -> 303.9958337 | W78: =IF((V78-(Input!$C$9*Input!$C$38-SUM(V$51:V77)))<0,0,V78-IF(Input!$C$9*Input!$C$38>SUM(V$51:V77),(Input!$C$9*Input!$C$38-SUM(V$51:V77)),0)) -> 303.9958337 | X78: =IF((W78-(Input!$C$9*Input!$C$38-SUM(W$51:W77)))<0,0,W78-IF(Input!$C$9*Input!$C$38>SUM(W$51:W77),(Input!$C$9*Input!$C$38-SUM(W$51:W77)),0)) -> 303.9958337 | Y78: =IF((X78-(Input!$C$9*Input!$C$38-SUM(X$51:X77)))<0,0,X78-IF(Input!$C$9*Input!$C$38>SUM(X$51:X77),(Input!$C$9*Input!$C$38-SUM(X$51:X77)),0)) -> 197.4372941 | Z78: =IF((Y78-(Input!$C$9*Input!$C$38-SUM(Y$51:Y77)))<0,0,Y78-IF(Input!$C$9*Input!$C$38>SUM(Y$51:Y77),(Input!$C$9*Input!$C$38-SUM(Y$51:Y77)),0)) -> 0 | AA78: =IF((Z78-(Input!$C$9*Input!$C$38-SUM(Z$51:Z77)))<0,0,Z78-IF(Input!$C$9*Input!$C$38>SUM(Z$51:Z77),(Input!$C$9*Input!$C$38-SUM(Z$51:Z77)),0)) -> 0 | AB78: =IF((AA78-(Input!$C$9*Input!$C$38-SUM(AA$51:AA77)))<0,0,AA78-IF(Input!$C$9*Input!$C$38>SUM(AA$51:AA77),(Input!$C$9*Input!$C$38-SUM(AA$51:AA77)),0)) -> 0 | AC78: =IF((AB78-(Input!$C$9*Input!$C$38-SUM(AB$51:AB77)))<0,0,AB78-IF(Input!$C$9*Input!$C$38>SUM(AB$51:AB77),(Input!$C$9*Input!$C$38-SUM(AB$51:AB77)),0)) -> 0 | AD78: =IF((AC78-(Input!$C$9*Input!$C$38-SUM(AC$51:AC77)))<0,0,AC78-IF(Input!$C$9*Input!$C$38>SUM(AC$51:AC77),(Input!$C$9*Input!$C$38-SUM(AC$51:AC77)),0)) -> 0 | AE78: =IF((AD78-(Input!$C$9*Input!$C$38-SUM(AD$51:AD77)))<0,0,AD78-IF(Input!$C$9*Input!$C$38>SUM(AD$51:AD77),(Input!$C$9*Input!$C$38-SUM(AD$51:AD77)),0)) -> 0 | AF78: =IF((AE78-(Input!$C$9*Input!$C$38-SUM(AE$51:AE77)))<0,0,AE78-IF(Input!$C$9*Input!$C$38>SUM(AE$51:AE77),(Input!$C$9*Input!$C$38-SUM(AE$51:AE77)),0)) -> 0 | AG78: =IF((AF78-(Input!$C$9*Input!$C$38-SUM(AF$51:AF77)))<0,0,AF78-IF(Input!$C$9*Input!$C$38>SUM(AF$51:AF77),(Input!$C$9*Input!$C$38-SUM(AF$51:AF77)),0)) -> 0 | AH78: =IF((AG78-(Input!$C$9*Input!$C$38-SUM(AG$51:AG77)))<0,0,AG78-IF(Input!$C$9*Input!$C$38>SUM(AG$51:AG77),(Input!$C$9*Input!$C$38-SUM(AG$51:AG77)),0)) -> 0 | AI78: =IF((AH78-(Input!$C$9*Input!$C$38-SUM(AH$51:AH77)))<0,0,AH78-IF(Input!$C$9*Input!$C$38>SUM(AH$51:AH77),(Input!$C$9*Input!$C$38-SUM(AH$51:AH77)),0)) -> 0 | AJ78: =IF((AI78-(Input!$C$9*Input!$C$38-SUM(AI$51:AI77)))<0,0,AI78-IF(Input!$C$9*Input!$C$38>SUM(AI$51:AI77),(Input!$C$9*Input!$C$38-SUM(AI$51:AI77)),0)) -> 0 | AK78: =IF((AJ78-(Input!$C$9*Input!$C$38-SUM(AJ$51:AJ77)))<0,0,AJ78-IF(Input!$C$9*Input!$C$38>SUM(AJ$51:AJ77),(Input!$C$9*Input!$C$38-SUM(AJ$51:AJ77)),0)) -> 0 | AL78: =IF((AK78-(Input!$C$9*Input!$C$38-SUM(AK$51:AK77)))<0,0,AK78-IF(Input!$C$9*Input!$C$38>SUM(AK$51:AK77),(Input!$C$9*Input!$C$38-SUM(AK$51:AK77)),0)) -> 0 | AM78: =IF((AL78-(Input!$C$9*Input!$C$38-SUM(AL$51:AL77)))<0,0,AL78-IF(Input!$C$9*Input!$C$38>SUM(AL$51:AL77),(Input!$C$9*Input!$C$38-SUM(AL$51:AL77)),0)) -> 0 | AN78: =IF((AM78-(Input!$C$9*Input!$C$38-SUM(AM$51:AM77)))<0,0,AM78-IF(Input!$C$9*Input!$C$38>SUM(AM$51:AM77),(Input!$C$9*Input!$C$38-SUM(AM$51:AM77)),0)) -> 0 | AO78: =IF((AN78-(Input!$C$9*Input!$C$38-SUM(AN$51:AN77)))<0,0,AN78-IF(Input!$C$9*Input!$C$38>SUM(AN$51:AN77),(Input!$C$9*Input!$C$38-SUM(AN$51:AN77)),0)) -> 0 | AP78: =IF((AO78-(Input!$C$9*Input!$C$38-SUM(AO$51:AO77)))<0,0,AO78-IF(Input!$C$9*Input!$C$38>SUM(AO$51:AO77),(Input!$C$9*Input!$C$38-SUM(AO$51:AO77)),0)) -> 0 | AQ78: =IF((AP78-(Input!$C$9*Input!$C$38-SUM(AP$51:AP77)))<0,0,AP78-IF(Input!$C$9*Input!$C$38>SUM(AP$51:AP77),(Input!$C$9*Input!$C$38-SUM(AP$51:AP77)),0)) -> 0 | AR78: =IF((AQ78-(Input!$C$9*Input!$C$38-SUM(AQ$51:AQ77)))<0,0,AQ78-IF(Input!$C$9*Input!$C$38>SUM(AQ$51:AQ77),(Input!$C$9*Input!$C$38-SUM(AQ$51:AQ77)),0)) -> 0 | AS78: =IF((AR78-(Input!$C$9*Input!$C$38-SUM(AR$51:AR77)))<0,0,AR78-IF(Input!$C$9*Input!$C$38>SUM(AR$51:AR77),(Input!$C$9*Input!$C$38-SUM(AR$51:AR77)),0)) -> 0 | AT78: =IF((AS78-(Input!$C$9*Input!$C$38-SUM(AS$51:AS77)))<0,0,AS78-IF(Input!$C$9*Input!$C$38>SUM(AS$51:AS77),(Input!$C$9*Input!$C$38-SUM(AS$51:AS77)),0)) -> 0 | AU78: =IF((AT78-(Input!$C$9*Input!$C$38-SUM(AT$51:AT77)))<0,0,AT78-IF(Input!$C$9*Input!$C$38>SUM(AT$51:AT77),(Input!$C$9*Input!$C$38-SUM(AT$51:AT77)),0)) -> 0 | AV78: =IF((AU78-(Input!$C$9*Input!$C$38-SUM(AU$51:AU77)))<0,0,AU78-IF(Input!$C$9*Input!$C$38>SUM(AU$51:AU77),(Input!$C$9*Input!$C$38-SUM(AU$51:AU77)),0)) -> 0 | AW78: =IF((AV78-(Input!$C$9*Input!$C$38-SUM(AV$51:AV77)))<0,0,AV78-IF(Input!$C$9*Input!$C$38>SUM(AV$51:AV77),(Input!$C$9*Input!$C$38-SUM(AV$51:AV77)),0)) -> 0 | AX78: =IF((AW78-(Input!$C$9*Input!$C$38-SUM(AW$51:AW77)))<0,0,AW78-IF(Input!$C$9*Input!$C$38>SUM(AW$51:AW77),(Input!$C$9*Input!$C$38-SUM(AW$51:AW77)),0)) -> 0 | AY78: =IF((AX78-(Input!$C$9*Input!$C$38-SUM(AX$51:AX77)))<0,0,AX78-IF(Input!$C$9*Input!$C$38>SUM(AX$51:AX77),(Input!$C$9*Input!$C$38-SUM(AX$51:AX77)),0)) -> 0 | AZ78: =IF((AY78-(Input!$C$9*Input!$C$38-SUM(AY$51:AY77)))<0,0,AY78-IF(Input!$C$9*Input!$C$38>SUM(AY$51:AY77),(Input!$C$9*Input!$C$38-SUM(AY$51:AY77)),0)) -> 0 | BA78: =IF((AZ78-(Input!$C$9*Input!$C$38-SUM(AZ$51:AZ77)))<0,0,AZ78-IF(Input!$C$9*Input!$C$38>SUM(AZ$51:AZ77),(Input!$C$9*Input!$C$38-SUM(AZ$51:AZ77)),0)) -> 0 | BB78: =IF((BA78-(Input!$C$9*Input!$C$38-SUM(BA$51:BA77)))<0,0,BA78-IF(Input!$C$9*Input!$C$38>SUM(BA$51:BA77),(Input!$C$9*Input!$C$38-SUM(BA$51:BA77)),0)) -> 0 | BC78: =IF((BB78-(Input!$C$9*Input!$C$38-SUM(BB$51:BB77)))<0,0,BB78-IF(Input!$C$9*Input!$C$38>SUM(BB$51:BB77),(Input!$C$9*Input!$C$38-SUM(BB$51:BB77)),0)) -> 0 | BD78: =IF((BC78-(Input!$C$9*Input!$C$38-SUM(BC$51:BC77)))<0,0,BC78-IF(Input!$C$9*Input!$C$38>SUM(BC$51:BC77),(Input!$C$9*Input!$C$38-SUM(BC$51:BC77)),0)) -> 0
A79: 29 | C79: =ROUND(NORMDIST(A79,Reeksen!$B$46,Reeksen!$B$47,FALSE)*Reeksen!$B$45,0) -> 274 | D79: 274 | E79: 0.0453042328 | F79: -0.003755163682 | G79: 273.9962448 | H79: =IF((G79-(Input!$C$9*Input!$C$38-SUM(G$51:G78)))<0,0,G79-IF(Input!$C$9*Input!$C$38>SUM(G$51:G78),(Input!$C$9*Input!$C$38-SUM(G$51:G78)),0)) -> 273.9962448 | I79: =IF((H79-(Input!$C$9*Input!$C$38-SUM(H$51:H78)))<0,0,H79-IF(Input!$C$9*Input!$C$38>SUM(H$51:H78),(Input!$C$9*Input!$C$38-SUM(H$51:H78)),0)) -> 273.9962448 | J79: =IF((I79-(Input!$C$9*Input!$C$38-SUM(I$51:I78)))<0,0,I79-IF(Input!$C$9*Input!$C$38>SUM(I$51:I78),(Input!$C$9*Input!$C$38-SUM(I$51:I78)),0)) -> 273.9962448 | K79: =IF((J79-(Input!$C$9*Input!$C$38-SUM(J$51:J78)))<0,0,J79-IF(Input!$C$9*Input!$C$38>SUM(J$51:J78),(Input!$C$9*Input!$C$38-SUM(J$51:J78)),0)) -> 273.9962448 | L79: =IF((K79-(Input!$C$9*Input!$C$38-SUM(K$51:K78)))<0,0,K79-IF(Input!$C$9*Input!$C$38>SUM(K$51:K78),(Input!$C$9*Input!$C$38-SUM(K$51:K78)),0)) -> 273.9962448 | M79: =IF((L79-(Input!$C$9*Input!$C$38-SUM(L$51:L78)))<0,0,L79-IF(Input!$C$9*Input!$C$38>SUM(L$51:L78),(Input!$C$9*Input!$C$38-SUM(L$51:L78)),0)) -> 273.9962448 | N79: =IF((M79-(Input!$C$9*Input!$C$38-SUM(M$51:M78)))<0,0,M79-IF(Input!$C$9*Input!$C$38>SUM(M$51:M78),(Input!$C$9*Input!$C$38-SUM(M$51:M78)),0)) -> 273.9962448 | O79: =IF((N79-(Input!$C$9*Input!$C$38-SUM(N$51:N78)))<0,0,N79-IF(Input!$C$9*Input!$C$38>SUM(N$51:N78),(Input!$C$9*Input!$C$38-SUM(N$51:N78)),0)) -> 273.9962448 | P79: =IF((O79-(Input!$C$9*Input!$C$38-SUM(O$51:O78)))<0,0,O79-IF(Input!$C$9*Input!$C$38>SUM(O$51:O78),(Input!$C$9*Input!$C$38-SUM(O$51:O78)),0)) -> 273.9962448 | Q79: =IF((P79-(Input!$C$9*Input!$C$38-SUM(P$51:P78)))<0,0,P79-IF(Input!$C$9*Input!$C$38>SUM(P$51:P78),(Input!$C$9*Input!$C$38-SUM(P$51:P78)),0)) -> 273.9962448 | R79: =IF((Q79-(Input!$C$9*Input!$C$38-SUM(Q$51:Q78)))<0,0,Q79-IF(Input!$C$9*Input!$C$38>SUM(Q$51:Q78),(Input!$C$9*Input!$C$38-SUM(Q$51:Q78)),0)) -> 273.9962448 | S79: =IF((R79-(Input!$C$9*Input!$C$38-SUM(R$51:R78)))<0,0,R79-IF(Input!$C$9*Input!$C$38>SUM(R$51:R78),(Input!$C$9*Input!$C$38-SUM(R$51:R78)),0)) -> 273.9962448 | T79: =IF((S79-(Input!$C$9*Input!$C$38-SUM(S$51:S78)))<0,0,S79-IF(Input!$C$9*Input!$C$38>SUM(S$51:S78),(Input!$C$9*Input!$C$38-SUM(S$51:S78)),0)) -> 273.9962448 | U79: =IF((T79-(Input!$C$9*Input!$C$38-SUM(T$51:T78)))<0,0,T79-IF(Input!$C$9*Input!$C$38>SUM(T$51:T78),(Input!$C$9*Input!$C$38-SUM(T$51:T78)),0)) -> 273.9962448 | V79: =IF((U79-(Input!$C$9*Input!$C$38-SUM(U$51:U78)))<0,0,U79-IF(Input!$C$9*Input!$C$38>SUM(U$51:U78),(Input!$C$9*Input!$C$38-SUM(U$51:U78)),0)) -> 273.9962448 | W79: =IF((V79-(Input!$C$9*Input!$C$38-SUM(V$51:V78)))<0,0,V79-IF(Input!$C$9*Input!$C$38>SUM(V$51:V78),(Input!$C$9*Input!$C$38-SUM(V$51:V78)),0)) -> 273.9962448 | X79: =IF((W79-(Input!$C$9*Input!$C$38-SUM(W$51:W78)))<0,0,W79-IF(Input!$C$9*Input!$C$38>SUM(W$51:W78),(Input!$C$9*Input!$C$38-SUM(W$51:W78)),0)) -> 273.9962448 | Y79: =IF((X79-(Input!$C$9*Input!$C$38-SUM(X$51:X78)))<0,0,X79-IF(Input!$C$9*Input!$C$38>SUM(X$51:X78),(Input!$C$9*Input!$C$38-SUM(X$51:X78)),0)) -> 273.9962448 | Z79: =IF((Y79-(Input!$C$9*Input!$C$38-SUM(Y$51:Y78)))<0,0,Y79-IF(Input!$C$9*Input!$C$38>SUM(Y$51:Y78),(Input!$C$9*Input!$C$38-SUM(Y$51:Y78)),0)) -> 229.5168544 | AA79: =IF((Z79-(Input!$C$9*Input!$C$38-SUM(Z$51:Z78)))<0,0,Z79-IF(Input!$C$9*Input!$C$38>SUM(Z$51:Z78),(Input!$C$9*Input!$C$38-SUM(Z$51:Z78)),0)) -> 0 | AB79: =IF((AA79-(Input!$C$9*Input!$C$38-SUM(AA$51:AA78)))<0,0,AA79-IF(Input!$C$9*Input!$C$38>SUM(AA$51:AA78),(Input!$C$9*Input!$C$38-SUM(AA$51:AA78)),0)) -> 0 | AC79: =IF((AB79-(Input!$C$9*Input!$C$38-SUM(AB$51:AB78)))<0,0,AB79-IF(Input!$C$9*Input!$C$38>SUM(AB$51:AB78),(Input!$C$9*Input!$C$38-SUM(AB$51:AB78)),0)) -> 0 | AD79: =IF((AC79-(Input!$C$9*Input!$C$38-SUM(AC$51:AC78)))<0,0,AC79-IF(Input!$C$9*Input!$C$38>SUM(AC$51:AC78),(Input!$C$9*Input!$C$38-SUM(AC$51:AC78)),0)) -> 0 | AE79: =IF((AD79-(Input!$C$9*Input!$C$38-SUM(AD$51:AD78)))<0,0,AD79-IF(Input!$C$9*Input!$C$38>SUM(AD$51:AD78),(Input!$C$9*Input!$C$38-SUM(AD$51:AD78)),0)) -> 0 | AF79: =IF((AE79-(Input!$C$9*Input!$C$38-SUM(AE$51:AE78)))<0,0,AE79-IF(Input!$C$9*Input!$C$38>SUM(AE$51:AE78),(Input!$C$9*Input!$C$38-SUM(AE$51:AE78)),0)) -> 0 | AG79: =IF((AF79-(Input!$C$9*Input!$C$38-SUM(AF$51:AF78)))<0,0,AF79-IF(Input!$C$9*Input!$C$38>SUM(AF$51:AF78),(Input!$C$9*Input!$C$38-SUM(AF$51:AF78)),0)) -> 0 | AH79: =IF((AG79-(Input!$C$9*Input!$C$38-SUM(AG$51:AG78)))<0,0,AG79-IF(Input!$C$9*Input!$C$38>SUM(AG$51:AG78),(Input!$C$9*Input!$C$38-SUM(AG$51:AG78)),0)) -> 0 | AI79: =IF((AH79-(Input!$C$9*Input!$C$38-SUM(AH$51:AH78)))<0,0,AH79-IF(Input!$C$9*Input!$C$38>SUM(AH$51:AH78),(Input!$C$9*Input!$C$38-SUM(AH$51:AH78)),0)) -> 0 | AJ79: =IF((AI79-(Input!$C$9*Input!$C$38-SUM(AI$51:AI78)))<0,0,AI79-IF(Input!$C$9*Input!$C$38>SUM(AI$51:AI78),(Input!$C$9*Input!$C$38-SUM(AI$51:AI78)),0)) -> 0 | AK79: =IF((AJ79-(Input!$C$9*Input!$C$38-SUM(AJ$51:AJ78)))<0,0,AJ79-IF(Input!$C$9*Input!$C$38>SUM(AJ$51:AJ78),(Input!$C$9*Input!$C$38-SUM(AJ$51:AJ78)),0)) -> 0 | AL79: =IF((AK79-(Input!$C$9*Input!$C$38-SUM(AK$51:AK78)))<0,0,AK79-IF(Input!$C$9*Input!$C$38>SUM(AK$51:AK78),(Input!$C$9*Input!$C$38-SUM(AK$51:AK78)),0)) -> 0 | AM79: =IF((AL79-(Input!$C$9*Input!$C$38-SUM(AL$51:AL78)))<0,0,AL79-IF(Input!$C$9*Input!$C$38>SUM(AL$51:AL78),(Input!$C$9*Input!$C$38-SUM(AL$51:AL78)),0)) -> 0 | AN79: =IF((AM79-(Input!$C$9*Input!$C$38-SUM(AM$51:AM78)))<0,0,AM79-IF(Input!$C$9*Input!$C$38>SUM(AM$51:AM78),(Input!$C$9*Input!$C$38-SUM(AM$51:AM78)),0)) -> 0 | AO79: =IF((AN79-(Input!$C$9*Input!$C$38-SUM(AN$51:AN78)))<0,0,AN79-IF(Input!$C$9*Input!$C$38>SUM(AN$51:AN78),(Input!$C$9*Input!$C$38-SUM(AN$51:AN78)),0)) -> 0 | AP79: =IF((AO79-(Input!$C$9*Input!$C$38-SUM(AO$51:AO78)))<0,0,AO79-IF(Input!$C$9*Input!$C$38>SUM(AO$51:AO78),(Input!$C$9*Input!$C$38-SUM(AO$51:AO78)),0)) -> 0 | AQ79: =IF((AP79-(Input!$C$9*Input!$C$38-SUM(AP$51:AP78)))<0,0,AP79-IF(Input!$C$9*Input!$C$38>SUM(AP$51:AP78),(Input!$C$9*Input!$C$38-SUM(AP$51:AP78)),0)) -> 0 | AR79: =IF((AQ79-(Input!$C$9*Input!$C$38-SUM(AQ$51:AQ78)))<0,0,AQ79-IF(Input!$C$9*Input!$C$38>SUM(AQ$51:AQ78),(Input!$C$9*Input!$C$38-SUM(AQ$51:AQ78)),0)) -> 0 | AS79: =IF((AR79-(Input!$C$9*Input!$C$38-SUM(AR$51:AR78)))<0,0,AR79-IF(Input!$C$9*Input!$C$38>SUM(AR$51:AR78),(Input!$C$9*Input!$C$38-SUM(AR$51:AR78)),0)) -> 0 | AT79: =IF((AS79-(Input!$C$9*Input!$C$38-SUM(AS$51:AS78)))<0,0,AS79-IF(Input!$C$9*Input!$C$38>SUM(AS$51:AS78),(Input!$C$9*Input!$C$38-SUM(AS$51:AS78)),0)) -> 0 | AU79: =IF((AT79-(Input!$C$9*Input!$C$38-SUM(AT$51:AT78)))<0,0,AT79-IF(Input!$C$9*Input!$C$38>SUM(AT$51:AT78),(Input!$C$9*Input!$C$38-SUM(AT$51:AT78)),0)) -> 0 | AV79: =IF((AU79-(Input!$C$9*Input!$C$38-SUM(AU$51:AU78)))<0,0,AU79-IF(Input!$C$9*Input!$C$38>SUM(AU$51:AU78),(Input!$C$9*Input!$C$38-SUM(AU$51:AU78)),0)) -> 0 | AW79: =IF((AV79-(Input!$C$9*Input!$C$38-SUM(AV$51:AV78)))<0,0,AV79-IF(Input!$C$9*Input!$C$38>SUM(AV$51:AV78),(Input!$C$9*Input!$C$38-SUM(AV$51:AV78)),0)) -> 0 | AX79: =IF((AW79-(Input!$C$9*Input!$C$38-SUM(AW$51:AW78)))<0,0,AW79-IF(Input!$C$9*Input!$C$38>SUM(AW$51:AW78),(Input!$C$9*Input!$C$38-SUM(AW$51:AW78)),0)) -> 0 | AY79: =IF((AX79-(Input!$C$9*Input!$C$38-SUM(AX$51:AX78)))<0,0,AX79-IF(Input!$C$9*Input!$C$38>SUM(AX$51:AX78),(Input!$C$9*Input!$C$38-SUM(AX$51:AX78)),0)) -> 0 | AZ79: =IF((AY79-(Input!$C$9*Input!$C$38-SUM(AY$51:AY78)))<0,0,AY79-IF(Input!$C$9*Input!$C$38>SUM(AY$51:AY78),(Input!$C$9*Input!$C$38-SUM(AY$51:AY78)),0)) -> 0 | BA79: =IF((AZ79-(Input!$C$9*Input!$C$38-SUM(AZ$51:AZ78)))<0,0,AZ79-IF(Input!$C$9*Input!$C$38>SUM(AZ$51:AZ78),(Input!$C$9*Input!$C$38-SUM(AZ$51:AZ78)),0)) -> 0 | BB79: =IF((BA79-(Input!$C$9*Input!$C$38-SUM(BA$51:BA78)))<0,0,BA79-IF(Input!$C$9*Input!$C$38>SUM(BA$51:BA78),(Input!$C$9*Input!$C$38-SUM(BA$51:BA78)),0)) -> 0 | BC79: =IF((BB79-(Input!$C$9*Input!$C$38-SUM(BB$51:BB78)))<0,0,BB79-IF(Input!$C$9*Input!$C$38>SUM(BB$51:BB78),(Input!$C$9*Input!$C$38-SUM(BB$51:BB78)),0)) -> 0 | BD79: =IF((BC79-(Input!$C$9*Input!$C$38-SUM(BC$51:BC78)))<0,0,BC79-IF(Input!$C$9*Input!$C$38>SUM(BC$51:BC78),(Input!$C$9*Input!$C$38-SUM(BC$51:BC78)),0)) -> 0
